Workbook

Sheet Notes
A1: ATR_BreakoutEntries.xlsm; Traders Tip spreadsheet created for the June 2016 Issue
A2: Coded beginning 2016-Apr-06 by Ronald McAllister (rpmac_xltt@sprynet.com)
A4: This Workbook demonstrates an EXCEL version of the ideas presented
A5: by Ken Calhoun in an article titled "ATR Breakout Entries"
A6: which originally appeared in the May 2016 issue of
A7: "Technical Analysis of Stocks and Commodities" magazine.
A9: CalculationsAndCharts construction Notes:
A11: Development Notes:
C12: This workbook contains and uses VBA macros and may use VBA Class structures.
C13: Input Data
C14: The data in this workbook is sorted date descending (most recent date at the top). All formulas and
C15: VBA routines are built accordingly.
A17: Calculation and Chart Worksheet Usage Comments:
C18: In General, Items in Bolded BLUE are items you may freely change to play what-if games.
C19: Be sure to have a backup copy of the spreadsheet before you alter anything else.
A21: New with this Traders Tip
A22: Added a pair of buttons near cell F12 that will allow the user to step the charting window forward or backward one bar for each click.
A23: I find this to be a good way to test my understanding of the author's ideas as I step through the evolution of the price behaviour and the indicators.
A25: Features carried forward from the February 2016 version of my T-Tips Template
B26: First: In the "Help! I would like to plot data" area.
B27: Added button to resolve #NA problems by locating the bar in the input data with a slightly more recent date than what the user actually requested.
B28: I find this particularly useful when I have a general idea of where I want to be date wise. Now I can pick a set of dates "out of the air".
B29: If either (or both) of my date specifications fall between dates that are available in the price history,
B30: this button will resolve them to the dates of the nearest, slightly more recent input bars.
B31: I can then refine my data interval search as necessary from there.
B32: Really great when working with Weekly or Monthly studies!
B34: Second: In the "Price Chart Windowing Controls" area. (A11 and A12)
B35: When retrieving data for a new symbol or when changing from daily to weekly or monthly data, there was the possibility that the
B36: residual settings in A11 and A12 would fall outside of the number bars available on the input data tab after the new data retrieval.
B37: In certain combinations, this could create a serious error in the chart sizing logic and crash the spreadsheet.
B38: I have taken this opportunity to update the validity checking logic used in the chart sizing macros
B39: to adjust these values as necessary so that they fall within the boundaries of the newly retrieved input data.
A40: Features carried forward from the October 2015 Traders Tips Template
B41: Improved automation: changes to any of the following will automatically initiate calculations appropriate to reflect a change.
C42: Changing either of cells A11 (pan) or A12 (zoom) will automatically initiate the same chart sizing macros that the manual
C43: "Set Chart" button uses.
B45: Added fail-over capability to attempt to retrieve company name and basic last trade info via screen scraper logic
C46: using the Yahoo stock Summary page. Until now, the way I have been doing this reports that ^DJI is Not Found!
C47: when there is history available. Will still report correctly for a truly Not Found Symbol
C48: Minor drawbacks to the screen scrape of the stock summary page include:
C49: Only date on the page is the date we request the page. I will use this date for now as the last trade date…
C50: But the user should be aware that this is not necessarily the correct date if you are making the inquiry on
C51: a weekend or market holiday.
C52: This is not a big issue as the last real trade will already be accounted for in the history download by about 6 pm on the real date of the trade.
C53: Note: This failover mechanism is only used if what I have been doing all along reports a "not found" for the requested symbol.

Sheet InputPriceData
A1: Direxion Daily Gold Miners Inde (NUGT) -PCX (Daily)
A2: Last Trade: | B2: 2016-04-13 | C2: 81.48 | D2: 84.97 | E2: 79.59 | F2: 80.5352 | G2: 4380827 | H2: 2:18pm | I2: -5.6148 | J2: =IFERROR(OFFSET(J2,0,-1,1,1)/(OFFSET(J2,0,-4,1,1)-OFFSET(J2,0,-1,1,1)),"") -> -0.0651746953 | L2: Notes: | M2: Online Yahoo Finance Query Interfaces used in the VBA code to obtain this data: | IJ2: 241.79
A3: Request Online Yahoo History for: | M3: A.) Price History Only: "http://ichart.finance.yahoo.com/table.csv"
A4: Symbol | B4: nugt | D4: Valid | I4: =OFFSET(I4,-2,0,1,1) -> -5.6148 | M4: B.) Price History w/ imbedded divs n splits: "http://ichart.finance.yahoo.com/x"
A5: From | B5: 1977-01-07 | D5: Data | AF5: Trailing 12 Div return (Cur Close)
A6: To | B6: =TODAY() -> 2016-04-13 | D6: Types | E6: =VLOOKUP(B7,D7:E10,2,FALSE) -> d | M6: C.) Fundamentals (in this case name and exchange):
A7: Data Type | B7: Daily | D7: Daily | E7: d | M7: "http://download.finance.yahoo.com/d/quotes.csv?"
D8: Weekly | E8: w | M8: For some how-to doc regarding this particular interface, including a list of the
A9: Available Data | D9: Monthly | E9: m | M9: specific fields you can include in a request to this interface see:
A10: Bar Count: | B10: =COUNTA(B15:B70000)-1 -> 1345 | M10: http://www.gummy-stuff.org/Yahoo-data.htm | AF10: =OFFSET(AC15,1,0,1,1)/OFFSET(N15,1,0,1,1) -> 6.326049168
A11: From: | B11: =IF(B10<=0,"",OFFSET(B15,B10,IF(HistReqDataType="v",1,0),1,1)) -> 2010-12-08 | M11: This web site includes a downloadable working EXCEL/VBA example | W11: Trailing 12 Month Dividend Returns
A12: To: | B12: =IF(B10<=0,"",IF(HistReqDataType="v",OFFSET(B15,2,1,1,1),OFFSET(B15,1,0,1,1))) -> 2016-04-13 | M12: of the capabilities of this interface. | W12: Raw Close price on Dividend date | X12: Div Year and Month | Y12: Looking for year ago Div Year and Month | Z12: Year ago Div Date we found | AA12: row offset to year ago div Date | AB12: Same month flag | AC12: Trailing 12 Div Total | AD12: Trailing 12 Div return
Q13: Split History | S13: =COUNT(Q16:Q3919) -> 3 | T13: Running | U13: Dividend History
B14: Raw Data Values | H14: Adjusted | I14: Price Adjust | J14: Vol Adjust | K14: Adjusted Values | P14: Last | Q14: Effective | R14: Shares | T14: Vol Adjust | V14: =COUNT(U16:U3919) -> 1
A15: RelRow | B15: Date | C15: Open | D15: High | E15: Low | F15: Close | G15: Volume | H15: Close | I15: Factor | J15: Factor | K15: Open | L15: High | M15: Low | N15: Close | O15: Volume | P15: Trade | Q15: 42474 | R15: New | S15: Old | T15: 1 | U15: Date | V15: $ / Share
A16: 1 | B16: 2016-04-13 | C16: 81.48 | D16: 84.97 | E16: 79.59 | F16: 80.5352 | G16: 4380827 | H16: 80.5352 | I16: =H16/F16 -> 1 | J16: =INDEX(OFFSET($T$15,0,0,$S$13+1,1),MATCH(B16,OFFSET($Q$15,0,0,$S$13+1,1),-1)) -> 1 | K16: =ROUND($I16*C16,2) -> 81.48 | L16: =ROUND($I16*D16,2) -> 84.97 | M16: =ROUND($I16*E16,2) -> 79.59 | N16: =ROUND($I16*F16,2) -> 80.54 | O16: =G16*J16 -> 4380827 | P16: 2:18pm | Q16: 2015-10-01 | R16: 1 | S16: 10 | T16: 0.1 | U16: 2011-12-13 | V16: 509.5 | W16: =(INDEX(OFFSET($F$15,1,0,$B$10,1),MATCH(U16,OFFSET($B$15,1,0,$B$10,1),-1))) -> 22.860001 | X16: =YEAR(U16)&RIGHT("0"&MONTH(U16),2) -> 201112 | Y16: =YEAR(U16)-1&RIGHT("0"&MONTH(U16),2) -> 201012 | Z16: =OFFSET(U15,AA16,0,1,1) -> 2011-12-13 | AA16: =MATCH(Y16,OFFSET($X$15,A16,0,$V$14+1-A16,1),-1) -> 1 | AB16: =IF(OR(AND(YEAR(U16)=YEAR(Z16),MONTH(U16)=MONTH(Z16)),MONTH(U16)=MONTH(Z16)),1,0) -> 1 | AC16: =(V16+IF(AA16-AB16=0,0,IFERROR(SUM(OFFSET(V16,1,0,AA16-AB16-1,1)),0))) -> 509.5 | AD16: =AC16/(INDEX(OFFSET($F$15,1,0,$B$10,1),MATCH(U16,OFFSET($B$15,1,0,$B$10,1),-1))) -> 22.28783805
A17: 2 | B17: 2016-04-12 | C17: 84.970001 | D17: 88.120003 | E17: 80.330002 | F17: 86.150002 | G17: 7810800 | H17: 86.150002 | I17: =H17/F17 -> 1 | J17: =INDEX(OFFSET($T$15,0,0,$S$13+1,1),MATCH(B17,OFFSET($Q$15,0,0,$S$13+1,1),-1)) -> 1 | K17: 84.97 | L17: 88.12 | M17: 80.33 | N17: 86.15 | O17: =G17*J17 -> 7810800 | Q17: 2013-08-20 | R17: 1 | S17: 10 | T17: 0.01
A18: 3 | B18: 2016-04-11 | C18: 76.300003 | D18: 84.949997 | E18: 75.75 | F18: 84.040001 | G18: 8629400 | H18: 84.040001 | I18: =H18/F18 -> 1 | J18: =INDEX(OFFSET($T$15,0,0,$S$13+1,1),MATCH(B18,OFFSET($Q$15,0,0,$S$13+1,1),-1)) -> 1 | K18: 76.3 | L18: 84.95 | M18: 75.75 | N18: 84.04 | O18: =G18*J18 -> 8629400 | Q18: 2013-04-02 | R18: 1 | S18: 5 | T18: 0.002
A19: 4 | B19: 2016-04-08 | C19: 64.760002 | D19: 72.57 | E19: 64.5 | F19: 71.260002 | G19: 8566900 | H19: 71.260002 | I19: 1 | J19: 1 | K19: 64.76 | L19: 72.57 | M19: 64.5 | N19: 71.26 | O19: 8566900
A20: 5 | B20: 2016-04-07 | C20: 63.59 | D20: 65.940002 | E20: 62.939999 | F20: 65.279999 | G20: 8002000 | H20: 65.279999 | I20: 1 | J20: 1 | K20: 63.59 | L20: 65.94 | M20: 62.94 | N20: 65.28 | O20: 8002000
A21: 6 | B21: 2016-04-06 | C21: 57.41 | D21: 60.439999 | E21: 56.619999 | F21: 59.82 | G21: 5896100 | H21: 59.82 | I21: 1 | J21: 1 | K21: 57.41 | L21: 60.44 | M21: 56.62 | N21: 59.82 | O21: 5896100
A22: 7 | B22: 2016-04-05 | C22: 59 | D22: 60 | E22: 54.779999 | F22: 59.470001 | G22: 7928300 | H22: 59.470001 | I22: 1 | J22: 1 | K22: 59 | L22: 60 | M22: 54.78 | N22: 59.47 | O22: 7928300
A23: 8 | B23: 2016-04-04 | C23: 59.080002 | D23: 59.099998 | E23: 54.400002 | F23: 54.700001 | G23: 5700500 | H23: 54.700001 | I23: 1 | J23: 1 | K23: 59.08 | L23: 59.1 | M23: 54.4 | N23: 54.7 | O23: 5700500
A24: 9 | B24: 2016-04-01 | C24: 54 | D24: 59.75 | E24: 52.790001 | F24: 59.75 | G24: 9033700 | H24: 59.75 | I24: 1 | J24: 1 | K24: 54 | L24: 59.75 | M24: 52.79 | N24: 59.75 | O24: 9033700
A25: 10 | B25: 2016-03-31 | C25: 63.139999 | D25: 63.880001 | E25: 58.400002 | F25: 58.540001 | G25: 4866800 | H25: 58.540001 | I25: 1 | J25: 1 | K25: 63.14 | L25: 63.88 | M25: 58.4 | N25: 58.54 | O25: 4866800
A26: 11 | B26: 2016-03-30 | C26: 60.889999 | D26: 63.259998 | E26: 57.369999 | F26: 60.75 | G26: 7127500 | H26: 60.75 | I26: 1 | J26: 1 | K26: 60.89 | L26: 63.26 | M26: 57.37 | N26: 60.75 | O26: 7127500
A27: 12 | B27: 2016-03-29 | C27: 56.130001 | D27: 64.150002 | E27: 54.200001 | F27: 63.580002 | G27: 12845800 | H27: 63.580002 | I27: 1 | J27: 1 | K27: 56.13 | L27: 64.15 | M27: 54.2 | N27: 63.58 | O27: 12845800
A28: 13 | B28: 2016-03-28 | C28: 56 | D28: 56.400002 | E28: 51.619999 | F28: 54.509998 | G28: 6529900 | H28: 54.509998 | I28: 1 | J28: 1 | K28: 56 | L28: 56.4 | M28: 51.62 | N28: 54.51 | O28: 6529900
A29: 14 | B29: 2016-03-24 | C29: 53.049999 | D29: 55.759998 | E29: 51.669998 | F29: 54.610001 | G29: 7582300 | H29: 54.610001 | I29: 1 | J29: 1 | K29: 53.05 | L29: 55.76 | M29: 51.67 | N29: 54.61 | O29: 7582300
A30: 15 | B30: 2016-03-23 | C30: 58.599998 | D30: 59.48 | E30: 51.200001 | F30: 51.34 | G30: 14310700 | H30: 51.34 | I30: 1 | J30: 1 | K30: 58.6 | L30: 59.48 | M30: 51.2 | N30: 51.34 | O30: 14310700
A31: 16 | B31: 2016-03-22 | C31: 69.400002 | D31: 70.260002 | E31: 64.050003 | F31: 66.309998 | G31: 7370100 | H31: 66.309998 | I31: 1 | J31: 1 | K31: 69.4 | L31: 70.26 | M31: 64.05 | N31: 66.31 | O31: 7370100
A32: 17 | B32: 2016-03-21 | C32: 65.43 | D32: 68.190002 | E32: 63.610001 | F32: 66.18 | G32: 6545500 | H32: 66.18 | I32: 1 | J32: 1 | K32: 65.43 | L32: 68.19 | M32: 63.61 | N32: 66.18 | O32: 6545500
A33: 18 | B33: 2016-03-18 | C33: 64.110001 | D33: 69.580002 | E33: 64 | F33: 66.32 | G33: 7706500 | H33: 66.32 | I33: 1 | J33: 1 | K33: 64.11 | L33: 69.58 | M33: 64 | N33: 66.32 | O33: 7706500
A34: 19 | B34: 2016-03-17 | C34: 70.849998 | D34: 74.650002 | E34: 64.199997 | F34: 64.660004 | G34: 12648000 | H34: 64.660004 | I34: 1 | J34: 1 | K34: 70.85 | L34: 74.65 | M34: 64.2 | N34: 64.66 | O34: 12648000
A35: 20 | B35: 2016-03-16 | C35: 54.540001 | D35: 69.75 | E35: 52.529999 | F35: 68.989998 | G35: 14060900 | H35: 68.989998 | I35: 1 | J35: 1 | K35: 54.54 | L35: 69.75 | M35: 52.53 | N35: 68.99 | O35: 14060900
A36: 21 | B36: 2016-03-15 | C36: 54.189999 | D36: 57.5 | E36: 51.799999 | F36: 57.360001 | G36: 7629000 | H36: 57.360001 | I36: 1 | J36: 1 | K36: 54.19 | L36: 57.5 | M36: 51.8 | N36: 57.36 | O36: 7629000
A37: 22 | B37: 2016-03-14 | C37: 63.25 | D37: 64.25 | E37: 54 | F37: 54.029999 | G37: 8615900 | H37: 54.029999 | I37: 1 | J37: 1 | K37: 63.25 | L37: 64.25 | M37: 54 | N37: 54.03 | O37: 8615900
A38: 23 | B38: 2016-03-11 | C38: 64.419998 | D38: 67.650002 | E38: 60.59 | F38: 61.75 | G38: 6168200 | H38: 61.75 | I38: 1 | J38: 1 | K38: 64.42 | L38: 67.65 | M38: 60.59 | N38: 61.75 | O38: 6168200
A39: 24 | B39: 2016-03-10 | C39: 60.84 | D39: 66.339996 | E39: 60.169998 | F39: 65.889999 | G39: 11012400 | H39: 65.889999 | I39: 1 | J39: 1 | K39: 60.84 | L39: 66.34 | M39: 60.17 | N39: 65.89 | O39: 11012400
A40: 25 | B40: 2016-03-09 | C40: 53.709999 | D40: 59.950001 | E40: 52 | F40: 58 | G40: 9810000 | H40: 58 | I40: 1 | J40: 1 | K40: 53.71 | L40: 59.95 | M40: 52 | N40: 58 | O40: 9810000
A41: 26 | B41: 2016-03-08 | C41: 69.120003 | D41: 70.220001 | E41: 57.279999 | F41: 57.470001 | G41: 10284500 | H41: 57.470001 | I41: 1 | J41: 1 | K41: 69.12 | L41: 70.22 | M41: 57.28 | N41: 57.47 | O41: 10284500
A42: 27 | B42: 2016-03-07 | C42: 63.009998 | D42: 69.919998 | E42: 62.470001 | F42: 66.870003 | G42: 9288600 | H42: 66.870003 | I42: 1 | J42: 1 | K42: 63.01 | L42: 69.92 | M42: 62.47 | N42: 66.87 | O42: 9288600
A43: 28 | B43: 2016-03-04 | C43: 61.779999 | D43: 71.459999 | E43: 59.189999 | F43: 60.73 | G43: 14602700 | H43: 60.73 | I43: 1 | J43: 1 | K43: 61.78 | L43: 71.46 | M43: 59.19 | N43: 60.73 | O43: 14602700
A44: 29 | B44: 2016-03-03 | C44: 55.68 | D44: 63.290001 | E44: 55.349998 | F44: 61.619999 | G44: 10631400 | H44: 61.619999 | I44: 1 | J44: 1 | K44: 55.68 | L44: 63.29 | M44: 55.35 | N44: 61.62 | O44: 10631400
A45: 30 | B45: 2016-03-02 | C45: 52.400002 | D45: 55.98 | E45: 51.18 | F45: 54.880001 | G45: 7262300 | H45: 54.880001 | I45: 1 | J45: 1 | K45: 52.4 | L45: 55.98 | M45: 51.18 | N45: 54.88 | O45: 7262300
A46: 31 | B46: 2016-03-01 | C46: 58.990002 | D46: 59.490002 | E46: 50.66 | F46: 51.18 | G46: 9516200 | H46: 51.18 | I46: 1 | J46: 1 | K46: 58.99 | L46: 59.49 | M46: 50.66 | N46: 51.18 | O46: 9516200
A47: 32 | B47: 2016-02-29 | C47: 54.900002 | D47: 58.48 | E47: 54.75 | F47: 58.040001 | G47: 6922300 | H47: 58.040001 | I47: 1 | J47: 1 | K47: 54.9 | L47: 58.48 | M47: 54.75 | N47: 58.04 | O47: 6922300
A48: 33 | B48: 2016-02-26 | C48: 54.799999 | D48: 58.389999 | E48: 52.130001 | F48: 52.580002 | G48: 9760800 | H48: 52.580002 | I48: 1 | J48: 1 | K48: 54.8 | L48: 58.39 | M48: 52.13 | N48: 52.58 | O48: 9760800
A49: 34 | B49: 2016-02-25 | C49: 55.48 | D49: 59.599998 | E49: 55 | F49: 58.82 | G49: 8287900 | H49: 58.82 | I49: 1 | J49: 1 | K49: 55.48 | L49: 59.6 | M49: 55 | N49: 58.82 | O49: 8287900
A50: 35 | B50: 2016-02-24 | C50: 59.32 | D50: 62.900002 | E50: 53.849998 | F50: 56.189999 | G50: 11880000 | H50: 56.189999 | I50: 1 | J50: 1 | K50: 59.32 | L50: 62.9 | M50: 53.85 | N50: 56.19 | O50: 11880000
A51: 36 | B51: 2016-02-23 | C51: 54.5 | D51: 55.900002 | E51: 52.549999 | F51: 54.490002 | G51: 8563100 | H51: 54.490002 | I51: 1 | J51: 1 | K51: 54.5 | L51: 55.9 | M51: 52.55 | N51: 54.49 | O51: 8563100
A52: 37 | B52: 2016-02-22 | C52: 45.630001 | D52: 52.830002 | E52: 45.25 | F52: 51.5 | G52: 8152300 | H52: 51.5 | I52: 1 | J52: 1 | K52: 45.63 | L52: 52.83 | M52: 45.25 | N52: 51.5 | O52: 8152300
A53: 38 | B53: 2016-02-19 | C53: 52.43 | D53: 54.779999 | E53: 49.52 | F53: 50.34 | G53: 9143800 | H53: 50.34 | I53: 1 | J53: 1 | K53: 52.43 | L53: 54.78 | M53: 49.52 | N53: 50.34 | O53: 9143800
A54: 39 | B54: 2016-02-18 | C54: 44.02 | D54: 54.91 | E54: 43.5 | F54: 54.720001 | G54: 12518600 | H54: 54.720001 | I54: 1 | J54: 1 | K54: 44.02 | L54: 54.91 | M54: 43.5 | N54: 54.72 | O54: 12518600
A55: 40 | B55: 2016-02-17 | C55: 44.439999 | D55: 47.169998 | E55: 43 | F55: 46.310001 | G55: 9395100 | H55: 46.310001 | I55: 1 | J55: 1 | K55: 44.44 | L55: 47.17 | M55: 43 | N55: 46.31 | O55: 9395100
A56: 41 | B56: 2016-02-16 | C56: 48.5 | D56: 52 | E56: 42.110001 | F56: 42.310001 | G56: 11572900 | H56: 42.310001 | I56: 1 | J56: 1 | K56: 48.5 | L56: 52 | M56: 42.11 | N56: 42.31 | O56: 11572900
A57: 42 | B57: 2016-02-12 | C57: 48.200001 | D57: 56.889999 | E57: 47.650002 | F57: 56.869999 | G57: 11594500 | H57: 56.869999 | I57: 1 | J57: 1 | K57: 48.2 | L57: 56.89 | M57: 47.65 | N57: 56.87 | O57: 11594500
A58: 43 | B58: 2016-02-11 | C58: 52.439999 | D58: 54.799999 | E58: 48.16 | F58: 52.66 | G58: 14045500 | H58: 52.66 | I58: 1 | J58: 1 | K58: 52.44 | L58: 54.8 | M58: 48.16 | N58: 52.66 | O58: 14045500
A59: 44 | B59: 2016-02-10 | C59: 40.400002 | D59: 43.5 | E59: 36.189999 | F59: 43.400002 | G59: 10654700 | H59: 43.400002 | I59: 1 | J59: 1 | K59: 40.4 | L59: 43.5 | M59: 36.19 | N59: 43.4 | O59: 10654700
A60: 45 | B60: 2016-02-09 | C60: 48.310001 | D60: 48.98 | E60: 40.630001 | F60: 40.860001 | G60: 10765500 | H60: 40.860001 | I60: 1 | J60: 1 | K60: 48.31 | L60: 48.98 | M60: 40.63 | N60: 40.86 | O60: 10765500
A61: 46 | B61: 2016-02-08 | C61: 46.59 | D61: 49.540001 | E61: 45.959999 | F61: 45.959999 | G61: 12842500 | H61: 45.959999 | I61: 1 | J61: 1 | K61: 46.59 | L61: 49.54 | M61: 45.96 | N61: 45.96 | O61: 12842500
A62: 47 | B62: 2016-02-05 | C62: 34.220001 | D62: 43.369999 | E62: 33 | F62: 43.029999 | G62: 12635700 | H62: 43.029999 | I62: 1 | J62: 1 | K62: 34.22 | L62: 43.37 | M62: 33 | N62: 43.03 | O62: 12635700
A63: 48 | B63: 2016-02-04 | C63: 34.630001 | D63: 38.25 | E63: 34.509998 | F63: 36.849998 | G63: 13345000 | H63: 36.849998 | I63: 1 | J63: 1 | K63: 34.63 | L63: 38.25 | M63: 34.51 | N63: 36.85 | O63: 13345000
A64: 49 | B64: 2016-02-03 | C64: 26.85 | D64: 31.940001 | E64: 26.84 | F64: 31.809999 | G64: 11577000 | H64: 31.809999 | I64: 1 | J64: 1 | K64: 26.85 | L64: 31.94 | M64: 26.84 | N64: 31.81 | O64: 11577000
A65: 50 | B65: 2016-02-02 | C65: 27.17 | D65: 27.709999 | E65: 25.120001 | F65: 26.16 | G65: 5496300 | H65: 26.16 | I65: 1 | J65: 1 | K65: 27.17 | L65: 27.71 | M65: 25.12 | N65: 26.16 | O65: 5496300
A66: 51 | B66: 2016-02-01 | C66: 26.450001 | D66: 28.17 | E66: 26.26 | F66: 28 | G66: 8826100 | H66: 28 | I66: 1 | J66: 1 | K66: 26.45 | L66: 28.17 | M66: 26.26 | N66: 28 | O66: 8826100
A67: 52 | B67: 2016-01-29 | C67: 23.799999 | D67: 25.870001 | E67: 23.379999 | F67: 25.67 | G67: 7012800 | H67: 25.67 | I67: 1 | J67: 1 | K67: 23.8 | L67: 25.87 | M67: 23.38 | N67: 25.67 | O67: 7012800
A68: 53 | B68: 2016-01-28 | C68: 24.049999 | D68: 25.75 | E68: 23.309999 | F68: 24.120001 | G68: 6485500 | H68: 24.120001 | I68: 1 | J68: 1 | K68: 24.05 | L68: 25.75 | M68: 23.31 | N68: 24.12 | O68: 6485500
A69: 54 | B69: 2016-01-27 | C69: 24.1 | D69: 25.9 | E69: 23.25 | F69: 25.83 | G69: 9250700 | H69: 25.83 | I69: 1 | J69: 1 | K69: 24.1 | L69: 25.9 | M69: 23.25 | N69: 25.83 | O69: 9250700
A70: 55 | B70: 2016-01-26 | C70: 22.459999 | D70: 24.76 | E70: 22.43 | F70: 24.540001 | G70: 10768000 | H70: 24.540001 | I70: 1 | J70: 1 | K70: 22.46 | L70: 24.76 | M70: 22.43 | N70: 24.54 | O70: 10768000
A71: 56 | B71: 2016-01-25 | C71: 21.09 | D71: 21.870001 | E71: 20.75 | F71: 21.6 | G71: 6614400 | H71: 21.6 | I71: 1 | J71: 1 | K71: 21.09 | L71: 21.87 | M71: 20.75 | N71: 21.6 | O71: 6614400
A72: 57 | B72: 2016-01-22 | C72: 18.870001 | D72: 20.77 | E72: 18.6 | F72: 20.049999 | G72: 7704600 | H72: 20.049999 | I72: 1 | J72: 1 | K72: 18.87 | L72: 20.77 | M72: 18.6 | N72: 20.05 | O72: 7704600
A73: 58 | B73: 2016-01-21 | C73: 18.620001 | D73: 19.91 | E73: 17.549999 | F73: 19.6 | G73: 9699900 | H73: 19.6 | I73: 1 | J73: 1 | K73: 18.62 | L73: 19.91 | M73: 17.55 | N73: 19.6 | O73: 9699900
A74: 59 | B74: 2016-01-20 | C74: 19.200001 | D74: 19.5 | E74: 17.92 | F74: 19.42 | G74: 9831500 | H74: 19.42 | I74: 1 | J74: 1 | K74: 19.2 | L74: 19.5 | M74: 17.92 | N74: 19.42 | O74: 9831500
A75: 60 | B75: 2016-01-19 | C75: 21.190001 | D75: 21.389999 | E75: 17.4 | F75: 17.91 | G75: 15696500 | H75: 17.91 | I75: 1 | J75: 1 | K75: 21.19 | L75: 21.39 | M75: 17.4 | N75: 17.91 | O75: 15696500
A76: 61 | B76: 2016-01-15 | C76: 23.1 | D76: 23.1 | E76: 20.6 | F76: 20.690001 | G76: 9801600 | H76: 20.690001 | I76: 1 | J76: 1 | K76: 23.1 | L76: 23.1 | M76: 20.6 | N76: 20.69 | O76: 9801600
A77: 62 | B77: 2016-01-14 | C77: 22.57 | D77: 23.219999 | E77: 20.26 | F77: 20.98 | G77: 14125500 | H77: 20.98 | I77: 1 | J77: 1 | K77: 22.57 | L77: 23.22 | M77: 20.26 | N77: 20.98 | O77: 14125500
A78: 63 | B78: 2016-01-13 | C78: 23.040001 | D78: 24.299999 | E78: 22.110001 | F78: 23.33 | G78: 10265800 | H78: 23.33 | I78: 1 | J78: 1 | K78: 23.04 | L78: 24.3 | M78: 22.11 | N78: 23.33 | O78: 10265800
A79: 64 | B79: 2016-01-12 | C79: 24.290001 | D79: 24.299999 | E79: 22.1 | F79: 23.469999 | G79: 13387400 | H79: 23.469999 | I79: 1 | J79: 1 | K79: 24.29 | L79: 24.3 | M79: 22.1 | N79: 23.47 | O79: 13387400
A80: 65 | B80: 2016-01-11 | C80: 28.9 | D80: 29.08 | E80: 24.5 | F80: 25.07 | G80: 10236700 | H80: 25.07 | I80: 1 | J80: 1 | K80: =ROUND($I80*C80,2) -> 28.9 | L80: =ROUND($I80*D80,2) -> 29.08 | M80: =ROUND($I80*E80,2) -> 24.5 | N80: =ROUND($I80*F80,2) -> 25.07 | O80: 10236700
A81: 66 | B81: 2016-01-08 | C81: 28.34 | D81: 29.290001 | E81: 27 | F81: 28.51 | G81: 7911900 | H81: 28.51 | I81: 1 | J81: 1 | K81: 28.34 | L81: 29.29 | M81: 27 | N81: 28.51 | O81: 7911900
A82: 67 | B82: 2016-01-07 | C82: 28.59 | D82: 31.5 | E82: 27.92 | F82: 30.74 | G82: 9599000 | H82: 30.74 | I82: =H82/F82 -> 1 | J82: =INDEX(OFFSET($T$15,0,0,$S$13+1,1),MATCH(B82,OFFSET($Q$15,0,0,$S$13+1,1),-1)) -> 1 | K82: 28.59 | L82: 31.5 | M82: 27.92 | N82: 30.74 | O82: =G82*J82 -> 9599000
A83: 68 | B83: 2016-01-06 | C83: 27.1 | D83: 27.719999 | E83: 26.639999 | F83: 27.17 | G83: 6599000 | H83: 27.17 | I83: 1 | J83: 1 | K83: 27.1 | L83: 27.72 | M83: 26.64 | N83: 27.17 | O83: 6599000
A84: 69 | B84: 2016-01-05 | C84: 26.610001 | D84: 26.65 | E84: 25.35 | F84: 25.959999 | G84: 5233900 | H84: 25.959999 | I84: 1 | J84: 1 | K84: 26.61 | L84: 26.65 | M84: 25.35 | N84: 25.96 | O84: 5233900
A85: 70 | B85: 2016-01-04 | C85: 26.48 | D85: 27.1 | E85: 25.110001 | F85: 26.360001 | G85: 9188800 | H85: 26.360001 | I85: 1 | J85: 1 | K85: 26.48 | L85: 27.1 | M85: 25.11 | N85: 26.36 | O85: 9188800
A86: 71 | B86: 2015-12-31 | C86: 24.02 | D86: 24.48 | E86: 23.76 | F86: 24.280001 | G86: 5055300 | H86: 24.280001 | I86: 1 | J86: 1 | K86: 24.02 | L86: 24.48 | M86: 23.76 | N86: 24.28 | O86: 5055300
A87: 72 | B87: 2015-12-30 | C87: 24.17 | D87: 24.5 | E87: 23.6 | F87: 24.08 | G87: 5655000 | H87: 24.08 | I87: 1 | J87: 1 | K87: 24.17 | L87: 24.5 | M87: 23.6 | N87: 24.08 | O87: 5655000
A88: 73 | B88: 2015-12-29 | C88: 25.82 | D88: 26.15 | E88: 24.809999 | F88: 25.6 | G88: 4980100 | H88: 25.6 | I88: 1 | J88: 1 | K88: 25.82 | L88: 26.15 | M88: 24.81 | N88: 25.6 | O88: 4980100
A89: 74 | B89: 2015-12-28 | C89: 26.15 | D89: 26.23 | E89: 24.17 | F89: 24.99 | G89: 6372300 | H89: 24.99 | I89: 1 | J89: 1 | K89: 26.15 | L89: 26.23 | M89: 24.17 | N89: 24.99 | O89: 6372300
A90: 75 | B90: 2015-12-24 | C90: 26.51 | D90: 27.639999 | E90: 26.35 | F90: 27.559999 | G90: 4671300 | H90: 27.559999 | I90: 1 | J90: 1 | K90: 26.51 | L90: 27.64 | M90: 26.35 | N90: 27.56 | O90: 4671300
A91: 76 | B91: 2015-12-23 | C91: 24.889999 | D91: 25.959999 | E91: 24.719999 | F91: 25.950001 | G91: 5015600 | H91: 25.950001 | I91: 1 | J91: 1 | K91: 24.89 | L91: 25.96 | M91: 24.72 | N91: 25.95 | O91: 5015600
A92: 77 | B92: 2015-12-22 | C92: 24.59 | D92: 25.68 | E92: 24.1 | F92: 24.389999 | G92: 5368400 | H92: 24.389999 | I92: 1 | J92: 1 | K92: 24.59 | L92: 25.68 | M92: 24.1 | N92: 24.39 | O92: 5368400
A93: 78 | B93: 2015-12-21 | C93: 25.030001 | D93: 25.5 | E93: 24.24 | F93: 24.83 | G93: 7146100 | H93: 24.83 | I93: 1 | J93: 1 | K93: 25.03 | L93: 25.5 | M93: 24.24 | N93: 24.83 | O93: 7146100
A94: 79 | B94: 2015-12-18 | C94: 23.209999 | D94: 24.5 | E94: 22.809999 | F94: 23.48 | G94: 10207400 | H94: 23.48 | I94: 1 | J94: 1 | K94: 23.21 | L94: 24.5 | M94: 22.81 | N94: 23.48 | O94: 10207400
A95: 80 | B95: 2015-12-17 | C95: 24.059999 | D95: 24.1 | E95: 22 | F95: 22.120001 | G95: 13314900 | H95: 22.120001 | I95: 1 | J95: 1 | K95: 24.06 | L95: 24.1 | M95: 22 | N95: 22.12 | O95: 13314900
A96: 81 | B96: 2015-12-16 | C96: 25.57 | D96: 27.219999 | E96: 24.209999 | F96: 26.82 | G96: 11777200 | H96: 26.82 | I96: 1 | J96: 1 | K96: 25.57 | L96: 27.22 | M96: 24.21 | N96: 26.82 | O96: 11777200
A97: 82 | B97: 2015-12-15 | C97: 24.49 | D97: 25 | E97: 23.41 | F97: 24.02 | G97: 6012300 | H97: 24.02 | I97: 1 | J97: 1 | K97: 24.49 | L97: 25 | M97: 23.41 | N97: 24.02 | O97: 6012300
A98: 83 | B98: 2015-12-14 | C98: 27.91 | D98: 28.18 | E98: 23.799999 | F98: 23.83 | G98: 11953800 | H98: 23.83 | I98: 1 | J98: 1 | K98: 27.91 | L98: 28.18 | M98: 23.8 | N98: 23.83 | O98: 11953800
A99: 84 | B99: 2015-12-11 | C99: 26.549999 | D99: 29.360001 | E99: 26.48 | F99: 28.440001 | G99: 7855100 | H99: 28.440001 | I99: 1 | J99: 1 | K99: 26.55 | L99: 29.36 | M99: 26.48 | N99: 28.44 | O99: 7855100
A100: 85 | B100: 2015-12-10 | C100: 27.27 | D100: 28.99 | E100: 27.059999 | F100: 27.629999 | G100: 4308200 | H100: 27.629999 | I100: 1 | J100: 1 | K100: 27.27 | L100: 28.99 | M100: 27.06 | N100: 27.63 | O100: 4308200
A101: 86 | B101: 2015-12-09 | C101: 28.66 | D101: 29.34 | E101: 26.92 | F101: 27.889999 | G101: 8664100 | H101: 27.889999 | I101: 1 | J101: 1 | K101: 28.66 | L101: 29.34 | M101: 26.92 | N101: 27.89 | O101: 8664100
A102: 87 | B102: 2015-12-08 | C102: 27.879999 | D102: 28.15 | E102: 26.01 | F102: 26.940001 | G102: 8374500 | H102: 26.940001 | I102: 1 | J102: 1 | K102: 27.88 | L102: 28.15 | M102: 26.01 | N102: 26.94 | O102: 8374500
A103: 88 | B103: 2015-12-07 | C103: 30.23 | D103: 30.459999 | E103: 26.68 | F103: 27.549999 | G103: 8735500 | H103: 27.549999 | I103: 1 | J103: 1 | K103: 30.23 | L103: 30.46 | M103: 26.68 | N103: 27.55 | O103: 8735500
A104: 89 | B104: 2015-12-04 | C104: 28.139999 | D104: 31.700001 | E104: 28.1 | F104: 31.42 | G104: 11727300 | H104: 31.42 | I104: 1 | J104: 1 | K104: 28.14 | L104: 31.7 | M104: 28.1 | N104: 31.42 | O104: 11727300
A105: 90 | B105: 2015-12-03 | C105: 26.940001 | D105: 27.92 | E105: 26.02 | F105: 27.190001 | G105: 7496700 | H105: 27.190001 | I105: 1 | J105: 1 | K105: 26.94 | L105: 27.92 | M105: 26.02 | N105: 27.19 | O105: 7496700
A106: 91 | B106: 2015-12-02 | C106: 25.799999 | D106: 26.950001 | E106: 24.68 | F106: 25.74 | G106: 8121500 | H106: 25.74 | I106: 1 | J106: 1 | K106: 25.8 | L106: 26.95 | M106: 24.68 | N106: 25.74 | O106: 8121500
A107: 92 | B107: 2015-12-01 | C107: 26.09 | D107: 28 | E107: 25.17 | F107: 27.83 | G107: 7624100 | H107: 27.83 | I107: 1 | J107: 1 | K107: 26.09 | L107: 28 | M107: 25.17 | N107: 27.83 | O107: 7624100
A108: 93 | B108: 2015-11-30 | C108: 24.5 | D108: 25.77 | E108: 24.290001 | F108: 25.450001 | G108: 6449000 | H108: 25.450001 | I108: 1 | J108: 1 | K108: 24.5 | L108: 25.77 | M108: 24.29 | N108: 25.45 | O108: 6449000
A109: 94 | B109: 2015-11-27 | C109: 23.780001 | D109: 24.719999 | E109: 23.5 | F109: 24.1 | G109: 3990900 | H109: 24.1 | I109: 1 | J109: 1 | K109: 23.78 | L109: 24.72 | M109: 23.5 | N109: 24.1 | O109: 3990900
A110: 95 | B110: 2015-11-25 | C110: 25.01 | D110: 26.719999 | E110: 24.549999 | F110: 25.469999 | G110: 6053100 | H110: 25.469999 | I110: 1 | J110: 1 | K110: 25.01 | L110: 26.72 | M110: 24.55 | N110: 25.47 | O110: 6053100
A111: 96 | B111: 2015-11-24 | C111: 24.860001 | D111: 26.25 | E111: 24.27 | F111: 26.08 | G111: 9148800 | H111: 26.08 | I111: 1 | J111: 1 | K111: 24.86 | L111: 26.25 | M111: 24.27 | N111: 26.08 | O111: 9148800
A112: 97 | B112: 2015-11-23 | C112: 23.52 | D112: 24.219999 | E112: 23.1 | F112: 23.51 | G112: 5503200 | H112: 23.51 | I112: 1 | J112: 1 | K112: 23.52 | L112: 24.22 | M112: 23.1 | N112: 23.51 | O112: 5503200
A113: 98 | B113: 2015-11-20 | C113: 27.389999 | D113: 27.690001 | E113: 23.5 | F113: 24 | G113: 9810500 | H113: 24 | I113: 1 | J113: 1 | K113: 27.39 | L113: 27.69 | M113: 23.5 | N113: 24 | O113: 9810500
A114: 99 | B114: 2015-11-19 | C114: 25.65 | D114: 27.59 | E114: 25.42 | F114: 27.02 | G114: 12307500 | H114: 27.02 | I114: 1 | J114: 1 | K114: 25.65 | L114: 27.59 | M114: 25.42 | N114: 27.02 | O114: 12307500
A115: 100 | B115: 2015-11-18 | C115: 22.790001 | D115: 24.959999 | E115: 21.700001 | F115: 24.450001 | G115: 12825200 | H115: 24.450001 | I115: 1 | J115: 1 | K115: 22.79 | L115: 24.96 | M115: 21.7 | N115: 24.45 | O115: 12825200
A116: 101 | B116: 2015-11-17 | C116: 25.51 | D116: 25.74 | E116: 22.299999 | F116: 22.559999 | G116: 12195500 | H116: 22.559999 | I116: 1 | J116: 1 | K116: 25.51 | L116: 25.74 | M116: 22.3 | N116: 22.56 | O116: 12195500
A117: 102 | B117: 2015-11-16 | C117: 26.17 | D117: 26.809999 | E117: 25.6 | F117: 26.1 | G117: 5968700 | H117: 26.1 | I117: 1 | J117: 1 | K117: 26.17 | L117: 26.81 | M117: 25.6 | N117: 26.1 | O117: 5968700
A118: 103 | B118: 2015-11-13 | C118: 24.549999 | D118: 25.799999 | E118: 24.299999 | F118: 25.51 | G118: 8273800 | H118: 25.51 | I118: 1 | J118: 1 | K118: 24.55 | L118: 25.8 | M118: 24.3 | N118: 25.51 | O118: 8273800
A119: 104 | B119: 2015-11-12 | C119: 23.950001 | D119: 26.5 | E119: 23.719999 | F119: 24.66 | G119: 9719000 | H119: 24.66 | I119: 1 | J119: 1 | K119: 23.95 | L119: 26.5 | M119: 23.72 | N119: 24.66 | O119: 9719000
A120: 105 | B120: 2015-11-11 | C120: 25.139999 | D120: 25.73 | E120: 24.559999 | F120: 25.690001 | G120: 7679500 | H120: 25.690001 | I120: 1 | J120: 1 | K120: 25.14 | L120: 25.73 | M120: 24.56 | N120: 25.69 | O120: 7679500
A121: 106 | B121: 2015-11-10 | C121: 25.32 | D121: 26.18 | E121: 24.51 | F121: 24.809999 | G121: 9310400 | H121: 24.809999 | I121: 1 | J121: 1 | K121: 25.32 | L121: 26.18 | M121: 24.51 | N121: 24.81 | O121: 9310400
A122: 107 | B122: 2015-11-09 | C122: 24.92 | D122: 26.860001 | E122: 24.02 | F122: 26.860001 | G122: 10547600 | H122: 26.860001 | I122: 1 | J122: 1 | K122: 24.92 | L122: 26.86 | M122: 24.02 | N122: 26.86 | O122: 10547600
A123: 108 | B123: 2015-11-06 | C123: 25.870001 | D123: 26.4 | E123: 24.549999 | F123: 24.99 | G123: 12038800 | H123: 24.99 | I123: 1 | J123: 1 | K123: 25.87 | L123: 26.4 | M123: 24.55 | N123: 24.99 | O123: 12038800
A124: 109 | B124: 2015-11-05 | C124: 32.25 | D124: 32.25 | E124: 28.18 | F124: 28.74 | G124: 11792500 | H124: 28.74 | I124: 1 | J124: 1 | K124: 32.25 | L124: 32.25 | M124: 28.18 | N124: 28.74 | O124: 11792500
A125: 110 | B125: 2015-11-04 | C125: 35.099998 | D125: 36.310001 | E125: 32.07 | F125: 32.099998 | G125: 7675900 | H125: 32.099998 | I125: 1 | J125: 1 | K125: 35.1 | L125: 36.31 | M125: 32.07 | N125: 32.1 | O125: 7675900
A126: 111 | B126: 2015-11-03 | C126: 33.029999 | D126: 35.5 | E126: 32.75 | F126: 34.310001 | G126: 5782400 | H126: 34.310001 | I126: 1 | J126: 1 | K126: 33.03 | L126: 35.5 | M126: 32.75 | N126: 34.31 | O126: 5782400
A127: 112 | B127: 2015-11-02 | C127: 33.41 | D127: 35.990002 | E127: 32.259998 | F127: 35.049999 | G127: 7460000 | H127: 35.049999 | I127: 1 | J127: 1 | K127: 33.41 | L127: 35.99 | M127: 32.26 | N127: 35.05 | O127: 7460000
A128: 113 | B128: 2015-10-30 | C128: 35.349998 | D128: 37.549999 | E128: 34.560001 | F128: 34.689999 | G128: 5804900 | H128: 34.689999 | I128: 1 | J128: 1 | K128: 35.35 | L128: 37.55 | M128: 34.56 | N128: 34.69 | O128: 5804900
A129: 114 | B129: 2015-10-29 | C129: 39.639999 | D129: 40.860001 | E129: 35.009998 | F129: 35.830002 | G129: 8469300 | H129: 35.830002 | I129: 1 | J129: 1 | K129: 39.64 | L129: 40.86 | M129: 35.01 | N129: 35.83 | O129: 8469300
A130: 115 | B130: 2015-10-28 | C130: 45.700001 | D130: 49 | E130: 39.360001 | F130: 41.459999 | G130: 8790300 | H130: 41.459999 | I130: 1 | J130: 1 | K130: 45.7 | L130: 49 | M130: 39.36 | N130: 41.46 | O130: 8790300
A131: 116 | B131: 2015-10-27 | C131: 41.98 | D131: 44.299999 | E131: 40.93 | F131: 42.970001 | G131: 3573200 | H131: 42.970001 | I131: 1 | J131: 1 | K131: 41.98 | L131: 44.3 | M131: 40.93 | N131: 42.97 | O131: 3573200
A132: 117 | B132: 2015-10-26 | C132: 46.689999 | D132: 46.720001 | E132: 42.689999 | F132: 42.880001 | G132: 4473200 | H132: 42.880001 | I132: 1 | J132: 1 | K132: 46.69 | L132: 46.72 | M132: 42.69 | N132: 42.88 | O132: 4473200
A133: 118 | B133: 2015-10-23 | C133: 45.509998 | D133: 48.09 | E133: 42.259998 | F133: 47.07 | G133: 5045300 | H133: 47.07 | I133: 1 | J133: 1 | K133: 45.51 | L133: 48.09 | M133: 42.26 | N133: 47.07 | O133: 5045300
A134: 119 | B134: 2015-10-22 | C134: 41.330002 | D134: 44.950001 | E134: 41.099998 | F134: 43.849998 | G134: 4022000 | H134: 43.849998 | I134: 1 | J134: 1 | K134: 41.33 | L134: 44.95 | M134: 41.1 | N134: 43.85 | O134: 4022000
A135: 120 | B135: 2015-10-21 | C135: 43.849998 | D135: 44.439999 | E135: 40.639999 | F135: 41.73 | G135: 4443300 | H135: 41.73 | I135: 1 | J135: 1 | K135: 43.85 | L135: 44.44 | M135: 40.64 | N135: 41.73 | O135: 4443300
A136: 121 | B136: 2015-10-20 | C136: 42.41 | D136: 47.099998 | E136: 42.290001 | F136: 45.599998 | G136: 5266600 | H136: 45.599998 | I136: 1 | J136: 1 | K136: 42.41 | L136: 47.1 | M136: 42.29 | N136: 45.6 | O136: 5266600
A137: 122 | B137: 2015-10-19 | C137: 46.18 | D137: 47.049999 | E137: 40.139999 | F137: 41.060001 | G137: 5179000 | H137: 41.060001 | I137: 1 | J137: 1 | K137: 46.18 | L137: 47.05 | M137: 40.14 | N137: 41.06 | O137: 5179000
A138: 123 | B138: 2015-10-16 | C138: 50.889999 | D138: 52.099998 | E138: 46.639999 | F138: 46.740002 | G138: 4036500 | H138: 46.740002 | I138: 1 | J138: 1 | K138: 50.89 | L138: 52.1 | M138: 46.64 | N138: 46.74 | O138: 4036500
A139: 124 | B139: 2015-10-15 | C139: 48.599998 | D139: 52.599998 | E139: 47.529999 | F139: 51.279999 | G139: 5115400 | H139: 51.279999 | I139: 1 | J139: 1 | K139: 48.6 | L139: 52.6 | M139: 47.53 | N139: 51.28 | O139: 5115400
A140: 125 | B140: 2015-10-14 | C140: 45.790001 | D140: 52.029999 | E140: 45.389999 | F140: 51.189999 | G140: 6401200 | H140: 51.189999 | I140: 1 | J140: 1 | K140: 45.79 | L140: 52.03 | M140: 45.39 | N140: 51.19 | O140: 6401200
A141: 126 | B141: 2015-10-13 | C141: 42.470001 | D141: 45.189999 | E141: 41.52 | F141: 43.060001 | G141: 3394200 | H141: 43.060001 | I141: 1 | J141: 1 | K141: 42.47 | L141: 45.19 | M141: 41.52 | N141: 43.06 | O141: 3394200
A142: 127 | B142: 2015-10-12 | C142: 49.349998 | D142: 49.41 | E142: 41 | F142: 42.349998 | G142: 4686200 | H142: 42.349998 | I142: 1 | J142: 1 | K142: 49.35 | L142: 49.41 | M142: 41 | N142: 42.35 | O142: 4686200
A143: 128 | B143: 2015-10-09 | C143: 44 | D143: 46.419998 | E143: 43.240002 | F143: 46.290001 | G143: 4516200 | H143: 46.290001 | I143: 1 | J143: 1 | K143: 44 | L143: 46.42 | M143: 43.24 | N143: 46.29 | O143: 4516200
A144: 129 | B144: 2015-10-08 | C144: 39.380001 | D144: 45.689999 | E144: 39.060001 | F144: 39.880001 | G144: 4877000 | H144: 39.880001 | I144: 1 | J144: 1 | K144: =ROUND($I144*C144,2) -> 39.38 | L144: =ROUND($I144*D144,2) -> 45.69 | M144: =ROUND($I144*E144,2) -> 39.06 | N144: =ROUND($I144*F144,2) -> 39.88 | O144: 4877000
A145: 130 | B145: 2015-10-07 | C145: 42.07 | D145: 43.150002 | E145: 39.459999 | F145: 41.490002 | G145: 4461000 | H145: 41.490002 | I145: 1 | J145: 1 | K145: 42.07 | L145: 43.15 | M145: 39.46 | N145: 41.49 | O145: 4461000
A146: 131 | B146: 2015-10-06 | C146: 40.810001 | D146: 42.66 | E146: 38.540001 | F146: 41.950001 | G146: 6434100 | H146: 41.950001 | I146: =H146/F146 -> 1 | J146: =INDEX(OFFSET($T$15,0,0,$S$13+1,1),MATCH(B146,OFFSET($Q$15,0,0,$S$13+1,1),-1)) -> 1 | K146: 40.81 | L146: 42.66 | M146: 38.54 | N146: 41.95 | O146: =G146*J146 -> 6434100
A147: 132 | B147: 2015-10-05 | C147: 34.150002 | D147: 38.130001 | E147: 34.02 | F147: 37.75 | G147: 6034100 | H147: 37.75 | I147: 1 | J147: 1 | K147: 34.15 | L147: 38.13 | M147: 34.02 | N147: 37.75 | O147: 6034100
A148: 133 | B148: 2015-10-02 | C148: 30.110001 | D148: 33.43 | E148: 29.719999 | F148: 33.41 | G148: 8381000 | H148: 33.41 | I148: 1 | J148: 1 | K148: 30.11 | L148: 33.43 | M148: 29.72 | N148: 33.41 | O148: 8381000
A149: 134 | B149: 2015-10-01 | C149: 29.32 | D149: 30.59 | E149: 26.549999 | F149: 27 | G149: 6837900 | H149: 27 | I149: 1 | J149: 0.1 | K149: 29.32 | L149: 30.59 | M149: 26.55 | N149: 27 | O149: 683790
A150: 135 | B150: 2015-09-30 | C150: 2.59 | D150: 2.89 | E150: 2.57 | F150: 2.88 | G150: 44532100 | H150: 28.8 | I150: 10 | J150: 0.1 | K150: 25.9 | L150: 28.9 | M150: 25.7 | N150: 28.8 | O150: 4453210
A151: 136 | B151: 2015-09-29 | C151: 2.74 | D151: 2.86 | E151: 2.63 | F151: 2.71 | G151: 2558100 | H151: 27.100001 | I151: 10.00000037 | J151: 0.1 | K151: 27.4 | L151: 28.6 | M151: 26.3 | N151: 27.1 | O151: 255810
A152: 137 | B152: 2015-09-28 | C152: 2.86 | D152: 2.91 | E152: 2.65 | F152: 2.68 | G152: 3931700 | H152: 26.8 | I152: 10 | J152: 0.1 | K152: 28.6 | L152: 29.1 | M152: 26.5 | N152: 26.8 | O152: 393170
A153: 138 | B153: 2015-09-25 | C153: 3.07 | D153: 3.18 | E153: 3.02 | F153: 3.09 | G153: 3999700 | H153: 30.9 | I153: 10 | J153: 0.1 | K153: 30.7 | L153: 31.8 | M153: 30.2 | N153: 30.9 | O153: 399970
A154: 139 | B154: 2015-09-24 | C154: 2.9 | D154: 3.28 | E154: 2.85 | F154: 3.23 | G154: 7023300 | H154: 32.3 | I154: 10 | J154: 0.1 | K154: 29 | L154: 32.8 | M154: 28.5 | N154: 32.3 | O154: 702330
A155: 140 | B155: 2015-09-23 | C155: 2.91 | D155: 2.94 | E155: 2.66 | F155: 2.68 | G155: 3126400 | H155: 26.8 | I155: 10 | J155: 0.1 | K155: 29.1 | L155: 29.4 | M155: 26.6 | N155: 26.8 | O155: 312640
A156: 141 | B156: 2015-09-22 | C156: 2.95 | D156: 2.97 | E156: 2.71 | F156: 2.75 | G156: 4618500 | H156: 27.5 | I156: 10 | J156: 0.1 | K156: 29.5 | L156: 29.7 | M156: 27.1 | N156: 27.5 | O156: 461850
A157: 142 | B157: 2015-09-21 | C157: 3.36 | D157: 3.43 | E157: 3.17 | F157: 3.18 | G157: 3938900 | H157: 31.8 | I157: 10 | J157: 0.1 | K157: 33.6 | L157: 34.3 | M157: 31.7 | N157: 31.8 | O157: 393890
A158: 143 | B158: 2015-09-18 | C158: 3.62 | D158: 3.68 | E158: 3.3 | F158: 3.51 | G158: 6071300 | H158: 35.099999 | I158: 9.999999715 | J158: 0.1 | K158: 36.2 | L158: 36.8 | M158: 33 | N158: 35.1 | O158: 607130
A159: 144 | B159: 2015-09-17 | C159: 3.01 | D159: 3.48 | E159: 2.96 | F159: 3.36 | G159: 8090100 | H159: 33.599999 | I159: 9.999999702 | J159: 0.1 | K159: 30.1 | L159: 34.8 | M159: 29.6 | N159: 33.6 | O159: 809010
A160: 145 | B160: 2015-09-16 | C160: 2.8 | D160: 3.13 | E160: 2.8 | F160: 3.1 | G160: 6292200 | H160: 31 | I160: 10 | J160: 0.1 | K160: 28 | L160: 31.3 | M160: 28 | N160: 31 | O160: 629220
A161: 146 | B161: 2015-09-15 | C161: 2.62 | D161: 2.76 | E161: 2.57 | F161: 2.66 | G161: 2804300 | H161: 26.600001 | I161: 10.00000038 | J161: 0.1 | K161: 26.2 | L161: 27.6 | M161: 25.7 | N161: 26.6 | O161: 280430
A162: 147 | B162: 2015-09-14 | C162: 2.63 | D162: 2.79 | E162: 2.53 | F162: 2.63 | G162: 3197300 | H162: 26.3 | I162: 10 | J162: 0.1 | K162: 26.3 | L162: 27.9 | M162: 25.3 | N162: 26.3 | O162: 319730
A163: 148 | B163: 2015-09-11 | C163: 2.59 | D163: 2.74 | E163: 2.36 | F163: 2.71 | G163: 5702900 | H163: 27.100001 | I163: 10.00000037 | J163: 0.1 | K163: 25.9 | L163: 27.4 | M163: 23.6 | N163: 27.1 | O163: 570290
A164: 149 | B164: 2015-09-10 | C164: 2.8 | D164: 2.84 | E164: 2.64 | F164: 2.66 | G164: 3350800 | H164: 26.600001 | I164: 10.00000038 | J164: 0.1 | K164: 28 | L164: 28.4 | M164: 26.4 | N164: 26.6 | O164: 335080
A165: 150 | B165: 2015-09-09 | C165: 2.79 | D165: 2.91 | E165: 2.65 | F165: 2.68 | G165: 4276600 | H165: 26.8 | I165: 10 | J165: 0.1 | K165: 27.9 | L165: 29.1 | M165: 26.5 | N165: 26.8 | O165: 427660
A166: 151 | B166: 2015-09-08 | C166: 2.92 | D166: 3.05 | E166: 2.8 | F166: 2.92 | G166: 3900400 | H166: 29.200001 | I166: 10.00000034 | J166: 0.1 | K166: 29.2 | L166: 30.5 | M166: 28 | N166: 29.2 | O166: 390040
A167: 152 | B167: 2015-09-04 | C167: 2.77 | D167: 2.85 | E167: 2.63 | F167: 2.85 | G167: 4694700 | H167: 28.5 | I167: 10 | J167: 0.1 | K167: 27.7 | L167: 28.5 | M167: 26.3 | N167: 28.5 | O167: 469470
A168: 153 | B168: 2015-09-03 | C168: 2.83 | D168: 3.25 | E168: 2.81 | F168: 2.82 | G168: 4693700 | H168: 28.200001 | I168: 10.00000035 | J168: 0.1 | K168: 28.3 | L168: 32.5 | M168: 28.1 | N168: 28.2 | O168: 469370
A169: 154 | B169: 2015-09-02 | C169: 3.06 | D169: 3.17 | E169: 2.8 | F169: 2.98 | G169: 5134600 | H169: 29.8 | I169: 10 | J169: 0.1 | K169: 30.6 | L169: 31.7 | M169: 28 | N169: 29.8 | O169: 513460
A170: 155 | B170: 2015-09-01 | C170: 3.42 | D170: 3.52 | E170: 3.03 | F170: 3.06 | G170: 4287900 | H170: 30.600001 | I170: 10.00000033 | J170: 0.1 | K170: 34.2 | L170: 35.2 | M170: 30.3 | N170: 30.6 | O170: 428790
A171: 156 | B171: 2015-08-31 | C171: 3.2 | D171: 3.33 | E171: 2.96 | F171: 3.32 | G171: 4022100 | H171: 33.200001 | I171: 10.0000003 | J171: 0.1 | K171: 32 | L171: 33.3 | M171: 29.6 | N171: 33.2 | O171: 402210
A172: 157 | B172: 2015-08-28 | C172: 3.1 | D172: 3.53 | E172: 3.09 | F172: 3.42 | G172: 6058800 | H172: 34.200001 | I172: 10.00000029 | J172: 0.1 | K172: 31 | L172: 35.3 | M172: 30.9 | N172: 34.2 | O172: 605880
A173: 158 | B173: 2015-08-27 | C173: 2.7 | D173: 3.19 | E173: 2.64 | F173: 3.13 | G173: 5227400 | H173: 31.3 | I173: 10 | J173: 0.1 | K173: 27 | L173: 31.9 | M173: 26.4 | N173: 31.3 | O173: 522740
A174: 159 | B174: 2015-08-26 | C174: 2.99 | D174: 2.99 | E174: 2.61 | F174: 2.68 | G174: 6859300 | H174: 26.8 | I174: 10 | J174: 0.1 | K174: 29.9 | L174: 29.9 | M174: 26.1 | N174: 26.8 | O174: 685930
A175: 160 | B175: 2015-08-25 | C175: 3.72 | D175: 3.73 | E175: 3.04 | F175: 3.11 | G175: 4718900 | H175: 31.100001 | I175: 10.00000032 | J175: 0.1 | K175: 37.2 | L175: 37.3 | M175: 30.4 | N175: 31.1 | O175: 471890
A176: 161 | B176: 2015-08-24 | C176: 4.32 | D176: 4.74 | E176: 3.39 | F176: 3.49 | G176: 46412300 | H176: 34.900002 | I176: 10.00000057 | J176: 0.1 | K176: 43.2 | L176: 47.4 | M176: 33.9 | N176: 34.9 | O176: 4641230
A177: 162 | B177: 2015-08-21 | C177: 5.25 | D177: 5.26 | E177: 4.41 | F177: 4.54 | G177: 6059100 | H177: 45.400002 | I177: 10.00000044 | J177: 0.1 | K177: 52.5 | L177: 52.6 | M177: 44.1 | N177: 45.4 | O177: 605910
A178: 163 | B178: 2015-08-20 | C178: 4.84 | D178: 5.14 | E178: 4.72 | F178: 4.94 | G178: 6234300 | H178: 49.400002 | I178: 10.0000004 | J178: 0.1 | K178: 48.4 | L178: 51.4 | M178: 47.2 | N178: 49.4 | O178: 623430
A179: 164 | B179: 2015-08-19 | C179: 4.17 | D179: 4.47 | E179: 4.15 | F179: 4.38 | G179: 48963700 | H179: 43.8 | I179: 10 | J179: 0.1 | K179: 41.7 | L179: 44.7 | M179: 41.5 | N179: 43.8 | O179: 4896370
A180: 165 | B180: 2015-08-18 | C180: 4.03 | D180: 4.18 | E180: 3.83 | F180: 4.06 | G180: 3433200 | H180: 40.599999 | I180: 9.999999754 | J180: 0.1 | K180: 40.3 | L180: 41.8 | M180: 38.3 | N180: 40.6 | O180: 343320
A181: 166 | B181: 2015-08-17 | C181: 4.1 | D181: 4.34 | E181: 4.05 | F181: 4.26 | G181: 3995400 | H181: 42.599999 | I181: 9.999999765 | J181: 0.1 | K181: 41 | L181: 43.4 | M181: 40.5 | N181: 42.6 | O181: 399540
A182: 167 | B182: 2015-08-14 | C182: 4.19 | D182: 4.25 | E182: 3.75 | F182: 3.84 | G182: 3553500 | H182: 38.400002 | I182: 10.00000052 | J182: 0.1 | K182: 41.9 | L182: 42.5 | M182: 37.5 | N182: 38.4 | O182: 355350
A183: 168 | B183: 2015-08-13 | C183: 4.34 | D183: 4.5 | E183: 3.9 | F183: 4 | G183: 4318500 | H183: 40.000001 | I183: 10.00000025 | J183: 0.1 | K183: 43.4 | L183: 45 | M183: 39 | N183: 40 | O183: 431850
A184: 169 | B184: 2015-08-12 | C184: 4.2 | D184: 4.78 | E184: 4.17 | F184: 4.74 | G184: 75983400 | H184: 47.400002 | I184: 10.00000042 | J184: 0.1 | K184: 42 | L184: 47.8 | M184: 41.7 | N184: 47.4 | O184: 7598340
A185: 170 | B185: 2015-08-11 | C185: 3.91 | D185: 3.96 | E185: 3.51 | F185: 3.96 | G185: 6037700 | H185: 39.599999 | I185: 9.999999747 | J185: 0.1 | K185: 39.1 | L185: 39.6 | M185: 35.1 | N185: 39.6 | O185: 603770
A186: 171 | B186: 2015-08-10 | C186: 3.29 | D186: 3.78 | E186: 3.13 | F186: 3.75 | G186: 60128700 | H186: 37.500001 | I186: 10.00000027 | J186: 0.1 | K186: 32.9 | L186: 37.8 | M186: 31.3 | N186: 37.5 | O186: 6012870
A187: 172 | B187: 2015-08-07 | C187: 3.15 | D187: 3.47 | E187: 3.1 | F187: 3.15 | G187: 4474300 | H187: 31.5 | I187: 10 | J187: 0.1 | K187: 31.5 | L187: 34.7 | M187: 31 | N187: 31.5 | O187: 447430
A188: 173 | B188: 2015-08-06 | C188: 3.02 | D188: 3.34 | E188: 2.96 | F188: 3.14 | G188: 4969100 | H188: 31.4 | I188: 10 | J188: 0.1 | K188: 30.2 | L188: 33.4 | M188: 29.6 | N188: 31.4 | O188: 496910
A189: 174 | B189: 2015-08-05 | C189: 3.19 | D189: 3.25 | E189: 2.89 | F189: 2.93 | G189: 3693100 | H189: 29.3 | I189: 10 | J189: 0.1 | K189: 31.9 | L189: 32.5 | M189: 28.9 | N189: 29.3 | O189: 369310
A190: 175 | B190: 2015-08-04 | C190: 3.21 | D190: 3.26 | E190: 3.02 | F190: 3.09 | G190: 2140600 | H190: 30.9 | I190: 10 | J190: 0.1 | K190: 32.1 | L190: 32.6 | M190: 30.2 | N190: 30.9 | O190: 214060
A191: 176 | B191: 2015-08-03 | C191: 3.36 | D191: 3.38 | E191: 3.02 | F191: 3.1 | G191: 3287600 | H191: 31 | I191: 10 | J191: 0.1 | K191: 33.6 | L191: 33.8 | M191: 30.2 | N191: 31 | O191: 328760
A192: 177 | B192: 2015-07-31 | C192: 3.5 | D192: 3.59 | E192: 3.31 | F192: 3.43 | G192: 3016600 | H192: 34.3 | I192: 10 | J192: 0.1 | K192: 35 | L192: 35.9 | M192: 33.1 | N192: 34.3 | O192: 301660
A193: 178 | B193: 2015-07-30 | C193: 3.38 | D193: 3.5 | E193: 3.2 | F193: 3.25 | G193: 3590800 | H193: 32.5 | I193: 10 | J193: 0.1 | K193: 33.8 | L193: 35 | M193: 32 | N193: 32.5 | O193: 359080
A194: 179 | B194: 2015-07-29 | C194: 3.43 | D194: 3.69 | E194: 3.3 | F194: 3.6 | G194: 5415400 | H194: 36.000001 | I194: 10.00000028 | J194: 0.1 | K194: 34.3 | L194: 36.9 | M194: 33 | N194: 36 | O194: 541540
A195: 180 | B195: 2015-07-28 | C195: 3.44 | D195: 3.51 | E195: 3.29 | F195: 3.44 | G195: 3027900 | H195: 34.400002 | I195: 10.00000058 | J195: 0.1 | K195: 34.4 | L195: 35.1 | M195: 32.9 | N195: 34.4 | O195: 302790
A196: 181 | B196: 2015-07-27 | C196: 3.6 | D196: 3.96 | E196: 3.23 | F196: 3.32 | G196: 5756200 | H196: 33.200001 | I196: 10.0000003 | J196: 0.1 | K196: 36 | L196: 39.6 | M196: 32.3 | N196: 33.2 | O196: 575620
A197: 182 | B197: 2015-07-24 | C197: 3.22 | D197: 3.76 | E197: 3.06 | F197: 3.74 | G197: 7326100 | H197: 37.400002 | I197: 10.00000053 | J197: 0.1 | K197: 32.2 | L197: 37.6 | M197: 30.6 | N197: 37.4 | O197: 732610
A198: 183 | B198: 2015-07-23 | C198: 3.89 | D198: 3.93 | E198: 3.31 | F198: 3.4 | G198: 5353200 | H198: 34.000001 | I198: 10.00000029 | J198: 0.1 | K198: 38.9 | L198: 39.3 | M198: 33.1 | N198: 34 | O198: 535320
A199: 184 | B199: 2015-07-22 | C199: 3.55 | D199: 3.91 | E199: 3.42 | F199: 3.74 | G199: 5040500 | H199: 37.400002 | I199: 10.00000053 | J199: 0.1 | K199: 35.5 | L199: 39.1 | M199: 34.2 | N199: 37.4 | O199: 504050
A200: 185 | B200: 2015-07-21 | C200: 3.75 | D200: 4.1 | E200: 3.72 | F200: 3.77 | G200: 6357300 | H200: 37.700001 | I200: 10.00000027 | J200: 0.1 | K200: 37.5 | L200: 41 | M200: 37.2 | N200: 37.7 | O200: 635730
... 1160 more rows

Sheet CalculationsAndCharts
A1: ATR Breakout Entries
A2: =InputPriceData!A1 -> Direxion Daily Gold Miners Inde (NUGT) -PCX (Daily)
A4: User Charting Controls | E4: Click to Shift Chart One Bar:
A5: Data Control
A6: =InputPriceData!$B$10 -> 1345 | B6: Available Input Data Rows | E6: Earliest: | F6: =OFFSET(InputPriceData!B15,CalculationsAndCharts!A6,0,1,1) -> 2010-12-08
B7: Use Close Adjusted: | C7: TRUE | E7: Latest: | F7: =OFFSET(InputPriceData!B15,1,0,1,1) -> 2016-04-13
A8: =MIN(A6-A11,LastUsedRowInColumn(A:A)-32) -> 1330 | B8: Logically Available for Calc / Plot | E8: $ Change: | F8: =InputPriceData!I4 -> -5.6148
A10: Price Chart Windowing Controls | F10: Y-axis Range
A11: 15 | B11: Input Data Offset (Pan) | E11: Max High+ | F11: =CEILING(MAX(MAX(OFFSET($E$33,0,0,$A$12,1)))+2*F14,0.1) -> 112.6
A12: 200 | B12: Data Points to Plot (Zoom) | E12: Min Low- | F12: =FLOOR(MIN(MIN(OFFSET($F$33,0,0,$A$12,1)))-2*F14,0.1) -> 8.7
B13: First: | C13: =OFFSET(B32,A12,0,1,1) -> 2015-06-08 | E13: White space %: | F13: 0.05
B14: ="Last: " & OFFSET(InputPriceData!P15,1+A11,0,1,1) -> Last: | C14: =B33 -> 2016-03-22 | E14: Allowance: | F14: =FLOOR((CEILING(MAX(MAX(OFFSET($E$33,0,0,$A$12,1))),1)-FLOOR(MIN(MIN(OFFSET($F$33,0,0,$A$12,1))),1))*F13,0.01) -> 4.35
A15: User Controls | C15: Alpha | D15: 1-Alpha
A16: 14 | B16: ATR Period | C16: =(A16-1)/A16 -> 0.9285714286 | D16: =1-C16 -> 0.07142857143
A17: 50 | B17: Moving Average
A18: 100 | B18: Moving Average | D18: Minimum Entry Delta: | E18: 0.5
A19: 200 | B19: Moving Average | D19: Trailing Stop: | E19: 4
A21: 1.5 | B21: Candle Ratio | C21: 4 | D21: Candle Count Used to Determine
D22: Average Candle Range
A23: Help! I would like to plot data
A24: From | B24: 2015-11-23 | C24: =OFFSET(InputPriceData!$A$15,MATCH(B24,OFFSET(InputPriceData!B15,1,0,InputPriceData!$B$10,1),0),0,1,1)-C25 -> 60 | E24: 165
A25: To | B25: 2016-02-19 | C25: =OFFSET(InputPriceData!$A$15,MATCH(B25,OFFSET(InputPriceData!$B$15,1,0,InputPriceData!$B$10,1),0),0,1,1)-1 -> 37 | E25: =$A$12-$E$24+1 -> 36
B26: ="Transaction Summary for a "&LogicallyAvailableRows&" bar period" -> Transaction Summary for a 1330 bar period
B27: ="extending from " & TEXT(OFFSET(CalculationsAndCharts!$B$32,CalculationsAndCharts!$A$8,0,1,1),"mm/dd/yyyy") & " to "& TEXT(CalculationsAndCharts!$B$33,"mm/dd/yyyy.") -> extending from 12/08/2010 to 03/22/2016.
B28: LONG Only | C28: ='Transaction Summary'!$B$6&" Winners" -> 2 Winners | D28: ='Transaction Summary'!$I$6 -> 11.03 | H28: @ Cursor => | I28: =OFFSET(A32,$E$25,0,1,1)&"(RR)" -> 36(RR) | J28: =OFFSET($B$32,E25,0,1,1) -> 2016-02-01 | K28: =TEXT(OFFSET(D32,$E$25,0,1,1),"#,##0.00")&"(o)" -> 26.45(o) | L28: =TEXT(OFFSET(E32,$E$25,0,1,1),"#,##0.00")&"(h)" -> 28.17(h) | M28: =TEXT(OFFSET(F32,$E$25,0,1,1),"#,##0.00")&"(l)" -> 26.26(l) | N28: =TEXT(OFFSET(G32,$E$25,0,1,1),"#,##0.00")&"(c)" -> 28.00(c) | P28: =TEXT(OFFSET(L32,$E$25,0,1,1),"#,##0.00")&"(atr)" -> 2.62(atr)
C29: ='Transaction Summary'!$B$7&" Loosers" -> 0 Loosers | D29: ='Transaction Summary'!$I$7 -> 0 | Q29: <== Cursor | AT29: Chart cursors
C30: Net | D30: =D28+D29 -> 11.03 | AF30: Trade bar markers | AT30: Work area
A31: Rel Row | H31: H - L | I31: ABS ( H - Cp ) | J31: ABS (L - Cp) | K31: True Range (TR) | L31: ="ATR(" &A16& ")" -> ATR(14) | T31: Candle Range | U31: Wide Range Candle | V31: ="Up Cross MA("&A18&")" -> Up Cross MA(100) | W31: Buy Preconditions | X31: Buy Limit Price | Y31: Buy Window | Z31: Long Entry | AA31: Long Active | AB31: ="Trailing " &TEXT(E19,"$#,##0.00") & " Stop" -> Trailing $4.00 Stop | AC31: Long Exit Signal | AD31: Entry Price | AE31: Exit price | AF31: ↑ Buy | AG31: ↓ Sell | AH31: Minimum Entry $
B32: Date | C32: Volume | D32: Open | E32: High | F32: Low | G32: Close | M32: ="MA("&A17&")" -> MA(50) | N32: ="MA("&A18&")" -> MA(100) | O32: ="MA("&A19&")" -> MA(200) | P32: Up Vol | Q32: Dn Vol | R32: ATR High | S32: ATR High | AT32: Volume Cursor | AV32: =MAX(OFFSET(C33,0,0,A12,1)) -> 15696500 | AW32: ATR Cursor | AX32: =MAX(OFFSET(L33,0,0,$A$12,1)) -> 8.406460769 | AY32: Price Chart Cursor
A33: 1 | B33: =OFFSET(InputPriceData!B$15,CalculationsAndCharts!$A33+$A$11,0,1,1) -> 2016-03-22 | C33: =OFFSET(InputPriceData!G$15,CalculationsAndCharts!$A33+$A$11,IF($C$7,8,0),1,1) -> 7370100 | D33: =OFFSET(InputPriceData!C$15,CalculationsAndCharts!$A33+$A$11,IF($C$7,8,0),1,1) -> 69.4 | E33: =OFFSET(InputPriceData!D$15,CalculationsAndCharts!$A33+$A$11,IF($C$7,8,0),1,1) -> 70.26 | F33: =OFFSET(InputPriceData!E$15,CalculationsAndCharts!$A33+$A$11,IF($C$7,8,0),1,1) -> 64.05 | G33: =OFFSET(InputPriceData!F$15,CalculationsAndCharts!$A33+$A$11,IF($C$7,8,0),1,1) -> 66.31 | H33: =E33-F33 -> 6.21 | I33: =IF(A33>=$A$8,0,ABS(E33-G34)) -> 4.08 | J33: =IF(A33>=$A$8,0,ABS(F33-G34)) -> 2.13 | K33: =MAX(H33:J33) -> 6.21 | L33: =IF(A33>$A$8,0,IF(A33>=($A$8-$A$16),AVERAGE(OFFSET(K33,0,0,($A$8-A33+1),1)),(L34*$C$16)+K33*$D$16)) -> 7.821696177 | M33: =AVERAGE(OFFSET($G33,0,0,$A$17,1)) -> 44.5084 | N33: =AVERAGE(OFFSET($G33,0,0,$A$18,1)) -> 35.8018 | O33: =AVERAGE(OFFSET($G33,0,0,$A$19,1)) -> 42.57065 | P33: =IF(G33>=D33,C33,NA()) ->  | Q33: =IF(G33<D33,C33,NA()) -> 7370100 | R33: =IF(A33>=$A$8,FALSE,L33=MAX(OFFSET(L33,0,0,$A$16,1))) -> FALSE | S33: =IF(R33,L33,NA()) ->  | T33: =E33-F33 -> 6.21 | U33: =IF(A33>=$A$8,FALSE,T33>=$A$21*AVERAGE(OFFSET(T34,0,0,$C$21,1))) -> FALSE | V33: =IF(A33>=$A$8,FALSE,AND(E33>N33,E34<=N34)) -> FALSE | W33: =AND(R33,U33,V33) -> FALSE | X33: =IF(W33,E33+$E$18,X34) -> 32.44 | Y33: =IF(A33>=$A$8,FALSE,IF(AND(W34,NOT(AA34)),IF(G33<N33,FALSE,TRUE),IF(Z34,FALSE,Y34))) -> FALSE | Z33: =IF(A33>=$A$8,FALSE,AND(Y33,E33>X33,NOT(AA34))) -> FALSE | AA33: =IF(A33>=$A$8,FALSE,IF(Z33,TRUE,IF(AC33,FALSE,IF(AA34="",FALSE,AA34)))) -> FALSE | AB33: =IF(Z33,G33-$E$19,MAX(AB34,G33-$E$19)) -> 64.99 | AC33: =IF(A33>=$A$8,FALSE,AND(AA34,F33<AB34)) -> FALSE | AD33: =IF(Z33,MAX(X33,D33),NA()) ->  | AE33: =IF(AC33,IF(E33<AB33,D33,IF( D33< AB33,D33,AB33)),NA()) ->  | AF33: =IF(Z33,F33,NA()) ->  | AG33: =IF(AC33,E33,NA()) ->  | AH33: =IF(OR(W33,Y33),X33,NA()) ->  | AT33: =$E$25 -> 36 | AU33: MacdChrtMin | AV33: =FLOOR(MIN(OFFSET($J$33,0,0,$A$12,1)),1) -> 0 | AW33: =$E$25 -> 36 | AX33: 0 | AY33: =$E$25 -> 36 | AZ33: =$F$11 -> 112.6
A34: 2 | B34: =OFFSET(InputPriceData!B$15,CalculationsAndCharts!$A34+$A$11,0,1,1) -> 2016-03-21 | C34: =OFFSET(InputPriceData!G$15,CalculationsAndCharts!$A34+$A$11,IF($C$7,8,0),1,1) -> 6545500 | D34: =OFFSET(InputPriceData!C$15,CalculationsAndCharts!$A34+$A$11,IF($C$7,8,0),1,1) -> 65.43 | E34: =OFFSET(InputPriceData!D$15,CalculationsAndCharts!$A34+$A$11,IF($C$7,8,0),1,1) -> 68.19 | F34: =OFFSET(InputPriceData!E$15,CalculationsAndCharts!$A34+$A$11,IF($C$7,8,0),1,1) -> 63.61 | G34: =OFFSET(InputPriceData!F$15,CalculationsAndCharts!$A34+$A$11,IF($C$7,8,0),1,1) -> 66.18 | H34: =E34-F34 -> 4.58 | I34: =IF(A34>=$A$8,0,ABS(E34-G35)) -> 1.87 | J34: =IF(A34>=$A$8,0,ABS(F34-G35)) -> 2.71 | K34: =MAX(H34:J34) -> 4.58 | L34: 7.945672806 | M34: =AVERAGE(OFFSET($G34,0,0,$A$17,1)) -> 43.7524 | N34: =AVERAGE(OFFSET($G34,0,0,$A$18,1)) -> 35.5684 | O34: =AVERAGE(OFFSET($G34,0,0,$A$19,1)) -> 42.7286 | P34: =IF(G34>=D34,C34,NA()) -> 6545500 | Q34: =IF(G34<D34,C34,NA()) ->  | R34: =IF(A34>=$A$8,FALSE,L34=MAX(OFFSET(L34,0,0,$A$16,1))) -> FALSE | S34: =IF(R34,L34,NA()) ->  | T34: =E34-F34 -> 4.58 | U34: FALSE | V34: =IF(A34>=$A$8,FALSE,AND(E34>N34,E35<=N35)) -> FALSE | W34: =AND(R34,U34,V34) -> FALSE | X34: 32.44 | Y34: =IF(A34>=$A$8,FALSE,IF(AND(W35,NOT(AA35)),IF(G34<N34,FALSE,TRUE),IF(Z35,FALSE,Y35))) -> FALSE | Z34: =IF(A34>=$A$8,FALSE,AND(Y34,E34>X34,NOT(AA35))) -> FALSE | AA34: =IF(A34>=$A$8,FALSE,IF(Z34,TRUE,IF(AC34,FALSE,IF(AA35="",FALSE,AA35)))) -> FALSE | AB34: 64.99 | AC34: =IF(A34>=$A$8,FALSE,AND(AA35,F34<AB35)) -> FALSE | AE34: =IF(AC34,IF(E34<AB34,D34,IF( D34< AB34,D34,AB34)),NA()) ->  | AH34: =IF(OR(W34,Y34),X34,NA()) ->  | AT34: =$E$25 -> 36 | AU34: MacdChrtMax | AV34: =1.2*AV32 -> 18835800 | AW34: =$E$25 -> 36 | AX34: =AX32*1.2 -> 10.08775292 | AY34: =$E$25 -> 36 | AZ34: =$F$12 -> 8.7
A35: 3 | B35: =OFFSET(InputPriceData!B$15,CalculationsAndCharts!$A35+$A$11,0,1,1) -> 2016-03-18 | C35: =OFFSET(InputPriceData!G$15,CalculationsAndCharts!$A35+$A$11,IF($C$7,8,0),1,1) -> 7706500 | D35: =OFFSET(InputPriceData!C$15,CalculationsAndCharts!$A35+$A$11,IF($C$7,8,0),1,1) -> 64.11 | E35: =OFFSET(InputPriceData!D$15,CalculationsAndCharts!$A35+$A$11,IF($C$7,8,0),1,1) -> 69.58 | F35: =OFFSET(InputPriceData!E$15,CalculationsAndCharts!$A35+$A$11,IF($C$7,8,0),1,1) -> 64 | G35: =OFFSET(InputPriceData!F$15,CalculationsAndCharts!$A35+$A$11,IF($C$7,8,0),1,1) -> 66.32 | H35: =E35-F35 -> 5.58 | I35: =IF(A35>=$A$8,0,ABS(E35-G36)) -> 4.92 | J35: =IF(A35>=$A$8,0,ABS(F35-G36)) -> 0.66 | K35: =MAX(H35:J35) -> 5.58 | L35: 8.204570714 | M35: 43.0436 | N35: 35.3354 | O35: 42.9077 | P35: 7706500 | R35: FALSE | S35: =IF(R35,L35,NA()) ->  | T35: =E35-F35 -> 5.58 | U35: FALSE | V35: FALSE | W35: FALSE | X35: 32.44 | Y35: FALSE | Z35: FALSE | AA35: FALSE | AB35: 64.99 | AC35: FALSE
A36: 4 | B36: =OFFSET(InputPriceData!B$15,CalculationsAndCharts!$A36+$A$11,0,1,1) -> 2016-03-17 | C36: =OFFSET(InputPriceData!G$15,CalculationsAndCharts!$A36+$A$11,IF($C$7,8,0),1,1) -> 12648000 | D36: =OFFSET(InputPriceData!C$15,CalculationsAndCharts!$A36+$A$11,IF($C$7,8,0),1,1) -> 70.85 | E36: =OFFSET(InputPriceData!D$15,CalculationsAndCharts!$A36+$A$11,IF($C$7,8,0),1,1) -> 74.65 | F36: =OFFSET(InputPriceData!E$15,CalculationsAndCharts!$A36+$A$11,IF($C$7,8,0),1,1) -> 64.2 | G36: =OFFSET(InputPriceData!F$15,CalculationsAndCharts!$A36+$A$11,IF($C$7,8,0),1,1) -> 64.66 | H36: =E36-F36 -> 10.45 | I36: =IF(A36>=$A$8,0,ABS(E36-G37)) -> 5.66 | J36: =IF(A36>=$A$8,0,ABS(F36-G37)) -> 4.79 | K36: =MAX(H36:J36) -> 10.45 | L36: 8.406460769 | M36: 42.2606 | N36: 35.1429 | O36: 43.1111 | Q36: 12648000 | R36: TRUE | S36: =IF(R36,L36,NA()) -> 8.406460769 | T36: =E36-F36 -> 10.45 | U36: FALSE | V36: FALSE | W36: FALSE | X36: 32.44 | Y36: FALSE | Z36: FALSE | AA36: FALSE | AB36: 64.99 | AC36: FALSE
A37: 5 | B37: =OFFSET(InputPriceData!B$15,CalculationsAndCharts!$A37+$A$11,0,1,1) -> 2016-03-16 | C37: =OFFSET(InputPriceData!G$15,CalculationsAndCharts!$A37+$A$11,IF($C$7,8,0),1,1) -> 14060900 | D37: =OFFSET(InputPriceData!C$15,CalculationsAndCharts!$A37+$A$11,IF($C$7,8,0),1,1) -> 54.54 | E37: =OFFSET(InputPriceData!D$15,CalculationsAndCharts!$A37+$A$11,IF($C$7,8,0),1,1) -> 69.75 | F37: =OFFSET(InputPriceData!E$15,CalculationsAndCharts!$A37+$A$11,IF($C$7,8,0),1,1) -> 52.53 | G37: =OFFSET(InputPriceData!F$15,CalculationsAndCharts!$A37+$A$11,IF($C$7,8,0),1,1) -> 68.99 | H37: =E37-F37 -> 17.22 | I37: =IF(A37>=$A$8,0,ABS(E37-G38)) -> 12.39 | J37: =IF(A37>=$A$8,0,ABS(F37-G38)) -> 4.83 | K37: =MAX(H37:J37) -> 17.22 | L37: 8.249265444 | M37: 41.4866 | N37: 34.9348 | O37: 43.3568 | P37: 14060900 | R37: TRUE | S37: 8.249265444 | T37: 17.22 | U37: TRUE | V37: FALSE | W37: FALSE | X37: 32.44 | Y37: FALSE | Z37: FALSE | AA37: FALSE | AB37: 64.99 | AC37: FALSE
A38: 6 | B38: =OFFSET(InputPriceData!B$15,CalculationsAndCharts!$A38+$A$11,0,1,1) -> 2016-03-15 | C38: =OFFSET(InputPriceData!G$15,CalculationsAndCharts!$A38+$A$11,IF($C$7,8,0),1,1) -> 7629000 | D38: =OFFSET(InputPriceData!C$15,CalculationsAndCharts!$A38+$A$11,IF($C$7,8,0),1,1) -> 54.19 | E38: =OFFSET(InputPriceData!D$15,CalculationsAndCharts!$A38+$A$11,IF($C$7,8,0),1,1) -> 57.5 | F38: =OFFSET(InputPriceData!E$15,CalculationsAndCharts!$A38+$A$11,IF($C$7,8,0),1,1) -> 51.8 | G38: =OFFSET(InputPriceData!F$15,CalculationsAndCharts!$A38+$A$11,IF($C$7,8,0),1,1) -> 57.36 | H38: 5.7 | I38: 3.47 | J38: 2.23 | K38: 5.7 | L38: 7.559208939 | M38: 40.634 | N38: 34.6622 | O38: 43.55685 | P38: 7629000 | R38: FALSE | T38: 5.7 | U38: FALSE | V38: FALSE | W38: FALSE | X38: 32.44 | Y38: FALSE | Z38: FALSE | AA38: FALSE | AB38: 62.87 | AC38: FALSE
A39: 7 | B39: =OFFSET(InputPriceData!B$15,CalculationsAndCharts!$A39+$A$11,0,1,1) -> 2016-03-14 | C39: =OFFSET(InputPriceData!G$15,CalculationsAndCharts!$A39+$A$11,IF($C$7,8,0),1,1) -> 8615900 | D39: =OFFSET(InputPriceData!C$15,CalculationsAndCharts!$A39+$A$11,IF($C$7,8,0),1,1) -> 63.25 | E39: =OFFSET(InputPriceData!D$15,CalculationsAndCharts!$A39+$A$11,IF($C$7,8,0),1,1) -> 64.25 | F39: =OFFSET(InputPriceData!E$15,CalculationsAndCharts!$A39+$A$11,IF($C$7,8,0),1,1) -> 54 | G39: =OFFSET(InputPriceData!F$15,CalculationsAndCharts!$A39+$A$11,IF($C$7,8,0),1,1) -> 54.03 | H39: 10.25 | I39: 2.5 | J39: 7.75 | K39: 10.25 | L39: 7.702225012 | M39: 39.9724 | N39: 34.5446 | O39: 43.82005 | Q39: 8615900 | R39: TRUE | S39: 7.702225012 | T39: 10.25 | U39: FALSE | V39: FALSE | W39: FALSE | X39: 32.44 | Y39: FALSE | Z39: FALSE | AA39: FALSE | AB39: 62.87 | AC39: FALSE
A40: 8 | B40: =OFFSET(InputPriceData!B$15,CalculationsAndCharts!$A40+$A$11,0,1,1) -> 2016-03-11 | C40: =OFFSET(InputPriceData!G$15,CalculationsAndCharts!$A40+$A$11,IF($C$7,8,0),1,1) -> 6168200 | D40: =OFFSET(InputPriceData!C$15,CalculationsAndCharts!$A40+$A$11,IF($C$7,8,0),1,1) -> 64.42 | E40: =OFFSET(InputPriceData!D$15,CalculationsAndCharts!$A40+$A$11,IF($C$7,8,0),1,1) -> 67.65 | F40: =OFFSET(InputPriceData!E$15,CalculationsAndCharts!$A40+$A$11,IF($C$7,8,0),1,1) -> 60.59 | G40: =OFFSET(InputPriceData!F$15,CalculationsAndCharts!$A40+$A$11,IF($C$7,8,0),1,1) -> 61.75 | H40: 7.06 | I40: 1.76 | J40: 5.3 | K40: 7.06 | L40: 7.50624232 | M40: 39.3734 | N40: 34.4149 | O40: 44.1029 | Q40: 6168200 | R40: FALSE | T40: 7.06 | U40: FALSE | V40: FALSE | W40: FALSE | X40: 32.44 | Y40: FALSE | Z40: FALSE | AA40: FALSE | AB40: 62.87 | AC40: FALSE
A41: 9 | B41: =OFFSET(InputPriceData!B$15,CalculationsAndCharts!$A41+$A$11,0,1,1) -> 2016-03-10 | C41: =OFFSET(InputPriceData!G$15,CalculationsAndCharts!$A41+$A$11,IF($C$7,8,0),1,1) -> 11012400 | D41: =OFFSET(InputPriceData!C$15,CalculationsAndCharts!$A41+$A$11,IF($C$7,8,0),1,1) -> 60.84 | E41: =OFFSET(InputPriceData!D$15,CalculationsAndCharts!$A41+$A$11,IF($C$7,8,0),1,1) -> 66.34 | F41: =OFFSET(InputPriceData!E$15,CalculationsAndCharts!$A41+$A$11,IF($C$7,8,0),1,1) -> 60.17 | G41: =OFFSET(InputPriceData!F$15,CalculationsAndCharts!$A41+$A$11,IF($C$7,8,0),1,1) -> 65.89 | H41: 6.17 | I41: 8.34 | J41: 2.17 | K41: 8.34 | L41: 7.540568652 | M41: 38.6504 | N41: 34.2648 | O41: 44.33215 | P41: 11012400 | R41: TRUE | S41: 7.540568652 | T41: 6.17 | U41: FALSE | V41: FALSE | W41: FALSE | X41: 32.44 | Y41: FALSE | Z41: FALSE | AA41: FALSE | AB41: 62.87 | AC41: FALSE
A42: 10 | B42: =OFFSET(InputPriceData!B$15,CalculationsAndCharts!$A42+$A$11,0,1,1) -> 2016-03-09 | C42: =OFFSET(InputPriceData!G$15,CalculationsAndCharts!$A42+$A$11,IF($C$7,8,0),1,1) -> 9810000 | D42: =OFFSET(InputPriceData!C$15,CalculationsAndCharts!$A42+$A$11,IF($C$7,8,0),1,1) -> 53.71 | E42: =OFFSET(InputPriceData!D$15,CalculationsAndCharts!$A42+$A$11,IF($C$7,8,0),1,1) -> 59.95 | F42: =OFFSET(InputPriceData!E$15,CalculationsAndCharts!$A42+$A$11,IF($C$7,8,0),1,1) -> 52 | G42: =OFFSET(InputPriceData!F$15,CalculationsAndCharts!$A42+$A$11,IF($C$7,8,0),1,1) -> 58 | H42: 7.95 | I42: 2.48 | J42: 5.47 | K42: 7.95 | L42: 7.479073933 | M42: 37.8324 | N42: 34.1187 | O42: 44.5277 | P42: 9810000 | R42: TRUE | S42: 7.479073933 | T42: 7.95 | U42: FALSE | V42: FALSE | W42: FALSE | X42: 32.44 | Y42: FALSE | Z42: FALSE | AA42: FALSE | AB42: 62.87 | AC42: FALSE
A43: 11 | B43: =OFFSET(InputPriceData!B$15,CalculationsAndCharts!$A43+$A$11,0,1,1) -> 2016-03-08 | C43: =OFFSET(InputPriceData!G$15,CalculationsAndCharts!$A43+$A$11,IF($C$7,8,0),1,1) -> 10284500 | D43: =OFFSET(InputPriceData!C$15,CalculationsAndCharts!$A43+$A$11,IF($C$7,8,0),1,1) -> 69.12 | E43: =OFFSET(InputPriceData!D$15,CalculationsAndCharts!$A43+$A$11,IF($C$7,8,0),1,1) -> 70.22 | F43: =OFFSET(InputPriceData!E$15,CalculationsAndCharts!$A43+$A$11,IF($C$7,8,0),1,1) -> 57.28 | G43: =OFFSET(InputPriceData!F$15,CalculationsAndCharts!$A43+$A$11,IF($C$7,8,0),1,1) -> 57.47 | H43: 12.94 | I43: 3.35 | J43: 9.59 | K43: 12.94 | L43: 7.442848851 | M43: 37.2236 | N43: 34.0506 | O43: 44.8147 | Q43: 10284500 | R43: TRUE | S43: 7.442848851 | T43: 12.94 | U43: TRUE | V43: FALSE | W43: FALSE | X43: 32.44 | Y43: FALSE | Z43: FALSE | AA43: FALSE | AB43: 62.87 | AC43: FALSE
A44: 12 | B44: =OFFSET(InputPriceData!B$15,CalculationsAndCharts!$A44+$A$11,0,1,1) -> 2016-03-07 | C44: =OFFSET(InputPriceData!G$15,CalculationsAndCharts!$A44+$A$11,IF($C$7,8,0),1,1) -> 9288600 | D44: =OFFSET(InputPriceData!C$15,CalculationsAndCharts!$A44+$A$11,IF($C$7,8,0),1,1) -> 63.01 | E44: =OFFSET(InputPriceData!D$15,CalculationsAndCharts!$A44+$A$11,IF($C$7,8,0),1,1) -> 69.92 | F44: =OFFSET(InputPriceData!E$15,CalculationsAndCharts!$A44+$A$11,IF($C$7,8,0),1,1) -> 62.47 | G44: =OFFSET(InputPriceData!F$15,CalculationsAndCharts!$A44+$A$11,IF($C$7,8,0),1,1) -> 66.87 | H44: 7.45 | I44: 9.19 | J44: 1.74 | K44: 9.19 | L44: 7.019991071 | M44: 36.5932 | N44: 33.9065 | O44: 45.11335 | P44: 9288600 | R44: TRUE | S44: 7.019991071 | T44: 7.45 | U44: FALSE | V44: FALSE | W44: FALSE | X44: 32.44 | Y44: FALSE | Z44: FALSE | AA44: FALSE | AB44: 62.87 | AC44: FALSE
A45: 13 | B45: =OFFSET(InputPriceData!B$15,CalculationsAndCharts!$A45+$A$11,0,1,1) -> 2016-03-04 | C45: =OFFSET(InputPriceData!G$15,CalculationsAndCharts!$A45+$A$11,IF($C$7,8,0),1,1) -> 14602700 | D45: =OFFSET(InputPriceData!C$15,CalculationsAndCharts!$A45+$A$11,IF($C$7,8,0),1,1) -> 61.78 | E45: =OFFSET(InputPriceData!D$15,CalculationsAndCharts!$A45+$A$11,IF($C$7,8,0),1,1) -> 71.46 | F45: =OFFSET(InputPriceData!E$15,CalculationsAndCharts!$A45+$A$11,IF($C$7,8,0),1,1) -> 59.19 | G45: =OFFSET(InputPriceData!F$15,CalculationsAndCharts!$A45+$A$11,IF($C$7,8,0),1,1) -> 60.73 | H45: 12.27 | I45: 9.84 | J45: 2.43 | K45: 12.27 | L45: 6.853067307 | M45: 35.7436 | N45: 33.6613 | O45: 45.377 | Q45: 14602700 | R45: TRUE | S45: 6.853067307 | T45: 12.27 | U45: TRUE | V45: FALSE | W45: FALSE | X45: 32.44 | Y45: FALSE | Z45: FALSE | AA45: FALSE | AB45: 57.62 | AC45: FALSE
A46: 14 | B46: =OFFSET(InputPriceData!B$15,CalculationsAndCharts!$A46+$A$11,0,1,1) -> 2016-03-03 | C46: =OFFSET(InputPriceData!G$15,CalculationsAndCharts!$A46+$A$11,IF($C$7,8,0),1,1) -> 10631400 | D46: =OFFSET(InputPriceData!C$15,CalculationsAndCharts!$A46+$A$11,IF($C$7,8,0),1,1) -> 55.68 | E46: =OFFSET(InputPriceData!D$15,CalculationsAndCharts!$A46+$A$11,IF($C$7,8,0),1,1) -> 63.29 | F46: =OFFSET(InputPriceData!E$15,CalculationsAndCharts!$A46+$A$11,IF($C$7,8,0),1,1) -> 55.35 | G46: =OFFSET(InputPriceData!F$15,CalculationsAndCharts!$A46+$A$11,IF($C$7,8,0),1,1) -> 61.62 | H46: 7.94 | I46: 8.41 | J46: 0.47 | K46: 8.41 | L46: 6.436380177 | M46: 35.0256 | N46: 33.5169 | O46: 45.66635 | P46: 10631400 | R46: TRUE | S46: 6.436380177 | T46: 7.94 | U46: FALSE | V46: FALSE | W46: FALSE | X46: 32.44 | Y46: FALSE | Z46: FALSE | AA46: FALSE | AB46: 57.62 | AC46: FALSE
A47: 15 | B47: =OFFSET(InputPriceData!B$15,CalculationsAndCharts!$A47+$A$11,0,1,1) -> 2016-03-02 | C47: =OFFSET(InputPriceData!G$15,CalculationsAndCharts!$A47+$A$11,IF($C$7,8,0),1,1) -> 7262300 | D47: =OFFSET(InputPriceData!C$15,CalculationsAndCharts!$A47+$A$11,IF($C$7,8,0),1,1) -> 52.4 | E47: =OFFSET(InputPriceData!D$15,CalculationsAndCharts!$A47+$A$11,IF($C$7,8,0),1,1) -> 55.98 | F47: =OFFSET(InputPriceData!E$15,CalculationsAndCharts!$A47+$A$11,IF($C$7,8,0),1,1) -> 51.18 | G47: =OFFSET(InputPriceData!F$15,CalculationsAndCharts!$A47+$A$11,IF($C$7,8,0),1,1) -> 54.88 | H47: 4.8 | I47: 4.8 | J47: 0 | K47: 4.8 | L47: 6.284563267 | M47: 34.2628 | N47: 33.2995 | O47: 46.02125 | P47: 7262300 | R47: FALSE | T47: 4.8 | U47: FALSE | V47: FALSE | W47: FALSE | X47: 32.44 | Y47: FALSE | Z47: FALSE | AA47: FALSE | AB47: 54.82 | AC47: FALSE
A48: 16 | B48: =OFFSET(InputPriceData!B$15,CalculationsAndCharts!$A48+$A$11,0,1,1) -> 2016-03-01 | C48: =OFFSET(InputPriceData!G$15,CalculationsAndCharts!$A48+$A$11,IF($C$7,8,0),1,1) -> 9516200 | D48: =OFFSET(InputPriceData!C$15,CalculationsAndCharts!$A48+$A$11,IF($C$7,8,0),1,1) -> 58.99 | E48: =OFFSET(InputPriceData!D$15,CalculationsAndCharts!$A48+$A$11,IF($C$7,8,0),1,1) -> 59.49 | F48: =OFFSET(InputPriceData!E$15,CalculationsAndCharts!$A48+$A$11,IF($C$7,8,0),1,1) -> 50.66 | G48: =OFFSET(InputPriceData!F$15,CalculationsAndCharts!$A48+$A$11,IF($C$7,8,0),1,1) -> 51.18 | H48: 8.83 | I48: 1.45 | J48: 7.38 | K48: 8.83 | L48: 6.398760442 | M48: 33.6076 | N48: 33.1656 | O48: 46.40885 | Q48: 9516200 | R48: TRUE | S48: 6.398760442 | T48: 8.83 | U48: FALSE | V48: FALSE | W48: FALSE | X48: 32.44 | Y48: FALSE | Z48: FALSE | AA48: FALSE | AB48: 54.82 | AC48: FALSE
A49: 17 | B49: =OFFSET(InputPriceData!B$15,CalculationsAndCharts!$A49+$A$11,0,1,1) -> 2016-02-29 | C49: =OFFSET(InputPriceData!G$15,CalculationsAndCharts!$A49+$A$11,IF($C$7,8,0),1,1) -> 6922300 | D49: =OFFSET(InputPriceData!C$15,CalculationsAndCharts!$A49+$A$11,IF($C$7,8,0),1,1) -> 54.9 | E49: =OFFSET(InputPriceData!D$15,CalculationsAndCharts!$A49+$A$11,IF($C$7,8,0),1,1) -> 58.48 | F49: =OFFSET(InputPriceData!E$15,CalculationsAndCharts!$A49+$A$11,IF($C$7,8,0),1,1) -> 54.75 | G49: =OFFSET(InputPriceData!F$15,CalculationsAndCharts!$A49+$A$11,IF($C$7,8,0),1,1) -> 58.04 | H49: 3.73 | I49: 5.9 | J49: 2.17 | K49: 5.9 | L49: 6.211742014 | M49: 33.1204 | N49: 33.0733 | O49: 46.82295 | P49: 6922300 | R49: FALSE | T49: 3.73 | U49: FALSE | V49: FALSE | W49: FALSE | X49: 32.44 | Y49: FALSE | Z49: FALSE | AA49: FALSE | AB49: 54.82 | AC49: FALSE
A50: 18 | B50: =OFFSET(InputPriceData!B$15,CalculationsAndCharts!$A50+$A$11,0,1,1) -> 2016-02-26 | C50: =OFFSET(InputPriceData!G$15,CalculationsAndCharts!$A50+$A$11,IF($C$7,8,0),1,1) -> 9760800 | D50: =OFFSET(InputPriceData!C$15,CalculationsAndCharts!$A50+$A$11,IF($C$7,8,0),1,1) -> 54.8 | E50: =OFFSET(InputPriceData!D$15,CalculationsAndCharts!$A50+$A$11,IF($C$7,8,0),1,1) -> 58.39 | F50: =OFFSET(InputPriceData!E$15,CalculationsAndCharts!$A50+$A$11,IF($C$7,8,0),1,1) -> 52.13 | G50: =OFFSET(InputPriceData!F$15,CalculationsAndCharts!$A50+$A$11,IF($C$7,8,0),1,1) -> 52.58 | H50: 6.26 | I50: 0.43 | J50: 6.69 | K50: 6.69 | L50: 6.235722169 | M50: 32.44 | N50: 32.8704 | O50: 47.19775 | Q50: 9760800 | R50: FALSE | T50: 6.26 | U50: FALSE | V50: FALSE | W50: FALSE | X50: 32.44 | Y50: FALSE | Z50: FALSE | AA50: FALSE | AB50: 54.82 | AC50: FALSE
A51: 19 | B51: =OFFSET(InputPriceData!B$15,CalculationsAndCharts!$A51+$A$11,0,1,1) -> 2016-02-25 | C51: =OFFSET(InputPriceData!G$15,CalculationsAndCharts!$A51+$A$11,IF($C$7,8,0),1,1) -> 8287900 | D51: =OFFSET(InputPriceData!C$15,CalculationsAndCharts!$A51+$A$11,IF($C$7,8,0),1,1) -> 55.48 | E51: =OFFSET(InputPriceData!D$15,CalculationsAndCharts!$A51+$A$11,IF($C$7,8,0),1,1) -> 59.6 | F51: =OFFSET(InputPriceData!E$15,CalculationsAndCharts!$A51+$A$11,IF($C$7,8,0),1,1) -> 55 | G51: =OFFSET(InputPriceData!F$15,CalculationsAndCharts!$A51+$A$11,IF($C$7,8,0),1,1) -> 58.82 | H51: 4.6 | I51: 3.41 | J51: 1.19 | K51: 4.6 | L51: 6.20077772 | M51: 31.865 | N51: 32.6787 | O51: 47.55585 | P51: 8287900 | R51: FALSE | T51: 4.6 | U51: FALSE | V51: FALSE | W51: FALSE | X51: 32.44 | Y51: FALSE | Z51: FALSE | AA51: FALSE | AB51: 54.82 | AC51: FALSE
A52: 20 | B52: =OFFSET(InputPriceData!B$15,CalculationsAndCharts!$A52+$A$11,0,1,1) -> 2016-02-24 | C52: =OFFSET(InputPriceData!G$15,CalculationsAndCharts!$A52+$A$11,IF($C$7,8,0),1,1) -> 11880000 | D52: =OFFSET(InputPriceData!C$15,CalculationsAndCharts!$A52+$A$11,IF($C$7,8,0),1,1) -> 59.32 | E52: =OFFSET(InputPriceData!D$15,CalculationsAndCharts!$A52+$A$11,IF($C$7,8,0),1,1) -> 62.9 | F52: =OFFSET(InputPriceData!E$15,CalculationsAndCharts!$A52+$A$11,IF($C$7,8,0),1,1) -> 53.85 | G52: =OFFSET(InputPriceData!F$15,CalculationsAndCharts!$A52+$A$11,IF($C$7,8,0),1,1) -> 56.19 | H52: 9.05 | I52: 8.41 | J52: 0.64 | K52: 9.05 | L52: 6.323914468 | M52: 31.2574 | N52: 32.3605 | O52: 47.85675 | Q52: 11880000 | R52: TRUE | S52: 6.323914468 | T52: 9.05 | U52: FALSE | V52: FALSE | W52: FALSE | X52: 32.44 | Y52: FALSE | Z52: FALSE | AA52: FALSE | AB52: 52.87 | AC52: FALSE
A53: 21 | B53: =OFFSET(InputPriceData!B$15,CalculationsAndCharts!$A53+$A$11,0,1,1) -> 2016-02-23 | C53: =OFFSET(InputPriceData!G$15,CalculationsAndCharts!$A53+$A$11,IF($C$7,8,0),1,1) -> 8563100 | D53: =OFFSET(InputPriceData!C$15,CalculationsAndCharts!$A53+$A$11,IF($C$7,8,0),1,1) -> 54.5 | E53: =OFFSET(InputPriceData!D$15,CalculationsAndCharts!$A53+$A$11,IF($C$7,8,0),1,1) -> 55.9 | F53: =OFFSET(InputPriceData!E$15,CalculationsAndCharts!$A53+$A$11,IF($C$7,8,0),1,1) -> 52.55 | G53: =OFFSET(InputPriceData!F$15,CalculationsAndCharts!$A53+$A$11,IF($C$7,8,0),1,1) -> 54.49 | H53: 3.35 | I53: 4.4 | J53: 1.05 | K53: 4.4 | L53: 6.114215581 | M53: 30.6862 | N53: 32.0866 | O53: 48.1678 | Q53: 8563100 | R53: FALSE | T53: 3.35 | U53: FALSE | V53: FALSE | W53: FALSE | X53: 32.44 | Y53: FALSE | Z53: FALSE | AA53: FALSE | AB53: 52.87 | AC53: FALSE | AG53: =IF(AC53,E53,NA()) -> 
A54: 22 | B54: =OFFSET(InputPriceData!B$15,CalculationsAndCharts!$A54+$A$11,0,1,1) -> 2016-02-22 | C54: =OFFSET(InputPriceData!G$15,CalculationsAndCharts!$A54+$A$11,IF($C$7,8,0),1,1) -> 8152300 | D54: =OFFSET(InputPriceData!C$15,CalculationsAndCharts!$A54+$A$11,IF($C$7,8,0),1,1) -> 45.63 | E54: =OFFSET(InputPriceData!D$15,CalculationsAndCharts!$A54+$A$11,IF($C$7,8,0),1,1) -> 52.83 | F54: =OFFSET(InputPriceData!E$15,CalculationsAndCharts!$A54+$A$11,IF($C$7,8,0),1,1) -> 45.25 | G54: =OFFSET(InputPriceData!F$15,CalculationsAndCharts!$A54+$A$11,IF($C$7,8,0),1,1) -> 51.5 | H54: 7.58 | I54: 2.49 | J54: 5.09 | K54: 7.58 | L54: 6.246078318 | M54: 30.1542 | N54: 31.8127 | O54: 48.47585 | P54: 8152300 | R54: TRUE | S54: 6.246078318 | T54: 7.58 | U54: FALSE | V54: FALSE | W54: FALSE | X54: 32.44 | Y54: FALSE | Z54: FALSE | AA54: FALSE | AB54: 52.87 | AC54: FALSE | AG54: =IF(AC54,E54,NA()) -> 
A55: 23 | B55: =OFFSET(InputPriceData!B$15,CalculationsAndCharts!$A55+$A$11,0,1,1) -> 2016-02-19 | C55: =OFFSET(InputPriceData!G$15,CalculationsAndCharts!$A55+$A$11,IF($C$7,8,0),1,1) -> 9143800 | D55: =OFFSET(InputPriceData!C$15,CalculationsAndCharts!$A55+$A$11,IF($C$7,8,0),1,1) -> 52.43 | E55: =OFFSET(InputPriceData!D$15,CalculationsAndCharts!$A55+$A$11,IF($C$7,8,0),1,1) -> 54.78 | F55: =OFFSET(InputPriceData!E$15,CalculationsAndCharts!$A55+$A$11,IF($C$7,8,0),1,1) -> 49.52 | G55: =OFFSET(InputPriceData!F$15,CalculationsAndCharts!$A55+$A$11,IF($C$7,8,0),1,1) -> 50.34 | H55: 5.26 | I55: 0.06 | J55: 5.2 | K55: 5.26 | L55: 6.143468958 | M55: 29.663 | N55: 31.5657 | O55: 48.78835 | Q55: 9143800 | R55: FALSE | T55: 5.26 | U55: FALSE | V55: FALSE | W55: FALSE | X55: 32.44 | Y55: FALSE | Z55: FALSE | AA55: FALSE | AB55: 52.87 | AC55: FALSE | AG55: =IF(AC55,E55,NA()) -> 
A56: 24 | B56: =OFFSET(InputPriceData!B$15,CalculationsAndCharts!$A56+$A$11,0,1,1) -> 2016-02-18 | C56: =OFFSET(InputPriceData!G$15,CalculationsAndCharts!$A56+$A$11,IF($C$7,8,0),1,1) -> 12518600 | D56: =OFFSET(InputPriceData!C$15,CalculationsAndCharts!$A56+$A$11,IF($C$7,8,0),1,1) -> 44.02 | E56: =OFFSET(InputPriceData!D$15,CalculationsAndCharts!$A56+$A$11,IF($C$7,8,0),1,1) -> 54.91 | F56: =OFFSET(InputPriceData!E$15,CalculationsAndCharts!$A56+$A$11,IF($C$7,8,0),1,1) -> 43.5 | G56: =OFFSET(InputPriceData!F$15,CalculationsAndCharts!$A56+$A$11,IF($C$7,8,0),1,1) -> 54.72 | H56: 11.41 | I56: 8.6 | J56: 2.81 | K56: 11.41 | L56: 6.211428108 | M56: 29.2072 | N56: 31.3713 | O56: 49.15365 | P56: 12518600 | R56: TRUE | S56: 6.211428108 | T56: 11.41 | U56: TRUE | V56: FALSE | W56: FALSE | X56: 32.44 | Y56: FALSE | Z56: FALSE | AA56: FALSE | AB56: 52.87 | AC56: FALSE | AD56: =IF(Z56,MAX(X56,D56),NA()) ->  | AF56: =IF(Z56,F56,NA()) ->  | AG56: =IF(AC56,E56,NA()) -> 
A57: 25 | B57: =OFFSET(InputPriceData!B$15,CalculationsAndCharts!$A57+$A$11,0,1,1) -> 2016-02-17 | C57: =OFFSET(InputPriceData!G$15,CalculationsAndCharts!$A57+$A$11,IF($C$7,8,0),1,1) -> 9395100 | D57: =OFFSET(InputPriceData!C$15,CalculationsAndCharts!$A57+$A$11,IF($C$7,8,0),1,1) -> 44.44 | E57: =OFFSET(InputPriceData!D$15,CalculationsAndCharts!$A57+$A$11,IF($C$7,8,0),1,1) -> 47.17 | F57: =OFFSET(InputPriceData!E$15,CalculationsAndCharts!$A57+$A$11,IF($C$7,8,0),1,1) -> 43 | G57: =OFFSET(InputPriceData!F$15,CalculationsAndCharts!$A57+$A$11,IF($C$7,8,0),1,1) -> 46.31 | H57: 4.17 | I57: 4.86 | J57: 0.69 | K57: 4.86 | L57: 5.811537963 | M57: 28.7412 | N57: 31.1471 | O57: 49.51455 | P57: 9395100 | R57: FALSE | T57: 4.17 | U57: FALSE | V57: FALSE | W57: FALSE | X57: 32.44 | Y57: FALSE | Z57: FALSE | AA57: FALSE | AB57: 52.87 | AC57: FALSE | AD57: =IF(Z57,MAX(X57,D57),NA()) ->  | AF57: =IF(Z57,F57,NA()) ->  | AG57: =IF(AC57,E57,NA()) -> 
A58: 26 | B58: =OFFSET(InputPriceData!B$15,CalculationsAndCharts!$A58+$A$11,0,1,1) -> 2016-02-16 | C58: =OFFSET(InputPriceData!G$15,CalculationsAndCharts!$A58+$A$11,IF($C$7,8,0),1,1) -> 11572900 | D58: =OFFSET(InputPriceData!C$15,CalculationsAndCharts!$A58+$A$11,IF($C$7,8,0),1,1) -> 48.5 | E58: =OFFSET(InputPriceData!D$15,CalculationsAndCharts!$A58+$A$11,IF($C$7,8,0),1,1) -> 52 | F58: =OFFSET(InputPriceData!E$15,CalculationsAndCharts!$A58+$A$11,IF($C$7,8,0),1,1) -> 42.11 | G58: =OFFSET(InputPriceData!F$15,CalculationsAndCharts!$A58+$A$11,IF($C$7,8,0),1,1) -> 42.31 | H58: 9.89 | I58: 4.87 | J58: 14.76 | K58: 14.76 | L58: 5.884733191 | M58: 28.3588 | N58: 30.952 | O58: 49.9035 | Q58: 11572900 | R58: TRUE | S58: 5.884733191 | T58: 9.89 | U58: FALSE | V58: FALSE | W58: FALSE | X58: 32.44 | Y58: FALSE | Z58: FALSE | AA58: FALSE | AB58: 52.87 | AC58: FALSE
A59: 27 | B59: =OFFSET(InputPriceData!B$15,CalculationsAndCharts!$A59+$A$11,0,1,1) -> 2016-02-12 | C59: =OFFSET(InputPriceData!G$15,CalculationsAndCharts!$A59+$A$11,IF($C$7,8,0),1,1) -> 11594500 | D59: =OFFSET(InputPriceData!C$15,CalculationsAndCharts!$A59+$A$11,IF($C$7,8,0),1,1) -> 48.2 | E59: =OFFSET(InputPriceData!D$15,CalculationsAndCharts!$A59+$A$11,IF($C$7,8,0),1,1) -> 56.89 | F59: =OFFSET(InputPriceData!E$15,CalculationsAndCharts!$A59+$A$11,IF($C$7,8,0),1,1) -> 47.65 | G59: =OFFSET(InputPriceData!F$15,CalculationsAndCharts!$A59+$A$11,IF($C$7,8,0),1,1) -> 56.87 | H59: 9.24 | I59: 4.23 | J59: 5.01 | K59: 9.24 | L59: 5.202020359 | M59: 28.0274 | N59: 30.8039 | O59: 50.30195 | P59: 11594500 | R59: TRUE | S59: 5.202020359 | T59: 9.24 | U59: FALSE | V59: FALSE | W59: FALSE | X59: 32.44 | Y59: FALSE | Z59: FALSE | AA59: FALSE | AB59: 52.87 | AC59: FALSE
A60: 28 | B60: =OFFSET(InputPriceData!B$15,CalculationsAndCharts!$A60+$A$11,0,1,1) -> 2016-02-11 | C60: =OFFSET(InputPriceData!G$15,CalculationsAndCharts!$A60+$A$11,IF($C$7,8,0),1,1) -> 14045500 | D60: =OFFSET(InputPriceData!C$15,CalculationsAndCharts!$A60+$A$11,IF($C$7,8,0),1,1) -> 52.44 | E60: =OFFSET(InputPriceData!D$15,CalculationsAndCharts!$A60+$A$11,IF($C$7,8,0),1,1) -> 54.8 | F60: =OFFSET(InputPriceData!E$15,CalculationsAndCharts!$A60+$A$11,IF($C$7,8,0),1,1) -> 48.16 | G60: =OFFSET(InputPriceData!F$15,CalculationsAndCharts!$A60+$A$11,IF($C$7,8,0),1,1) -> 52.66 | H60: 6.64 | I60: 11.4 | J60: 4.76 | K60: 11.4 | L60: 4.891406541 | M60: 27.4466 | N60: 30.5532 | O60: 50.6856 | P60: 14045500 | R60: TRUE | S60: 4.891406541 | T60: 6.64 | U60: FALSE | V60: FALSE | W60: FALSE | X60: 32.44 | Y60: FALSE | Z60: FALSE | AA60: FALSE | AB60: 48.66 | AC60: FALSE
A61: 29 | B61: =OFFSET(InputPriceData!B$15,CalculationsAndCharts!$A61+$A$11,0,1,1) -> 2016-02-10 | C61: =OFFSET(InputPriceData!G$15,CalculationsAndCharts!$A61+$A$11,IF($C$7,8,0),1,1) -> 10654700 | D61: =OFFSET(InputPriceData!C$15,CalculationsAndCharts!$A61+$A$11,IF($C$7,8,0),1,1) -> 40.4 | E61: =OFFSET(InputPriceData!D$15,CalculationsAndCharts!$A61+$A$11,IF($C$7,8,0),1,1) -> 43.5 | F61: =OFFSET(InputPriceData!E$15,CalculationsAndCharts!$A61+$A$11,IF($C$7,8,0),1,1) -> 36.19 | G61: =OFFSET(InputPriceData!F$15,CalculationsAndCharts!$A61+$A$11,IF($C$7,8,0),1,1) -> 43.4 | H61: 7.31 | I61: 2.64 | J61: 4.67 | K61: 7.31 | L61: 4.390745506 | M61: 26.9024 | N61: 30.3776 | O61: 51.0683 | P61: 10654700 | R61: TRUE | S61: 4.390745506 | T61: 7.31 | U61: FALSE | V61: FALSE | W61: FALSE | X61: 32.44 | Y61: FALSE | Z61: FALSE | AA61: FALSE | AB61: 41.96 | AC61: FALSE
A62: 30 | B62: =OFFSET(InputPriceData!B$15,CalculationsAndCharts!$A62+$A$11,0,1,1) -> 2016-02-09 | C62: =OFFSET(InputPriceData!G$15,CalculationsAndCharts!$A62+$A$11,IF($C$7,8,0),1,1) -> 10765500 | D62: =OFFSET(InputPriceData!C$15,CalculationsAndCharts!$A62+$A$11,IF($C$7,8,0),1,1) -> 48.31 | E62: =OFFSET(InputPriceData!D$15,CalculationsAndCharts!$A62+$A$11,IF($C$7,8,0),1,1) -> 48.98 | F62: =OFFSET(InputPriceData!E$15,CalculationsAndCharts!$A62+$A$11,IF($C$7,8,0),1,1) -> 40.63 | G62: =OFFSET(InputPriceData!F$15,CalculationsAndCharts!$A62+$A$11,IF($C$7,8,0),1,1) -> 40.86 | H62: 8.35 | I62: 3.02 | J62: 5.33 | K62: 8.35 | L62: 4.166187467 | M62: 26.5164 | N62: 30.2796 | O62: 51.4328 | Q62: 10765500 | R62: TRUE | S62: 4.166187467 | T62: 8.35 | U62: FALSE | V62: FALSE | W62: FALSE | X62: 32.44 | Y62: FALSE | Z62: FALSE | AA62: FALSE | AB62: 41.96 | AC62: TRUE | AE62: 41.96 | AG62: 48.98
A63: 31 | B63: =OFFSET(InputPriceData!B$15,CalculationsAndCharts!$A63+$A$11,0,1,1) -> 2016-02-08 | C63: =OFFSET(InputPriceData!G$15,CalculationsAndCharts!$A63+$A$11,IF($C$7,8,0),1,1) -> 12842500 | D63: =OFFSET(InputPriceData!C$15,CalculationsAndCharts!$A63+$A$11,IF($C$7,8,0),1,1) -> 46.59 | E63: =OFFSET(InputPriceData!D$15,CalculationsAndCharts!$A63+$A$11,IF($C$7,8,0),1,1) -> 49.54 | F63: =OFFSET(InputPriceData!E$15,CalculationsAndCharts!$A63+$A$11,IF($C$7,8,0),1,1) -> 45.96 | G63: =OFFSET(InputPriceData!F$15,CalculationsAndCharts!$A63+$A$11,IF($C$7,8,0),1,1) -> 45.96 | H63: 3.58 | I63: 6.51 | J63: 2.93 | K63: 6.51 | L63: 3.844355734 | M63: 26.2086 | N63: 30.181 | O63: 51.7765 | Q63: 12842500 | R63: TRUE | S63: 3.844355734 | T63: 3.58 | U63: FALSE | V63: FALSE | W63: FALSE | X63: 32.44 | Y63: FALSE | Z63: FALSE | AA63: TRUE | AB63: 41.96 | AC63: FALSE
A64: 32 | B64: =OFFSET(InputPriceData!B$15,CalculationsAndCharts!$A64+$A$11,0,1,1) -> 2016-02-05 | C64: =OFFSET(InputPriceData!G$15,CalculationsAndCharts!$A64+$A$11,IF($C$7,8,0),1,1) -> 12635700 | D64: =OFFSET(InputPriceData!C$15,CalculationsAndCharts!$A64+$A$11,IF($C$7,8,0),1,1) -> 34.22 | E64: =OFFSET(InputPriceData!D$15,CalculationsAndCharts!$A64+$A$11,IF($C$7,8,0),1,1) -> 43.37 | F64: =OFFSET(InputPriceData!E$15,CalculationsAndCharts!$A64+$A$11,IF($C$7,8,0),1,1) -> 33 | G64: =OFFSET(InputPriceData!F$15,CalculationsAndCharts!$A64+$A$11,IF($C$7,8,0),1,1) -> 43.03 | H64: 10.37 | I64: 6.52 | J64: 3.85 | K64: 10.37 | L64: 3.639306175 | M64: 25.811 | N64: 29.9874 | O64: 52.1287 | P64: 12635700 | R64: TRUE | S64: 3.639306175 | T64: 10.37 | U64: TRUE | V64: FALSE | W64: FALSE | X64: 32.44 | Y64: FALSE | Z64: FALSE | AA64: TRUE | AB64: 39.03 | AC64: FALSE
A65: 33 | B65: =OFFSET(InputPriceData!B$15,CalculationsAndCharts!$A65+$A$11,0,1,1) -> 2016-02-04 | C65: =OFFSET(InputPriceData!G$15,CalculationsAndCharts!$A65+$A$11,IF($C$7,8,0),1,1) -> 13345000 | D65: =OFFSET(InputPriceData!C$15,CalculationsAndCharts!$A65+$A$11,IF($C$7,8,0),1,1) -> 34.63 | E65: =OFFSET(InputPriceData!D$15,CalculationsAndCharts!$A65+$A$11,IF($C$7,8,0),1,1) -> 38.25 | F65: =OFFSET(InputPriceData!E$15,CalculationsAndCharts!$A65+$A$11,IF($C$7,8,0),1,1) -> 34.51 | G65: =OFFSET(InputPriceData!F$15,CalculationsAndCharts!$A65+$A$11,IF($C$7,8,0),1,1) -> 36.85 | H65: 3.74 | I65: 6.44 | J65: 2.7 | K65: 6.44 | L65: 3.121560496 | M65: 25.4206 | N65: 29.8201 | O65: 52.45905 | P65: 13345000 | R65: TRUE | S65: 3.121560496 | T65: 3.74 | U65: FALSE | V65: FALSE | W65: FALSE | X65: 32.44 | Y65: TRUE | Z65: TRUE | AA65: TRUE | AB65: 32.85 | AC65: FALSE | AD65: 34.63 | AF65: 34.51 | AH65: 32.44
A66: 34 | B66: =OFFSET(InputPriceData!B$15,CalculationsAndCharts!$A66+$A$11,0,1,1) -> 2016-02-03 | C66: =OFFSET(InputPriceData!G$15,CalculationsAndCharts!$A66+$A$11,IF($C$7,8,0),1,1) -> 11577000 | D66: =OFFSET(InputPriceData!C$15,CalculationsAndCharts!$A66+$A$11,IF($C$7,8,0),1,1) -> 26.85 | E66: =OFFSET(InputPriceData!D$15,CalculationsAndCharts!$A66+$A$11,IF($C$7,8,0),1,1) -> 31.94 | F66: =OFFSET(InputPriceData!E$15,CalculationsAndCharts!$A66+$A$11,IF($C$7,8,0),1,1) -> 26.84 | G66: =OFFSET(InputPriceData!F$15,CalculationsAndCharts!$A66+$A$11,IF($C$7,8,0),1,1) -> 31.81 | H66: 5.1 | I66: 5.78 | J66: 0.68 | K66: 5.78 | L66: 2.866295919 | M66: 25.1636 | N66: 29.7226 | O66: 52.8778 | P66: 11577000 | R66: TRUE | S66: 2.866295919 | T66: 5.1 | U66: TRUE | V66: TRUE | W66: TRUE | X66: 32.44 | Y66: FALSE | Z66: FALSE | AA66: FALSE | AB66: 501.4 | AC66: FALSE | AH66: 32.44
A67: 35 | B67: =OFFSET(InputPriceData!B$15,CalculationsAndCharts!$A67+$A$11,0,1,1) -> 2016-02-02 | C67: =OFFSET(InputPriceData!G$15,CalculationsAndCharts!$A67+$A$11,IF($C$7,8,0),1,1) -> 5496300 | D67: =OFFSET(InputPriceData!C$15,CalculationsAndCharts!$A67+$A$11,IF($C$7,8,0),1,1) -> 27.17 | E67: =OFFSET(InputPriceData!D$15,CalculationsAndCharts!$A67+$A$11,IF($C$7,8,0),1,1) -> 27.71 | F67: =OFFSET(InputPriceData!E$15,CalculationsAndCharts!$A67+$A$11,IF($C$7,8,0),1,1) -> 25.12 | G67: =OFFSET(InputPriceData!F$15,CalculationsAndCharts!$A67+$A$11,IF($C$7,8,0),1,1) -> 26.16 | H67: 2.59 | I67: 0.29 | J67: 2.88 | K67: 2.88 | L67: 2.642164836 | M67: 25.0678 | N67: 29.6705 | O67: 53.31125 | Q67: 5496300 | R67: FALSE | T67: 2.59 | U67: FALSE | V67: FALSE | W67: FALSE | X67: 49.5 | Y67: FALSE | Z67: FALSE | AA67: FALSE | AB67: 501.4 | AC67: FALSE
A68: 36 | B68: =OFFSET(InputPriceData!B$15,CalculationsAndCharts!$A68+$A$11,0,1,1) -> 2016-02-01 | C68: =OFFSET(InputPriceData!G$15,CalculationsAndCharts!$A68+$A$11,IF($C$7,8,0),1,1) -> 8826100 | D68: =OFFSET(InputPriceData!C$15,CalculationsAndCharts!$A68+$A$11,IF($C$7,8,0),1,1) -> 26.45 | E68: =OFFSET(InputPriceData!D$15,CalculationsAndCharts!$A68+$A$11,IF($C$7,8,0),1,1) -> 28.17 | F68: =OFFSET(InputPriceData!E$15,CalculationsAndCharts!$A68+$A$11,IF($C$7,8,0),1,1) -> 26.26 | G68: =OFFSET(InputPriceData!F$15,CalculationsAndCharts!$A68+$A$11,IF($C$7,8,0),1,1) -> 28 | H68: 1.91 | I68: 2.5 | J68: 0.59 | K68: 2.5 | L68: 2.623869824 | M68: 25.0336 | N68: 29.6769 | O68: 53.76195 | P68: 8826100 | R68: FALSE | T68: 1.91 | U68: FALSE | V68: FALSE | W68: FALSE | X68: 49.5 | Y68: FALSE | Z68: FALSE | AA68: FALSE | AB68: 501.4 | AC68: FALSE
A69: 37 | B69: =OFFSET(InputPriceData!B$15,CalculationsAndCharts!$A69+$A$11,0,1,1) -> 2016-01-29 | C69: =OFFSET(InputPriceData!G$15,CalculationsAndCharts!$A69+$A$11,IF($C$7,8,0),1,1) -> 7012800 | D69: =OFFSET(InputPriceData!C$15,CalculationsAndCharts!$A69+$A$11,IF($C$7,8,0),1,1) -> 23.8 | E69: =OFFSET(InputPriceData!D$15,CalculationsAndCharts!$A69+$A$11,IF($C$7,8,0),1,1) -> 25.87 | F69: =OFFSET(InputPriceData!E$15,CalculationsAndCharts!$A69+$A$11,IF($C$7,8,0),1,1) -> 23.38 | G69: =OFFSET(InputPriceData!F$15,CalculationsAndCharts!$A69+$A$11,IF($C$7,8,0),1,1) -> 25.67 | H69: 2.49 | I69: 1.75 | J69: 0.74 | K69: 2.49 | L69: 2.633398272 | M69: 24.9248 | N69: 29.6889 | O69: 54.20395 | P69: 7012800 | R69: FALSE | T69: 2.49 | U69: FALSE | V69: FALSE | W69: FALSE | X69: 49.5 | Y69: FALSE | Z69: FALSE | AA69: FALSE | AB69: 501.4 | AC69: FALSE
A70: 38 | B70: =OFFSET(InputPriceData!B$15,CalculationsAndCharts!$A70+$A$11,0,1,1) -> 2016-01-28 | C70: =OFFSET(InputPriceData!G$15,CalculationsAndCharts!$A70+$A$11,IF($C$7,8,0),1,1) -> 6485500 | D70: =OFFSET(InputPriceData!C$15,CalculationsAndCharts!$A70+$A$11,IF($C$7,8,0),1,1) -> 24.05 | E70: =OFFSET(InputPriceData!D$15,CalculationsAndCharts!$A70+$A$11,IF($C$7,8,0),1,1) -> 25.75 | F70: =OFFSET(InputPriceData!E$15,CalculationsAndCharts!$A70+$A$11,IF($C$7,8,0),1,1) -> 23.31 | G70: =OFFSET(InputPriceData!F$15,CalculationsAndCharts!$A70+$A$11,IF($C$7,8,0),1,1) -> 24.12 | H70: 2.44 | I70: 0.08 | J70: 2.52 | K70: 2.52 | L70: 2.644428908 | M70: 24.9334 | N70: 29.7172 | O70: 54.6806 | P70: 6485500 | R70: FALSE | T70: 2.44 | U70: FALSE | V70: FALSE | W70: FALSE | X70: 49.5 | Y70: FALSE | Z70: FALSE | AA70: FALSE | AB70: 501.4 | AC70: FALSE
A71: 39 | B71: =OFFSET(InputPriceData!B$15,CalculationsAndCharts!$A71+$A$11,0,1,1) -> 2016-01-27 | C71: =OFFSET(InputPriceData!G$15,CalculationsAndCharts!$A71+$A$11,IF($C$7,8,0),1,1) -> 9250700 | D71: =OFFSET(InputPriceData!C$15,CalculationsAndCharts!$A71+$A$11,IF($C$7,8,0),1,1) -> 24.1 | E71: =OFFSET(InputPriceData!D$15,CalculationsAndCharts!$A71+$A$11,IF($C$7,8,0),1,1) -> 25.9 | F71: =OFFSET(InputPriceData!E$15,CalculationsAndCharts!$A71+$A$11,IF($C$7,8,0),1,1) -> 23.25 | G71: =OFFSET(InputPriceData!F$15,CalculationsAndCharts!$A71+$A$11,IF($C$7,8,0),1,1) -> 25.83 | H71: 2.65 | I71: 1.36 | J71: 1.29 | K71: 2.65 | L71: 2.654000362 | M71: 24.9612 | N71: 29.758 | O71: 55.1185 | P71: 9250700 | R71: FALSE | T71: 2.65 | U71: FALSE | V71: FALSE | W71: FALSE | X71: 49.5 | Y71: FALSE | Z71: FALSE | AA71: FALSE | AB71: 501.4 | AC71: FALSE
A72: 40 | B72: =OFFSET(InputPriceData!B$15,CalculationsAndCharts!$A72+$A$11,0,1,1) -> 2016-01-26 | C72: =OFFSET(InputPriceData!G$15,CalculationsAndCharts!$A72+$A$11,IF($C$7,8,0),1,1) -> 10768000 | D72: =OFFSET(InputPriceData!C$15,CalculationsAndCharts!$A72+$A$11,IF($C$7,8,0),1,1) -> 22.46 | E72: =OFFSET(InputPriceData!D$15,CalculationsAndCharts!$A72+$A$11,IF($C$7,8,0),1,1) -> 24.76 | F72: =OFFSET(InputPriceData!E$15,CalculationsAndCharts!$A72+$A$11,IF($C$7,8,0),1,1) -> 22.43 | G72: =OFFSET(InputPriceData!F$15,CalculationsAndCharts!$A72+$A$11,IF($C$7,8,0),1,1) -> 24.54 | H72: 2.33 | I72: 3.16 | J72: 0.83 | K72: 3.16 | L72: 2.654308082 | M72: 24.9378 | N72: 29.7977 | O72: 55.53335 | P72: 10768000 | R72: FALSE | T72: 2.33 | U72: FALSE | V72: FALSE | W72: FALSE | X72: 49.5 | Y72: FALSE | Z72: FALSE | AA72: FALSE | AB72: 501.4 | AC72: FALSE
A73: 41 | B73: =OFFSET(InputPriceData!B$15,CalculationsAndCharts!$A73+$A$11,0,1,1) -> 2016-01-25 | C73: =OFFSET(InputPriceData!G$15,CalculationsAndCharts!$A73+$A$11,IF($C$7,8,0),1,1) -> 6614400 | D73: =OFFSET(InputPriceData!C$15,CalculationsAndCharts!$A73+$A$11,IF($C$7,8,0),1,1) -> 21.09 | E73: =OFFSET(InputPriceData!D$15,CalculationsAndCharts!$A73+$A$11,IF($C$7,8,0),1,1) -> 21.87 | F73: =OFFSET(InputPriceData!E$15,CalculationsAndCharts!$A73+$A$11,IF($C$7,8,0),1,1) -> 20.75 | G73: =OFFSET(InputPriceData!F$15,CalculationsAndCharts!$A73+$A$11,IF($C$7,8,0),1,1) -> 21.6 | H73: 1.12 | I73: 1.82 | J73: 0.7 | K73: 1.82 | L73: 2.615408704 | M73: 24.9608 | N73: 29.8583 | O73: 55.97215 | P73: 6614400 | R73: FALSE | T73: 1.12 | U73: FALSE | V73: FALSE | W73: FALSE | X73: 49.5 | Y73: FALSE | Z73: FALSE | AA73: FALSE | AB73: 501.4 | AC73: FALSE
A74: 42 | B74: =OFFSET(InputPriceData!B$15,CalculationsAndCharts!$A74+$A$11,0,1,1) -> 2016-01-22 | C74: =OFFSET(InputPriceData!G$15,CalculationsAndCharts!$A74+$A$11,IF($C$7,8,0),1,1) -> 7704600 | D74: =OFFSET(InputPriceData!C$15,CalculationsAndCharts!$A74+$A$11,IF($C$7,8,0),1,1) -> 18.87 | E74: =OFFSET(InputPriceData!D$15,CalculationsAndCharts!$A74+$A$11,IF($C$7,8,0),1,1) -> 20.77 | F74: =OFFSET(InputPriceData!E$15,CalculationsAndCharts!$A74+$A$11,IF($C$7,8,0),1,1) -> 18.6 | G74: =OFFSET(InputPriceData!F$15,CalculationsAndCharts!$A74+$A$11,IF($C$7,8,0),1,1) -> 20.05 | H74: 2.17 | I74: 1.17 | J74: 1 | K74: 2.17 | L74: 2.676593989 | M74: 25.025 | N74: 29.9743 | O74: 56.38265 | P74: 7704600 | R74: FALSE | T74: 2.17 | U74: FALSE | V74: FALSE | W74: FALSE | X74: 49.5 | Y74: FALSE | Z74: FALSE | AA74: FALSE | AB74: 501.4 | AC74: FALSE
A75: 43 | B75: =OFFSET(InputPriceData!B$15,CalculationsAndCharts!$A75+$A$11,0,1,1) -> 2016-01-21 | C75: =OFFSET(InputPriceData!G$15,CalculationsAndCharts!$A75+$A$11,IF($C$7,8,0),1,1) -> 9699900 | D75: =OFFSET(InputPriceData!C$15,CalculationsAndCharts!$A75+$A$11,IF($C$7,8,0),1,1) -> 18.62 | E75: =OFFSET(InputPriceData!D$15,CalculationsAndCharts!$A75+$A$11,IF($C$7,8,0),1,1) -> 19.91 | F75: =OFFSET(InputPriceData!E$15,CalculationsAndCharts!$A75+$A$11,IF($C$7,8,0),1,1) -> 17.55 | G75: =OFFSET(InputPriceData!F$15,CalculationsAndCharts!$A75+$A$11,IF($C$7,8,0),1,1) -> 19.6 | H75: 2.36 | I75: 0.49 | J75: 1.87 | K75: 2.36 | L75: 2.715562757 | M75: 25.1612 | N75: 30.1158 | O75: 56.8139 | P75: 9699900 | R75: FALSE | T75: 2.36 | U75: FALSE | V75: FALSE | W75: FALSE | X75: 49.5 | Y75: FALSE | Z75: FALSE | AA75: FALSE | AB75: 501.4 | AC75: FALSE
A76: 44 | B76: =OFFSET(InputPriceData!B$15,CalculationsAndCharts!$A76+$A$11,0,1,1) -> 2016-01-20 | C76: =OFFSET(InputPriceData!G$15,CalculationsAndCharts!$A76+$A$11,IF($C$7,8,0),1,1) -> 9831500 | D76: =OFFSET(InputPriceData!C$15,CalculationsAndCharts!$A76+$A$11,IF($C$7,8,0),1,1) -> 19.2 | E76: =OFFSET(InputPriceData!D$15,CalculationsAndCharts!$A76+$A$11,IF($C$7,8,0),1,1) -> 19.5 | F76: =OFFSET(InputPriceData!E$15,CalculationsAndCharts!$A76+$A$11,IF($C$7,8,0),1,1) -> 17.92 | G76: =OFFSET(InputPriceData!F$15,CalculationsAndCharts!$A76+$A$11,IF($C$7,8,0),1,1) -> 19.42 | H76: 1.58 | I76: 1.59 | J76: 0.01 | K76: 1.59 | L76: 2.742913739 | M76: 25.269 | N76: 30.2328 | O76: 57.2569 | P76: 9831500 | R76: FALSE | T76: 1.58 | U76: FALSE | V76: FALSE | W76: FALSE | X76: 49.5 | Y76: FALSE | Z76: FALSE | AA76: FALSE | AB76: 501.4 | AC76: FALSE
A77: 45 | B77: =OFFSET(InputPriceData!B$15,CalculationsAndCharts!$A77+$A$11,0,1,1) -> 2016-01-19 | C77: =OFFSET(InputPriceData!G$15,CalculationsAndCharts!$A77+$A$11,IF($C$7,8,0),1,1) -> 15696500 | D77: =OFFSET(InputPriceData!C$15,CalculationsAndCharts!$A77+$A$11,IF($C$7,8,0),1,1) -> 21.19 | E77: =OFFSET(InputPriceData!D$15,CalculationsAndCharts!$A77+$A$11,IF($C$7,8,0),1,1) -> 21.39 | F77: =OFFSET(InputPriceData!E$15,CalculationsAndCharts!$A77+$A$11,IF($C$7,8,0),1,1) -> 17.4 | G77: =OFFSET(InputPriceData!F$15,CalculationsAndCharts!$A77+$A$11,IF($C$7,8,0),1,1) -> 17.91 | H77: 3.99 | I77: 0.7 | J77: 3.29 | K77: 3.99 | L77: 2.831599411 | M77: 25.4554 | N77: 30.3066 | O77: 57.7453 | Q77: 15696500 | R77: TRUE | S77: 2.831599411 | T77: 3.99 | U77: TRUE | V77: FALSE | W77: FALSE | X77: 49.5 | Y77: FALSE | Z77: FALSE | AA77: FALSE | AB77: 501.4 | AC77: FALSE
A78: 46 | B78: =OFFSET(InputPriceData!B$15,CalculationsAndCharts!$A78+$A$11,0,1,1) -> 2016-01-15 | C78: =OFFSET(InputPriceData!G$15,CalculationsAndCharts!$A78+$A$11,IF($C$7,8,0),1,1) -> 9801600 | D78: =OFFSET(InputPriceData!C$15,CalculationsAndCharts!$A78+$A$11,IF($C$7,8,0),1,1) -> 23.1 | E78: =OFFSET(InputPriceData!D$15,CalculationsAndCharts!$A78+$A$11,IF($C$7,8,0),1,1) -> 23.1 | F78: =OFFSET(InputPriceData!E$15,CalculationsAndCharts!$A78+$A$11,IF($C$7,8,0),1,1) -> 20.6 | G78: =OFFSET(InputPriceData!F$15,CalculationsAndCharts!$A78+$A$11,IF($C$7,8,0),1,1) -> 20.69 | H78: 2.5 | I78: 2.12 | J78: 0.38 | K78: 2.5 | L78: 2.742491673 | M78: 25.7392 | N78: 30.4385 | O78: 58.18325 | Q78: 9801600 | R78: FALSE | T78: 2.5 | U78: FALSE | V78: FALSE | W78: FALSE | X78: 49.5 | Y78: FALSE | Z78: FALSE | AA78: FALSE | AB78: 501.4 | AC78: FALSE
A79: 47 | B79: =OFFSET(InputPriceData!B$15,CalculationsAndCharts!$A79+$A$11,0,1,1) -> 2016-01-14 | C79: =OFFSET(InputPriceData!G$15,CalculationsAndCharts!$A79+$A$11,IF($C$7,8,0),1,1) -> 14125500 | D79: =OFFSET(InputPriceData!C$15,CalculationsAndCharts!$A79+$A$11,IF($C$7,8,0),1,1) -> 22.57 | E79: =OFFSET(InputPriceData!D$15,CalculationsAndCharts!$A79+$A$11,IF($C$7,8,0),1,1) -> 23.22 | F79: =OFFSET(InputPriceData!E$15,CalculationsAndCharts!$A79+$A$11,IF($C$7,8,0),1,1) -> 20.26 | G79: =OFFSET(InputPriceData!F$15,CalculationsAndCharts!$A79+$A$11,IF($C$7,8,0),1,1) -> 20.98 | H79: 2.96 | I79: 0.11 | J79: 3.07 | K79: 3.07 | L79: 2.761144879 | M79: 26.0116 | N79: 30.5806 | O79: 58.6248 | Q79: 14125500 | R79: FALSE | T79: 2.96 | U79: FALSE | V79: FALSE | W79: FALSE | X79: 49.5 | Y79: FALSE | Z79: FALSE | AA79: FALSE | AB79: 501.4 | AC79: FALSE
A80: 48 | B80: =OFFSET(InputPriceData!B$15,CalculationsAndCharts!$A80+$A$11,0,1,1) -> 2016-01-13 | C80: =OFFSET(InputPriceData!G$15,CalculationsAndCharts!$A80+$A$11,IF($C$7,8,0),1,1) -> 10265800 | D80: =OFFSET(InputPriceData!C$15,CalculationsAndCharts!$A80+$A$11,IF($C$7,8,0),1,1) -> 23.04 | E80: =OFFSET(InputPriceData!D$15,CalculationsAndCharts!$A80+$A$11,IF($C$7,8,0),1,1) -> 24.3 | F80: =OFFSET(InputPriceData!E$15,CalculationsAndCharts!$A80+$A$11,IF($C$7,8,0),1,1) -> 22.11 | G80: =OFFSET(InputPriceData!F$15,CalculationsAndCharts!$A80+$A$11,IF($C$7,8,0),1,1) -> 23.33 | H80: 2.19 | I80: 0.83 | J80: 1.36 | K80: 2.19 | L80: 2.737386793 | M80: 26.293 | N80: 30.8248 | O80: 58.9909 | P80: 10265800 | R80: FALSE | T80: 2.19 | U80: FALSE | V80: FALSE | W80: FALSE | X80: 49.5 | Y80: FALSE | Z80: FALSE | AA80: FALSE | AB80: 501.4 | AC80: FALSE
A81: 49 | B81: =OFFSET(InputPriceData!B$15,CalculationsAndCharts!$A81+$A$11,0,1,1) -> 2016-01-12 | C81: =OFFSET(InputPriceData!G$15,CalculationsAndCharts!$A81+$A$11,IF($C$7,8,0),1,1) -> 13387400 | D81: =OFFSET(InputPriceData!C$15,CalculationsAndCharts!$A81+$A$11,IF($C$7,8,0),1,1) -> 24.29 | E81: =OFFSET(InputPriceData!D$15,CalculationsAndCharts!$A81+$A$11,IF($C$7,8,0),1,1) -> 24.3 | F81: =OFFSET(InputPriceData!E$15,CalculationsAndCharts!$A81+$A$11,IF($C$7,8,0),1,1) -> 22.1 | G81: =OFFSET(InputPriceData!F$15,CalculationsAndCharts!$A81+$A$11,IF($C$7,8,0),1,1) -> 23.47 | H81: 2.2 | I81: 0.77 | J81: 2.97 | K81: 2.97 | L81: 2.779493469 | M81: 26.5202 | N81: 31.0855 | O81: 59.36375 | Q81: 13387400 | R81: FALSE | T81: 2.2 | U81: FALSE | V81: FALSE | W81: FALSE | X81: 49.5 | Y81: FALSE | Z81: FALSE | AA81: FALSE | AB81: 501.4 | AC81: FALSE
A82: 50 | B82: =OFFSET(InputPriceData!B$15,CalculationsAndCharts!$A82+$A$11,0,1,1) -> 2016-01-11 | C82: =OFFSET(InputPriceData!G$15,CalculationsAndCharts!$A82+$A$11,IF($C$7,8,0),1,1) -> 10236700 | D82: =OFFSET(InputPriceData!C$15,CalculationsAndCharts!$A82+$A$11,IF($C$7,8,0),1,1) -> 28.9 | E82: =OFFSET(InputPriceData!D$15,CalculationsAndCharts!$A82+$A$11,IF($C$7,8,0),1,1) -> 29.08 | F82: =OFFSET(InputPriceData!E$15,CalculationsAndCharts!$A82+$A$11,IF($C$7,8,0),1,1) -> 24.5 | G82: =OFFSET(InputPriceData!F$15,CalculationsAndCharts!$A82+$A$11,IF($C$7,8,0),1,1) -> 25.07 | H82: 4.58 | I82: 0.57 | J82: 4.01 | K82: 4.58 | L82: 2.764839121 | M82: 26.7674 | N82: 31.2888 | O82: 59.7654 | Q82: 10236700 | R82: FALSE | T82: 4.58 | U82: TRUE | V82: FALSE | W82: FALSE | X82: 49.5 | Y82: FALSE | Z82: FALSE | AA82: FALSE | AB82: 501.4 | AC82: FALSE
A83: 51 | B83: =OFFSET(InputPriceData!B$15,CalculationsAndCharts!$A83+$A$11,0,1,1) -> 2016-01-08 | C83: =OFFSET(InputPriceData!G$15,CalculationsAndCharts!$A83+$A$11,IF($C$7,8,0),1,1) -> 7911900 | D83: =OFFSET(InputPriceData!C$15,CalculationsAndCharts!$A83+$A$11,IF($C$7,8,0),1,1) -> 28.34 | E83: =OFFSET(InputPriceData!D$15,CalculationsAndCharts!$A83+$A$11,IF($C$7,8,0),1,1) -> 29.29 | F83: =OFFSET(InputPriceData!E$15,CalculationsAndCharts!$A83+$A$11,IF($C$7,8,0),1,1) -> 27 | G83: =OFFSET(InputPriceData!F$15,CalculationsAndCharts!$A83+$A$11,IF($C$7,8,0),1,1) -> 28.51 | H83: 2.29 | I83: 1.45 | J83: 3.74 | K83: 3.74 | L83: 2.625211361 | M83: 27.0952 | N83: 31.4441 | O83: 60.17905 | P83: 7911900 | R83: FALSE | T83: 2.29 | U83: FALSE | V83: FALSE | W83: FALSE | X83: 49.5 | Y83: FALSE | Z83: FALSE | AA83: FALSE | AB83: 501.4 | AC83: FALSE
A84: 52 | B84: =OFFSET(InputPriceData!B$15,CalculationsAndCharts!$A84+$A$11,0,1,1) -> 2016-01-07 | C84: =OFFSET(InputPriceData!G$15,CalculationsAndCharts!$A84+$A$11,IF($C$7,8,0),1,1) -> 9599000 | D84: =OFFSET(InputPriceData!C$15,CalculationsAndCharts!$A84+$A$11,IF($C$7,8,0),1,1) -> 28.59 | E84: =OFFSET(InputPriceData!D$15,CalculationsAndCharts!$A84+$A$11,IF($C$7,8,0),1,1) -> 31.5 | F84: =OFFSET(InputPriceData!E$15,CalculationsAndCharts!$A84+$A$11,IF($C$7,8,0),1,1) -> 27.92 | G84: =OFFSET(InputPriceData!F$15,CalculationsAndCharts!$A84+$A$11,IF($C$7,8,0),1,1) -> 30.74 | H84: 3.58 | I84: 4.33 | J84: 0.75 | K84: 4.33 | L84: 2.539458388 | M84: 27.3844 | N84: 31.585 | O84: 60.603 | P84: 9599000 | R84: FALSE | T84: 3.58 | U84: TRUE | V84: FALSE | W84: FALSE | X84: 49.5 | Y84: FALSE | Z84: FALSE | AA84: FALSE | AB84: 501.4 | AC84: FALSE
A85: 53 | B85: =OFFSET(InputPriceData!B$15,CalculationsAndCharts!$A85+$A$11,0,1,1) -> 2016-01-06 | C85: =OFFSET(InputPriceData!G$15,CalculationsAndCharts!$A85+$A$11,IF($C$7,8,0),1,1) -> 6599000 | D85: =OFFSET(InputPriceData!C$15,CalculationsAndCharts!$A85+$A$11,IF($C$7,8,0),1,1) -> 27.1 | E85: =OFFSET(InputPriceData!D$15,CalculationsAndCharts!$A85+$A$11,IF($C$7,8,0),1,1) -> 27.72 | F85: =OFFSET(InputPriceData!E$15,CalculationsAndCharts!$A85+$A$11,IF($C$7,8,0),1,1) -> 26.64 | G85: =OFFSET(InputPriceData!F$15,CalculationsAndCharts!$A85+$A$11,IF($C$7,8,0),1,1) -> 27.17 | H85: 1.08 | I85: 1.76 | J85: 0.68 | K85: 1.76 | L85: 2.401724418 | M85: 27.6272 | N85: 31.6616 | O85: 61.0403 | P85: 6599000 | R85: FALSE | T85: 1.08 | U85: FALSE | V85: FALSE | W85: FALSE | X85: 49.5 | Y85: FALSE | Z85: FALSE | AA85: FALSE | AB85: 501.4 | AC85: FALSE
A86: 54 | B86: =OFFSET(InputPriceData!B$15,CalculationsAndCharts!$A86+$A$11,0,1,1) -> 2016-01-05 | C86: =OFFSET(InputPriceData!G$15,CalculationsAndCharts!$A86+$A$11,IF($C$7,8,0),1,1) -> 5233900 | D86: =OFFSET(InputPriceData!C$15,CalculationsAndCharts!$A86+$A$11,IF($C$7,8,0),1,1) -> 26.61 | E86: =OFFSET(InputPriceData!D$15,CalculationsAndCharts!$A86+$A$11,IF($C$7,8,0),1,1) -> 26.65 | F86: =OFFSET(InputPriceData!E$15,CalculationsAndCharts!$A86+$A$11,IF($C$7,8,0),1,1) -> 25.35 | G86: =OFFSET(InputPriceData!F$15,CalculationsAndCharts!$A86+$A$11,IF($C$7,8,0),1,1) -> 25.96 | H86: 1.3 | I86: 0.29 | J86: 1.01 | K86: 1.3 | L86: 2.451087835 | M86: 28.0252 | N86: 31.7899 | O86: 61.50395 | Q86: 5233900 | R86: FALSE | T86: 1.3 | U86: FALSE | V86: FALSE | W86: FALSE | X86: 49.5 | Y86: FALSE | Z86: FALSE | AA86: FALSE | AB86: 501.4 | AC86: FALSE
A87: 55 | B87: =OFFSET(InputPriceData!B$15,CalculationsAndCharts!$A87+$A$11,0,1,1) -> 2016-01-04 | C87: =OFFSET(InputPriceData!G$15,CalculationsAndCharts!$A87+$A$11,IF($C$7,8,0),1,1) -> 9188800 | D87: =OFFSET(InputPriceData!C$15,CalculationsAndCharts!$A87+$A$11,IF($C$7,8,0),1,1) -> 26.48 | E87: =OFFSET(InputPriceData!D$15,CalculationsAndCharts!$A87+$A$11,IF($C$7,8,0),1,1) -> 27.1 | F87: =OFFSET(InputPriceData!E$15,CalculationsAndCharts!$A87+$A$11,IF($C$7,8,0),1,1) -> 25.11 | G87: =OFFSET(InputPriceData!F$15,CalculationsAndCharts!$A87+$A$11,IF($C$7,8,0),1,1) -> 26.36 | H87: 1.99 | I87: 2.82 | J87: 0.83 | K87: 2.82 | L87: 2.539633053 | M87: 28.383 | N87: 32.0043 | O87: 61.93715 | Q87: 9188800 | R87: FALSE | T87: 1.99 | U87: TRUE | V87: FALSE | W87: FALSE | X87: 49.5 | Y87: FALSE | Z87: FALSE | AA87: FALSE | AB87: 501.4 | AC87: FALSE
A88: 56 | B88: =OFFSET(InputPriceData!B$15,CalculationsAndCharts!$A88+$A$11,0,1,1) -> 2015-12-31 | C88: =OFFSET(InputPriceData!G$15,CalculationsAndCharts!$A88+$A$11,IF($C$7,8,0),1,1) -> 5055300 | D88: =OFFSET(InputPriceData!C$15,CalculationsAndCharts!$A88+$A$11,IF($C$7,8,0),1,1) -> 24.02 | E88: =OFFSET(InputPriceData!D$15,CalculationsAndCharts!$A88+$A$11,IF($C$7,8,0),1,1) -> 24.48 | F88: =OFFSET(InputPriceData!E$15,CalculationsAndCharts!$A88+$A$11,IF($C$7,8,0),1,1) -> 23.76 | G88: =OFFSET(InputPriceData!F$15,CalculationsAndCharts!$A88+$A$11,IF($C$7,8,0),1,1) -> 24.28 | H88: 0.72 | I88: 0.4 | J88: 0.32 | K88: 0.72 | L88: 2.518066365 | M88: 28.6904 | N88: 32.1367 | O88: 62.31685 | P88: 5055300 | R88: FALSE | T88: 0.72 | U88: FALSE | V88: FALSE | W88: FALSE | X88: 49.5 | Y88: FALSE | Z88: FALSE | AA88: FALSE | AB88: 501.4 | AC88: FALSE
A89: 57 | B89: =OFFSET(InputPriceData!B$15,CalculationsAndCharts!$A89+$A$11,0,1,1) -> 2015-12-30 | C89: =OFFSET(InputPriceData!G$15,CalculationsAndCharts!$A89+$A$11,IF($C$7,8,0),1,1) -> 5655000 | D89: =OFFSET(InputPriceData!C$15,CalculationsAndCharts!$A89+$A$11,IF($C$7,8,0),1,1) -> 24.17 | E89: =OFFSET(InputPriceData!D$15,CalculationsAndCharts!$A89+$A$11,IF($C$7,8,0),1,1) -> 24.5 | F89: =OFFSET(InputPriceData!E$15,CalculationsAndCharts!$A89+$A$11,IF($C$7,8,0),1,1) -> 23.6 | G89: =OFFSET(InputPriceData!F$15,CalculationsAndCharts!$A89+$A$11,IF($C$7,8,0),1,1) -> 24.08 | H89: 0.9 | I89: 1.1 | J89: 2 | K89: 2 | L89: 2.656379162 | M89: 29.1168 | N89: 32.2689 | O89: 62.71795 | Q89: 5655000 | R89: FALSE | T89: 0.9 | U89: FALSE | V89: FALSE | W89: FALSE | X89: 49.5 | Y89: FALSE | Z89: FALSE | AA89: FALSE | AB89: 501.4 | AC89: FALSE
A90: 58 | B90: =OFFSET(InputPriceData!B$15,CalculationsAndCharts!$A90+$A$11,0,1,1) -> 2015-12-29 | C90: =OFFSET(InputPriceData!G$15,CalculationsAndCharts!$A90+$A$11,IF($C$7,8,0),1,1) -> 4980100 | D90: =OFFSET(InputPriceData!C$15,CalculationsAndCharts!$A90+$A$11,IF($C$7,8,0),1,1) -> 25.82 | E90: =OFFSET(InputPriceData!D$15,CalculationsAndCharts!$A90+$A$11,IF($C$7,8,0),1,1) -> 26.15 | F90: =OFFSET(InputPriceData!E$15,CalculationsAndCharts!$A90+$A$11,IF($C$7,8,0),1,1) -> 24.81 | G90: =OFFSET(InputPriceData!F$15,CalculationsAndCharts!$A90+$A$11,IF($C$7,8,0),1,1) -> 25.6 | H90: 1.34 | I90: 1.16 | J90: 0.18 | K90: 1.34 | L90: 2.706869867 | M90: 29.4564 | N90: 32.3431 | O90: 63.05055 | Q90: 4980100 | R90: FALSE | T90: 1.34 | U90: FALSE | V90: FALSE | W90: FALSE | X90: 49.5 | Y90: FALSE | Z90: FALSE | AA90: FALSE | AB90: 501.4 | AC90: FALSE
A91: 59 | B91: =OFFSET(InputPriceData!B$15,CalculationsAndCharts!$A91+$A$11,0,1,1) -> 2015-12-28 | C91: =OFFSET(InputPriceData!G$15,CalculationsAndCharts!$A91+$A$11,IF($C$7,8,0),1,1) -> 6372300 | D91: =OFFSET(InputPriceData!C$15,CalculationsAndCharts!$A91+$A$11,IF($C$7,8,0),1,1) -> 26.15 | E91: =OFFSET(InputPriceData!D$15,CalculationsAndCharts!$A91+$A$11,IF($C$7,8,0),1,1) -> 26.23 | F91: =OFFSET(InputPriceData!E$15,CalculationsAndCharts!$A91+$A$11,IF($C$7,8,0),1,1) -> 24.17 | G91: =OFFSET(InputPriceData!F$15,CalculationsAndCharts!$A91+$A$11,IF($C$7,8,0),1,1) -> 24.99 | H91: 2.06 | I91: 1.33 | J91: 3.39 | K91: 3.39 | L91: 2.812013703 | M91: 29.8792 | N91: 32.4011 | O91: 63.39005 | Q91: 6372300 | R91: FALSE | T91: 2.06 | U91: TRUE | V91: FALSE | W91: FALSE | X91: 49.5 | Y91: FALSE | Z91: FALSE | AA91: FALSE | AB91: 501.4 | AC91: FALSE
A92: 60 | B92: =OFFSET(InputPriceData!B$15,CalculationsAndCharts!$A92+$A$11,0,1,1) -> 2015-12-24 | C92: =OFFSET(InputPriceData!G$15,CalculationsAndCharts!$A92+$A$11,IF($C$7,8,0),1,1) -> 4671300 | D92: =OFFSET(InputPriceData!C$15,CalculationsAndCharts!$A92+$A$11,IF($C$7,8,0),1,1) -> 26.51 | E92: =OFFSET(InputPriceData!D$15,CalculationsAndCharts!$A92+$A$11,IF($C$7,8,0),1,1) -> 27.64 | F92: =OFFSET(InputPriceData!E$15,CalculationsAndCharts!$A92+$A$11,IF($C$7,8,0),1,1) -> 26.35 | G92: =OFFSET(InputPriceData!F$15,CalculationsAndCharts!$A92+$A$11,IF($C$7,8,0),1,1) -> 27.56 | H92: 1.29 | I92: 1.69 | J92: 0.4 | K92: 1.69 | L92: 2.767553219 | M92: 30.405 | N92: 32.4442 | O92: 63.7306 | P92: 4671300 | R92: FALSE | T92: 1.29 | U92: FALSE | V92: FALSE | W92: FALSE | X92: 49.5 | Y92: FALSE | Z92: FALSE | AA92: FALSE | AB92: 501.4 | AC92: FALSE
A93: 61 | B93: =OFFSET(InputPriceData!B$15,CalculationsAndCharts!$A93+$A$11,0,1,1) -> 2015-12-23 | C93: =OFFSET(InputPriceData!G$15,CalculationsAndCharts!$A93+$A$11,IF($C$7,8,0),1,1) -> 5015600 | D93: =OFFSET(InputPriceData!C$15,CalculationsAndCharts!$A93+$A$11,IF($C$7,8,0),1,1) -> 24.89 | E93: =OFFSET(InputPriceData!D$15,CalculationsAndCharts!$A93+$A$11,IF($C$7,8,0),1,1) -> 25.96 | F93: =OFFSET(InputPriceData!E$15,CalculationsAndCharts!$A93+$A$11,IF($C$7,8,0),1,1) -> 24.72 | G93: =OFFSET(InputPriceData!F$15,CalculationsAndCharts!$A93+$A$11,IF($C$7,8,0),1,1) -> 25.95 | H93: 1.24 | I93: 1.57 | J93: 0.33 | K93: 1.57 | L93: 2.850441928 | M93: 30.8776 | N93: 32.4776 | O93: 64.0588 | P93: 5015600 | R93: FALSE | T93: 1.24 | U93: FALSE | V93: FALSE | W93: FALSE | X93: 49.5 | Y93: FALSE | Z93: FALSE | AA93: FALSE | AB93: 501.4 | AC93: FALSE
A94: 62 | B94: =OFFSET(InputPriceData!B$15,CalculationsAndCharts!$A94+$A$11,0,1,1) -> 2015-12-22 | C94: =OFFSET(InputPriceData!G$15,CalculationsAndCharts!$A94+$A$11,IF($C$7,8,0),1,1) -> 5368400 | D94: =OFFSET(InputPriceData!C$15,CalculationsAndCharts!$A94+$A$11,IF($C$7,8,0),1,1) -> 24.59 | E94: =OFFSET(InputPriceData!D$15,CalculationsAndCharts!$A94+$A$11,IF($C$7,8,0),1,1) -> 25.68 | F94: =OFFSET(InputPriceData!E$15,CalculationsAndCharts!$A94+$A$11,IF($C$7,8,0),1,1) -> 24.1 | G94: =OFFSET(InputPriceData!F$15,CalculationsAndCharts!$A94+$A$11,IF($C$7,8,0),1,1) -> 24.39 | H94: 1.58 | I94: 0.85 | J94: 0.73 | K94: 1.58 | L94: 2.948937461 | M94: 31.2198 | N94: 32.5281 | O94: 64.40405 | Q94: 5368400 | R94: FALSE | T94: 1.58 | U94: FALSE | V94: FALSE | W94: FALSE | X94: 49.5 | Y94: FALSE | Z94: FALSE | AA94: FALSE | AB94: 501.4 | AC94: FALSE
A95: 63 | B95: =OFFSET(InputPriceData!B$15,CalculationsAndCharts!$A95+$A$11,0,1,1) -> 2015-12-21 | C95: =OFFSET(InputPriceData!G$15,CalculationsAndCharts!$A95+$A$11,IF($C$7,8,0),1,1) -> 7146100 | D95: =OFFSET(InputPriceData!C$15,CalculationsAndCharts!$A95+$A$11,IF($C$7,8,0),1,1) -> 25.03 | E95: =OFFSET(InputPriceData!D$15,CalculationsAndCharts!$A95+$A$11,IF($C$7,8,0),1,1) -> 25.5 | F95: =OFFSET(InputPriceData!E$15,CalculationsAndCharts!$A95+$A$11,IF($C$7,8,0),1,1) -> 24.24 | G95: =OFFSET(InputPriceData!F$15,CalculationsAndCharts!$A95+$A$11,IF($C$7,8,0),1,1) -> 24.83 | H95: 1.26 | I95: 2.02 | J95: 0.76 | K95: 2.02 | L95: 3.054240342 | M95: 31.579 | N95: 32.6272 | O95: 64.7181 | Q95: 7146100 | R95: FALSE | T95: 1.26 | U95: FALSE | V95: FALSE | W95: FALSE | X95: 49.5 | Y95: FALSE | Z95: FALSE | AA95: FALSE | AB95: 501.4 | AC95: FALSE
A96: 64 | B96: =OFFSET(InputPriceData!B$15,CalculationsAndCharts!$A96+$A$11,0,1,1) -> 2015-12-18 | C96: =OFFSET(InputPriceData!G$15,CalculationsAndCharts!$A96+$A$11,IF($C$7,8,0),1,1) -> 10207400 | D96: =OFFSET(InputPriceData!C$15,CalculationsAndCharts!$A96+$A$11,IF($C$7,8,0),1,1) -> 23.21 | E96: =OFFSET(InputPriceData!D$15,CalculationsAndCharts!$A96+$A$11,IF($C$7,8,0),1,1) -> 24.5 | F96: =OFFSET(InputPriceData!E$15,CalculationsAndCharts!$A96+$A$11,IF($C$7,8,0),1,1) -> 22.81 | G96: =OFFSET(InputPriceData!F$15,CalculationsAndCharts!$A96+$A$11,IF($C$7,8,0),1,1) -> 23.48 | H96: 1.69 | I96: 2.38 | J96: 0.69 | K96: 2.38 | L96: 3.133797292 | M96: 32.0082 | N96: 32.7039 | O96: 65.05095 | P96: 10207400 | R96: FALSE | T96: 1.69 | U96: FALSE | V96: FALSE | W96: FALSE | X96: 49.5 | Y96: FALSE | Z96: FALSE | AA96: FALSE | AB96: 501.4 | AC96: FALSE
A97: 65 | B97: =OFFSET(InputPriceData!B$15,CalculationsAndCharts!$A97+$A$11,0,1,1) -> 2015-12-17 | C97: =OFFSET(InputPriceData!G$15,CalculationsAndCharts!$A97+$A$11,IF($C$7,8,0),1,1) -> 13314900 | D97: =OFFSET(InputPriceData!C$15,CalculationsAndCharts!$A97+$A$11,IF($C$7,8,0),1,1) -> 24.06 | E97: =OFFSET(InputPriceData!D$15,CalculationsAndCharts!$A97+$A$11,IF($C$7,8,0),1,1) -> 24.1 | F97: =OFFSET(InputPriceData!E$15,CalculationsAndCharts!$A97+$A$11,IF($C$7,8,0),1,1) -> 22 | G97: =OFFSET(InputPriceData!F$15,CalculationsAndCharts!$A97+$A$11,IF($C$7,8,0),1,1) -> 22.12 | H97: 2.1 | I97: 2.72 | J97: 4.82 | K97: 4.82 | L97: =IF(A97>$A$8,0,IF(A97>=($A$8-$A$16),AVERAGE(OFFSET(K97,0,0,($A$8-A97+1),1)),(L98*$C$16)+K97*$D$16)) -> 3.191781699 | M97: 32.3362 | N97: 32.8291 | O97: 65.44955 | Q97: 13314900 | R97: FALSE | T97: 2.1 | U97: =IF(A97>=$A$8,FALSE,T97>=$A$21*AVERAGE(OFFSET(T98,0,0,$C$21,1))) -> FALSE | V97: FALSE | W97: FALSE | X97: =IF(W97,E97+$E$18,X98) -> 49.5 | Y97: FALSE | Z97: FALSE | AA97: FALSE | AB97: =IF(Z97,G97-$E$19,MAX(AB98,G97-$E$19)) -> 501.4 | AC97: FALSE
A98: 66 | B98: =OFFSET(InputPriceData!B$15,CalculationsAndCharts!$A98+$A$11,0,1,1) -> 2015-12-16 | C98: =OFFSET(InputPriceData!G$15,CalculationsAndCharts!$A98+$A$11,IF($C$7,8,0),1,1) -> 11777200 | D98: =OFFSET(InputPriceData!C$15,CalculationsAndCharts!$A98+$A$11,IF($C$7,8,0),1,1) -> 25.57 | E98: =OFFSET(InputPriceData!D$15,CalculationsAndCharts!$A98+$A$11,IF($C$7,8,0),1,1) -> 27.22 | F98: =OFFSET(InputPriceData!E$15,CalculationsAndCharts!$A98+$A$11,IF($C$7,8,0),1,1) -> 24.21 | G98: =OFFSET(InputPriceData!F$15,CalculationsAndCharts!$A98+$A$11,IF($C$7,8,0),1,1) -> 26.82 | H98: 3.01 | I98: 3.2 | J98: 0.19 | K98: 3.2 | L98: 3.066534137 | M98: =AVERAGE(OFFSET($G98,0,0,$A$17,1)) -> 32.7236 | N98: =AVERAGE(OFFSET($G98,0,0,$A$18,1)) -> 32.9519 | O98: =AVERAGE(OFFSET($G98,0,0,$A$19,1)) -> 65.99645 | P98: =IF(G98>=D98,C98,NA()) -> 11777200 | Q98: =IF(G98<D98,C98,NA()) ->  | R98: =IF(A98>=$A$8,FALSE,L98=MAX(OFFSET(L98,0,0,$A$16,1))) -> FALSE | T98: 3.01 | U98: FALSE | V98: =IF(A98>=$A$8,FALSE,AND(E98>N98,E99<=N99)) -> FALSE | W98: =AND(R98,U98,V98) -> FALSE | X98: 49.5 | Y98: =IF(A98>=$A$8,FALSE,IF(AND(W99,NOT(AA99)),IF(G98<N98,FALSE,TRUE),IF(Z99,FALSE,Y99))) -> FALSE | Z98: =IF(A98>=$A$8,FALSE,AND(Y98,E98>X98,NOT(AA99))) -> FALSE | AA98: =IF(A98>=$A$8,FALSE,IF(Z98,TRUE,IF(AC98,FALSE,IF(AA99="",FALSE,AA99)))) -> FALSE | AB98: 501.4 | AC98: =IF(A98>=$A$8,FALSE,AND(AA99,F98<AB99)) -> FALSE | AE98: =IF(AC98,IF(E98<AB98,D98,IF( D98< AB98,D98,AB98)),NA()) ->  | AH98: =IF(OR(W98,Y98),X98,NA()) -> 
A99: 67 | B99: =OFFSET(InputPriceData!B$15,CalculationsAndCharts!$A99+$A$11,0,1,1) -> 2015-12-15 | C99: =OFFSET(InputPriceData!G$15,CalculationsAndCharts!$A99+$A$11,IF($C$7,8,0),1,1) -> 6012300 | D99: =OFFSET(InputPriceData!C$15,CalculationsAndCharts!$A99+$A$11,IF($C$7,8,0),1,1) -> 24.49 | E99: =OFFSET(InputPriceData!D$15,CalculationsAndCharts!$A99+$A$11,IF($C$7,8,0),1,1) -> 25 | F99: =OFFSET(InputPriceData!E$15,CalculationsAndCharts!$A99+$A$11,IF($C$7,8,0),1,1) -> 23.41 | G99: =OFFSET(InputPriceData!F$15,CalculationsAndCharts!$A99+$A$11,IF($C$7,8,0),1,1) -> 24.02 | H99: 1.59 | I99: 1.17 | J99: 0.42 | K99: 1.59 | L99: 3.056267532 | M99: 33.0262 | N99: 33.0157 | O99: 66.51535 | Q99: 6012300 | R99: FALSE | T99: 1.59 | U99: FALSE | V99: FALSE | W99: FALSE | X99: 49.5 | Y99: FALSE | Z99: FALSE | AA99: FALSE | AB99: 501.4 | AC99: FALSE
A100: 68 | B100: =OFFSET(InputPriceData!B$15,CalculationsAndCharts!$A100+$A$11,0,1,1) -> 2015-12-14 | C100: =OFFSET(InputPriceData!G$15,CalculationsAndCharts!$A100+$A$11,IF($C$7,8,0),1,1) -> 11953800 | D100: =OFFSET(InputPriceData!C$15,CalculationsAndCharts!$A100+$A$11,IF($C$7,8,0),1,1) -> 27.91 | E100: =OFFSET(InputPriceData!D$15,CalculationsAndCharts!$A100+$A$11,IF($C$7,8,0),1,1) -> 28.18 | F100: =OFFSET(InputPriceData!E$15,CalculationsAndCharts!$A100+$A$11,IF($C$7,8,0),1,1) -> 23.8 | G100: =OFFSET(InputPriceData!F$15,CalculationsAndCharts!$A100+$A$11,IF($C$7,8,0),1,1) -> 23.83 | H100: 4.38 | I100: 0.26 | J100: 4.64 | K100: 4.64 | L100: 3.169057342 | M100: 33.3008 | N100: 33.1495 | O100: 67.08475 | Q100: 11953800 | R100: FALSE | S100: =IF(R100,L100,NA()) ->  | T100: =E100-F100 -> 4.38 | U100: TRUE | V100: FALSE | W100: FALSE | X100: 49.5 | Y100: FALSE | Z100: FALSE | AA100: FALSE | AB100: 501.4 | AC100: FALSE
A101: 69 | B101: =OFFSET(InputPriceData!B$15,CalculationsAndCharts!$A101+$A$11,0,1,1) -> 2015-12-11 | C101: =OFFSET(InputPriceData!G$15,CalculationsAndCharts!$A101+$A$11,IF($C$7,8,0),1,1) -> 7855100 | D101: =OFFSET(InputPriceData!C$15,CalculationsAndCharts!$A101+$A$11,IF($C$7,8,0),1,1) -> 26.55 | E101: =OFFSET(InputPriceData!D$15,CalculationsAndCharts!$A101+$A$11,IF($C$7,8,0),1,1) -> 29.36 | F101: =OFFSET(InputPriceData!E$15,CalculationsAndCharts!$A101+$A$11,IF($C$7,8,0),1,1) -> 26.48 | G101: =OFFSET(InputPriceData!F$15,CalculationsAndCharts!$A101+$A$11,IF($C$7,8,0),1,1) -> 28.44 | H101: =E101-F101 -> 2.88 | I101: =IF(A101>=$A$8,0,ABS(E101-G102)) -> 1.73 | J101: =IF(A101>=$A$8,0,ABS(F101-G102)) -> 1.15 | K101: =MAX(H101:J101) -> 2.88 | L101: 3.055907907 | M101: 33.4924 | N101: 33.2512 | O101: 67.6921 | P101: 7855100 | R101: FALSE | T101: 2.88 | U101: FALSE | V101: FALSE | W101: FALSE | X101: 49.5 | Y101: FALSE | Z101: FALSE | AA101: FALSE | AB101: 501.4 | AC101: FALSE
A102: 70 | B102: =OFFSET(InputPriceData!B$15,CalculationsAndCharts!$A102+$A$11,0,1,1) -> 2015-12-10 | C102: =OFFSET(InputPriceData!G$15,CalculationsAndCharts!$A102+$A$11,IF($C$7,8,0),1,1) -> 4308200 | D102: =OFFSET(InputPriceData!C$15,CalculationsAndCharts!$A102+$A$11,IF($C$7,8,0),1,1) -> 27.27 | E102: =OFFSET(InputPriceData!D$15,CalculationsAndCharts!$A102+$A$11,IF($C$7,8,0),1,1) -> 28.99 | F102: =OFFSET(InputPriceData!E$15,CalculationsAndCharts!$A102+$A$11,IF($C$7,8,0),1,1) -> 27.06 | G102: =OFFSET(InputPriceData!F$15,CalculationsAndCharts!$A102+$A$11,IF($C$7,8,0),1,1) -> 27.63 | H102: 1.93 | I102: 1.1 | J102: 0.83 | K102: 1.93 | L102: 3.069439285 | M102: 33.4636 | N102: 33.3408 | O102: 68.3334 | P102: 4308200 | R102: FALSE | T102: 1.93 | U102: FALSE | V102: FALSE | W102: FALSE | X102: 49.5 | Y102: FALSE | Z102: FALSE | AA102: FALSE | AB102: 501.4 | AC102: FALSE
A103: 71 | B103: =OFFSET(InputPriceData!B$15,CalculationsAndCharts!$A103+$A$11,0,1,1) -> 2015-12-09 | C103: =OFFSET(InputPriceData!G$15,CalculationsAndCharts!$A103+$A$11,IF($C$7,8,0),1,1) -> 8664100 | D103: =OFFSET(InputPriceData!C$15,CalculationsAndCharts!$A103+$A$11,IF($C$7,8,0),1,1) -> 28.66 | E103: =OFFSET(InputPriceData!D$15,CalculationsAndCharts!$A103+$A$11,IF($C$7,8,0),1,1) -> 29.34 | F103: =OFFSET(InputPriceData!E$15,CalculationsAndCharts!$A103+$A$11,IF($C$7,8,0),1,1) -> 26.92 | G103: =OFFSET(InputPriceData!F$15,CalculationsAndCharts!$A103+$A$11,IF($C$7,8,0),1,1) -> 27.89 | H103: 2.42 | I103: 2.4 | J103: 0.02 | K103: 2.42 | L103: 3.157088461 | M103: 33.487 | N103: 33.4415 | O103: 68.94525 | Q103: 8664100 | R103: FALSE | T103: 2.42 | U103: FALSE | V103: FALSE | W103: FALSE | X103: 49.5 | Y103: FALSE | Z103: FALSE | AA103: FALSE | AB103: 501.4 | AC103: FALSE
A104: 72 | B104: =OFFSET(InputPriceData!B$15,CalculationsAndCharts!$A104+$A$11,0,1,1) -> 2015-12-08 | C104: =OFFSET(InputPriceData!G$15,CalculationsAndCharts!$A104+$A$11,IF($C$7,8,0),1,1) -> 8374500 | D104: =OFFSET(InputPriceData!C$15,CalculationsAndCharts!$A104+$A$11,IF($C$7,8,0),1,1) -> 27.88 | E104: =OFFSET(InputPriceData!D$15,CalculationsAndCharts!$A104+$A$11,IF($C$7,8,0),1,1) -> 28.15 | F104: =OFFSET(InputPriceData!E$15,CalculationsAndCharts!$A104+$A$11,IF($C$7,8,0),1,1) -> 26.01 | G104: =OFFSET(InputPriceData!F$15,CalculationsAndCharts!$A104+$A$11,IF($C$7,8,0),1,1) -> 26.94 | H104: 2.14 | I104: 0.6 | J104: 1.54 | K104: 2.14 | L104: 3.213787573 | M104: 33.4712 | N104: 33.5226 | O104: 69.5398 | Q104: 8374500 | R104: FALSE | T104: 2.14 | U104: FALSE | V104: FALSE | W104: FALSE | X104: 49.5 | Y104: FALSE | Z104: FALSE | AA104: FALSE | AB104: 501.4 | AC104: FALSE
A105: 73 | B105: =OFFSET(InputPriceData!B$15,CalculationsAndCharts!$A105+$A$11,0,1,1) -> 2015-12-07 | C105: =OFFSET(InputPriceData!G$15,CalculationsAndCharts!$A105+$A$11,IF($C$7,8,0),1,1) -> 8735500 | D105: =OFFSET(InputPriceData!C$15,CalculationsAndCharts!$A105+$A$11,IF($C$7,8,0),1,1) -> 30.23 | E105: =OFFSET(InputPriceData!D$15,CalculationsAndCharts!$A105+$A$11,IF($C$7,8,0),1,1) -> 30.46 | F105: =OFFSET(InputPriceData!E$15,CalculationsAndCharts!$A105+$A$11,IF($C$7,8,0),1,1) -> 26.68 | G105: =OFFSET(InputPriceData!F$15,CalculationsAndCharts!$A105+$A$11,IF($C$7,8,0),1,1) -> 27.55 | H105: 3.78 | I105: 0.96 | J105: 4.74 | K105: 4.74 | L105: 3.296386617 | M105: 33.4684 | N105: 33.7742 | O105: 70.0991 | Q105: 8735500 | R105: FALSE | T105: 3.78 | U105: FALSE | V105: FALSE | W105: FALSE | X105: 49.5 | Y105: FALSE | Z105: FALSE | AA105: FALSE | AB105: 501.4 | AC105: FALSE
A106: 74 | B106: =OFFSET(InputPriceData!B$15,CalculationsAndCharts!$A106+$A$11,0,1,1) -> 2015-12-04 | C106: =OFFSET(InputPriceData!G$15,CalculationsAndCharts!$A106+$A$11,IF($C$7,8,0),1,1) -> 11727300 | D106: =OFFSET(InputPriceData!C$15,CalculationsAndCharts!$A106+$A$11,IF($C$7,8,0),1,1) -> 28.14 | E106: =OFFSET(InputPriceData!D$15,CalculationsAndCharts!$A106+$A$11,IF($C$7,8,0),1,1) -> 31.7 | F106: =OFFSET(InputPriceData!E$15,CalculationsAndCharts!$A106+$A$11,IF($C$7,8,0),1,1) -> 28.1 | G106: =OFFSET(InputPriceData!F$15,CalculationsAndCharts!$A106+$A$11,IF($C$7,8,0),1,1) -> 31.42 | H106: 3.6 | I106: 4.51 | J106: 0.91 | K106: 4.51 | L106: 3.185339434 | M106: 33.5354 | N106: 34.0997 | O106: 70.66935 | P106: 11727300 | R106: FALSE | T106: 3.6 | U106: TRUE | V106: FALSE | W106: FALSE | X106: 49.5 | Y106: FALSE | Z106: FALSE | AA106: FALSE | AB106: 501.4 | AC106: FALSE
A107: 75 | B107: =OFFSET(InputPriceData!B$15,CalculationsAndCharts!$A107+$A$11,0,1,1) -> 2015-12-03 | C107: =OFFSET(InputPriceData!G$15,CalculationsAndCharts!$A107+$A$11,IF($C$7,8,0),1,1) -> 7496700 | D107: =OFFSET(InputPriceData!C$15,CalculationsAndCharts!$A107+$A$11,IF($C$7,8,0),1,1) -> 26.94 | E107: =OFFSET(InputPriceData!D$15,CalculationsAndCharts!$A107+$A$11,IF($C$7,8,0),1,1) -> 27.92 | F107: =OFFSET(InputPriceData!E$15,CalculationsAndCharts!$A107+$A$11,IF($C$7,8,0),1,1) -> 26.02 | G107: =OFFSET(InputPriceData!F$15,CalculationsAndCharts!$A107+$A$11,IF($C$7,8,0),1,1) -> 27.19 | H107: 1.9 | I107: 2.18 | J107: 0.28 | K107: 2.18 | L107: 3.083442467 | M107: 33.553 | N107: 34.4065 | O107: 71.21175 | P107: 7496700 | R107: FALSE | T107: 1.9 | U107: FALSE | V107: FALSE | W107: FALSE | X107: 49.5 | Y107: FALSE | Z107: FALSE | AA107: FALSE | AB107: 501.4 | AC107: FALSE
A108: 76 | B108: =OFFSET(InputPriceData!B$15,CalculationsAndCharts!$A108+$A$11,0,1,1) -> 2015-12-02 | C108: =OFFSET(InputPriceData!G$15,CalculationsAndCharts!$A108+$A$11,IF($C$7,8,0),1,1) -> 8121500 | D108: =OFFSET(InputPriceData!C$15,CalculationsAndCharts!$A108+$A$11,IF($C$7,8,0),1,1) -> 25.8 | E108: =OFFSET(InputPriceData!D$15,CalculationsAndCharts!$A108+$A$11,IF($C$7,8,0),1,1) -> 26.95 | F108: =OFFSET(InputPriceData!E$15,CalculationsAndCharts!$A108+$A$11,IF($C$7,8,0),1,1) -> 24.68 | G108: =OFFSET(InputPriceData!F$15,CalculationsAndCharts!$A108+$A$11,IF($C$7,8,0),1,1) -> 25.74 | H108: 2.27 | I108: 0.88 | J108: 3.15 | K108: 3.15 | L108: 3.152938041 | M108: 33.5452 | N108: 34.7976 | O108: 71.7863 | Q108: 8121500 | R108: FALSE | T108: 2.27 | U108: FALSE | V108: FALSE | W108: FALSE | X108: 49.5 | Y108: FALSE | Z108: FALSE | AA108: FALSE | AB108: 501.4 | AC108: FALSE
A109: 77 | B109: =OFFSET(InputPriceData!B$15,CalculationsAndCharts!$A109+$A$11,0,1,1) -> 2015-12-01 | C109: =OFFSET(InputPriceData!G$15,CalculationsAndCharts!$A109+$A$11,IF($C$7,8,0),1,1) -> 7624100 | D109: =OFFSET(InputPriceData!C$15,CalculationsAndCharts!$A109+$A$11,IF($C$7,8,0),1,1) -> 26.09 | E109: =OFFSET(InputPriceData!D$15,CalculationsAndCharts!$A109+$A$11,IF($C$7,8,0),1,1) -> 28 | F109: =OFFSET(InputPriceData!E$15,CalculationsAndCharts!$A109+$A$11,IF($C$7,8,0),1,1) -> 25.17 | G109: =OFFSET(InputPriceData!F$15,CalculationsAndCharts!$A109+$A$11,IF($C$7,8,0),1,1) -> 27.83 | H109: 2.83 | I109: 2.55 | J109: 0.28 | K109: 2.83 | L109: 3.153164045 | M109: 33.5804 | N109: 35.2172 | O109: 72.4191 | P109: 7624100 | R109: FALSE | T109: 2.83 | U109: TRUE | V109: FALSE | W109: FALSE | X109: 49.5 | Y109: FALSE | Z109: FALSE | AA109: FALSE | AB109: 501.4 | AC109: FALSE
A110: 78 | B110: =OFFSET(InputPriceData!B$15,CalculationsAndCharts!$A110+$A$11,0,1,1) -> 2015-11-30 | C110: =OFFSET(InputPriceData!G$15,CalculationsAndCharts!$A110+$A$11,IF($C$7,8,0),1,1) -> 6449000 | D110: =OFFSET(InputPriceData!C$15,CalculationsAndCharts!$A110+$A$11,IF($C$7,8,0),1,1) -> 24.5 | E110: =OFFSET(InputPriceData!D$15,CalculationsAndCharts!$A110+$A$11,IF($C$7,8,0),1,1) -> 25.77 | F110: =OFFSET(InputPriceData!E$15,CalculationsAndCharts!$A110+$A$11,IF($C$7,8,0),1,1) -> 24.29 | G110: =OFFSET(InputPriceData!F$15,CalculationsAndCharts!$A110+$A$11,IF($C$7,8,0),1,1) -> 25.45 | H110: 1.48 | I110: 1.67 | J110: 0.19 | K110: 1.67 | L110: 3.178022817 | M110: 33.6598 | N110: 35.6139 | O110: 72.99495 | P110: 6449000 | R110: FALSE | T110: 1.48 | U110: FALSE | V110: FALSE | W110: FALSE | X110: 49.5 | Y110: FALSE | Z110: FALSE | AA110: FALSE | AB110: 501.4 | AC110: FALSE
A111: 79 | B111: =OFFSET(InputPriceData!B$15,CalculationsAndCharts!$A111+$A$11,0,1,1) -> 2015-11-27 | C111: =OFFSET(InputPriceData!G$15,CalculationsAndCharts!$A111+$A$11,IF($C$7,8,0),1,1) -> 3990900 | D111: =OFFSET(InputPriceData!C$15,CalculationsAndCharts!$A111+$A$11,IF($C$7,8,0),1,1) -> 23.78 | E111: =OFFSET(InputPriceData!D$15,CalculationsAndCharts!$A111+$A$11,IF($C$7,8,0),1,1) -> 24.72 | F111: =OFFSET(InputPriceData!E$15,CalculationsAndCharts!$A111+$A$11,IF($C$7,8,0),1,1) -> 23.5 | G111: =OFFSET(InputPriceData!F$15,CalculationsAndCharts!$A111+$A$11,IF($C$7,8,0),1,1) -> 24.1 | H111: 1.22 | I111: 0.75 | J111: 1.97 | K111: 1.97 | L111: 3.294024572 | M111: 33.8528 | N111: 36.0554 | O111: 73.6567 | P111: 3990900 | R111: FALSE | T111: 1.22 | U111: FALSE | V111: FALSE | W111: FALSE | X111: 49.5 | Y111: FALSE | Z111: FALSE | AA111: FALSE | AB111: 501.4 | AC111: FALSE
A112: 80 | B112: =OFFSET(InputPriceData!B$15,CalculationsAndCharts!$A112+$A$11,0,1,1) -> 2015-11-25 | C112: =OFFSET(InputPriceData!G$15,CalculationsAndCharts!$A112+$A$11,IF($C$7,8,0),1,1) -> 6053100 | D112: =OFFSET(InputPriceData!C$15,CalculationsAndCharts!$A112+$A$11,IF($C$7,8,0),1,1) -> 25.01 | E112: =OFFSET(InputPriceData!D$15,CalculationsAndCharts!$A112+$A$11,IF($C$7,8,0),1,1) -> 26.72 | F112: =OFFSET(InputPriceData!E$15,CalculationsAndCharts!$A112+$A$11,IF($C$7,8,0),1,1) -> 24.55 | G112: =OFFSET(InputPriceData!F$15,CalculationsAndCharts!$A112+$A$11,IF($C$7,8,0),1,1) -> 25.47 | H112: 2.17 | I112: 0.64 | J112: 1.53 | K112: 2.17 | L112: 3.395872616 | M112: 34.0428 | N112: 36.5024 | O112: 74.3142 | P112: 6053100 | R112: FALSE | T112: 2.17 | U112: FALSE | V112: FALSE | W112: FALSE | X112: 49.5 | Y112: FALSE | Z112: FALSE | AA112: FALSE | AB112: 501.4 | AC112: FALSE
A113: 81 | B113: =OFFSET(InputPriceData!B$15,CalculationsAndCharts!$A113+$A$11,0,1,1) -> 2015-11-24 | C113: =OFFSET(InputPriceData!G$15,CalculationsAndCharts!$A113+$A$11,IF($C$7,8,0),1,1) -> 9148800 | D113: =OFFSET(InputPriceData!C$15,CalculationsAndCharts!$A113+$A$11,IF($C$7,8,0),1,1) -> 24.86 | E113: =OFFSET(InputPriceData!D$15,CalculationsAndCharts!$A113+$A$11,IF($C$7,8,0),1,1) -> 26.25 | F113: =OFFSET(InputPriceData!E$15,CalculationsAndCharts!$A113+$A$11,IF($C$7,8,0),1,1) -> 24.27 | G113: =OFFSET(InputPriceData!F$15,CalculationsAndCharts!$A113+$A$11,IF($C$7,8,0),1,1) -> 26.08 | H113: 1.98 | I113: 2.74 | J113: 0.76 | K113: 2.74 | L113: 3.49017051 | M113: 34.1534 | N113: 36.9547 | O113: 74.93835 | P113: 9148800 | R113: FALSE | T113: 1.98 | U113: FALSE | V113: FALSE | W113: FALSE | X113: 49.5 | Y113: FALSE | Z113: FALSE | AA113: FALSE | AB113: 501.4 | AC113: FALSE
A114: 82 | B114: =OFFSET(InputPriceData!B$15,CalculationsAndCharts!$A114+$A$11,0,1,1) -> 2015-11-23 | C114: =OFFSET(InputPriceData!G$15,CalculationsAndCharts!$A114+$A$11,IF($C$7,8,0),1,1) -> 5503200 | D114: =OFFSET(InputPriceData!C$15,CalculationsAndCharts!$A114+$A$11,IF($C$7,8,0),1,1) -> 23.52 | E114: =OFFSET(InputPriceData!D$15,CalculationsAndCharts!$A114+$A$11,IF($C$7,8,0),1,1) -> 24.22 | F114: =OFFSET(InputPriceData!E$15,CalculationsAndCharts!$A114+$A$11,IF($C$7,8,0),1,1) -> 23.1 | G114: =OFFSET(InputPriceData!F$15,CalculationsAndCharts!$A114+$A$11,IF($C$7,8,0),1,1) -> 23.51 | H114: 1.12 | I114: 0.22 | J114: 0.9 | K114: 1.12 | L114: 3.547875934 | M114: 34.1638 | N114: 37.5119 | O114: 75.60145 | Q114: 5503200 | R114: FALSE | T114: 1.12 | U114: FALSE | V114: FALSE | W114: FALSE | X114: 49.5 | Y114: FALSE | Z114: FALSE | AA114: FALSE | AB114: 501.4 | AC114: FALSE
A115: 83 | B115: =OFFSET(InputPriceData!B$15,CalculationsAndCharts!$A115+$A$11,0,1,1) -> 2015-11-20 | C115: =OFFSET(InputPriceData!G$15,CalculationsAndCharts!$A115+$A$11,IF($C$7,8,0),1,1) -> 9810500 | D115: =OFFSET(InputPriceData!C$15,CalculationsAndCharts!$A115+$A$11,IF($C$7,8,0),1,1) -> 27.39 | E115: =OFFSET(InputPriceData!D$15,CalculationsAndCharts!$A115+$A$11,IF($C$7,8,0),1,1) -> 27.69 | F115: =OFFSET(InputPriceData!E$15,CalculationsAndCharts!$A115+$A$11,IF($C$7,8,0),1,1) -> 23.5 | G115: =OFFSET(InputPriceData!F$15,CalculationsAndCharts!$A115+$A$11,IF($C$7,8,0),1,1) -> 24 | H115: 4.19 | I115: 0.67 | J115: 3.52 | K115: 4.19 | L115: 3.734635621 | M115: 34.2196 | N115: 38.0648 | O115: 76.3299 | Q115: 9810500 | R115: FALSE | T115: 4.19 | U115: TRUE | V115: FALSE | W115: FALSE | X115: 49.5 | Y115: FALSE | Z115: FALSE | AA115: FALSE | AB115: 501.4 | AC115: FALSE
A116: 84 | B116: =OFFSET(InputPriceData!B$15,CalculationsAndCharts!$A116+$A$11,0,1,1) -> 2015-11-19 | C116: =OFFSET(InputPriceData!G$15,CalculationsAndCharts!$A116+$A$11,IF($C$7,8,0),1,1) -> 12307500 | D116: =OFFSET(InputPriceData!C$15,CalculationsAndCharts!$A116+$A$11,IF($C$7,8,0),1,1) -> 25.65 | E116: =OFFSET(InputPriceData!D$15,CalculationsAndCharts!$A116+$A$11,IF($C$7,8,0),1,1) -> 27.59 | F116: =OFFSET(InputPriceData!E$15,CalculationsAndCharts!$A116+$A$11,IF($C$7,8,0),1,1) -> 25.42 | G116: =OFFSET(InputPriceData!F$15,CalculationsAndCharts!$A116+$A$11,IF($C$7,8,0),1,1) -> 27.02 | H116: 2.17 | I116: 3.14 | J116: 0.97 | K116: 3.14 | L116: 3.699607592 | M116: 34.2816 | N116: 38.5728 | O116: 77.0154 | P116: 12307500 | R116: FALSE | T116: 2.17 | U116: FALSE | V116: FALSE | W116: FALSE | X116: 49.5 | Y116: FALSE | Z116: FALSE | AA116: FALSE | AB116: 501.4 | AC116: FALSE
A117: 85 | B117: =OFFSET(InputPriceData!B$15,CalculationsAndCharts!$A117+$A$11,0,1,1) -> 2015-11-18 | C117: =OFFSET(InputPriceData!G$15,CalculationsAndCharts!$A117+$A$11,IF($C$7,8,0),1,1) -> 12825200 | D117: =OFFSET(InputPriceData!C$15,CalculationsAndCharts!$A117+$A$11,IF($C$7,8,0),1,1) -> 22.79 | E117: =OFFSET(InputPriceData!D$15,CalculationsAndCharts!$A117+$A$11,IF($C$7,8,0),1,1) -> 24.96 | F117: =OFFSET(InputPriceData!E$15,CalculationsAndCharts!$A117+$A$11,IF($C$7,8,0),1,1) -> 21.7 | G117: =OFFSET(InputPriceData!F$15,CalculationsAndCharts!$A117+$A$11,IF($C$7,8,0),1,1) -> 24.45 | H117: 3.26 | I117: 2.4 | J117: 0.86 | K117: 3.26 | L117: 3.74265433 | M117: 34.2732 | N117: 39.1136 | O117: 77.8418 | P117: 12825200 | R117: FALSE | T117: 3.26 | U117: FALSE | V117: FALSE | W117: FALSE | X117: 49.5 | Y117: FALSE | Z117: FALSE | AA117: FALSE | AB117: 501.4 | AC117: FALSE
A118: 86 | B118: =OFFSET(InputPriceData!B$15,CalculationsAndCharts!$A118+$A$11,0,1,1) -> 2015-11-17 | C118: =OFFSET(InputPriceData!G$15,CalculationsAndCharts!$A118+$A$11,IF($C$7,8,0),1,1) -> 12195500 | D118: =OFFSET(InputPriceData!C$15,CalculationsAndCharts!$A118+$A$11,IF($C$7,8,0),1,1) -> 25.51 | E118: =OFFSET(InputPriceData!D$15,CalculationsAndCharts!$A118+$A$11,IF($C$7,8,0),1,1) -> 25.74 | F118: =OFFSET(InputPriceData!E$15,CalculationsAndCharts!$A118+$A$11,IF($C$7,8,0),1,1) -> 22.3 | G118: =OFFSET(InputPriceData!F$15,CalculationsAndCharts!$A118+$A$11,IF($C$7,8,0),1,1) -> 22.56 | H118: 3.44 | I118: 0.36 | J118: 3.8 | K118: 3.8 | L118: 3.779781586 | M118: 34.3202 | N118: 39.7021 | O118: 78.64955 | Q118: 12195500 | R118: FALSE | T118: 3.44 | U118: TRUE | V118: FALSE | W118: FALSE | X118: 49.5 | Y118: FALSE | Z118: FALSE | AA118: FALSE | AB118: 501.4 | AC118: FALSE
A119: 87 | B119: =OFFSET(InputPriceData!B$15,CalculationsAndCharts!$A119+$A$11,0,1,1) -> 2015-11-16 | C119: =OFFSET(InputPriceData!G$15,CalculationsAndCharts!$A119+$A$11,IF($C$7,8,0),1,1) -> 5968700 | D119: =OFFSET(InputPriceData!C$15,CalculationsAndCharts!$A119+$A$11,IF($C$7,8,0),1,1) -> 26.17 | E119: =OFFSET(InputPriceData!D$15,CalculationsAndCharts!$A119+$A$11,IF($C$7,8,0),1,1) -> 26.81 | F119: =OFFSET(InputPriceData!E$15,CalculationsAndCharts!$A119+$A$11,IF($C$7,8,0),1,1) -> 25.6 | G119: =OFFSET(InputPriceData!F$15,CalculationsAndCharts!$A119+$A$11,IF($C$7,8,0),1,1) -> 26.1 | H119: 1.21 | I119: 1.3 | J119: 0.09 | K119: 1.3 | L119: 3.778226323 | M119: 34.453 | N119: 40.3375 | O119: 79.41675 | Q119: 5968700 | R119: FALSE | T119: 1.21 | U119: FALSE | V119: FALSE | W119: FALSE | X119: 49.5 | Y119: FALSE | Z119: FALSE | AA119: FALSE | AB119: 501.4 | AC119: FALSE
A120: 88 | B120: =OFFSET(InputPriceData!B$15,CalculationsAndCharts!$A120+$A$11,0,1,1) -> 2015-11-13 | C120: =OFFSET(InputPriceData!G$15,CalculationsAndCharts!$A120+$A$11,IF($C$7,8,0),1,1) -> 8273800 | D120: =OFFSET(InputPriceData!C$15,CalculationsAndCharts!$A120+$A$11,IF($C$7,8,0),1,1) -> 24.55 | E120: =OFFSET(InputPriceData!D$15,CalculationsAndCharts!$A120+$A$11,IF($C$7,8,0),1,1) -> 25.8 | F120: =OFFSET(InputPriceData!E$15,CalculationsAndCharts!$A120+$A$11,IF($C$7,8,0),1,1) -> 24.3 | G120: =OFFSET(InputPriceData!F$15,CalculationsAndCharts!$A120+$A$11,IF($C$7,8,0),1,1) -> 25.51 | H120: 1.5 | I120: 1.14 | J120: 0.36 | K120: 1.5 | L120: 3.968859117 | M120: 34.501 | N120: 40.9535 | O120: 80.23575 | P120: 8273800 | R120: FALSE | T120: 1.5 | U120: FALSE | V120: FALSE | W120: FALSE | X120: 49.5 | Y120: FALSE | Z120: FALSE | AA120: FALSE | AB120: 501.4 | AC120: FALSE
A121: 89 | B121: =OFFSET(InputPriceData!B$15,CalculationsAndCharts!$A121+$A$11,0,1,1) -> 2015-11-12 | C121: =OFFSET(InputPriceData!G$15,CalculationsAndCharts!$A121+$A$11,IF($C$7,8,0),1,1) -> 9719000 | D121: =OFFSET(InputPriceData!C$15,CalculationsAndCharts!$A121+$A$11,IF($C$7,8,0),1,1) -> 23.95 | E121: =OFFSET(InputPriceData!D$15,CalculationsAndCharts!$A121+$A$11,IF($C$7,8,0),1,1) -> 26.5 | F121: =OFFSET(InputPriceData!E$15,CalculationsAndCharts!$A121+$A$11,IF($C$7,8,0),1,1) -> 23.72 | G121: =OFFSET(InputPriceData!F$15,CalculationsAndCharts!$A121+$A$11,IF($C$7,8,0),1,1) -> 24.66 | H121: 2.78 | I121: 0.81 | J121: 1.97 | K121: 2.78 | L121: 4.158771357 | M121: 34.5548 | N121: 41.6014 | O121: 81.0362 | P121: 9719000 | R121: FALSE | T121: 2.78 | U121: FALSE | V121: FALSE | W121: FALSE | X121: 49.5 | Y121: FALSE | Z121: FALSE | AA121: FALSE | AB121: 501.4 | AC121: FALSE | AD121: =IF(Z121,MAX(X121,D121),NA()) ->  | AF121: =IF(Z121,F121,NA()) ->  | AG121: =IF(AC121,E121,NA()) -> 
A122: 90 | B122: =OFFSET(InputPriceData!B$15,CalculationsAndCharts!$A122+$A$11,0,1,1) -> 2015-11-11 | C122: =OFFSET(InputPriceData!G$15,CalculationsAndCharts!$A122+$A$11,IF($C$7,8,0),1,1) -> 7679500 | D122: =OFFSET(InputPriceData!C$15,CalculationsAndCharts!$A122+$A$11,IF($C$7,8,0),1,1) -> 25.14 | E122: =OFFSET(InputPriceData!D$15,CalculationsAndCharts!$A122+$A$11,IF($C$7,8,0),1,1) -> 25.73 | F122: =OFFSET(InputPriceData!E$15,CalculationsAndCharts!$A122+$A$11,IF($C$7,8,0),1,1) -> 24.56 | G122: =OFFSET(InputPriceData!F$15,CalculationsAndCharts!$A122+$A$11,IF($C$7,8,0),1,1) -> 25.69 | H122: 1.17 | I122: 0.92 | J122: 0.25 | K122: 1.17 | L122: 4.264830692 | M122: 34.6576 | N122: 42.2538 | O122: 81.7629 | P122: 7679500 | R122: FALSE | T122: 1.17 | U122: FALSE | V122: FALSE | W122: FALSE | X122: 49.5 | Y122: FALSE | Z122: FALSE | AA122: FALSE | AB122: 501.4 | AC122: FALSE
A123: 91 | B123: =OFFSET(InputPriceData!B$15,CalculationsAndCharts!$A123+$A$11,0,1,1) -> 2015-11-10 | C123: =OFFSET(InputPriceData!G$15,CalculationsAndCharts!$A123+$A$11,IF($C$7,8,0),1,1) -> 9310400 | D123: =OFFSET(InputPriceData!C$15,CalculationsAndCharts!$A123+$A$11,IF($C$7,8,0),1,1) -> 25.32 | E123: =OFFSET(InputPriceData!D$15,CalculationsAndCharts!$A123+$A$11,IF($C$7,8,0),1,1) -> 26.18 | F123: =OFFSET(InputPriceData!E$15,CalculationsAndCharts!$A123+$A$11,IF($C$7,8,0),1,1) -> 24.51 | G123: =OFFSET(InputPriceData!F$15,CalculationsAndCharts!$A123+$A$11,IF($C$7,8,0),1,1) -> 24.81 | H123: 1.67 | I123: 0.68 | J123: 2.35 | K123: 2.35 | L123: 4.502894592 | M123: 34.7558 | N123: 42.8929 | O123: 82.53195 | Q123: 9310400 | R123: FALSE | T123: 1.67 | U123: FALSE | V123: FALSE | W123: FALSE | X123: 49.5 | Y123: FALSE | Z123: FALSE | AA123: FALSE | AB123: 501.4 | AC123: FALSE
A124: 92 | B124: =OFFSET(InputPriceData!B$15,CalculationsAndCharts!$A124+$A$11,0,1,1) -> 2015-11-09 | C124: =OFFSET(InputPriceData!G$15,CalculationsAndCharts!$A124+$A$11,IF($C$7,8,0),1,1) -> 10547600 | D124: =OFFSET(InputPriceData!C$15,CalculationsAndCharts!$A124+$A$11,IF($C$7,8,0),1,1) -> 24.92 | E124: =OFFSET(InputPriceData!D$15,CalculationsAndCharts!$A124+$A$11,IF($C$7,8,0),1,1) -> 26.86 | F124: =OFFSET(InputPriceData!E$15,CalculationsAndCharts!$A124+$A$11,IF($C$7,8,0),1,1) -> 24.02 | G124: =OFFSET(InputPriceData!F$15,CalculationsAndCharts!$A124+$A$11,IF($C$7,8,0),1,1) -> 26.86 | H124: 2.84 | I124: 1.87 | J124: 0.97 | K124: 2.84 | L124: 4.668501868 | M124: 34.9236 | N124: 43.5908 | O124: 83.4209 | P124: 10547600 | R124: FALSE | T124: 2.84 | U124: FALSE | V124: FALSE | W124: FALSE | X124: 49.5 | Y124: FALSE | Z124: FALSE | AA124: FALSE | AB124: 501.4 | AC124: FALSE
A125: 93 | B125: =OFFSET(InputPriceData!B$15,CalculationsAndCharts!$A125+$A$11,0,1,1) -> 2015-11-06 | C125: =OFFSET(InputPriceData!G$15,CalculationsAndCharts!$A125+$A$11,IF($C$7,8,0),1,1) -> 12038800 | D125: =OFFSET(InputPriceData!C$15,CalculationsAndCharts!$A125+$A$11,IF($C$7,8,0),1,1) -> 25.87 | E125: =OFFSET(InputPriceData!D$15,CalculationsAndCharts!$A125+$A$11,IF($C$7,8,0),1,1) -> 26.4 | F125: =OFFSET(InputPriceData!E$15,CalculationsAndCharts!$A125+$A$11,IF($C$7,8,0),1,1) -> 24.55 | G125: =OFFSET(InputPriceData!F$15,CalculationsAndCharts!$A125+$A$11,IF($C$7,8,0),1,1) -> 24.99 | H125: 1.85 | I125: 2.34 | J125: 4.19 | K125: 4.19 | L125: 4.809155858 | M125: 35.0704 | N125: 44.3322 | O125: 84.2116 | Q125: 12038800 | R125: FALSE | T125: 1.85 | U125: FALSE | V125: FALSE | W125: FALSE | X125: 49.5 | Y125: FALSE | Z125: FALSE | AA125: FALSE | AB125: 501.4 | AC125: FALSE
A126: 94 | B126: =OFFSET(InputPriceData!B$15,CalculationsAndCharts!$A126+$A$11,0,1,1) -> 2015-11-05 | C126: =OFFSET(InputPriceData!G$15,CalculationsAndCharts!$A126+$A$11,IF($C$7,8,0),1,1) -> 11792500 | D126: =OFFSET(InputPriceData!C$15,CalculationsAndCharts!$A126+$A$11,IF($C$7,8,0),1,1) -> 32.25 | E126: =OFFSET(InputPriceData!D$15,CalculationsAndCharts!$A126+$A$11,IF($C$7,8,0),1,1) -> 32.25 | F126: =OFFSET(InputPriceData!E$15,CalculationsAndCharts!$A126+$A$11,IF($C$7,8,0),1,1) -> 28.18 | G126: =OFFSET(InputPriceData!F$15,CalculationsAndCharts!$A126+$A$11,IF($C$7,8,0),1,1) -> 28.74 | H126: 4.07 | I126: 0.15 | J126: 3.92 | K126: 4.07 | L126: 4.856783232 | M126: 35.1966 | N126: 45.0523 | O126: 84.96865 | Q126: 11792500 | R126: FALSE | T126: 4.07 | U126: FALSE | V126: FALSE | W126: FALSE | X126: 49.5 | Y126: FALSE | Z126: FALSE | AA126: FALSE | AB126: 501.4 | AC126: FALSE
A127: 95 | B127: =OFFSET(InputPriceData!B$15,CalculationsAndCharts!$A127+$A$11,0,1,1) -> 2015-11-04 | C127: =OFFSET(InputPriceData!G$15,CalculationsAndCharts!$A127+$A$11,IF($C$7,8,0),1,1) -> 7675900 | D127: =OFFSET(InputPriceData!C$15,CalculationsAndCharts!$A127+$A$11,IF($C$7,8,0),1,1) -> 35.1 | E127: =OFFSET(InputPriceData!D$15,CalculationsAndCharts!$A127+$A$11,IF($C$7,8,0),1,1) -> 36.31 | F127: =OFFSET(InputPriceData!E$15,CalculationsAndCharts!$A127+$A$11,IF($C$7,8,0),1,1) -> 32.07 | G127: =OFFSET(InputPriceData!F$15,CalculationsAndCharts!$A127+$A$11,IF($C$7,8,0),1,1) -> 32.1 | H127: 4.24 | I127: 2 | J127: 2.24 | K127: 4.24 | L127: 4.917305019 | M127: 35.1578 | N127: 45.6679 | O127: 85.78795 | Q127: 7675900 | R127: FALSE | T127: 4.24 | U127: FALSE | V127: FALSE | W127: FALSE | X127: 49.5 | Y127: FALSE | Z127: FALSE | AA127: FALSE | AB127: 501.4 | AC127: FALSE
A128: 96 | B128: =OFFSET(InputPriceData!B$15,CalculationsAndCharts!$A128+$A$11,0,1,1) -> 2015-11-03 | C128: =OFFSET(InputPriceData!G$15,CalculationsAndCharts!$A128+$A$11,IF($C$7,8,0),1,1) -> 5782400 | D128: =OFFSET(InputPriceData!C$15,CalculationsAndCharts!$A128+$A$11,IF($C$7,8,0),1,1) -> 33.03 | E128: =OFFSET(InputPriceData!D$15,CalculationsAndCharts!$A128+$A$11,IF($C$7,8,0),1,1) -> 35.5 | F128: =OFFSET(InputPriceData!E$15,CalculationsAndCharts!$A128+$A$11,IF($C$7,8,0),1,1) -> 32.75 | G128: =OFFSET(InputPriceData!F$15,CalculationsAndCharts!$A128+$A$11,IF($C$7,8,0),1,1) -> 34.31 | H128: 2.75 | I128: 0.45 | J128: 2.3 | K128: 2.75 | L128: 4.969405405 | M128: 35.1378 | N128: 46.2859 | O128: 86.60845 | P128: 5782400 | R128: FALSE | T128: 2.75 | U128: FALSE | V128: FALSE | W128: FALSE | X128: 49.5 | Y128: FALSE | Z128: FALSE | AA128: FALSE | AB128: 501.4 | AC128: FALSE
A129: 97 | B129: =OFFSET(InputPriceData!B$15,CalculationsAndCharts!$A129+$A$11,0,1,1) -> 2015-11-02 | C129: =OFFSET(InputPriceData!G$15,CalculationsAndCharts!$A129+$A$11,IF($C$7,8,0),1,1) -> 7460000 | D129: =OFFSET(InputPriceData!C$15,CalculationsAndCharts!$A129+$A$11,IF($C$7,8,0),1,1) -> 33.41 | E129: =OFFSET(InputPriceData!D$15,CalculationsAndCharts!$A129+$A$11,IF($C$7,8,0),1,1) -> 35.99 | F129: =OFFSET(InputPriceData!E$15,CalculationsAndCharts!$A129+$A$11,IF($C$7,8,0),1,1) -> 32.26 | G129: =OFFSET(InputPriceData!F$15,CalculationsAndCharts!$A129+$A$11,IF($C$7,8,0),1,1) -> 35.05 | H129: 3.73 | I129: 1.3 | J129: 2.43 | K129: 3.73 | L129: 5.140128897 | M129: 35.1496 | N129: 46.8798 | O129: 87.4689 | P129: 7460000 | R129: FALSE | T129: 3.73 | U129: FALSE | V129: FALSE | W129: FALSE | X129: 49.5 | Y129: FALSE | Z129: FALSE | AA129: FALSE | AB129: 501.4 | AC129: FALSE
A130: 98 | B130: =OFFSET(InputPriceData!B$15,CalculationsAndCharts!$A130+$A$11,0,1,1) -> 2015-10-30 | C130: =OFFSET(InputPriceData!G$15,CalculationsAndCharts!$A130+$A$11,IF($C$7,8,0),1,1) -> 5804900 | D130: =OFFSET(InputPriceData!C$15,CalculationsAndCharts!$A130+$A$11,IF($C$7,8,0),1,1) -> 35.35 | E130: =OFFSET(InputPriceData!D$15,CalculationsAndCharts!$A130+$A$11,IF($C$7,8,0),1,1) -> 37.55 | F130: =OFFSET(InputPriceData!E$15,CalculationsAndCharts!$A130+$A$11,IF($C$7,8,0),1,1) -> 34.56 | G130: =OFFSET(InputPriceData!F$15,CalculationsAndCharts!$A130+$A$11,IF($C$7,8,0),1,1) -> 34.69 | H130: 2.99 | I130: 1.72 | J130: 1.27 | K130: 2.99 | L130: 5.248600351 | M130: 35.3566 | N130: 47.4893 | O130: 88.22765 | Q130: 5804900 | R130: FALSE | T130: 2.99 | U130: FALSE | V130: FALSE | W130: FALSE | X130: 49.5 | Y130: FALSE | Z130: FALSE | AA130: FALSE | AB130: 501.4 | AC130: FALSE
A131: 99 | B131: =OFFSET(InputPriceData!B$15,CalculationsAndCharts!$A131+$A$11,0,1,1) -> 2015-10-29 | C131: =OFFSET(InputPriceData!G$15,CalculationsAndCharts!$A131+$A$11,IF($C$7,8,0),1,1) -> 8469300 | D131: =OFFSET(InputPriceData!C$15,CalculationsAndCharts!$A131+$A$11,IF($C$7,8,0),1,1) -> 39.64 | E131: =OFFSET(InputPriceData!D$15,CalculationsAndCharts!$A131+$A$11,IF($C$7,8,0),1,1) -> 40.86 | F131: =OFFSET(InputPriceData!E$15,CalculationsAndCharts!$A131+$A$11,IF($C$7,8,0),1,1) -> 35.01 | G131: =OFFSET(InputPriceData!F$15,CalculationsAndCharts!$A131+$A$11,IF($C$7,8,0),1,1) -> 35.83 | H131: 5.85 | I131: 0.6 | J131: 6.45 | K131: 6.45 | L131: 5.422338839 | M131: 35.6508 | N131: 48.1384 | O131: 88.9022 | Q131: 8469300 | R131: TRUE | S131: 5.422338839 | T131: 5.85 | U131: FALSE | V131: FALSE | W131: FALSE | X131: 49.5 | Y131: FALSE | Z131: FALSE | AA131: FALSE | AB131: 501.4 | AC131: FALSE
A132: 100 | B132: =OFFSET(InputPriceData!B$15,CalculationsAndCharts!$A132+$A$11,0,1,1) -> 2015-10-28 | C132: =OFFSET(InputPriceData!G$15,CalculationsAndCharts!$A132+$A$11,IF($C$7,8,0),1,1) -> 8790300 | D132: =OFFSET(InputPriceData!C$15,CalculationsAndCharts!$A132+$A$11,IF($C$7,8,0),1,1) -> 45.7 | E132: =OFFSET(InputPriceData!D$15,CalculationsAndCharts!$A132+$A$11,IF($C$7,8,0),1,1) -> 49 | F132: =OFFSET(InputPriceData!E$15,CalculationsAndCharts!$A132+$A$11,IF($C$7,8,0),1,1) -> 39.36 | G132: =OFFSET(InputPriceData!F$15,CalculationsAndCharts!$A132+$A$11,IF($C$7,8,0),1,1) -> 41.46 | H132: 9.64 | I132: 6.03 | J132: 3.61 | K132: 9.64 | L132: 5.343287981 | M132: 35.8102 | N132: 48.7491 | O132: 89.45105 | Q132: 8790300 | R132: TRUE | S132: 5.343287981 | T132: 9.64 | U132: TRUE | V132: TRUE | W132: TRUE | X132: 49.5 | Y132: FALSE | Z132: FALSE | AA132: FALSE | AB132: 501.4 | AC132: FALSE | AH132: 49.5
A133: 101 | B133: =OFFSET(InputPriceData!B$15,CalculationsAndCharts!$A133+$A$11,0,1,1) -> 2015-10-27 | C133: =OFFSET(InputPriceData!G$15,CalculationsAndCharts!$A133+$A$11,IF($C$7,8,0),1,1) -> 3573200 | D133: =OFFSET(InputPriceData!C$15,CalculationsAndCharts!$A133+$A$11,IF($C$7,8,0),1,1) -> 41.98 | E133: =OFFSET(InputPriceData!D$15,CalculationsAndCharts!$A133+$A$11,IF($C$7,8,0),1,1) -> 44.3 | F133: =OFFSET(InputPriceData!E$15,CalculationsAndCharts!$A133+$A$11,IF($C$7,8,0),1,1) -> 40.93 | G133: =OFFSET(InputPriceData!F$15,CalculationsAndCharts!$A133+$A$11,IF($C$7,8,0),1,1) -> 42.97 | H133: 3.37 | I133: 1.42 | J133: 1.95 | K133: 3.37 | L133: 5.012771672 | M133: 35.793 | N133: 49.3395 | O133: 89.99925 | P133: 3573200 | R133: FALSE | T133: 3.37 | U133: FALSE | V133: FALSE | W133: FALSE | X133: 447.7 | Y133: FALSE | Z133: FALSE | AA133: FALSE | AB133: 501.4 | AC133: FALSE
A134: 102 | B134: =OFFSET(InputPriceData!B$15,CalculationsAndCharts!$A134+$A$11,0,1,1) -> 2015-10-26 | C134: =OFFSET(InputPriceData!G$15,CalculationsAndCharts!$A134+$A$11,IF($C$7,8,0),1,1) -> 4473200 | D134: =OFFSET(InputPriceData!C$15,CalculationsAndCharts!$A134+$A$11,IF($C$7,8,0),1,1) -> 46.69 | E134: =OFFSET(InputPriceData!D$15,CalculationsAndCharts!$A134+$A$11,IF($C$7,8,0),1,1) -> 46.72 | F134: =OFFSET(InputPriceData!E$15,CalculationsAndCharts!$A134+$A$11,IF($C$7,8,0),1,1) -> 42.69 | G134: =OFFSET(InputPriceData!F$15,CalculationsAndCharts!$A134+$A$11,IF($C$7,8,0),1,1) -> 42.88 | H134: 4.03 | I134: 0.35 | J134: 4.38 | K134: 4.38 | L134: 5.139138723 | M134: 35.7856 | N134: 49.8888 | O134: 90.6494 | Q134: 4473200 | R134: FALSE | T134: 4.03 | U134: FALSE | V134: FALSE | W134: FALSE | X134: 447.7 | Y134: FALSE | Z134: FALSE | AA134: FALSE | AB134: 501.4 | AC134: FALSE
A135: 103 | B135: =OFFSET(InputPriceData!B$15,CalculationsAndCharts!$A135+$A$11,0,1,1) -> 2015-10-23 | C135: =OFFSET(InputPriceData!G$15,CalculationsAndCharts!$A135+$A$11,IF($C$7,8,0),1,1) -> 5045300 | D135: =OFFSET(InputPriceData!C$15,CalculationsAndCharts!$A135+$A$11,IF($C$7,8,0),1,1) -> 45.51 | E135: =OFFSET(InputPriceData!D$15,CalculationsAndCharts!$A135+$A$11,IF($C$7,8,0),1,1) -> 48.09 | F135: =OFFSET(InputPriceData!E$15,CalculationsAndCharts!$A135+$A$11,IF($C$7,8,0),1,1) -> 42.26 | G135: =OFFSET(InputPriceData!F$15,CalculationsAndCharts!$A135+$A$11,IF($C$7,8,0),1,1) -> 47.07 | H135: 5.83 | I135: 4.24 | J135: 1.59 | K135: 5.83 | L135: 5.19753401 | M135: 35.696 | N135: 50.48 | O135: 91.212 | P135: 5045300 | R135: FALSE | T135: 5.83 | U135: FALSE | V135: FALSE | W135: FALSE | X135: 447.7 | Y135: FALSE | Z135: FALSE | AA135: FALSE | AB135: 501.4 | AC135: FALSE
A136: 104 | B136: =OFFSET(InputPriceData!B$15,CalculationsAndCharts!$A136+$A$11,0,1,1) -> 2015-10-22 | C136: =OFFSET(InputPriceData!G$15,CalculationsAndCharts!$A136+$A$11,IF($C$7,8,0),1,1) -> 4022000 | D136: =OFFSET(InputPriceData!C$15,CalculationsAndCharts!$A136+$A$11,IF($C$7,8,0),1,1) -> 41.33 | E136: =OFFSET(InputPriceData!D$15,CalculationsAndCharts!$A136+$A$11,IF($C$7,8,0),1,1) -> 44.95 | F136: =OFFSET(InputPriceData!E$15,CalculationsAndCharts!$A136+$A$11,IF($C$7,8,0),1,1) -> 41.1 | G136: =OFFSET(InputPriceData!F$15,CalculationsAndCharts!$A136+$A$11,IF($C$7,8,0),1,1) -> 43.85 | H136: 3.85 | I136: 3.22 | J136: 0.63 | K136: 3.85 | L136: 5.14888278 | M136: 35.5546 | N136: 51.0793 | O136: 91.66115 | P136: 4022000 | R136: FALSE | T136: 3.85 | U136: FALSE | V136: FALSE | W136: FALSE | X136: 447.7 | Y136: FALSE | Z136: FALSE | AA136: FALSE | AB136: 501.4 | AC136: FALSE
A137: 105 | B137: =OFFSET(InputPriceData!B$15,CalculationsAndCharts!$A137+$A$11,0,1,1) -> 2015-10-21 | C137: =OFFSET(InputPriceData!G$15,CalculationsAndCharts!$A137+$A$11,IF($C$7,8,0),1,1) -> 4443300 | D137: =OFFSET(InputPriceData!C$15,CalculationsAndCharts!$A137+$A$11,IF($C$7,8,0),1,1) -> 43.85 | E137: =OFFSET(InputPriceData!D$15,CalculationsAndCharts!$A137+$A$11,IF($C$7,8,0),1,1) -> 44.44 | F137: =OFFSET(InputPriceData!E$15,CalculationsAndCharts!$A137+$A$11,IF($C$7,8,0),1,1) -> 40.64 | G137: =OFFSET(InputPriceData!F$15,CalculationsAndCharts!$A137+$A$11,IF($C$7,8,0),1,1) -> 41.73 | H137: 3.8 | I137: 1.16 | J137: 4.96 | K137: 4.96 | L137: 5.24879684 | M137: 35.6256 | N137: 51.7788 | O137: 92.1599 | Q137: 4443300 | R137: FALSE | T137: 3.8 | U137: FALSE | V137: FALSE | W137: FALSE | X137: 447.7 | Y137: FALSE | Z137: FALSE | AA137: FALSE | AB137: 501.4 | AC137: FALSE
A138: 106 | B138: =OFFSET(InputPriceData!B$15,CalculationsAndCharts!$A138+$A$11,0,1,1) -> 2015-10-20 | C138: =OFFSET(InputPriceData!G$15,CalculationsAndCharts!$A138+$A$11,IF($C$7,8,0),1,1) -> 5266600 | D138: =OFFSET(InputPriceData!C$15,CalculationsAndCharts!$A138+$A$11,IF($C$7,8,0),1,1) -> 42.41 | E138: =OFFSET(InputPriceData!D$15,CalculationsAndCharts!$A138+$A$11,IF($C$7,8,0),1,1) -> 47.1 | F138: =OFFSET(InputPriceData!E$15,CalculationsAndCharts!$A138+$A$11,IF($C$7,8,0),1,1) -> 42.29 | G138: =OFFSET(InputPriceData!F$15,CalculationsAndCharts!$A138+$A$11,IF($C$7,8,0),1,1) -> 45.6 | H138: 4.81 | I138: 6.04 | J138: 1.23 | K138: 6.04 | L138: 5.271011981 | M138: 35.583 | N138: 52.4515 | O138: 92.70875 | P138: 5266600 | R138: TRUE | S138: 5.271011981 | T138: 4.81 | U138: FALSE | V138: FALSE | W138: FALSE | X138: 447.7 | Y138: FALSE | Z138: FALSE | AA138: FALSE | AB138: 501.4 | AC138: FALSE
A139: 107 | B139: =OFFSET(InputPriceData!B$15,CalculationsAndCharts!$A139+$A$11,0,1,1) -> 2015-10-19 | C139: =OFFSET(InputPriceData!G$15,CalculationsAndCharts!$A139+$A$11,IF($C$7,8,0),1,1) -> 5179000 | D139: =OFFSET(InputPriceData!C$15,CalculationsAndCharts!$A139+$A$11,IF($C$7,8,0),1,1) -> 46.18 | E139: =OFFSET(InputPriceData!D$15,CalculationsAndCharts!$A139+$A$11,IF($C$7,8,0),1,1) -> 47.05 | F139: =OFFSET(InputPriceData!E$15,CalculationsAndCharts!$A139+$A$11,IF($C$7,8,0),1,1) -> 40.14 | G139: =OFFSET(InputPriceData!F$15,CalculationsAndCharts!$A139+$A$11,IF($C$7,8,0),1,1) -> 41.06 | H139: 6.91 | I139: 0.31 | J139: 6.6 | K139: 6.91 | L139: 5.211859057 | M139: 35.421 | N139: 53.0955 | O139: 93.13425 | Q139: 5179000 | R139: TRUE | S139: 5.211859057 | T139: 6.91 | U139: FALSE | V139: FALSE | W139: FALSE | X139: 447.7 | Y139: FALSE | Z139: FALSE | AA139: FALSE | AB139: 501.4 | AC139: FALSE
A140: 108 | B140: =OFFSET(InputPriceData!B$15,CalculationsAndCharts!$A140+$A$11,0,1,1) -> 2015-10-16 | C140: =OFFSET(InputPriceData!G$15,CalculationsAndCharts!$A140+$A$11,IF($C$7,8,0),1,1) -> 4036500 | D140: =OFFSET(InputPriceData!C$15,CalculationsAndCharts!$A140+$A$11,IF($C$7,8,0),1,1) -> 50.89 | E140: =OFFSET(InputPriceData!D$15,CalculationsAndCharts!$A140+$A$11,IF($C$7,8,0),1,1) -> 52.1 | F140: =OFFSET(InputPriceData!E$15,CalculationsAndCharts!$A140+$A$11,IF($C$7,8,0),1,1) -> 46.64 | G140: =OFFSET(InputPriceData!F$15,CalculationsAndCharts!$A140+$A$11,IF($C$7,8,0),1,1) -> 46.74 | H140: 5.46 | I140: 0.82 | J140: 4.64 | K140: 5.46 | L140: 5.08123283 | M140: 35.2298 | N140: 53.7909 | O140: 93.53395 | Q140: 4036500 | R140: TRUE | S140: 5.08123283 | T140: 5.46 | U140: FALSE | V140: FALSE | W140: FALSE | X140: 447.7 | Y140: FALSE | Z140: FALSE | AA140: FALSE | AB140: 501.4 | AC140: FALSE
A141: 109 | B141: =OFFSET(InputPriceData!B$15,CalculationsAndCharts!$A141+$A$11,0,1,1) -> 2015-10-15 | C141: =OFFSET(InputPriceData!G$15,CalculationsAndCharts!$A141+$A$11,IF($C$7,8,0),1,1) -> 5115400 | D141: =OFFSET(InputPriceData!C$15,CalculationsAndCharts!$A141+$A$11,IF($C$7,8,0),1,1) -> 48.6 | E141: =OFFSET(InputPriceData!D$15,CalculationsAndCharts!$A141+$A$11,IF($C$7,8,0),1,1) -> 52.6 | F141: =OFFSET(InputPriceData!E$15,CalculationsAndCharts!$A141+$A$11,IF($C$7,8,0),1,1) -> 47.53 | G141: =OFFSET(InputPriceData!F$15,CalculationsAndCharts!$A141+$A$11,IF($C$7,8,0),1,1) -> 51.28 | H141: 5.07 | I141: 1.41 | J141: 3.66 | K141: 5.07 | L141: 5.052096894 | M141: 34.923 | N141: 54.3995 | O141: 93.85825 | P141: 5115400 | R141: TRUE | S141: 5.052096894 | T141: 5.07 | U141: FALSE | V141: FALSE | W141: FALSE | X141: 447.7 | Y141: FALSE | Z141: FALSE | AA141: FALSE | AB141: 501.4 | AC141: FALSE
A142: 110 | B142: =OFFSET(InputPriceData!B$15,CalculationsAndCharts!$A142+$A$11,0,1,1) -> 2015-10-14 | C142: =OFFSET(InputPriceData!G$15,CalculationsAndCharts!$A142+$A$11,IF($C$7,8,0),1,1) -> 6401200 | D142: =OFFSET(InputPriceData!C$15,CalculationsAndCharts!$A142+$A$11,IF($C$7,8,0),1,1) -> 45.79 | E142: =OFFSET(InputPriceData!D$15,CalculationsAndCharts!$A142+$A$11,IF($C$7,8,0),1,1) -> 52.03 | F142: =OFFSET(InputPriceData!E$15,CalculationsAndCharts!$A142+$A$11,IF($C$7,8,0),1,1) -> 45.39 | G142: =OFFSET(InputPriceData!F$15,CalculationsAndCharts!$A142+$A$11,IF($C$7,8,0),1,1) -> 51.19 | H142: 6.64 | I142: 8.97 | J142: 2.33 | K142: 8.97 | L142: 5.050719732 | M142: 34.4834 | N142: 54.9367 | O142: 94.16435 | P142: 6401200 | R142: TRUE | S142: 5.050719732 | T142: 6.64 | U142: FALSE | V142: FALSE | W142: FALSE | X142: 447.7 | Y142: FALSE | Z142: FALSE | AA142: FALSE | AB142: 501.4 | AC142: FALSE
A143: 111 | B143: =OFFSET(InputPriceData!B$15,CalculationsAndCharts!$A143+$A$11,0,1,1) -> 2015-10-13 | C143: =OFFSET(InputPriceData!G$15,CalculationsAndCharts!$A143+$A$11,IF($C$7,8,0),1,1) -> 3394200 | D143: =OFFSET(InputPriceData!C$15,CalculationsAndCharts!$A143+$A$11,IF($C$7,8,0),1,1) -> 42.47 | E143: =OFFSET(InputPriceData!D$15,CalculationsAndCharts!$A143+$A$11,IF($C$7,8,0),1,1) -> 45.19 | F143: =OFFSET(InputPriceData!E$15,CalculationsAndCharts!$A143+$A$11,IF($C$7,8,0),1,1) -> 41.52 | G143: =OFFSET(InputPriceData!F$15,CalculationsAndCharts!$A143+$A$11,IF($C$7,8,0),1,1) -> 43.06 | H143: 3.67 | I143: 2.84 | J143: 0.83 | K143: 3.67 | L143: 4.749236635 | M143: 34.0776 | N143: 55.5788 | O143: 94.4194 | P143: 3394200 | R143: FALSE | T143: 3.67 | U143: FALSE | V143: FALSE | W143: FALSE | X143: 447.7 | Y143: FALSE | Z143: FALSE | AA143: FALSE | AB143: 501.4 | AC143: FALSE
A144: 112 | B144: =OFFSET(InputPriceData!B$15,CalculationsAndCharts!$A144+$A$11,0,1,1) -> 2015-10-12 | C144: =OFFSET(InputPriceData!G$15,CalculationsAndCharts!$A144+$A$11,IF($C$7,8,0),1,1) -> 4686200 | D144: =OFFSET(InputPriceData!C$15,CalculationsAndCharts!$A144+$A$11,IF($C$7,8,0),1,1) -> 49.35 | E144: =OFFSET(InputPriceData!D$15,CalculationsAndCharts!$A144+$A$11,IF($C$7,8,0),1,1) -> 49.41 | F144: =OFFSET(InputPriceData!E$15,CalculationsAndCharts!$A144+$A$11,IF($C$7,8,0),1,1) -> 41 | G144: =OFFSET(InputPriceData!F$15,CalculationsAndCharts!$A144+$A$11,IF($C$7,8,0),1,1) -> 42.35 | H144: 8.41 | I144: 3.12 | J144: 5.29 | K144: 8.41 | L144: 4.832254838 | M144: 33.8364 | N144: 56.3202 | O144: 94.7511 | Q144: 4686200 | R144: TRUE | S144: 4.832254838 | T144: 8.41 | U144: TRUE | V144: FALSE | W144: FALSE | X144: 447.7 | Y144: FALSE | Z144: FALSE | AA144: FALSE | AB144: 501.4 | AC144: FALSE
A145: 113 | B145: =OFFSET(InputPriceData!B$15,CalculationsAndCharts!$A145+$A$11,0,1,1) -> 2015-10-09 | C145: =OFFSET(InputPriceData!G$15,CalculationsAndCharts!$A145+$A$11,IF($C$7,8,0),1,1) -> 4516200 | D145: =OFFSET(InputPriceData!C$15,CalculationsAndCharts!$A145+$A$11,IF($C$7,8,0),1,1) -> 44 | E145: =OFFSET(InputPriceData!D$15,CalculationsAndCharts!$A145+$A$11,IF($C$7,8,0),1,1) -> 46.42 | F145: =OFFSET(InputPriceData!E$15,CalculationsAndCharts!$A145+$A$11,IF($C$7,8,0),1,1) -> 43.24 | G145: =OFFSET(InputPriceData!F$15,CalculationsAndCharts!$A145+$A$11,IF($C$7,8,0),1,1) -> 46.29 | H145: 3.18 | I145: 6.54 | J145: 3.36 | K145: 6.54 | L145: 4.557043671 | M145: 33.6754 | N145: 57.0927 | O145: 95.04585 | P145: 4516200 | R145: TRUE | S145: 4.557043671 | T145: 3.18 | U145: FALSE | V145: FALSE | W145: FALSE | X145: 447.7 | Y145: FALSE | Z145: FALSE | AA145: FALSE | AB145: 501.4 | AC145: FALSE
A146: 114 | B146: =OFFSET(InputPriceData!B$15,CalculationsAndCharts!$A146+$A$11,0,1,1) -> 2015-10-08 | C146: =OFFSET(InputPriceData!G$15,CalculationsAndCharts!$A146+$A$11,IF($C$7,8,0),1,1) -> 4877000 | D146: =OFFSET(InputPriceData!C$15,CalculationsAndCharts!$A146+$A$11,IF($C$7,8,0),1,1) -> 39.38 | E146: =OFFSET(InputPriceData!D$15,CalculationsAndCharts!$A146+$A$11,IF($C$7,8,0),1,1) -> 45.69 | F146: =OFFSET(InputPriceData!E$15,CalculationsAndCharts!$A146+$A$11,IF($C$7,8,0),1,1) -> 39.06 | G146: =OFFSET(InputPriceData!F$15,CalculationsAndCharts!$A146+$A$11,IF($C$7,8,0),1,1) -> 39.88 | H146: 6.63 | I146: 4.2 | J146: 2.43 | K146: 6.63 | L146: 4.404508569 | M146: 33.3996 | N146: 57.8158 | O146: 95.2829 | P146: 4877000 | R146: TRUE | S146: 4.404508569 | T146: 6.63 | U146: TRUE | V146: FALSE | W146: FALSE | X146: 447.7 | Y146: FALSE | Z146: FALSE | AA146: FALSE | AB146: 501.4 | AC146: FALSE
A147: 115 | B147: =OFFSET(InputPriceData!B$15,CalculationsAndCharts!$A147+$A$11,0,1,1) -> 2015-10-07 | C147: =OFFSET(InputPriceData!G$15,CalculationsAndCharts!$A147+$A$11,IF($C$7,8,0),1,1) -> 4461000 | D147: =OFFSET(InputPriceData!C$15,CalculationsAndCharts!$A147+$A$11,IF($C$7,8,0),1,1) -> 42.07 | E147: =OFFSET(InputPriceData!D$15,CalculationsAndCharts!$A147+$A$11,IF($C$7,8,0),1,1) -> 43.15 | F147: =OFFSET(InputPriceData!E$15,CalculationsAndCharts!$A147+$A$11,IF($C$7,8,0),1,1) -> 39.46 | G147: =OFFSET(InputPriceData!F$15,CalculationsAndCharts!$A147+$A$11,IF($C$7,8,0),1,1) -> 41.49 | H147: 3.69 | I147: 1.2 | J147: 2.49 | K147: 3.69 | L147: 4.23331692 | M147: 33.322 | N147: 58.743 | O147: 95.568 | Q147: 4461000 | R147: FALSE | T147: 3.69 | U147: FALSE | V147: FALSE | W147: FALSE | X147: 447.7 | Y147: FALSE | Z147: FALSE | AA147: FALSE | AB147: 501.4 | AC147: FALSE
A148: 116 | B148: =OFFSET(InputPriceData!B$15,CalculationsAndCharts!$A148+$A$11,0,1,1) -> 2015-10-06 | C148: =OFFSET(InputPriceData!G$15,CalculationsAndCharts!$A148+$A$11,IF($C$7,8,0),1,1) -> 6434100 | D148: =OFFSET(InputPriceData!C$15,CalculationsAndCharts!$A148+$A$11,IF($C$7,8,0),1,1) -> 40.81 | E148: =OFFSET(InputPriceData!D$15,CalculationsAndCharts!$A148+$A$11,IF($C$7,8,0),1,1) -> 42.66 | F148: =OFFSET(InputPriceData!E$15,CalculationsAndCharts!$A148+$A$11,IF($C$7,8,0),1,1) -> 38.54 | G148: =OFFSET(InputPriceData!F$15,CalculationsAndCharts!$A148+$A$11,IF($C$7,8,0),1,1) -> 41.95 | H148: 4.12 | I148: 4.91 | J148: 0.79 | K148: 4.91 | L148: 4.27511053 | M148: 33.1802 | N148: 59.6521 | O148: 95.93205 | P148: 6434100 | R148: FALSE | T148: 4.12 | U148: FALSE | V148: FALSE | W148: FALSE | X148: 447.7 | Y148: FALSE | Z148: FALSE | AA148: FALSE | AB148: 501.4 | AC148: FALSE
A149: 117 | B149: =OFFSET(InputPriceData!B$15,CalculationsAndCharts!$A149+$A$11,0,1,1) -> 2015-10-05 | C149: =OFFSET(InputPriceData!G$15,CalculationsAndCharts!$A149+$A$11,IF($C$7,8,0),1,1) -> 6034100 | D149: =OFFSET(InputPriceData!C$15,CalculationsAndCharts!$A149+$A$11,IF($C$7,8,0),1,1) -> 34.15 | E149: =OFFSET(InputPriceData!D$15,CalculationsAndCharts!$A149+$A$11,IF($C$7,8,0),1,1) -> 38.13 | F149: =OFFSET(InputPriceData!E$15,CalculationsAndCharts!$A149+$A$11,IF($C$7,8,0),1,1) -> 34.02 | G149: =OFFSET(InputPriceData!F$15,CalculationsAndCharts!$A149+$A$11,IF($C$7,8,0),1,1) -> 37.75 | H149: 4.11 | I149: 4.72 | J149: 0.61 | K149: 4.72 | L149: 4.226272878 | M149: 33.0052 | N149: 60.5726 | O149: 96.3133 | P149: 6034100 | R149: FALSE | T149: 4.11 | U149: FALSE | V149: FALSE | W149: FALSE | X149: 447.7 | Y149: FALSE | Z149: FALSE | AA149: FALSE | AB149: 501.4 | AC149: FALSE
A150: 118 | B150: =OFFSET(InputPriceData!B$15,CalculationsAndCharts!$A150+$A$11,0,1,1) -> 2015-10-02 | C150: =OFFSET(InputPriceData!G$15,CalculationsAndCharts!$A150+$A$11,IF($C$7,8,0),1,1) -> 8381000 | D150: =OFFSET(InputPriceData!C$15,CalculationsAndCharts!$A150+$A$11,IF($C$7,8,0),1,1) -> 30.11 | E150: =OFFSET(InputPriceData!D$15,CalculationsAndCharts!$A150+$A$11,IF($C$7,8,0),1,1) -> 33.43 | F150: =OFFSET(InputPriceData!E$15,CalculationsAndCharts!$A150+$A$11,IF($C$7,8,0),1,1) -> 29.72 | G150: =OFFSET(InputPriceData!F$15,CalculationsAndCharts!$A150+$A$11,IF($C$7,8,0),1,1) -> 33.41 | H150: 3.71 | I150: 6.43 | J150: 2.72 | K150: 6.43 | L150: 4.188293869 | M150: 32.9982 | N150: 61.5251 | O150: 96.64555 | P150: 8381000 | R150: FALSE | T150: 3.71 | U150: FALSE | V150: FALSE | W150: FALSE | X150: 447.7 | Y150: FALSE | Z150: FALSE | AA150: FALSE | AB150: 501.4 | AC150: FALSE
A151: 119 | B151: =OFFSET(InputPriceData!B$15,CalculationsAndCharts!$A151+$A$11,0,1,1) -> 2015-10-01 | C151: =OFFSET(InputPriceData!G$15,CalculationsAndCharts!$A151+$A$11,IF($C$7,8,0),1,1) -> 683790 | D151: =OFFSET(InputPriceData!C$15,CalculationsAndCharts!$A151+$A$11,IF($C$7,8,0),1,1) -> 29.32 | E151: =OFFSET(InputPriceData!D$15,CalculationsAndCharts!$A151+$A$11,IF($C$7,8,0),1,1) -> 30.59 | F151: =OFFSET(InputPriceData!E$15,CalculationsAndCharts!$A151+$A$11,IF($C$7,8,0),1,1) -> 26.55 | G151: =OFFSET(InputPriceData!F$15,CalculationsAndCharts!$A151+$A$11,IF($C$7,8,0),1,1) -> 27 | H151: 4.04 | I151: 1.79 | J151: 2.25 | K151: 4.04 | L151: 4.015854936 | M151: 33.01 | N151: 62.433 | O151: 96.9325 | Q151: 683790 | R151: FALSE | T151: 4.04 | U151: TRUE | V151: FALSE | W151: FALSE | X151: 447.7 | Y151: FALSE | Z151: FALSE | AA151: FALSE | AB151: 501.4 | AC151: FALSE
A152: 120 | B152: =OFFSET(InputPriceData!B$15,CalculationsAndCharts!$A152+$A$11,0,1,1) -> 2015-09-30 | C152: =OFFSET(InputPriceData!G$15,CalculationsAndCharts!$A152+$A$11,IF($C$7,8,0),1,1) -> 4453210 | D152: =OFFSET(InputPriceData!C$15,CalculationsAndCharts!$A152+$A$11,IF($C$7,8,0),1,1) -> 25.9 | E152: =OFFSET(InputPriceData!D$15,CalculationsAndCharts!$A152+$A$11,IF($C$7,8,0),1,1) -> 28.9 | F152: =OFFSET(InputPriceData!E$15,CalculationsAndCharts!$A152+$A$11,IF($C$7,8,0),1,1) -> 25.7 | G152: =OFFSET(InputPriceData!F$15,CalculationsAndCharts!$A152+$A$11,IF($C$7,8,0),1,1) -> 28.8 | H152: 3.2 | I152: 1.8 | J152: 1.4 | K152: 3.2 | L152: 4.013997623 | M152: 33.218 | N152: 63.353 | O152: 97.2755 | P152: 4453210 | R152: FALSE | T152: 3.2 | U152: FALSE | V152: FALSE | W152: FALSE | X152: 447.7 | Y152: FALSE | Z152: FALSE | AA152: FALSE | AB152: 501.4 | AC152: FALSE
A153: 121 | B153: =OFFSET(InputPriceData!B$15,CalculationsAndCharts!$A153+$A$11,0,1,1) -> 2015-09-29 | C153: =OFFSET(InputPriceData!G$15,CalculationsAndCharts!$A153+$A$11,IF($C$7,8,0),1,1) -> 255810 | D153: =OFFSET(InputPriceData!C$15,CalculationsAndCharts!$A153+$A$11,IF($C$7,8,0),1,1) -> 27.4 | E153: =OFFSET(InputPriceData!D$15,CalculationsAndCharts!$A153+$A$11,IF($C$7,8,0),1,1) -> 28.6 | F153: =OFFSET(InputPriceData!E$15,CalculationsAndCharts!$A153+$A$11,IF($C$7,8,0),1,1) -> 26.3 | G153: =OFFSET(InputPriceData!F$15,CalculationsAndCharts!$A153+$A$11,IF($C$7,8,0),1,1) -> 27.1 | H153: 2.3 | I153: 1.8 | J153: 0.5 | K153: 2.3 | L153: 4.076612825 | M153: 33.396 | N153: 64.249 | O153: 97.7315 | Q153: 255810 | R153: FALSE | T153: 2.3 | U153: FALSE | V153: FALSE | W153: FALSE | X153: 447.7 | Y153: FALSE | Z153: FALSE | AA153: FALSE | AB153: 501.4 | AC153: FALSE
A154: 122 | B154: =OFFSET(InputPriceData!B$15,CalculationsAndCharts!$A154+$A$11,0,1,1) -> 2015-09-28 | C154: =OFFSET(InputPriceData!G$15,CalculationsAndCharts!$A154+$A$11,IF($C$7,8,0),1,1) -> 393170 | D154: =OFFSET(InputPriceData!C$15,CalculationsAndCharts!$A154+$A$11,IF($C$7,8,0),1,1) -> 28.6 | E154: =OFFSET(InputPriceData!D$15,CalculationsAndCharts!$A154+$A$11,IF($C$7,8,0),1,1) -> 29.1 | F154: =OFFSET(InputPriceData!E$15,CalculationsAndCharts!$A154+$A$11,IF($C$7,8,0),1,1) -> 26.5 | G154: =OFFSET(InputPriceData!F$15,CalculationsAndCharts!$A154+$A$11,IF($C$7,8,0),1,1) -> 26.8 | H154: 2.6 | I154: 1.8 | J154: 4.4 | K154: 4.4 | L154: 4.21327535 | M154: 33.574 | N154: 65.139 | O154: 98.231 | Q154: 393170 | R154: FALSE | T154: 2.6 | U154: FALSE | V154: FALSE | W154: FALSE | X154: 447.7 | Y154: FALSE | Z154: FALSE | AA154: FALSE | AB154: 501.4 | AC154: FALSE
A155: 123 | B155: =OFFSET(InputPriceData!B$15,CalculationsAndCharts!$A155+$A$11,0,1,1) -> 2015-09-25 | C155: =OFFSET(InputPriceData!G$15,CalculationsAndCharts!$A155+$A$11,IF($C$7,8,0),1,1) -> 399970 | D155: =OFFSET(InputPriceData!C$15,CalculationsAndCharts!$A155+$A$11,IF($C$7,8,0),1,1) -> 30.7 | E155: =OFFSET(InputPriceData!D$15,CalculationsAndCharts!$A155+$A$11,IF($C$7,8,0),1,1) -> 31.8 | F155: =OFFSET(InputPriceData!E$15,CalculationsAndCharts!$A155+$A$11,IF($C$7,8,0),1,1) -> 30.2 | G155: =OFFSET(InputPriceData!F$15,CalculationsAndCharts!$A155+$A$11,IF($C$7,8,0),1,1) -> 30.9 | H155: 1.6 | I155: 0.5 | J155: 2.1 | K155: 2.1 | L155: 4.198911915 | M155: 34.08 | N155: 66.011 | O155: 98.7555 | P155: 399970 | R155: FALSE | T155: 1.6 | U155: FALSE | V155: FALSE | W155: FALSE | X155: 447.7 | Y155: FALSE | Z155: FALSE | AA155: FALSE | AB155: 501.4 | AC155: FALSE
A156: 124 | B156: =OFFSET(InputPriceData!B$15,CalculationsAndCharts!$A156+$A$11,0,1,1) -> 2015-09-24 | C156: =OFFSET(InputPriceData!G$15,CalculationsAndCharts!$A156+$A$11,IF($C$7,8,0),1,1) -> 702330 | D156: =OFFSET(InputPriceData!C$15,CalculationsAndCharts!$A156+$A$11,IF($C$7,8,0),1,1) -> 29 | E156: =OFFSET(InputPriceData!D$15,CalculationsAndCharts!$A156+$A$11,IF($C$7,8,0),1,1) -> 32.8 | F156: =OFFSET(InputPriceData!E$15,CalculationsAndCharts!$A156+$A$11,IF($C$7,8,0),1,1) -> 28.5 | G156: =OFFSET(InputPriceData!F$15,CalculationsAndCharts!$A156+$A$11,IF($C$7,8,0),1,1) -> 32.3 | H156: 4.3 | I156: 6 | J156: 1.7 | K156: 6 | L156: 4.360366678 | M156: 34.664 | N156: 66.936 | O156: 99.316 | P156: 702330 | R156: FALSE | T156: 4.3 | U156: FALSE | V156: FALSE | W156: FALSE | X156: 447.7 | Y156: FALSE | Z156: FALSE | AA156: FALSE | AB156: 501.4 | AC156: FALSE
A157: 125 | B157: =OFFSET(InputPriceData!B$15,CalculationsAndCharts!$A157+$A$11,0,1,1) -> 2015-09-23 | C157: =OFFSET(InputPriceData!G$15,CalculationsAndCharts!$A157+$A$11,IF($C$7,8,0),1,1) -> 312640 | D157: =OFFSET(InputPriceData!C$15,CalculationsAndCharts!$A157+$A$11,IF($C$7,8,0),1,1) -> 29.1 | E157: =OFFSET(InputPriceData!D$15,CalculationsAndCharts!$A157+$A$11,IF($C$7,8,0),1,1) -> 29.4 | F157: =OFFSET(InputPriceData!E$15,CalculationsAndCharts!$A157+$A$11,IF($C$7,8,0),1,1) -> 26.6 | G157: =OFFSET(InputPriceData!F$15,CalculationsAndCharts!$A157+$A$11,IF($C$7,8,0),1,1) -> 26.8 | H157: 2.8 | I157: 1.9 | J157: 0.9 | K157: 2.8 | L157: 4.234241038 | M157: 35.26 | N157: 67.882 | O157: 99.782 | Q157: 312640 | R157: FALSE | T157: 2.8 | U157: FALSE | V157: FALSE | W157: FALSE | X157: 447.7 | Y157: FALSE | Z157: FALSE | AA157: FALSE | AB157: 501.4 | AC157: FALSE
A158: 126 | B158: =OFFSET(InputPriceData!B$15,CalculationsAndCharts!$A158+$A$11,0,1,1) -> 2015-09-22 | C158: =OFFSET(InputPriceData!G$15,CalculationsAndCharts!$A158+$A$11,IF($C$7,8,0),1,1) -> 461850 | D158: =OFFSET(InputPriceData!C$15,CalculationsAndCharts!$A158+$A$11,IF($C$7,8,0),1,1) -> 29.5 | E158: =OFFSET(InputPriceData!D$15,CalculationsAndCharts!$A158+$A$11,IF($C$7,8,0),1,1) -> 29.7 | F158: =OFFSET(InputPriceData!E$15,CalculationsAndCharts!$A158+$A$11,IF($C$7,8,0),1,1) -> 27.1 | G158: =OFFSET(InputPriceData!F$15,CalculationsAndCharts!$A158+$A$11,IF($C$7,8,0),1,1) -> 27.5 | H158: 2.6 | I158: 2.1 | J158: 4.7 | K158: 4.7 | L158: 4.344567271 | M158: 36.05 | N158: 68.855 | O158: 100.266 | Q158: 461850 | R158: FALSE | T158: 2.6 | U158: FALSE | V158: FALSE | W158: FALSE | X158: 447.7 | Y158: FALSE | Z158: FALSE | AA158: FALSE | AB158: 501.4 | AC158: FALSE
A159: 127 | B159: =OFFSET(InputPriceData!B$15,CalculationsAndCharts!$A159+$A$11,0,1,1) -> 2015-09-21 | C159: =OFFSET(InputPriceData!G$15,CalculationsAndCharts!$A159+$A$11,IF($C$7,8,0),1,1) -> 393890 | D159: =OFFSET(InputPriceData!C$15,CalculationsAndCharts!$A159+$A$11,IF($C$7,8,0),1,1) -> 33.6 | E159: =OFFSET(InputPriceData!D$15,CalculationsAndCharts!$A159+$A$11,IF($C$7,8,0),1,1) -> 34.3 | F159: =OFFSET(InputPriceData!E$15,CalculationsAndCharts!$A159+$A$11,IF($C$7,8,0),1,1) -> 31.7 | G159: =OFFSET(InputPriceData!F$15,CalculationsAndCharts!$A159+$A$11,IF($C$7,8,0),1,1) -> 31.8 | H159: 2.6 | I159: 0.8 | J159: 3.4 | K159: 3.4 | L159: 4.317226292 | M159: 36.854 | N159: 69.8 | O159: 100.793 | Q159: 393890 | R159: FALSE | T159: 2.6 | U159: FALSE | V159: FALSE | W159: FALSE | X159: 447.7 | Y159: FALSE | Z159: FALSE | AA159: FALSE | AB159: 501.4 | AC159: FALSE
A160: 128 | B160: =OFFSET(InputPriceData!B$15,CalculationsAndCharts!$A160+$A$11,0,1,1) -> 2015-09-18 | C160: =OFFSET(InputPriceData!G$15,CalculationsAndCharts!$A160+$A$11,IF($C$7,8,0),1,1) -> 607130 | D160: =OFFSET(InputPriceData!C$15,CalculationsAndCharts!$A160+$A$11,IF($C$7,8,0),1,1) -> 36.2 | E160: =OFFSET(InputPriceData!D$15,CalculationsAndCharts!$A160+$A$11,IF($C$7,8,0),1,1) -> 36.8 | F160: =OFFSET(InputPriceData!E$15,CalculationsAndCharts!$A160+$A$11,IF($C$7,8,0),1,1) -> 33 | G160: =OFFSET(InputPriceData!F$15,CalculationsAndCharts!$A160+$A$11,IF($C$7,8,0),1,1) -> 35.1 | H160: 3.8 | I160: 3.2 | J160: 0.6 | K160: 3.8 | L160: 4.387782161 | M160: 37.568 | N160: 70.818 | O160: 101.336 | Q160: 607130 | R160: FALSE | T160: 3.8 | U160: FALSE | V160: FALSE | W160: FALSE | X160: 447.7 | Y160: FALSE | Z160: FALSE | AA160: FALSE | AB160: 501.4 | AC160: FALSE
A161: 129 | B161: =OFFSET(InputPriceData!B$15,CalculationsAndCharts!$A161+$A$11,0,1,1) -> 2015-09-17 | C161: =OFFSET(InputPriceData!G$15,CalculationsAndCharts!$A161+$A$11,IF($C$7,8,0),1,1) -> 809010 | D161: =OFFSET(InputPriceData!C$15,CalculationsAndCharts!$A161+$A$11,IF($C$7,8,0),1,1) -> 30.1 | E161: =OFFSET(InputPriceData!D$15,CalculationsAndCharts!$A161+$A$11,IF($C$7,8,0),1,1) -> 34.8 | F161: =OFFSET(InputPriceData!E$15,CalculationsAndCharts!$A161+$A$11,IF($C$7,8,0),1,1) -> 29.6 | G161: =OFFSET(InputPriceData!F$15,CalculationsAndCharts!$A161+$A$11,IF($C$7,8,0),1,1) -> 33.6 | H161: 5.2 | I161: 3.8 | J161: 1.4 | K161: 5.2 | L161: =IF(A161>$A$8,0,IF(A161>=($A$8-$A$16),AVERAGE(OFFSET(K161,0,0,($A$8-A161+1),1)),(L162*$C$16)+K161*$D$16)) -> 4.432996173 | M161: 38.258 | N161: 71.759 | O161: 101.826 | P161: 809010 | R161: FALSE | T161: 5.2 | U161: =IF(A161>=$A$8,FALSE,T161>=$A$21*AVERAGE(OFFSET(T162,0,0,$C$21,1))) -> TRUE | V161: FALSE | W161: FALSE | X161: =IF(W161,E161+$E$18,X162) -> 447.7 | Y161: FALSE | Z161: FALSE | AA161: FALSE | AB161: =IF(Z161,G161-$E$19,MAX(AB162,G161-$E$19)) -> 501.4 | AC161: FALSE
A162: 130 | B162: =OFFSET(InputPriceData!B$15,CalculationsAndCharts!$A162+$A$11,0,1,1) -> 2015-09-16 | C162: =OFFSET(InputPriceData!G$15,CalculationsAndCharts!$A162+$A$11,IF($C$7,8,0),1,1) -> 629220 | D162: =OFFSET(InputPriceData!C$15,CalculationsAndCharts!$A162+$A$11,IF($C$7,8,0),1,1) -> 28 | E162: =OFFSET(InputPriceData!D$15,CalculationsAndCharts!$A162+$A$11,IF($C$7,8,0),1,1) -> 31.3 | F162: =OFFSET(InputPriceData!E$15,CalculationsAndCharts!$A162+$A$11,IF($C$7,8,0),1,1) -> 28 | G162: =OFFSET(InputPriceData!F$15,CalculationsAndCharts!$A162+$A$11,IF($C$7,8,0),1,1) -> 31 | H162: 3.3 | I162: 4.7 | J162: 1.4 | K162: 4.7 | L162: 4.373995879 | M162: =AVERAGE(OFFSET($G162,0,0,$A$17,1)) -> 38.962 | N162: =AVERAGE(OFFSET($G162,0,0,$A$18,1)) -> 72.586 | O162: =AVERAGE(OFFSET($G162,0,0,$A$19,1)) -> 102.38 | P162: =IF(G162>=D162,C162,NA()) -> 629220 | Q162: =IF(G162<D162,C162,NA()) ->  | R162: =IF(A162>=$A$8,FALSE,L162=MAX(OFFSET(L162,0,0,$A$16,1))) -> FALSE | T162: 3.3 | U162: FALSE | V162: =IF(A162>=$A$8,FALSE,AND(E162>N162,E163<=N163)) -> FALSE | W162: =AND(R162,U162,V162) -> FALSE | X162: 447.7 | Y162: =IF(A162>=$A$8,FALSE,IF(AND(W163,NOT(AA163)),IF(G162<N162,FALSE,TRUE),IF(Z163,FALSE,Y163))) -> FALSE | Z162: =IF(A162>=$A$8,FALSE,AND(Y162,E162>X162,NOT(AA163))) -> FALSE | AA162: =IF(A162>=$A$8,FALSE,IF(Z162,TRUE,IF(AC162,FALSE,IF(AA163="",FALSE,AA163)))) -> FALSE | AB162: 501.4 | AC162: =IF(A162>=$A$8,FALSE,AND(AA163,F162<AB163)) -> FALSE | AE162: =IF(AC162,IF(E162<AB162,D162,IF( D162< AB162,D162,AB162)),NA()) ->  | AH162: =IF(OR(W162,Y162),X162,NA()) -> 
A163: 131 | B163: =OFFSET(InputPriceData!B$15,CalculationsAndCharts!$A163+$A$11,0,1,1) -> 2015-09-15 | C163: =OFFSET(InputPriceData!G$15,CalculationsAndCharts!$A163+$A$11,IF($C$7,8,0),1,1) -> 280430 | D163: =OFFSET(InputPriceData!C$15,CalculationsAndCharts!$A163+$A$11,IF($C$7,8,0),1,1) -> 26.2 | E163: =OFFSET(InputPriceData!D$15,CalculationsAndCharts!$A163+$A$11,IF($C$7,8,0),1,1) -> 27.6 | F163: =OFFSET(InputPriceData!E$15,CalculationsAndCharts!$A163+$A$11,IF($C$7,8,0),1,1) -> 25.7 | G163: =OFFSET(InputPriceData!F$15,CalculationsAndCharts!$A163+$A$11,IF($C$7,8,0),1,1) -> 26.6 | H163: 1.9 | I163: 1.3 | J163: 0.6 | K163: 1.9 | L163: 4.348918639 | M163: 39.756 | N163: 73.372 | O163: 102.8215 | P163: 280430 | R163: FALSE | T163: 1.9 | U163: FALSE | V163: FALSE | W163: FALSE | X163: 447.7 | Y163: FALSE | Z163: FALSE | AA163: FALSE | AB163: 501.4 | AC163: FALSE
A164: 132 | B164: =OFFSET(InputPriceData!B$15,CalculationsAndCharts!$A164+$A$11,0,1,1) -> 2015-09-14 | C164: =OFFSET(InputPriceData!G$15,CalculationsAndCharts!$A164+$A$11,IF($C$7,8,0),1,1) -> 319730 | D164: =OFFSET(InputPriceData!C$15,CalculationsAndCharts!$A164+$A$11,IF($C$7,8,0),1,1) -> 26.3 | E164: =OFFSET(InputPriceData!D$15,CalculationsAndCharts!$A164+$A$11,IF($C$7,8,0),1,1) -> 27.9 | F164: =OFFSET(InputPriceData!E$15,CalculationsAndCharts!$A164+$A$11,IF($C$7,8,0),1,1) -> 25.3 | G164: =OFFSET(InputPriceData!F$15,CalculationsAndCharts!$A164+$A$11,IF($C$7,8,0),1,1) -> 26.3 | H164: 2.6 | I164: 0.8 | J164: 1.8 | K164: 2.6 | L164: 4.537296995 | M164: 40.86 | N164: 74.27 | O164: 103.489 | P164: 319730 | R164: FALSE | S164: =IF(R164,L164,NA()) ->  | T164: =E164-F164 -> 2.6 | U164: FALSE | V164: FALSE | W164: FALSE | X164: 447.7 | Y164: FALSE | Z164: FALSE | AA164: FALSE | AB164: 501.4 | AC164: FALSE
A165: 133 | B165: =OFFSET(InputPriceData!B$15,CalculationsAndCharts!$A165+$A$11,0,1,1) -> 2015-09-11 | C165: =OFFSET(InputPriceData!G$15,CalculationsAndCharts!$A165+$A$11,IF($C$7,8,0),1,1) -> 570290 | D165: =OFFSET(InputPriceData!C$15,CalculationsAndCharts!$A165+$A$11,IF($C$7,8,0),1,1) -> 25.9 | E165: =OFFSET(InputPriceData!D$15,CalculationsAndCharts!$A165+$A$11,IF($C$7,8,0),1,1) -> 27.4 | F165: =OFFSET(InputPriceData!E$15,CalculationsAndCharts!$A165+$A$11,IF($C$7,8,0),1,1) -> 23.6 | G165: =OFFSET(InputPriceData!F$15,CalculationsAndCharts!$A165+$A$11,IF($C$7,8,0),1,1) -> 27.1 | H165: =E165-F165 -> 3.8 | I165: =IF(A165>=$A$8,0,ABS(E165-G166)) -> 0.8 | J165: =IF(A165>=$A$8,0,ABS(F165-G166)) -> 3 | K165: =MAX(H165:J165) -> 3.8 | L165: 4.686319841 | M165: 41.91 | N165: 75.098 | O165: 104.192 | P165: 570290 | R165: FALSE | T165: 3.8 | U165: TRUE | V165: FALSE | W165: FALSE | X165: 447.7 | Y165: FALSE | Z165: FALSE | AA165: FALSE | AB165: 501.4 | AC165: FALSE
A166: 134 | B166: =OFFSET(InputPriceData!B$15,CalculationsAndCharts!$A166+$A$11,0,1,1) -> 2015-09-10 | C166: =OFFSET(InputPriceData!G$15,CalculationsAndCharts!$A166+$A$11,IF($C$7,8,0),1,1) -> 335080 | D166: =OFFSET(InputPriceData!C$15,CalculationsAndCharts!$A166+$A$11,IF($C$7,8,0),1,1) -> 28 | E166: =OFFSET(InputPriceData!D$15,CalculationsAndCharts!$A166+$A$11,IF($C$7,8,0),1,1) -> 28.4 | F166: =OFFSET(InputPriceData!E$15,CalculationsAndCharts!$A166+$A$11,IF($C$7,8,0),1,1) -> 26.4 | G166: =OFFSET(InputPriceData!F$15,CalculationsAndCharts!$A166+$A$11,IF($C$7,8,0),1,1) -> 26.6 | H166: 2 | I166: 1.6 | J166: 0.4 | K166: 2 | L166: 4.754498291 | M166: 42.864 | N166: 76.033 | O166: 104.8005 | Q166: 335080 | R166: FALSE | T166: 2 | U166: FALSE | V166: FALSE | W166: FALSE | X166: 447.7 | Y166: FALSE | Z166: FALSE | AA166: FALSE | AB166: 501.4 | AC166: FALSE
A167: 135 | B167: =OFFSET(InputPriceData!B$15,CalculationsAndCharts!$A167+$A$11,0,1,1) -> 2015-09-09 | C167: =OFFSET(InputPriceData!G$15,CalculationsAndCharts!$A167+$A$11,IF($C$7,8,0),1,1) -> 427660 | D167: =OFFSET(InputPriceData!C$15,CalculationsAndCharts!$A167+$A$11,IF($C$7,8,0),1,1) -> 27.9 | E167: =OFFSET(InputPriceData!D$15,CalculationsAndCharts!$A167+$A$11,IF($C$7,8,0),1,1) -> 29.1 | F167: =OFFSET(InputPriceData!E$15,CalculationsAndCharts!$A167+$A$11,IF($C$7,8,0),1,1) -> 26.5 | G167: =OFFSET(InputPriceData!F$15,CalculationsAndCharts!$A167+$A$11,IF($C$7,8,0),1,1) -> 26.8 | H167: 2.6 | I167: 0.1 | J167: 2.7 | K167: 2.7 | L167: 4.966382775 | M167: 43.954 | N167: 76.952 | O167: 105.4435 | Q167: 427660 | R167: FALSE | T167: 2.6 | U167: FALSE | V167: FALSE | W167: FALSE | X167: 447.7 | Y167: FALSE | Z167: FALSE | AA167: FALSE | AB167: 501.4 | AC167: FALSE
A168: 136 | B168: =OFFSET(InputPriceData!B$15,CalculationsAndCharts!$A168+$A$11,0,1,1) -> 2015-09-08 | C168: =OFFSET(InputPriceData!G$15,CalculationsAndCharts!$A168+$A$11,IF($C$7,8,0),1,1) -> 390040 | D168: =OFFSET(InputPriceData!C$15,CalculationsAndCharts!$A168+$A$11,IF($C$7,8,0),1,1) -> 29.2 | E168: =OFFSET(InputPriceData!D$15,CalculationsAndCharts!$A168+$A$11,IF($C$7,8,0),1,1) -> 30.5 | F168: =OFFSET(InputPriceData!E$15,CalculationsAndCharts!$A168+$A$11,IF($C$7,8,0),1,1) -> 28 | G168: =OFFSET(InputPriceData!F$15,CalculationsAndCharts!$A168+$A$11,IF($C$7,8,0),1,1) -> 29.2 | H168: 2.5 | I168: 2 | J168: 0.5 | K168: 2.5 | L168: 5.140719911 | M168: 45.084 | N168: 77.847 | O168: 106.0645 | P168: 390040 | R168: FALSE | T168: 2.5 | U168: FALSE | V168: FALSE | W168: FALSE | X168: 447.7 | Y168: FALSE | Z168: FALSE | AA168: FALSE | AB168: 501.4 | AC168: FALSE
A169: 137 | B169: =OFFSET(InputPriceData!B$15,CalculationsAndCharts!$A169+$A$11,0,1,1) -> 2015-09-04 | C169: =OFFSET(InputPriceData!G$15,CalculationsAndCharts!$A169+$A$11,IF($C$7,8,0),1,1) -> 469470 | D169: =OFFSET(InputPriceData!C$15,CalculationsAndCharts!$A169+$A$11,IF($C$7,8,0),1,1) -> 27.7 | E169: =OFFSET(InputPriceData!D$15,CalculationsAndCharts!$A169+$A$11,IF($C$7,8,0),1,1) -> 28.5 | F169: =OFFSET(InputPriceData!E$15,CalculationsAndCharts!$A169+$A$11,IF($C$7,8,0),1,1) -> 26.3 | G169: =OFFSET(InputPriceData!F$15,CalculationsAndCharts!$A169+$A$11,IF($C$7,8,0),1,1) -> 28.5 | H169: 2.2 | I169: 0.3 | J169: 1.9 | K169: 2.2 | L169: 5.343852212 | M169: 46.222 | N169: 78.719 | O169: 106.6195 | P169: 469470 | R169: FALSE | T169: 2.2 | U169: FALSE | V169: FALSE | W169: FALSE | X169: 447.7 | Y169: FALSE | Z169: FALSE | AA169: FALSE | AB169: 501.4 | AC169: FALSE
A170: 138 | B170: =OFFSET(InputPriceData!B$15,CalculationsAndCharts!$A170+$A$11,0,1,1) -> 2015-09-03 | C170: =OFFSET(InputPriceData!G$15,CalculationsAndCharts!$A170+$A$11,IF($C$7,8,0),1,1) -> 469370 | D170: =OFFSET(InputPriceData!C$15,CalculationsAndCharts!$A170+$A$11,IF($C$7,8,0),1,1) -> 28.3 | E170: =OFFSET(InputPriceData!D$15,CalculationsAndCharts!$A170+$A$11,IF($C$7,8,0),1,1) -> 32.5 | F170: =OFFSET(InputPriceData!E$15,CalculationsAndCharts!$A170+$A$11,IF($C$7,8,0),1,1) -> 28.1 | G170: =OFFSET(InputPriceData!F$15,CalculationsAndCharts!$A170+$A$11,IF($C$7,8,0),1,1) -> 28.2 | H170: 4.4 | I170: 2.7 | J170: 1.7 | K170: 4.4 | L170: 5.585686997 | M170: 47.406 | N170: 79.644 | O170: 107.32 | Q170: 469370 | R170: FALSE | T170: 4.4 | U170: FALSE | V170: FALSE | W170: FALSE | X170: 447.7 | Y170: FALSE | Z170: FALSE | AA170: FALSE | AB170: 501.4 | AC170: FALSE
A171: 139 | B171: =OFFSET(InputPriceData!B$15,CalculationsAndCharts!$A171+$A$11,0,1,1) -> 2015-09-02 | C171: =OFFSET(InputPriceData!G$15,CalculationsAndCharts!$A171+$A$11,IF($C$7,8,0),1,1) -> 513460 | D171: =OFFSET(InputPriceData!C$15,CalculationsAndCharts!$A171+$A$11,IF($C$7,8,0),1,1) -> 30.6 | E171: =OFFSET(InputPriceData!D$15,CalculationsAndCharts!$A171+$A$11,IF($C$7,8,0),1,1) -> 31.7 | F171: =OFFSET(InputPriceData!E$15,CalculationsAndCharts!$A171+$A$11,IF($C$7,8,0),1,1) -> 28 | G171: =OFFSET(InputPriceData!F$15,CalculationsAndCharts!$A171+$A$11,IF($C$7,8,0),1,1) -> 29.8 | H171: 3.7 | I171: 1.1 | J171: 2.6 | K171: 3.7 | L171: 5.676893689 | M171: 48.648 | N171: 80.479 | O171: 107.9145 | Q171: 513460 | R171: FALSE | T171: 3.7 | U171: FALSE | V171: FALSE | W171: FALSE | X171: 447.7 | Y171: FALSE | Z171: FALSE | AA171: FALSE | AB171: 501.4 | AC171: FALSE
A172: 140 | B172: =OFFSET(InputPriceData!B$15,CalculationsAndCharts!$A172+$A$11,0,1,1) -> 2015-09-01 | C172: =OFFSET(InputPriceData!G$15,CalculationsAndCharts!$A172+$A$11,IF($C$7,8,0),1,1) -> 428790 | D172: =OFFSET(InputPriceData!C$15,CalculationsAndCharts!$A172+$A$11,IF($C$7,8,0),1,1) -> 34.2 | E172: =OFFSET(InputPriceData!D$15,CalculationsAndCharts!$A172+$A$11,IF($C$7,8,0),1,1) -> 35.2 | F172: =OFFSET(InputPriceData!E$15,CalculationsAndCharts!$A172+$A$11,IF($C$7,8,0),1,1) -> 30.3 | G172: =OFFSET(InputPriceData!F$15,CalculationsAndCharts!$A172+$A$11,IF($C$7,8,0),1,1) -> 30.6 | H172: 4.9 | I172: 2 | J172: 2.9 | K172: 4.9 | L172: 5.828962435 | M172: 49.85 | N172: 81.269 | O172: 108.462 | Q172: 428790 | R172: FALSE | T172: 4.9 | U172: FALSE | V172: FALSE | W172: FALSE | X172: 447.7 | Y172: FALSE | Z172: FALSE | AA172: FALSE | AB172: 501.4 | AC172: FALSE
A173: 141 | B173: =OFFSET(InputPriceData!B$15,CalculationsAndCharts!$A173+$A$11,0,1,1) -> 2015-08-31 | C173: =OFFSET(InputPriceData!G$15,CalculationsAndCharts!$A173+$A$11,IF($C$7,8,0),1,1) -> 402210 | D173: =OFFSET(InputPriceData!C$15,CalculationsAndCharts!$A173+$A$11,IF($C$7,8,0),1,1) -> 32 | E173: =OFFSET(InputPriceData!D$15,CalculationsAndCharts!$A173+$A$11,IF($C$7,8,0),1,1) -> 33.3 | F173: =OFFSET(InputPriceData!E$15,CalculationsAndCharts!$A173+$A$11,IF($C$7,8,0),1,1) -> 29.6 | G173: =OFFSET(InputPriceData!F$15,CalculationsAndCharts!$A173+$A$11,IF($C$7,8,0),1,1) -> 33.2 | H173: 3.7 | I173: 0.9 | J173: 4.6 | K173: 4.6 | L173: 5.900421084 | M173: 51.03 | N173: 82.086 | O173: 108.9005 | P173: 402210 | R173: FALSE | T173: 3.7 | U173: FALSE | V173: FALSE | W173: FALSE | X173: 447.7 | Y173: FALSE | Z173: FALSE | AA173: FALSE | AB173: 501.4 | AC173: FALSE
A174: 142 | B174: =OFFSET(InputPriceData!B$15,CalculationsAndCharts!$A174+$A$11,0,1,1) -> 2015-08-28 | C174: =OFFSET(InputPriceData!G$15,CalculationsAndCharts!$A174+$A$11,IF($C$7,8,0),1,1) -> 605880 | D174: =OFFSET(InputPriceData!C$15,CalculationsAndCharts!$A174+$A$11,IF($C$7,8,0),1,1) -> 31 | E174: =OFFSET(InputPriceData!D$15,CalculationsAndCharts!$A174+$A$11,IF($C$7,8,0),1,1) -> 35.3 | F174: =OFFSET(InputPriceData!E$15,CalculationsAndCharts!$A174+$A$11,IF($C$7,8,0),1,1) -> 30.9 | G174: =OFFSET(InputPriceData!F$15,CalculationsAndCharts!$A174+$A$11,IF($C$7,8,0),1,1) -> 34.2 | H174: 4.4 | I174: 4 | J174: 0.4 | K174: 4.4 | L174: 6.000453475 | M174: 52.258 | N174: 82.791 | O174: 109.3525 | P174: 605880 | R174: FALSE | T174: 4.4 | U174: FALSE | V174: FALSE | W174: FALSE | X174: 447.7 | Y174: FALSE | Z174: FALSE | AA174: FALSE | AB174: 501.4 | AC174: FALSE
A175: 143 | B175: =OFFSET(InputPriceData!B$15,CalculationsAndCharts!$A175+$A$11,0,1,1) -> 2015-08-27 | C175: =OFFSET(InputPriceData!G$15,CalculationsAndCharts!$A175+$A$11,IF($C$7,8,0),1,1) -> 522740 | D175: =OFFSET(InputPriceData!C$15,CalculationsAndCharts!$A175+$A$11,IF($C$7,8,0),1,1) -> 27 | E175: =OFFSET(InputPriceData!D$15,CalculationsAndCharts!$A175+$A$11,IF($C$7,8,0),1,1) -> 31.9 | F175: =OFFSET(InputPriceData!E$15,CalculationsAndCharts!$A175+$A$11,IF($C$7,8,0),1,1) -> 26.4 | G175: =OFFSET(InputPriceData!F$15,CalculationsAndCharts!$A175+$A$11,IF($C$7,8,0),1,1) -> 31.3 | H175: 5.5 | I175: 5.1 | J175: 0.4 | K175: 5.5 | L175: 6.12356528 | M175: 53.594 | N175: 83.512 | O175: 109.7965 | P175: 522740 | R175: FALSE | T175: 5.5 | U175: FALSE | V175: FALSE | W175: FALSE | X175: 447.7 | Y175: FALSE | Z175: FALSE | AA175: FALSE | AB175: 501.4 | AC175: FALSE
A176: 144 | B176: =OFFSET(InputPriceData!B$15,CalculationsAndCharts!$A176+$A$11,0,1,1) -> 2015-08-26 | C176: =OFFSET(InputPriceData!G$15,CalculationsAndCharts!$A176+$A$11,IF($C$7,8,0),1,1) -> 685930 | D176: =OFFSET(InputPriceData!C$15,CalculationsAndCharts!$A176+$A$11,IF($C$7,8,0),1,1) -> 29.9 | E176: =OFFSET(InputPriceData!D$15,CalculationsAndCharts!$A176+$A$11,IF($C$7,8,0),1,1) -> 29.9 | F176: =OFFSET(InputPriceData!E$15,CalculationsAndCharts!$A176+$A$11,IF($C$7,8,0),1,1) -> 26.1 | G176: =OFFSET(InputPriceData!F$15,CalculationsAndCharts!$A176+$A$11,IF($C$7,8,0),1,1) -> 26.8 | H176: 3.8 | I176: 1.2 | J176: 5 | K176: 5 | L176: 6.17153184 | M176: 54.908 | N176: 84.281 | O176: 110.19 | Q176: 685930 | R176: FALSE | T176: 3.8 | U176: FALSE | V176: FALSE | W176: FALSE | X176: 447.7 | Y176: FALSE | Z176: FALSE | AA176: FALSE | AB176: 501.4 | AC176: FALSE
A177: 145 | B177: =OFFSET(InputPriceData!B$15,CalculationsAndCharts!$A177+$A$11,0,1,1) -> 2015-08-25 | C177: =OFFSET(InputPriceData!G$15,CalculationsAndCharts!$A177+$A$11,IF($C$7,8,0),1,1) -> 471890 | D177: =OFFSET(InputPriceData!C$15,CalculationsAndCharts!$A177+$A$11,IF($C$7,8,0),1,1) -> 37.2 | E177: =OFFSET(InputPriceData!D$15,CalculationsAndCharts!$A177+$A$11,IF($C$7,8,0),1,1) -> 37.3 | F177: =OFFSET(InputPriceData!E$15,CalculationsAndCharts!$A177+$A$11,IF($C$7,8,0),1,1) -> 30.4 | G177: =OFFSET(InputPriceData!F$15,CalculationsAndCharts!$A177+$A$11,IF($C$7,8,0),1,1) -> 31.1 | H177: 6.9 | I177: 2.4 | J177: 4.5 | K177: 6.9 | L177: 6.261649674 | M177: 56.178 | N177: 85.184 | O177: 110.726 | Q177: 471890 | R177: TRUE | S177: 6.261649674 | T177: 6.9 | U177: FALSE | V177: FALSE | W177: FALSE | X177: 447.7 | Y177: FALSE | Z177: FALSE | AA177: FALSE | AB177: 501.4 | AC177: FALSE
A178: 146 | B178: =OFFSET(InputPriceData!B$15,CalculationsAndCharts!$A178+$A$11,0,1,1) -> 2015-08-24 | C178: =OFFSET(InputPriceData!G$15,CalculationsAndCharts!$A178+$A$11,IF($C$7,8,0),1,1) -> 4641230 | D178: =OFFSET(InputPriceData!C$15,CalculationsAndCharts!$A178+$A$11,IF($C$7,8,0),1,1) -> 43.2 | E178: =OFFSET(InputPriceData!D$15,CalculationsAndCharts!$A178+$A$11,IF($C$7,8,0),1,1) -> 47.4 | F178: =OFFSET(InputPriceData!E$15,CalculationsAndCharts!$A178+$A$11,IF($C$7,8,0),1,1) -> 33.9 | G178: =OFFSET(InputPriceData!F$15,CalculationsAndCharts!$A178+$A$11,IF($C$7,8,0),1,1) -> 34.9 | H178: 13.5 | I178: 2 | J178: 11.5 | K178: 13.5 | L178: 6.212545803 | M178: 57.434 | N178: 85.928 | O178: 111.1105 | Q178: 4641230 | R178: TRUE | S178: 6.212545803 | T178: 13.5 | U178: TRUE | V178: FALSE | W178: FALSE | X178: 447.7 | Y178: FALSE | Z178: FALSE | AA178: FALSE | AB178: 501.4 | AC178: FALSE
A179: 147 | B179: =OFFSET(InputPriceData!B$15,CalculationsAndCharts!$A179+$A$11,0,1,1) -> 2015-08-21 | C179: =OFFSET(InputPriceData!G$15,CalculationsAndCharts!$A179+$A$11,IF($C$7,8,0),1,1) -> 605910 | D179: =OFFSET(InputPriceData!C$15,CalculationsAndCharts!$A179+$A$11,IF($C$7,8,0),1,1) -> 52.5 | E179: =OFFSET(InputPriceData!D$15,CalculationsAndCharts!$A179+$A$11,IF($C$7,8,0),1,1) -> 52.6 | F179: =OFFSET(InputPriceData!E$15,CalculationsAndCharts!$A179+$A$11,IF($C$7,8,0),1,1) -> 44.1 | G179: =OFFSET(InputPriceData!F$15,CalculationsAndCharts!$A179+$A$11,IF($C$7,8,0),1,1) -> 45.4 | H179: 8.5 | I179: 3.2 | J179: 5.3 | K179: 8.5 | L179: 5.651972403 | M179: 58.61 | N179: 86.669 | O179: 111.426 | Q179: 605910 | R179: TRUE | S179: 5.651972403 | T179: 8.5 | U179: TRUE | V179: FALSE | W179: FALSE | X179: 447.7 | Y179: FALSE | Z179: FALSE | AA179: FALSE | AB179: 501.4 | AC179: FALSE
A180: 148 | B180: =OFFSET(InputPriceData!B$15,CalculationsAndCharts!$A180+$A$11,0,1,1) -> 2015-08-20 | C180: =OFFSET(InputPriceData!G$15,CalculationsAndCharts!$A180+$A$11,IF($C$7,8,0),1,1) -> 623430 | D180: =OFFSET(InputPriceData!C$15,CalculationsAndCharts!$A180+$A$11,IF($C$7,8,0),1,1) -> 48.4 | E180: =OFFSET(InputPriceData!D$15,CalculationsAndCharts!$A180+$A$11,IF($C$7,8,0),1,1) -> 51.4 | F180: =OFFSET(InputPriceData!E$15,CalculationsAndCharts!$A180+$A$11,IF($C$7,8,0),1,1) -> 47.2 | G180: =OFFSET(InputPriceData!F$15,CalculationsAndCharts!$A180+$A$11,IF($C$7,8,0),1,1) -> 49.4 | H180: 4.2 | I180: 7.6 | J180: 3.4 | K180: 7.6 | L180: 5.432893358 | M180: 59.622 | N180: 87.157 | O180: 111.751 | P180: 623430 | R180: FALSE | T180: 4.2 | U180: FALSE | V180: FALSE | W180: FALSE | X180: 447.7 | Y180: FALSE | Z180: FALSE | AA180: FALSE | AB180: 501.4 | AC180: FALSE
A181: 149 | B181: =OFFSET(InputPriceData!B$15,CalculationsAndCharts!$A181+$A$11,0,1,1) -> 2015-08-19 | C181: =OFFSET(InputPriceData!G$15,CalculationsAndCharts!$A181+$A$11,IF($C$7,8,0),1,1) -> 4896370 | D181: =OFFSET(InputPriceData!C$15,CalculationsAndCharts!$A181+$A$11,IF($C$7,8,0),1,1) -> 41.7 | E181: =OFFSET(InputPriceData!D$15,CalculationsAndCharts!$A181+$A$11,IF($C$7,8,0),1,1) -> 44.7 | F181: =OFFSET(InputPriceData!E$15,CalculationsAndCharts!$A181+$A$11,IF($C$7,8,0),1,1) -> 41.5 | G181: =OFFSET(InputPriceData!F$15,CalculationsAndCharts!$A181+$A$11,IF($C$7,8,0),1,1) -> 43.8 | H181: 3.2 | I181: 4.1 | J181: 0.9 | K181: 4.1 | L181: 5.266192847 | M181: 60.626 | N181: 87.642 | O181: 112.122 | P181: 4896370 | R181: FALSE | T181: 3.2 | U181: FALSE | V181: FALSE | W181: FALSE | X181: 447.7 | Y181: FALSE | Z181: FALSE | AA181: FALSE | AB181: 501.4 | AC181: FALSE
A182: 150 | B182: =OFFSET(InputPriceData!B$15,CalculationsAndCharts!$A182+$A$11,0,1,1) -> 2015-08-18 | C182: =OFFSET(InputPriceData!G$15,CalculationsAndCharts!$A182+$A$11,IF($C$7,8,0),1,1) -> 343320 | D182: =OFFSET(InputPriceData!C$15,CalculationsAndCharts!$A182+$A$11,IF($C$7,8,0),1,1) -> 40.3 | E182: =OFFSET(InputPriceData!D$15,CalculationsAndCharts!$A182+$A$11,IF($C$7,8,0),1,1) -> 41.8 | F182: =OFFSET(InputPriceData!E$15,CalculationsAndCharts!$A182+$A$11,IF($C$7,8,0),1,1) -> 38.3 | G182: =OFFSET(InputPriceData!F$15,CalculationsAndCharts!$A182+$A$11,IF($C$7,8,0),1,1) -> 40.6 | H182: 3.5 | I182: 0.8 | J182: 4.3 | K182: 4.3 | L182: 5.355899989 | M182: 61.688 | N182: 88.242 | O182: 112.449 | P182: 343320 | R182: FALSE | T182: 3.5 | U182: FALSE | V182: FALSE | W182: FALSE | X182: 447.7 | Y182: FALSE | Z182: FALSE | AA182: FALSE | AB182: 501.4 | AC182: FALSE
A183: 151 | B183: =OFFSET(InputPriceData!B$15,CalculationsAndCharts!$A183+$A$11,0,1,1) -> 2015-08-17 | C183: =OFFSET(InputPriceData!G$15,CalculationsAndCharts!$A183+$A$11,IF($C$7,8,0),1,1) -> 399540 | D183: =OFFSET(InputPriceData!C$15,CalculationsAndCharts!$A183+$A$11,IF($C$7,8,0),1,1) -> 41 | E183: =OFFSET(InputPriceData!D$15,CalculationsAndCharts!$A183+$A$11,IF($C$7,8,0),1,1) -> 43.4 | F183: =OFFSET(InputPriceData!E$15,CalculationsAndCharts!$A183+$A$11,IF($C$7,8,0),1,1) -> 40.5 | G183: =OFFSET(InputPriceData!F$15,CalculationsAndCharts!$A183+$A$11,IF($C$7,8,0),1,1) -> 42.6 | H183: 2.9 | I183: 5 | J183: 2.1 | K183: 5 | L183: 5.437123065 | M183: 62.886 | N183: 88.914 | O183: 112.9085 | P183: 399540 | R183: FALSE | T183: 2.9 | U183: FALSE | V183: FALSE | W183: FALSE | X183: 447.7 | Y183: FALSE | Z183: FALSE | AA183: FALSE | AB183: 501.4 | AC183: FALSE
A184: 152 | B184: =OFFSET(InputPriceData!B$15,CalculationsAndCharts!$A184+$A$11,0,1,1) -> 2015-08-14 | C184: =OFFSET(InputPriceData!G$15,CalculationsAndCharts!$A184+$A$11,IF($C$7,8,0),1,1) -> 355350 | D184: =OFFSET(InputPriceData!C$15,CalculationsAndCharts!$A184+$A$11,IF($C$7,8,0),1,1) -> 41.9 | E184: =OFFSET(InputPriceData!D$15,CalculationsAndCharts!$A184+$A$11,IF($C$7,8,0),1,1) -> 42.5 | F184: =OFFSET(InputPriceData!E$15,CalculationsAndCharts!$A184+$A$11,IF($C$7,8,0),1,1) -> 37.5 | G184: =OFFSET(InputPriceData!F$15,CalculationsAndCharts!$A184+$A$11,IF($C$7,8,0),1,1) -> 38.4 | H184: 5 | I184: 2.5 | J184: 2.5 | K184: 5 | L184: 5.470747916 | M184: 63.992 | N184: 89.621 | O184: 113.542 | Q184: 355350 | R184: FALSE | T184: 5 | U184: FALSE | V184: FALSE | W184: FALSE | X184: 447.7 | Y184: FALSE | Z184: FALSE | AA184: FALSE | AB184: 501.4 | AC184: FALSE
A185: 153 | B185: =OFFSET(InputPriceData!B$15,CalculationsAndCharts!$A185+$A$11,0,1,1) -> 2015-08-13 | C185: =OFFSET(InputPriceData!G$15,CalculationsAndCharts!$A185+$A$11,IF($C$7,8,0),1,1) -> 431850 | D185: =OFFSET(InputPriceData!C$15,CalculationsAndCharts!$A185+$A$11,IF($C$7,8,0),1,1) -> 43.4 | E185: =OFFSET(InputPriceData!D$15,CalculationsAndCharts!$A185+$A$11,IF($C$7,8,0),1,1) -> 45 | F185: =OFFSET(InputPriceData!E$15,CalculationsAndCharts!$A185+$A$11,IF($C$7,8,0),1,1) -> 39 | G185: =OFFSET(InputPriceData!F$15,CalculationsAndCharts!$A185+$A$11,IF($C$7,8,0),1,1) -> 40 | H185: 6 | I185: 2.4 | J185: 8.4 | K185: 8.4 | L185: 5.506959294 | M185: 65.264 | N185: 90.419 | O185: 114.3175 | Q185: 431850 | R185: FALSE | T185: 6 | U185: FALSE | V185: FALSE | W185: FALSE | X185: 447.7 | Y185: FALSE | Z185: FALSE | AA185: FALSE | AB185: 501.4 | AC185: FALSE | AD185: =IF(Z185,MAX(X185,D185),NA()) ->  | AF185: =IF(Z185,F185,NA()) ->  | AG185: =IF(AC185,E185,NA()) -> 
A186: 154 | B186: =OFFSET(InputPriceData!B$15,CalculationsAndCharts!$A186+$A$11,0,1,1) -> 2015-08-12 | C186: =OFFSET(InputPriceData!G$15,CalculationsAndCharts!$A186+$A$11,IF($C$7,8,0),1,1) -> 7598340 | D186: =OFFSET(InputPriceData!C$15,CalculationsAndCharts!$A186+$A$11,IF($C$7,8,0),1,1) -> 42 | E186: =OFFSET(InputPriceData!D$15,CalculationsAndCharts!$A186+$A$11,IF($C$7,8,0),1,1) -> 47.8 | F186: =OFFSET(InputPriceData!E$15,CalculationsAndCharts!$A186+$A$11,IF($C$7,8,0),1,1) -> 41.7 | G186: =OFFSET(InputPriceData!F$15,CalculationsAndCharts!$A186+$A$11,IF($C$7,8,0),1,1) -> 47.4 | H186: 6.1 | I186: 8.2 | J186: 2.1 | K186: 8.2 | L186: 5.284417701 | M186: 66.604 | N186: 91.218 | O186: 115.0335 | P186: 7598340 | R186: FALSE | T186: 6.1 | U186: FALSE | V186: FALSE | W186: FALSE | X186: 447.7 | Y186: FALSE | Z186: FALSE | AA186: FALSE | AB186: 501.4 | AC186: FALSE
A187: 155 | B187: =OFFSET(InputPriceData!B$15,CalculationsAndCharts!$A187+$A$11,0,1,1) -> 2015-08-11 | C187: =OFFSET(InputPriceData!G$15,CalculationsAndCharts!$A187+$A$11,IF($C$7,8,0),1,1) -> 603770 | D187: =OFFSET(InputPriceData!C$15,CalculationsAndCharts!$A187+$A$11,IF($C$7,8,0),1,1) -> 39.1 | E187: =OFFSET(InputPriceData!D$15,CalculationsAndCharts!$A187+$A$11,IF($C$7,8,0),1,1) -> 39.6 | F187: =OFFSET(InputPriceData!E$15,CalculationsAndCharts!$A187+$A$11,IF($C$7,8,0),1,1) -> 35.1 | G187: =OFFSET(InputPriceData!F$15,CalculationsAndCharts!$A187+$A$11,IF($C$7,8,0),1,1) -> 39.6 | H187: 4.5 | I187: 2.1 | J187: 2.4 | K187: 4.5 | L187: 5.06014214 | M187: 67.932 | N187: 91.87 | O187: 115.762 | P187: 603770 | R187: FALSE | T187: 4.5 | U187: FALSE | V187: FALSE | W187: FALSE | X187: 447.7 | Y187: FALSE | Z187: FALSE | AA187: FALSE | AB187: 501.4 | AC187: FALSE
A188: 156 | B188: =OFFSET(InputPriceData!B$15,CalculationsAndCharts!$A188+$A$11,0,1,1) -> 2015-08-10 | C188: =OFFSET(InputPriceData!G$15,CalculationsAndCharts!$A188+$A$11,IF($C$7,8,0),1,1) -> 6012870 | D188: =OFFSET(InputPriceData!C$15,CalculationsAndCharts!$A188+$A$11,IF($C$7,8,0),1,1) -> 32.9 | E188: =OFFSET(InputPriceData!D$15,CalculationsAndCharts!$A188+$A$11,IF($C$7,8,0),1,1) -> 37.8 | F188: =OFFSET(InputPriceData!E$15,CalculationsAndCharts!$A188+$A$11,IF($C$7,8,0),1,1) -> 31.3 | G188: =OFFSET(InputPriceData!F$15,CalculationsAndCharts!$A188+$A$11,IF($C$7,8,0),1,1) -> 37.5 | H188: 6.5 | I188: 6.3 | J188: 0.2 | K188: 6.5 | L188: 5.103229997 | M188: 69.32 | N188: 92.497 | O188: 116.5425 | P188: 6012870 | R188: FALSE | T188: 6.5 | U188: TRUE | V188: FALSE | W188: FALSE | X188: 447.7 | Y188: FALSE | Z188: FALSE | AA188: FALSE | AB188: 501.4 | AC188: FALSE
A189: 157 | B189: =OFFSET(InputPriceData!B$15,CalculationsAndCharts!$A189+$A$11,0,1,1) -> 2015-08-07 | C189: =OFFSET(InputPriceData!G$15,CalculationsAndCharts!$A189+$A$11,IF($C$7,8,0),1,1) -> 447430 | D189: =OFFSET(InputPriceData!C$15,CalculationsAndCharts!$A189+$A$11,IF($C$7,8,0),1,1) -> 31.5 | E189: =OFFSET(InputPriceData!D$15,CalculationsAndCharts!$A189+$A$11,IF($C$7,8,0),1,1) -> 34.7 | F189: =OFFSET(InputPriceData!E$15,CalculationsAndCharts!$A189+$A$11,IF($C$7,8,0),1,1) -> 31 | G189: =OFFSET(InputPriceData!F$15,CalculationsAndCharts!$A189+$A$11,IF($C$7,8,0),1,1) -> 31.5 | H189: 3.7 | I189: 3.3 | J189: 0.4 | K189: 3.7 | L189: 4.99578615 | M189: 70.77 | N189: 93.167 | O189: 117.318 | P189: 447430 | R189: FALSE | T189: 3.7 | U189: FALSE | V189: FALSE | W189: FALSE | X189: 447.7 | Y189: FALSE | Z189: FALSE | AA189: FALSE | AB189: 501.4 | AC189: FALSE
A190: 158 | B190: =OFFSET(InputPriceData!B$15,CalculationsAndCharts!$A190+$A$11,0,1,1) -> 2015-08-06 | C190: =OFFSET(InputPriceData!G$15,CalculationsAndCharts!$A190+$A$11,IF($C$7,8,0),1,1) -> 496910 | D190: =OFFSET(InputPriceData!C$15,CalculationsAndCharts!$A190+$A$11,IF($C$7,8,0),1,1) -> 30.2 | E190: =OFFSET(InputPriceData!D$15,CalculationsAndCharts!$A190+$A$11,IF($C$7,8,0),1,1) -> 33.4 | F190: =OFFSET(InputPriceData!E$15,CalculationsAndCharts!$A190+$A$11,IF($C$7,8,0),1,1) -> 29.6 | G190: =OFFSET(InputPriceData!F$15,CalculationsAndCharts!$A190+$A$11,IF($C$7,8,0),1,1) -> 31.4 | H190: 3.8 | I190: 4.1 | J190: 0.3 | K190: 4.1 | L190: 5.095462008 | M190: 72.352 | N190: 93.758 | O190: 118.219 | P190: 496910 | R190: FALSE | T190: 3.8 | U190: FALSE | V190: FALSE | W190: FALSE | X190: 447.7 | Y190: FALSE | Z190: FALSE | AA190: FALSE | AB190: 501.4 | AC190: FALSE
A191: 159 | B191: =OFFSET(InputPriceData!B$15,CalculationsAndCharts!$A191+$A$11,0,1,1) -> 2015-08-05 | C191: =OFFSET(InputPriceData!G$15,CalculationsAndCharts!$A191+$A$11,IF($C$7,8,0),1,1) -> 369310 | D191: =OFFSET(InputPriceData!C$15,CalculationsAndCharts!$A191+$A$11,IF($C$7,8,0),1,1) -> 31.9 | E191: =OFFSET(InputPriceData!D$15,CalculationsAndCharts!$A191+$A$11,IF($C$7,8,0),1,1) -> 32.5 | F191: =OFFSET(InputPriceData!E$15,CalculationsAndCharts!$A191+$A$11,IF($C$7,8,0),1,1) -> 28.9 | G191: =OFFSET(InputPriceData!F$15,CalculationsAndCharts!$A191+$A$11,IF($C$7,8,0),1,1) -> 29.3 | H191: 3.6 | I191: 1.6 | J191: 2 | K191: 3.6 | L191: 5.172036009 | M191: 73.876 | N191: 94.379 | O191: 119.1365 | Q191: 369310 | R191: FALSE | T191: 3.6 | U191: FALSE | V191: FALSE | W191: FALSE | X191: 447.7 | Y191: FALSE | Z191: FALSE | AA191: FALSE | AB191: 501.4 | AC191: FALSE
A192: 160 | B192: =OFFSET(InputPriceData!B$15,CalculationsAndCharts!$A192+$A$11,0,1,1) -> 2015-08-04 | C192: =OFFSET(InputPriceData!G$15,CalculationsAndCharts!$A192+$A$11,IF($C$7,8,0),1,1) -> 214060 | D192: =OFFSET(InputPriceData!C$15,CalculationsAndCharts!$A192+$A$11,IF($C$7,8,0),1,1) -> 32.1 | E192: =OFFSET(InputPriceData!D$15,CalculationsAndCharts!$A192+$A$11,IF($C$7,8,0),1,1) -> 32.6 | F192: =OFFSET(InputPriceData!E$15,CalculationsAndCharts!$A192+$A$11,IF($C$7,8,0),1,1) -> 30.2 | G192: =OFFSET(InputPriceData!F$15,CalculationsAndCharts!$A192+$A$11,IF($C$7,8,0),1,1) -> 30.9 | H192: 2.4 | I192: 1.6 | J192: 0.8 | K192: 2.4 | L192: 5.292961855 | M192: 75.39 | N192: 95.017 | O192: 119.9955 | Q192: 214060 | R192: FALSE | T192: 2.4 | U192: FALSE | V192: FALSE | W192: FALSE | X192: 447.7 | Y192: FALSE | Z192: FALSE | AA192: FALSE | AB192: 501.4 | AC192: FALSE
A193: 161 | B193: =OFFSET(InputPriceData!B$15,CalculationsAndCharts!$A193+$A$11,0,1,1) -> 2015-08-03 | C193: =OFFSET(InputPriceData!G$15,CalculationsAndCharts!$A193+$A$11,IF($C$7,8,0),1,1) -> 328760 | D193: =OFFSET(InputPriceData!C$15,CalculationsAndCharts!$A193+$A$11,IF($C$7,8,0),1,1) -> 33.6 | E193: =OFFSET(InputPriceData!D$15,CalculationsAndCharts!$A193+$A$11,IF($C$7,8,0),1,1) -> 33.8 | F193: =OFFSET(InputPriceData!E$15,CalculationsAndCharts!$A193+$A$11,IF($C$7,8,0),1,1) -> 30.2 | G193: =OFFSET(InputPriceData!F$15,CalculationsAndCharts!$A193+$A$11,IF($C$7,8,0),1,1) -> 31 | H193: 3.6 | I193: 0.5 | J193: 4.1 | K193: 4.1 | L193: 5.515497383 | M193: 77.08 | N193: 95.64 | O193: 120.9485 | Q193: 328760 | R193: FALSE | T193: 3.6 | U193: FALSE | V193: FALSE | W193: FALSE | X193: 447.7 | Y193: FALSE | Z193: FALSE | AA193: FALSE | AB193: 501.4 | AC193: FALSE
A194: 162 | B194: =OFFSET(InputPriceData!B$15,CalculationsAndCharts!$A194+$A$11,0,1,1) -> 2015-07-31 | C194: =OFFSET(InputPriceData!G$15,CalculationsAndCharts!$A194+$A$11,IF($C$7,8,0),1,1) -> 301660 | D194: =OFFSET(InputPriceData!C$15,CalculationsAndCharts!$A194+$A$11,IF($C$7,8,0),1,1) -> 35 | E194: =OFFSET(InputPriceData!D$15,CalculationsAndCharts!$A194+$A$11,IF($C$7,8,0),1,1) -> 35.9 | F194: =OFFSET(InputPriceData!E$15,CalculationsAndCharts!$A194+$A$11,IF($C$7,8,0),1,1) -> 33.1 | G194: =OFFSET(InputPriceData!F$15,CalculationsAndCharts!$A194+$A$11,IF($C$7,8,0),1,1) -> 34.3 | H194: 2.8 | I194: 3.4 | J194: 0.6 | K194: 3.4 | L194: 5.624381797 | M194: 78.804 | N194: 96.28 | O194: 121.9125 | Q194: 301660 | R194: FALSE | T194: 2.8 | U194: FALSE | V194: FALSE | W194: FALSE | X194: 447.7 | Y194: FALSE | Z194: FALSE | AA194: FALSE | AB194: 501.4 | AC194: FALSE
A195: 163 | B195: =OFFSET(InputPriceData!B$15,CalculationsAndCharts!$A195+$A$11,0,1,1) -> 2015-07-30 | C195: =OFFSET(InputPriceData!G$15,CalculationsAndCharts!$A195+$A$11,IF($C$7,8,0),1,1) -> 359080 | D195: =OFFSET(InputPriceData!C$15,CalculationsAndCharts!$A195+$A$11,IF($C$7,8,0),1,1) -> 33.8 | E195: =OFFSET(InputPriceData!D$15,CalculationsAndCharts!$A195+$A$11,IF($C$7,8,0),1,1) -> 35 | F195: =OFFSET(InputPriceData!E$15,CalculationsAndCharts!$A195+$A$11,IF($C$7,8,0),1,1) -> 32 | G195: =OFFSET(InputPriceData!F$15,CalculationsAndCharts!$A195+$A$11,IF($C$7,8,0),1,1) -> 32.5 | H195: 3 | I195: 1 | J195: 4 | K195: 4 | L195: 5.795488089 | M195: 80.51 | N195: 96.809 | O195: 122.8485 | Q195: 359080 | R195: FALSE | T195: 3 | U195: FALSE | V195: FALSE | W195: FALSE | X195: 447.7 | Y195: FALSE | Z195: FALSE | AA195: FALSE | AB195: 501.4 | AC195: FALSE
A196: 164 | B196: =OFFSET(InputPriceData!B$15,CalculationsAndCharts!$A196+$A$11,0,1,1) -> 2015-07-29 | C196: =OFFSET(InputPriceData!G$15,CalculationsAndCharts!$A196+$A$11,IF($C$7,8,0),1,1) -> 541540 | D196: =OFFSET(InputPriceData!C$15,CalculationsAndCharts!$A196+$A$11,IF($C$7,8,0),1,1) -> 34.3 | E196: =OFFSET(InputPriceData!D$15,CalculationsAndCharts!$A196+$A$11,IF($C$7,8,0),1,1) -> 36.9 | F196: =OFFSET(InputPriceData!E$15,CalculationsAndCharts!$A196+$A$11,IF($C$7,8,0),1,1) -> 33 | G196: =OFFSET(InputPriceData!F$15,CalculationsAndCharts!$A196+$A$11,IF($C$7,8,0),1,1) -> 36 | H196: 3.9 | I196: 2.5 | J196: 1.4 | K196: 3.9 | L196: 5.933602557 | M196: 82.232 | N196: 97.398 | O196: 123.7565 | P196: 541540 | R196: FALSE | T196: 3.9 | U196: FALSE | V196: FALSE | W196: FALSE | X196: 447.7 | Y196: FALSE | Z196: FALSE | AA196: FALSE | AB196: 501.4 | AC196: FALSE
A197: 165 | B197: =OFFSET(InputPriceData!B$15,CalculationsAndCharts!$A197+$A$11,0,1,1) -> 2015-07-28 | C197: =OFFSET(InputPriceData!G$15,CalculationsAndCharts!$A197+$A$11,IF($C$7,8,0),1,1) -> 302790 | D197: =OFFSET(InputPriceData!C$15,CalculationsAndCharts!$A197+$A$11,IF($C$7,8,0),1,1) -> 34.4 | E197: =OFFSET(InputPriceData!D$15,CalculationsAndCharts!$A197+$A$11,IF($C$7,8,0),1,1) -> 35.1 | F197: =OFFSET(InputPriceData!E$15,CalculationsAndCharts!$A197+$A$11,IF($C$7,8,0),1,1) -> 32.9 | G197: =OFFSET(InputPriceData!F$15,CalculationsAndCharts!$A197+$A$11,IF($C$7,8,0),1,1) -> 34.4 | H197: 2.2 | I197: 1.9 | J197: 0.3 | K197: 2.2 | L197: 6.090033523 | M197: 84.164 | N197: 98.07 | O197: 124.596 | P197: 302790 | R197: FALSE | T197: 2.2 | U197: FALSE | V197: FALSE | W197: FALSE | X197: 447.7 | Y197: FALSE | Z197: FALSE | AA197: FALSE | AB197: 501.4 | AC197: FALSE
A198: 166 | B198: =OFFSET(InputPriceData!B$15,CalculationsAndCharts!$A198+$A$11,0,1,1) -> 2015-07-27 | C198: =OFFSET(InputPriceData!G$15,CalculationsAndCharts!$A198+$A$11,IF($C$7,8,0),1,1) -> 575620 | D198: =OFFSET(InputPriceData!C$15,CalculationsAndCharts!$A198+$A$11,IF($C$7,8,0),1,1) -> 36 | E198: =OFFSET(InputPriceData!D$15,CalculationsAndCharts!$A198+$A$11,IF($C$7,8,0),1,1) -> 39.6 | F198: =OFFSET(InputPriceData!E$15,CalculationsAndCharts!$A198+$A$11,IF($C$7,8,0),1,1) -> 32.3 | G198: =OFFSET(InputPriceData!F$15,CalculationsAndCharts!$A198+$A$11,IF($C$7,8,0),1,1) -> 33.2 | H198: 7.3 | I198: 2.2 | J198: 5.1 | K198: 7.3 | L198: 6.389266871 | M198: 86.124 | N198: 99.041 | O198: 125.52 | Q198: 575620 | R198: FALSE | T198: 7.3 | U198: FALSE | V198: FALSE | W198: FALSE | X198: 447.7 | Y198: FALSE | Z198: FALSE | AA198: FALSE | AB198: 501.4 | AC198: FALSE
A199: 167 | B199: =OFFSET(InputPriceData!B$15,CalculationsAndCharts!$A199+$A$11,0,1,1) -> 2015-07-24 | C199: =OFFSET(InputPriceData!G$15,CalculationsAndCharts!$A199+$A$11,IF($C$7,8,0),1,1) -> 732610 | D199: =OFFSET(InputPriceData!C$15,CalculationsAndCharts!$A199+$A$11,IF($C$7,8,0),1,1) -> 32.2 | E199: =OFFSET(InputPriceData!D$15,CalculationsAndCharts!$A199+$A$11,IF($C$7,8,0),1,1) -> 37.6 | F199: =OFFSET(InputPriceData!E$15,CalculationsAndCharts!$A199+$A$11,IF($C$7,8,0),1,1) -> 30.6 | G199: =OFFSET(InputPriceData!F$15,CalculationsAndCharts!$A199+$A$11,IF($C$7,8,0),1,1) -> 37.4 | H199: 7 | I199: 3.6 | J199: 3.4 | K199: 7 | L199: 6.319210476 | M199: 88.14 | N199: 100.015 | O199: 126.558 | P199: 732610 | R199: FALSE | T199: 7 | U199: FALSE | V199: FALSE | W199: FALSE | X199: 447.7 | Y199: FALSE | Z199: FALSE | AA199: FALSE | AB199: 501.4 | AC199: FALSE
A200: 168 | B200: =OFFSET(InputPriceData!B$15,CalculationsAndCharts!$A200+$A$11,0,1,1) -> 2015-07-23 | C200: =OFFSET(InputPriceData!G$15,CalculationsAndCharts!$A200+$A$11,IF($C$7,8,0),1,1) -> 535320 | D200: =OFFSET(InputPriceData!C$15,CalculationsAndCharts!$A200+$A$11,IF($C$7,8,0),1,1) -> 38.9 | E200: =OFFSET(InputPriceData!D$15,CalculationsAndCharts!$A200+$A$11,IF($C$7,8,0),1,1) -> 39.3 | F200: =OFFSET(InputPriceData!E$15,CalculationsAndCharts!$A200+$A$11,IF($C$7,8,0),1,1) -> 33.1 | G200: =OFFSET(InputPriceData!F$15,CalculationsAndCharts!$A200+$A$11,IF($C$7,8,0),1,1) -> 34 | H200: 6.2 | I200: 1.9 | J200: 4.3 | K200: 6.2 | L200: 6.266842052 | M200: 90.052 | N200: 101.02 | O200: 127.3615 | Q200: 535320 | R200: FALSE | T200: 6.2 | U200: FALSE | V200: FALSE | W200: FALSE | X200: 447.7 | Y200: FALSE | Z200: FALSE | AA200: FALSE | AB200: 501.4 | AC200: FALSE
A201: 169 | B201: =OFFSET(InputPriceData!B$15,CalculationsAndCharts!$A201+$A$11,0,1,1) -> 2015-07-22 | C201: =OFFSET(InputPriceData!G$15,CalculationsAndCharts!$A201+$A$11,IF($C$7,8,0),1,1) -> 504050 | D201: =OFFSET(InputPriceData!C$15,CalculationsAndCharts!$A201+$A$11,IF($C$7,8,0),1,1) -> 35.5 | E201: =OFFSET(InputPriceData!D$15,CalculationsAndCharts!$A201+$A$11,IF($C$7,8,0),1,1) -> 39.1 | F201: =OFFSET(InputPriceData!E$15,CalculationsAndCharts!$A201+$A$11,IF($C$7,8,0),1,1) -> 34.2 | G201: =OFFSET(InputPriceData!F$15,CalculationsAndCharts!$A201+$A$11,IF($C$7,8,0),1,1) -> 37.4 | H201: 4.9 | I201: 1.4 | J201: 3.5 | K201: 4.9 | L201: 6.271983748 | M201: 91.856 | N201: 102.133 | O201: 128.295 | P201: 504050 | R201: FALSE | T201: 4.9 | U201: FALSE | V201: FALSE | W201: FALSE | X201: 447.7 | Y201: FALSE | Z201: FALSE | AA201: FALSE | AB201: 501.4 | AC201: FALSE
A202: 170 | B202: =OFFSET(InputPriceData!B$15,CalculationsAndCharts!$A202+$A$11,0,1,1) -> 2015-07-21 | C202: =OFFSET(InputPriceData!G$15,CalculationsAndCharts!$A202+$A$11,IF($C$7,8,0),1,1) -> 635730 | D202: =OFFSET(InputPriceData!C$15,CalculationsAndCharts!$A202+$A$11,IF($C$7,8,0),1,1) -> 37.5 | E202: =OFFSET(InputPriceData!D$15,CalculationsAndCharts!$A202+$A$11,IF($C$7,8,0),1,1) -> 41 | F202: =OFFSET(InputPriceData!E$15,CalculationsAndCharts!$A202+$A$11,IF($C$7,8,0),1,1) -> 37.2 | G202: =OFFSET(InputPriceData!F$15,CalculationsAndCharts!$A202+$A$11,IF($C$7,8,0),1,1) -> 37.7 | H202: 3.8 | I202: 5 | J202: 1.2 | K202: 5 | L202: 6.377520959 | M202: 93.488 | N202: 103.326 | O202: 129.1375 | P202: 635730 | R202: FALSE | T202: 3.8 | U202: FALSE | V202: FALSE | W202: FALSE | X202: 447.7 | Y202: FALSE | Z202: FALSE | AA202: FALSE | AB202: 501.4 | AC202: FALSE
A203: 171 | B203: =OFFSET(InputPriceData!B$15,CalculationsAndCharts!$A203+$A$11,0,1,1) -> 2015-07-20 | C203: =OFFSET(InputPriceData!G$15,CalculationsAndCharts!$A203+$A$11,IF($C$7,8,0),1,1) -> 789360 | D203: =OFFSET(InputPriceData!C$15,CalculationsAndCharts!$A203+$A$11,IF($C$7,8,0),1,1) -> 44.8 | E203: =OFFSET(InputPriceData!D$15,CalculationsAndCharts!$A203+$A$11,IF($C$7,8,0),1,1) -> 45.4 | F203: =OFFSET(InputPriceData!E$15,CalculationsAndCharts!$A203+$A$11,IF($C$7,8,0),1,1) -> 35.3 | G203: =OFFSET(InputPriceData!F$15,CalculationsAndCharts!$A203+$A$11,IF($C$7,8,0),1,1) -> 36 | H203: 10.1 | I203: 6.7 | J203: 16.8 | K203: 16.8 | L203: 6.48348411 | M203: 95.102 | N203: 104.449 | O203: 130.137 | Q203: 789360 | R203: TRUE | S203: 6.48348411 | T203: 10.1 | U203: TRUE | V203: FALSE | W203: FALSE | X203: 447.7 | Y203: FALSE | Z203: FALSE | AA203: FALSE | AB203: 501.4 | AC203: FALSE
... 2329 more rows

Sheet Follow
A1: Stocks and Indexes I wish to follow
A3: To ease following a stock, enter a Yahoo Finance acceptable symbol in column "A" anywhere below cell "A9".
A4: Thereafter you may doubleclick the cell containing a symbol of interest to initiate data retrieval and charting for that symbol.
A7: Symbol
A8: To | B8: Description | C8: Last Trade as of most recent check
A9: Follow | C9: Date | D9: Time | E9: Open | F9: High | G9: Low | H9: Close | I9: Volume | J9: Change
A10: A | B10: Agilent Technolog (A) -NYSE (Daily) | C10: 2015-02-02 | D10: 16:03:00 | E10: 37.9 | F10: 38.76 | G10: 37.71 | H10: 38.69 | I10: 2508493 | J10: 0.92
A11: AAL | B11: American Airlines (AAL) -NasdaqNM (Daily) | C11: 2015-02-19 | D11: 16:00:00 | E11: 50.73 | F11: 50.8 | G11: 49.59 | H11: 49.78 | I11: 11462722 | J11: 0.47
A12: ADM | B12: Archer-Daniels-Midland Company (ADM) -NYQ (Daily) | C12: 2016-03-07 | D12: 13:18:00 | E12: 37.17 | F12: 37.29 | G12: 36.85 | H12: 37.09 | I12: 2069198 | J12: -0.56
A13: AMC | B13: AMC Entertainment Holdings, Inc (AMC) -NYQ (Daily) | C13: 2015-09-04 | D13: 16:00:00 | E13: 27.14 | F13: 27.95 | G13: 26.99 | H13: 27.71 | I13: 167990 | J13: 0.28
A14: BSX | B14: Boston Scientific Corporation C (BSX) -NYQ (Daily) | C14: 2015-03-13 | D14: 16:01:00 | E14: 16.84 | F14: 16.91 | G14: 16.44 | H14: 16.61 | I14: 7262460 | J14: -0.28
A15: CASY | B15: Caseys General Stores, Inc. (CASY) -NMS (Daily) | C15: 2016-01-08 | D15: 11:34:00 | E15: 117.67 | F15: 117.97 | G15: 116.79 | H15: 117.01 | I15: 106398 | J15: 0.05
A16: CSCO | B16: Cisco Systems, In (CSCO) -NasdaqNM (Daily) | C16: 2015-02-19 | D16: 16:00:00 | E16: 29.32 | F16: 29.39 | G16: 29.13 | H16: 29.31 | I16: 21469012 | J16: -0.18
A17: CVS | B17: CVS Health Corpor (CVS) -NYSE (Daily) | C17: 2015-02-02 | D17: 16:01:00 | E17: 98.34 | F17: 99.22 | G17: 97.06 | H17: 99.11 | I17: 4416094 | J17: 0.95
A18: DIS | B18: Walt Disney Compa (DIS) -NYSE (Daily) | C18: 2015-02-26 | D18: 16:00:00 | E18: 105.5 | F18: 105.71 | G18: 104.14 | H18: 104.56 | I18: 5044969 | J18: -1.01
A19: EMC | B19: EMC Corporation C (EMC) -NYSE (Daily) | C19: 2015-02-19 | D19: 16:00:00 | E19: 28.26 | F19: 28.83 | G19: 28.19 | H19: 28.72 | I19: 11049079 | J19: 0.52
A20: F | B20: Ford Motor Company Common Stock (F) -NYQ (Daily) | C20: 2016-01-08 | D20: 11:42:00 | E20: 13.05 | F20: 13.1 | G20: 12.68 | H20: 12.7353 | I20: 19823416 | J20: 0.0353
A21: GSK | B21: GlaxoSmithKline P (GSK) -NYSE (Daily) | C21: 2015-02-02 | D21: 16:01:00 | E21: 44.11 | F21: 44.12 | G21: 43.71 | H21: 43.96 | I21: 3654466 | J21: -0.04
A22: HSY | B22: The Hershey Compa (HSY) -NYSE (Daily) | C22: 2015-02-19 | D22: 16:02:00 | E22: 106.97 | F22: 107.31 | G22: 105.42 | H22: 105.95 | I22: 1448321 | J22: -1
A23: HTLD | B23: Heartland Express (HTLD) -NasdaqNM (Daily) | C23: 2015-02-02 | D23: 16:00:00 | E23: 25.68 | F23: 25.81 | G23: 25.36 | H23: 25.62 | I23: 542510 | J23: -0.07
A24: IBM | B24: International Bus (IBM) -NYSE (Daily) | C24: 2015-02-02 | D24: 16:01:00 | E24: 154 | F24: 154.66 | G24: 151.51 | H24: 154.66 | I24: 4712247 | J24: 1.35
A25: INTC | B25: Intel Corporation (INTC) -NasdaqNM (Daily) | C25: 2015-02-19 | D25: 16:00:00 | E25: 34.25 | F25: 34.42 | G25: 34.05 | H25: 34.21 | I25: 11017541 | J25: -0.055
A26: JAH | B26: Jarden Corporation Common Stock (JAH) -NYQ (Daily) | C26: 2016-01-08 | D26: 16:02:00 | E26: 53.82 | F26: 53.88 | G26: 52.65 | H26: 52.73 | I26: 4519480 | J26: -0.81
A27: JNJ | B27: Johnson & Johnson Common Stock (JNJ) -NYQ (Daily) | C27: 2016-01-08 | D27: 11:37:00 | E27: 99.88 | F27: 99.94 | G27: 98.87 | H27: 98.88 | I27: 2448879 | J27: -0.34
A28: KO | B28: Coca-Cola Company (The) Common (KO) -NYQ (Daily) | C28: 2015-08-10 | D28: 16:00:00 | E28: 41.89 | F28: 41.99 | G28: 41.58 | H28: 41.68 | I28: 9501875 | J28: -0.09
A29: LHO | B29: LaSalle Hotel Pro (LHO) -NYSE (Daily) | C29: 2015-02-02 | D29: 16:06:00 | E29: 40.51 | F29: 40.74 | G29: 39.46 | H29: 40.26 | I29: 1034675 | J29: -0.2
A30: LINE | B30: Linn Energy, LLC (LINE) -NasdaqNM (Daily) | C30: 2015-02-02 | D30: 16:00:00 | E30: 10.4 | F30: 10.78 | G30: 10.25 | H30: 10.77 | I30: 3766537 | J30: 0.51
A31: LO | B31: Lorillard, Inc Co (LO) -NYSE (Daily) | C31: 2015-02-02 | D31: 16:03:00 | E31: 65.71 | F31: 66.29 | G31: 65.43 | H31: 66.29 | I31: 1563618 | J31: 0.68
A32: MCD | B32: McDonald's Corporation Common S (MCD) -NYQ (Daily) | C32: 2016-04-07 | D32: 16:10:00 | E32: 127.37 | F32: 128.52 | G32: 127.02 | H32: 128.14 | I32: 4720711 | J32: 0.62
A33: MDT | B33: Medtronic plc. Or (MDT) -NYSE (Daily) | C33: 2015-02-19 | D33: 16:01:00 | E33: 78.59 | F33: 78.59 | G33: 77.85 | H33: 78.13 | I33: 6900528 | J33: -0.37
A34: MGM | B34: MGM Resorts Inter (MGM) -NYSE (Daily) | C34: 2015-02-02 | D34: 16:00:00 | E34: 19.44 | F34: 19.75 | G34: 19.12 | H34: 19.74 | I34: 7570281 | J34: 0.26
A35: MO | B35: Altria Group, Inc (MO) -NYSE (Daily) | C35: 2015-02-02 | D35: 16:01:00 | E35: 53.25 | F35: 53.84 | G35: 52.98 | H35: 53.8 | I35: 9183582 | J35: 0.7
A36: MSFT | B36: Microsoft Corpora (MSFT) -NasdaqNM (Daily) | C36: 2015-02-20 | D36: 16:00:00 | E36: 43.51 | F36: 43.88 | G36: 43.29 | H36: 43.855 | I36: 29721132 | J36: 0.355
A37: NUGT | B37: Direxion Daily Gold Miners Inde (NUGT) -PCX (Daily) | C37: 2016-04-13 | D37: 14:18:00 | E37: 81.48 | F37: 84.97 | G37: 79.59 | H37: 80.5352 | I37: 4380827 | J37: -5.6148
A38: NVS | B38: Novartis AG Common Stock (NVS) -NYQ (Daily) | C38: 2016-01-08 | D38: 11:38:00 | E38: 83.38 | F38: 83.5 | G38: 82.37 | H38: 82.42 | I38: 979446 | J38: -1.52
A39: PRU | B39: Prudential Financ (PRU) -NYSE (Daily) | C39: 2015-02-23 | D39: 12:22:00 | E39: 80.25 | F39: 80.4499 | G39: 79.8 | H39: 80.12 | I39: 1604052 | J39: -0.69
A40: PSEC | B40: Prospect Capital Corporation (PSEC) -NMS (Daily) | C40: 2016-04-07 | D40: 16:00:00 | E40: 7.18 | F40: 7.25 | G40: 7.15 | H40: 7.21 | I40: 1116195 | J40: 0.02
A41: RAI | B41: Reynolds American (RAI) -NYSE (Daily) | C41: 2015-02-02 | D41: 16:03:00 | E41: 68.12 | F41: 69.06 | G41: 67.4346 | H41: 69.05 | I41: 1822013 | J41: 1.1
A42: RPM | B42: RPM International Inc. Common S (RPM) -NYQ (Daily) | C42: 2016-04-13 | D42: 12:43:00 | E42: 49.9 | F42: 50.21 | G42: 49.71 | H42: 49.97 | I42: 408337 | J42: 0.19 | K42: Owns the Rust-Oleum brand
A43: RSP | B43: Guggenheim S&P 500 Equal Weight (RSP) -PCX (Daily) | C43: 2016-01-08 | D43: 11:33:00 | E43: 73.24 | F43: 73.47 | G43: 72.41 | H43: 72.41 | I43: 754279 | J43: -0.48
A44: SONC | B44: Sonic Corp. (SONC) -NMS (Daily) | C44: 2016-01-08 | D44: 11:42:00 | E44: 30.24 | F44: 30.67 | G44: 29.89 | H44: 29.95 | I44: 327291 | J44: -0.05
A45: SWKS | B45: Skyworks Solution (SWKS) -NasdaqNM (Daily) | C45: 2015-02-02 | D45: 16:00:00 | E45: 83.07 | F45: 83.73 | G45: 80.15 | H45: 82.02 | I45: 4119001 | J45: -1.03
A46: TOL | B46: Toll Brothers Inc (TOL) -NYSE (Daily) | C46: 2015-02-23 | D46: 12:23:00 | E46: 37.56 | F46: 37.77 | G46: 37.1 | H46: 37.36 | I46: 1521944 | J46: -0.29
A47: UNP | B47: Union Pacific Cor (UNP) -NYSE (Daily) | C47: 2015-02-02 | D47: 16:10:00 | E47: 118.13 | F47: 119.06 | G47: 116.7 | H47: 119.01 | I47: 3259594 | J47: 1.8
A48: VZ | B48: Verizon Communica (VZ) -NYSE (Daily) | C48: 2015-02-23 | D48: 12:22:00 | E48: 48.94 | F48: 49 | G48: 48.54 | H48: 48.825 | I48: 4204644 | J48: -0.145
A49: WBA | B49: (WBA) -NasdaqNM (Daily) | C49: 2015-02-02 | D49: 16:00:00 | E49: 73.06 | F49: 74.98 | G49: 73 | H49: 74.89 | I49: 4247395 | J49: 1.14
A50: WMT | B50: Wal-Mart Stores, Inc. Common St (WMT) -NYQ (Daily) | C50: 2016-01-08 | D50: 11:39:00 | E50: 65.08 | F50: 65.41 | G50: 64.29 | H50: 64.55 | I50: 6674609 | J50: -0.48
A52: ^NDX | B52: NASDAQ-100 (^NDX) -NIM (Daily) | C52: 2015-08-10 | D52: 17:15:00 | E52: 4558.68 | F52: 4583.63 | G52: 4554.63 | H52: 4573.11 | I52: 0 | J52: 53.03
A53: ^DJI | B53: Dow Jones Industrial Average (^DJI) -DJI | C53: 2015-12-06 | D53: D ec | E53: 17482.68 | F53: 17866.47 | G53: 17482.68 | H53: 17847.63 | I53: 0 | J53: 369.96
A54: SPY | B54: SPDR S&P 500 (SPY) -PCX (Daily) | C54: 2015-12-04 | D54: 16:00:00 | E54: 206.08 | F54: 209.97 | G54: 205.93 | H54: 209.62 | I54: 192913879 | J54: 4.01
A55: ^GSPC | B55: S&P 500 (^GSPC) -SNP (Daily) | C55: 2015-12-04 | D55: 16:33:00 | E55: 2051.24 | F55: 2093.84 | G55: 2051.24 | H55: 2091.69 | I55: 740000496 | J55: 42.07
A56: ^RUT | B56: Russell 2000 (^RUT) -WCB (Daily) | C56: 2015-12-04 | D56: 16:30:00 | E56: 1170.642456 | F56: 1183.823486 | G56: 1170.491699 | H56: 1183.397095 | I56: 0 | J56: 12.830688
A57: ^VIX | B57: VOLATILITY S&P 500 (^VIX) -WCB (Daily) | C57: 2015-12-04 | D57: 16:14:00 | E57: 17.43 | F57: 17.65 | G57: 14.69 | H57: 14.81 | I57: 0 | J57: -3.3
A60: ACAD | B60: ACADIA Pharmaceut (ACAD) -NasdaqNM (Daily) | C60: 2014-07-21 | D60: 16:00:00 | E60: 20.13 | F60: 20.55 | G60: 19.8101 | H60: 20.31 | I60: 691016
A61: CLDX | B61: Celldex Therapeut (CLDX) -NasdaqNM (Daily) | C61: 2015-02-02 | D61: 16:00:00 | E61: 21.47 | F61: 21.69 | G61: 20.11 | H61: 21.02 | I61: 1570418 | J61: -0.4
A62: ICPT | B62: Intercept Pharmac (ICPT) -NasdaqNM (Daily) | C62: 2014-07-21 | D62: 16:00:00 | E62: 215.97 | F62: 218.43 | G62: 213.05 | H62: 218.14 | I62: 191276
A63: INO | B63: Inovio Pharmaceut (INO) -AMEX (Daily) | C63: 2014-07-21 | D63: 16:00:00 | E63: 10.3 | F63: 11.08 | G63: 10.1 | H63: 11.01 | I63: 1800796
A64: JCP | B64: J.C. Penney Compa (JCP) -NYSE (Daily) | C64: 2015-02-02 | D64: 16:01:00 | E64: 7.16 | F64: 7.44 | G64: 7.01 | H64: 7.43 | I64: 12772679 | J64: 0.16
A65: LCI | B65: Lannett Co Inc Co (LCI) -NYSE (Daily) | C65: 2014-07-21 | D65: 16:02:00 | E65: 38.09 | F65: 38.803 | G65: 36.5101 | H65: 37.76 | I65: 611367
A66: NPSP | B66: NPS Pharmaceutica (NPSP) -NasdaqNM (Daily) | C66: 2014-07-21 | D66: 15:59:00 | E66: 28.75 | F66: 29.43 | G66: 28.31 | H66: 29.29 | I66: 1126758
A67: PBYI | B67: Puma Biotechnolog (PBYI) -NYSE (Daily) | C67: 2014-07-21 | D67: 16:02:00 | E67: 58.27 | F67: 59.46 | G67: 57.39 | H67: 58.98 | I67: 348030

Sheet Transaction Summary
B1: Transaction Summary (using trade size of 1 share)
C2: =CalculationsAndCharts!$A$8 -> 1330 | D2: Logically Available Bars on the "CalculationsAndCharts" tab constitute a
D3: ="Transaction reporting period extending from " & TEXT(OFFSET(CalculationsAndCharts!$B$32,CalculationsAndCharts!$A$8,0,1,1),"mm/dd/yyyy") & " to "& TEXT(CalculationsAndCharts!$B$33,"mm/dd/yyyy") -> Transaction reporting period extending from 12/08/2010 to 03/22/2016
B4: Summary for LONG trades
B5: =COUNT(OFFSET(B15,0,0,C2,1)) -> 2 | C5: LONG trades opened in this time period
B6: =IF(B5=0,0,COUNTIF(OFFSET(H15,0,0,B5,1),">0")) -> 2 | C6: Winners | D6: Biggest Win | E6: =IF(B5=0,0,IF(B6>0,MAX(OFFSET(H15,0,0,B5,1)),0)) -> 7.33 | H6: Sum of Gains | I6: =IF(B5=0,0,SUMIF(OFFSET(H15,0,0,B5,1),">0")) -> 11.03
B7: =IF(B5=0,0,COUNTIF(OFFSET(H15,0,0,B5,1),"<0")) -> 0 | C7: Losers | D7: Biggest Loss | E7: =IF(B5=0,0,IF(B7>0,MIN(OFFSET(H15,0,0,B5,1)),0)) -> 0 | H7: Sum of Losses | I7: =IF(B5=0,0,SUMIF(OFFSET(H15,0,0,B5,1),"<0")) -> 0
H8: NET change for Period | I8: =I6+I7 -> 11.03
H10: Largest Negative Account Balance | I10: =IF(B5=0,0,IF(MIN(OFFSET(I15,0,0,B5,1))<0,MIN(OFFSET(I15,0,0,B5,1)),0)) -> 0
E12: =IFERROR(MATCH(TRUE,OFFSET(CalculationsAndCharts!$AC$33,0,0,'Transaction Summary'!C2,1),0),"") -> 30 | F12: =IF(E12="","",IF($E$12>$B$15,"Open Trade; Marked to Current Bar Open","")) -> 
C13: Enter Long | F13: Exit Long | H13: Trade Result | I13: Running Balance
B14: Rel Row | C14: Date | D14: $ | E14: Rel Row | F14: Date | G14: $
B15: =IF(E12="","",MATCH(TRUE,OFFSET(CalculationsAndCharts!$Z$33,0,0,'Transaction Summary'!$C$2,1),0)) -> 33 | C15: =IF(E12="","",OFFSET(CalculationsAndCharts!$B$32,'Transaction Summary'!B15,0,1,1)) -> 2016-02-04 | D15: =IF(E12="","",OFFSET(CalculationsAndCharts!$AD$32,'Transaction Summary'!B15,0,1,1)) -> 34.63 | E15: =IF($E$12>$B$15,"OPEN",$E$12) -> 30 | F15: =IF(E15="","",IF($E$12>$B$15,CalculationsAndCharts!B33,OFFSET(CalculationsAndCharts!$B$32,'Transaction Summary'!E15,0,1,1))) -> 2016-02-09 | G15: =IF(E15="","",IF($E$12>$B$15,CalculationsAndCharts!D33,OFFSET(CalculationsAndCharts!$AE$32,'Transaction Summary'!E15,0,1,1))) -> 41.96 | H15: =IF(E15="","",G15-D15) -> 7.33 | I15: =IFERROR(H15+IF(""=I16,0,I16),"") -> 11.03
B16: =IFERROR(MATCH(TRUE,OFFSET(CalculationsAndCharts!$Z$33,B15,0,'Transaction Summary'!$C$2-B15,1),0)+B15,"") -> 441 | C16: =IFERROR(OFFSET(CalculationsAndCharts!$B$32,'Transaction Summary'!B16,0,1,1),"") -> 2014-06-23 | D16: =IFERROR(OFFSET(CalculationsAndCharts!$AD$32,'Transaction Summary'!B16,0,1,1),"") -> 447.7 | E16: =IFERROR(IF($E$12>$B$15,$E$12,(MATCH(TRUE,OFFSET(CalculationsAndCharts!$AC$33,E15,0,'Transaction Summary'!$C$2-E15,1),0)+E15)),"") -> 440 | F16: =IFERROR(OFFSET(CalculationsAndCharts!$B$32,'Transaction Summary'!E16,0,1,1),"") -> 2014-06-24 | G16: =IFERROR(OFFSET(CalculationsAndCharts!$AE$32,'Transaction Summary'!E16,0,1,1),"") -> 451.4 | H16: =IFERROR(G16-D16,"") -> 3.7 | I16: =IFERROR(H16+IF(""=I17,0,I17),"") -> 3.7
B17: =IFERROR(MATCH(TRUE,OFFSET(CalculationsAndCharts!$Z$33,B16,0,'Transaction Summary'!$C$2-B16,1),0)+B16,"") ->  | C17: =IFERROR(OFFSET(CalculationsAndCharts!$B$32,'Transaction Summary'!B17,0,1,1),"") ->  | D17: =IFERROR(OFFSET(CalculationsAndCharts!$AD$32,'Transaction Summary'!B17,0,1,1),"") ->  | E17: =IFERROR(IF($E$12>$B$15,$E$12,(MATCH(TRUE,OFFSET(CalculationsAndCharts!$AC$33,E16,0,'Transaction Summary'!$C$2-E16,1),0)+E16)),"") ->  | F17: =IFERROR(OFFSET(CalculationsAndCharts!$B$32,'Transaction Summary'!E17,0,1,1),"") ->  | G17: =IFERROR(OFFSET(CalculationsAndCharts!$AE$32,'Transaction Summary'!E17,0,1,1),"") ->  | H17: =IFERROR(G17-D17,"") ->  | I17: =IFERROR(H17+IF(""=I18,0,I18),"") -> 
B18: =IFERROR(MATCH(TRUE,OFFSET(CalculationsAndCharts!$Z$33,B17,0,'Transaction Summary'!$C$2-B17,1),0)+B17,"") ->  | C18: =IFERROR(OFFSET(CalculationsAndCharts!$B$32,'Transaction Summary'!B18,0,1,1),"") ->  | D18: =IFERROR(OFFSET(CalculationsAndCharts!$AD$32,'Transaction Summary'!B18,0,1,1),"") ->  | E18: =IFERROR(IF($E$12>$B$15,$E$12,(MATCH(TRUE,OFFSET(CalculationsAndCharts!$AC$33,E17,0,'Transaction Summary'!$C$2-E17,1),0)+E17)),"") ->  | F18: =IFERROR(OFFSET(CalculationsAndCharts!$B$32,'Transaction Summary'!E18,0,1,1),"") ->  | G18: =IFERROR(OFFSET(CalculationsAndCharts!$AE$32,'Transaction Summary'!E18,0,1,1),"") ->  | H18: =IFERROR(G18-D18,"") ->  | I18: =IFERROR(H18+IF(""=I19,0,I19),"") -> 
B19: =IFERROR(MATCH(TRUE,OFFSET(CalculationsAndCharts!$Z$33,B18,0,'Transaction Summary'!$C$2-B18,1),0)+B18,"") ->  | C19: =IFERROR(OFFSET(CalculationsAndCharts!$B$32,'Transaction Summary'!B19,0,1,1),"") ->  | D19: =IFERROR(OFFSET(CalculationsAndCharts!$AD$32,'Transaction Summary'!B19,0,1,1),"") ->  | E19: =IFERROR(IF($E$12>$B$15,$E$12,(MATCH(TRUE,OFFSET(CalculationsAndCharts!$AC$33,E18,0,'Transaction Summary'!$C$2-E18,1),0)+E18)),"") ->  | F19: =IFERROR(OFFSET(CalculationsAndCharts!$B$32,'Transaction Summary'!E19,0,1,1),"") ->  | G19: =IFERROR(OFFSET(CalculationsAndCharts!$AE$32,'Transaction Summary'!E19,0,1,1),"") -> 
B20: =IFERROR(MATCH(TRUE,OFFSET(CalculationsAndCharts!$Z$33,B19,0,'Transaction Summary'!$C$2-B19,1),0)+B19,"") ->  | C20: =IFERROR(OFFSET(CalculationsAndCharts!$B$32,'Transaction Summary'!B20,0,1,1),"") ->  | D20: =IFERROR(OFFSET(CalculationsAndCharts!$AD$32,'Transaction Summary'!B20,0,1,1),"") ->  | E20: =IFERROR(IF($E$12>$B$15,$E$12,(MATCH(TRUE,OFFSET(CalculationsAndCharts!$AC$33,E19,0,'Transaction Summary'!$C$2-E19,1),0)+E19)),"") ->  | F20: =IFERROR(OFFSET(CalculationsAndCharts!$B$32,'Transaction Summary'!E20,0,1,1),"") ->  | G20: =IFERROR(OFFSET(CalculationsAndCharts!$AE$32,'Transaction Summary'!E20,0,1,1),"") -> 
B21: =IFERROR(MATCH(TRUE,OFFSET(CalculationsAndCharts!$Z$33,B20,0,'Transaction Summary'!$C$2-B20,1),0)+B20,"") ->  | C21: =IFERROR(OFFSET(CalculationsAndCharts!$B$32,'Transaction Summary'!B21,0,1,1),"") ->  | D21: =IFERROR(OFFSET(CalculationsAndCharts!$AD$32,'Transaction Summary'!B21,0,1,1),"") ->  | E21: =IFERROR(IF($E$12>$B$15,$E$12,(MATCH(TRUE,OFFSET(CalculationsAndCharts!$AC$33,E20,0,'Transaction Summary'!$C$2-E20,1),0)+E20)),"") ->  | F21: =IFERROR(OFFSET(CalculationsAndCharts!$B$32,'Transaction Summary'!E21,0,1,1),"") ->  | G21: =IFERROR(OFFSET(CalculationsAndCharts!$AE$32,'Transaction Summary'!E21,0,1,1),"") -> 
B22: =IFERROR(MATCH(TRUE,OFFSET(CalculationsAndCharts!$Z$33,B21,0,'Transaction Summary'!$C$2-B21,1),0)+B21,"") ->  | C22: =IFERROR(OFFSET(CalculationsAndCharts!$B$32,'Transaction Summary'!B22,0,1,1),"") ->  | D22: =IFERROR(OFFSET(CalculationsAndCharts!$AD$32,'Transaction Summary'!B22,0,1,1),"") ->  | E22: =IFERROR(IF($E$12>$B$15,$E$12,(MATCH(TRUE,OFFSET(CalculationsAndCharts!$AC$33,E21,0,'Transaction Summary'!$C$2-E21,1),0)+E21)),"") ->  | F22: =IFERROR(OFFSET(CalculationsAndCharts!$B$32,'Transaction Summary'!E22,0,1,1),"") ->  | G22: =IFERROR(OFFSET(CalculationsAndCharts!$AE$32,'Transaction Summary'!E22,0,1,1),"") -> 
B23: =IFERROR(MATCH(TRUE,OFFSET(CalculationsAndCharts!$Z$33,B22,0,'Transaction Summary'!$C$2-B22,1),0)+B22,"") ->  | C23: =IFERROR(OFFSET(CalculationsAndCharts!$B$32,'Transaction Summary'!B23,0,1,1),"") ->  | D23: =IFERROR(OFFSET(CalculationsAndCharts!$AD$32,'Transaction Summary'!B23,0,1,1),"") ->  | E23: =IFERROR(IF($E$12>$B$15,$E$12,(MATCH(TRUE,OFFSET(CalculationsAndCharts!$AC$33,E22,0,'Transaction Summary'!$C$2-E22,1),0)+E22)),"") ->  | F23: =IFERROR(OFFSET(CalculationsAndCharts!$B$32,'Transaction Summary'!E23,0,1,1),"") ->  | G23: =IFERROR(OFFSET(CalculationsAndCharts!$AE$32,'Transaction Summary'!E23,0,1,1),"") -> 
B24: =IFERROR(MATCH(TRUE,OFFSET(CalculationsAndCharts!$Z$33,B23,0,'Transaction Summary'!$C$2-B23,1),0)+B23,"") ->  | C24: =IFERROR(OFFSET(CalculationsAndCharts!$B$32,'Transaction Summary'!B24,0,1,1),"") ->  | D24: =IFERROR(OFFSET(CalculationsAndCharts!$AD$32,'Transaction Summary'!B24,0,1,1),"") ->  | E24: =IFERROR(IF($E$12>$B$15,$E$12,(MATCH(TRUE,OFFSET(CalculationsAndCharts!$AC$33,E23,0,'Transaction Summary'!$C$2-E23,1),0)+E23)),"") ->  | F24: =IFERROR(OFFSET(CalculationsAndCharts!$B$32,'Transaction Summary'!E24,0,1,1),"") ->  | G24: =IFERROR(OFFSET(CalculationsAndCharts!$AE$32,'Transaction Summary'!E24,0,1,1),"") -> 
B25: =IFERROR(MATCH(TRUE,OFFSET(CalculationsAndCharts!$Z$33,B24,0,'Transaction Summary'!$C$2-B24,1),0)+B24,"") ->  | C25: =IFERROR(OFFSET(CalculationsAndCharts!$B$32,'Transaction Summary'!B25,0,1,1),"") ->  | D25: =IFERROR(OFFSET(CalculationsAndCharts!$AD$32,'Transaction Summary'!B25,0,1,1),"") ->  | E25: =IFERROR(IF($E$12>$B$15,$E$12,(MATCH(TRUE,OFFSET(CalculationsAndCharts!$AC$33,E24,0,'Transaction Summary'!$C$2-E24,1),0)+E24)),"") ->  | F25: =IFERROR(OFFSET(CalculationsAndCharts!$B$32,'Transaction Summary'!E25,0,1,1),"") ->  | G25: =IFERROR(OFFSET(CalculationsAndCharts!$AE$32,'Transaction Summary'!E25,0,1,1),"") -> 
B26: =IFERROR(MATCH(TRUE,OFFSET(CalculationsAndCharts!$Z$33,B25,0,'Transaction Summary'!$C$2-B25,1),0)+B25,"") ->  | C26: =IFERROR(OFFSET(CalculationsAndCharts!$B$32,'Transaction Summary'!B26,0,1,1),"") ->  | D26: =IFERROR(OFFSET(CalculationsAndCharts!$AD$32,'Transaction Summary'!B26,0,1,1),"") ->  | E26: =IFERROR(IF($E$12>$B$15,$E$12,(MATCH(TRUE,OFFSET(CalculationsAndCharts!$AC$33,E25,0,'Transaction Summary'!$C$2-E25,1),0)+E25)),"") ->  | F26: =IFERROR(OFFSET(CalculationsAndCharts!$B$32,'Transaction Summary'!E26,0,1,1),"") ->  | G26: =IFERROR(OFFSET(CalculationsAndCharts!$AE$32,'Transaction Summary'!E26,0,1,1),"") -> 
B27: =IFERROR(MATCH(TRUE,OFFSET(CalculationsAndCharts!$Z$33,B26,0,'Transaction Summary'!$C$2-B26,1),0)+B26,"") ->  | C27: =IFERROR(OFFSET(CalculationsAndCharts!$B$32,'Transaction Summary'!B27,0,1,1),"") ->  | D27: =IFERROR(OFFSET(CalculationsAndCharts!$AD$32,'Transaction Summary'!B27,0,1,1),"") ->  | E27: =IFERROR(IF($E$12>$B$15,$E$12,(MATCH(TRUE,OFFSET(CalculationsAndCharts!$AC$33,E26,0,'Transaction Summary'!$C$2-E26,1),0)+E26)),"") ->  | F27: =IFERROR(OFFSET(CalculationsAndCharts!$B$32,'Transaction Summary'!E27,0,1,1),"") ->  | G27: =IFERROR(OFFSET(CalculationsAndCharts!$AE$32,'Transaction Summary'!E27,0,1,1),"") -> 
B28: =IFERROR(MATCH(TRUE,OFFSET(CalculationsAndCharts!$Z$33,B27,0,'Transaction Summary'!$C$2-B27,1),0)+B27,"") ->  | C28: =IFERROR(OFFSET(CalculationsAndCharts!$B$32,'Transaction Summary'!B28,0,1,1),"") ->  | D28: =IFERROR(OFFSET(CalculationsAndCharts!$AD$32,'Transaction Summary'!B28,0,1,1),"") ->  | E28: =IFERROR(IF($E$12>$B$15,$E$12,(MATCH(TRUE,OFFSET(CalculationsAndCharts!$AC$33,E27,0,'Transaction Summary'!$C$2-E27,1),0)+E27)),"") ->  | F28: =IFERROR(OFFSET(CalculationsAndCharts!$B$32,'Transaction Summary'!E28,0,1,1),"") ->  | G28: =IFERROR(OFFSET(CalculationsAndCharts!$AE$32,'Transaction Summary'!E28,0,1,1),"") -> 
B29: =IFERROR(MATCH(TRUE,OFFSET(CalculationsAndCharts!$Z$33,B28,0,'Transaction Summary'!$C$2-B28,1),0)+B28,"") ->  | C29: =IFERROR(OFFSET(CalculationsAndCharts!$B$32,'Transaction Summary'!B29,0,1,1),"") ->  | D29: =IFERROR(OFFSET(CalculationsAndCharts!$AD$32,'Transaction Summary'!B29,0,1,1),"") ->  | E29: =IFERROR(IF($E$12>$B$15,$E$12,(MATCH(TRUE,OFFSET(CalculationsAndCharts!$AC$33,E28,0,'Transaction Summary'!$C$2-E28,1),0)+E28)),"") ->  | F29: =IFERROR(OFFSET(CalculationsAndCharts!$B$32,'Transaction Summary'!E29,0,1,1),"") ->  | G29: =IFERROR(OFFSET(CalculationsAndCharts!$AE$32,'Transaction Summary'!E29,0,1,1),"") -> 
B30: =IFERROR(MATCH(TRUE,OFFSET(CalculationsAndCharts!$Z$33,B29,0,'Transaction Summary'!$C$2-B29,1),0)+B29,"") ->  | C30: =IFERROR(OFFSET(CalculationsAndCharts!$B$32,'Transaction Summary'!B30,0,1,1),"") ->  | D30: =IFERROR(OFFSET(CalculationsAndCharts!$AD$32,'Transaction Summary'!B30,0,1,1),"") ->  | E30: =IFERROR(IF($E$12>$B$15,$E$12,(MATCH(TRUE,OFFSET(CalculationsAndCharts!$AC$33,E29,0,'Transaction Summary'!$C$2-E29,1),0)+E29)),"") ->  | F30: =IFERROR(OFFSET(CalculationsAndCharts!$B$32,'Transaction Summary'!E30,0,1,1),"") ->  | G30: =IFERROR(OFFSET(CalculationsAndCharts!$AE$32,'Transaction Summary'!E30,0,1,1),"") -> 
B31: =IFERROR(MATCH(TRUE,OFFSET(CalculationsAndCharts!$Z$33,B30,0,'Transaction Summary'!$C$2-B30,1),0)+B30,"") ->  | C31: =IFERROR(OFFSET(CalculationsAndCharts!$B$32,'Transaction Summary'!B31,0,1,1),"") ->  | D31: =IFERROR(OFFSET(CalculationsAndCharts!$AD$32,'Transaction Summary'!B31,0,1,1),"") ->  | E31: =IFERROR(IF($E$12>$B$15,$E$12,(MATCH(TRUE,OFFSET(CalculationsAndCharts!$AC$33,E30,0,'Transaction Summary'!$C$2-E30,1),0)+E30)),"") ->  | F31: =IFERROR(OFFSET(CalculationsAndCharts!$B$32,'Transaction Summary'!E31,0,1,1),"") ->  | G31: =IFERROR(OFFSET(CalculationsAndCharts!$AE$32,'Transaction Summary'!E31,0,1,1),"") -> 
B32: =IFERROR(MATCH(TRUE,OFFSET(CalculationsAndCharts!$Z$33,B31,0,'Transaction Summary'!$C$2-B31,1),0)+B31,"") ->  | C32: =IFERROR(OFFSET(CalculationsAndCharts!$B$32,'Transaction Summary'!B32,0,1,1),"") ->  | D32: =IFERROR(OFFSET(CalculationsAndCharts!$AD$32,'Transaction Summary'!B32,0,1,1),"") ->  | E32: =IFERROR(IF($E$12>$B$15,$E$12,(MATCH(TRUE,OFFSET(CalculationsAndCharts!$AC$33,E31,0,'Transaction Summary'!$C$2-E31,1),0)+E31)),"") ->  | F32: =IFERROR(OFFSET(CalculationsAndCharts!$B$32,'Transaction Summary'!E32,0,1,1),"") ->  | G32: =IFERROR(OFFSET(CalculationsAndCharts!$AE$32,'Transaction Summary'!E32,0,1,1),"") -> 
B33: =IFERROR(MATCH(TRUE,OFFSET(CalculationsAndCharts!$Z$33,B32,0,'Transaction Summary'!$C$2-B32,1),0)+B32,"") ->  | C33: =IFERROR(OFFSET(CalculationsAndCharts!$B$32,'Transaction Summary'!B33,0,1,1),"") ->  | D33: =IFERROR(OFFSET(CalculationsAndCharts!$AD$32,'Transaction Summary'!B33,0,1,1),"") ->  | E33: =IFERROR(IF($E$12>$B$15,$E$12,(MATCH(TRUE,OFFSET(CalculationsAndCharts!$AC$33,E32,0,'Transaction Summary'!$C$2-E32,1),0)+E32)),"") ->  | F33: =IFERROR(OFFSET(CalculationsAndCharts!$B$32,'Transaction Summary'!E33,0,1,1),"") ->  | G33: =IFERROR(OFFSET(CalculationsAndCharts!$AE$32,'Transaction Summary'!E33,0,1,1),"") -> 
B34: =IFERROR(MATCH(TRUE,OFFSET(CalculationsAndCharts!$Z$33,B33,0,'Transaction Summary'!$C$2-B33,1),0)+B33,"") ->  | C34: =IFERROR(OFFSET(CalculationsAndCharts!$B$32,'Transaction Summary'!B34,0,1,1),"") ->  | D34: =IFERROR(OFFSET(CalculationsAndCharts!$AD$32,'Transaction Summary'!B34,0,1,1),"") ->  | E34: =IFERROR(IF($E$12>$B$15,$E$12,(MATCH(TRUE,OFFSET(CalculationsAndCharts!$AC$33,E33,0,'Transaction Summary'!$C$2-E33,1),0)+E33)),"") ->  | F34: =IFERROR(OFFSET(CalculationsAndCharts!$B$32,'Transaction Summary'!E34,0,1,1),"") ->  | G34: =IFERROR(OFFSET(CalculationsAndCharts!$AE$32,'Transaction Summary'!E34,0,1,1),"") -> 
B35: =IFERROR(MATCH(TRUE,OFFSET(CalculationsAndCharts!$Z$33,B34,0,'Transaction Summary'!$C$2-B34,1),0)+B34,"") ->  | C35: =IFERROR(OFFSET(CalculationsAndCharts!$B$32,'Transaction Summary'!B35,0,1,1),"") ->  | D35: =IFERROR(OFFSET(CalculationsAndCharts!$AD$32,'Transaction Summary'!B35,0,1,1),"") ->  | E35: =IFERROR(IF($E$12>$B$15,$E$12,(MATCH(TRUE,OFFSET(CalculationsAndCharts!$AC$33,E34,0,'Transaction Summary'!$C$2-E34,1),0)+E34)),"") ->  | F35: =IFERROR(OFFSET(CalculationsAndCharts!$B$32,'Transaction Summary'!E35,0,1,1),"") ->  | G35: =IFERROR(OFFSET(CalculationsAndCharts!$AE$32,'Transaction Summary'!E35,0,1,1),"") -> 
B36: =IFERROR(MATCH(TRUE,OFFSET(CalculationsAndCharts!$Z$33,B35,0,'Transaction Summary'!$C$2-B35,1),0)+B35,"") ->  | C36: =IFERROR(OFFSET(CalculationsAndCharts!$B$32,'Transaction Summary'!B36,0,1,1),"") ->  | D36: =IFERROR(OFFSET(CalculationsAndCharts!$AD$32,'Transaction Summary'!B36,0,1,1),"") ->  | E36: =IFERROR(IF($E$12>$B$15,$E$12,(MATCH(TRUE,OFFSET(CalculationsAndCharts!$AC$33,E35,0,'Transaction Summary'!$C$2-E35,1),0)+E35)),"") ->  | F36: =IFERROR(OFFSET(CalculationsAndCharts!$B$32,'Transaction Summary'!E36,0,1,1),"") ->  | G36: =IFERROR(OFFSET(CalculationsAndCharts!$AE$32,'Transaction Summary'!E36,0,1,1),"") -> 
B37: =IFERROR(MATCH(TRUE,OFFSET(CalculationsAndCharts!$Z$33,B36,0,'Transaction Summary'!$C$2-B36,1),0)+B36,"") ->  | C37: =IFERROR(OFFSET(CalculationsAndCharts!$B$32,'Transaction Summary'!B37,0,1,1),"") ->  | D37: =IFERROR(OFFSET(CalculationsAndCharts!$AD$32,'Transaction Summary'!B37,0,1,1),"") ->  | E37: =IFERROR(IF($E$12>$B$15,$E$12,(MATCH(TRUE,OFFSET(CalculationsAndCharts!$AC$33,E36,0,'Transaction Summary'!$C$2-E36,1),0)+E36)),"") ->  | F37: =IFERROR(OFFSET(CalculationsAndCharts!$B$32,'Transaction Summary'!E37,0,1,1),"") ->  | G37: =IFERROR(OFFSET(CalculationsAndCharts!$AE$32,'Transaction Summary'!E37,0,1,1),"") -> 
B38: =IFERROR(MATCH(TRUE,OFFSET(CalculationsAndCharts!$Z$33,B37,0,'Transaction Summary'!$C$2-B37,1),0)+B37,"") ->  | C38: =IFERROR(OFFSET(CalculationsAndCharts!$B$32,'Transaction Summary'!B38,0,1,1),"") ->  | D38: =IFERROR(OFFSET(CalculationsAndCharts!$AD$32,'Transaction Summary'!B38,0,1,1),"") ->  | E38: =IFERROR(IF($E$12>$B$15,$E$12,(MATCH(TRUE,OFFSET(CalculationsAndCharts!$AC$33,E37,0,'Transaction Summary'!$C$2-E37,1),0)+E37)),"") ->  | F38: =IFERROR(OFFSET(CalculationsAndCharts!$B$32,'Transaction Summary'!E38,0,1,1),"") ->  | G38: =IFERROR(OFFSET(CalculationsAndCharts!$AE$32,'Transaction Summary'!E38,0,1,1),"") -> 
B39: =IFERROR(MATCH(TRUE,OFFSET(CalculationsAndCharts!$Z$33,B38,0,'Transaction Summary'!$C$2-B38,1),0)+B38,"") ->  | C39: =IFERROR(OFFSET(CalculationsAndCharts!$B$32,'Transaction Summary'!B39,0,1,1),"") ->  | D39: =IFERROR(OFFSET(CalculationsAndCharts!$AD$32,'Transaction Summary'!B39,0,1,1),"") ->  | E39: =IFERROR(IF($E$12>$B$15,$E$12,(MATCH(TRUE,OFFSET(CalculationsAndCharts!$AC$33,E38,0,'Transaction Summary'!$C$2-E38,1),0)+E38)),"") ->  | F39: =IFERROR(OFFSET(CalculationsAndCharts!$B$32,'Transaction Summary'!E39,0,1,1),"") ->  | G39: =IFERROR(OFFSET(CalculationsAndCharts!$AE$32,'Transaction Summary'!E39,0,1,1),"") -> 
B40: =IFERROR(MATCH(TRUE,OFFSET(CalculationsAndCharts!$Z$33,B39,0,'Transaction Summary'!$C$2-B39,1),0)+B39,"") ->  | C40: =IFERROR(OFFSET(CalculationsAndCharts!$B$32,'Transaction Summary'!B40,0,1,1),"") ->  | D40: =IFERROR(OFFSET(CalculationsAndCharts!$AD$32,'Transaction Summary'!B40,0,1,1),"") ->  | E40: =IFERROR(IF($E$12>$B$15,$E$12,(MATCH(TRUE,OFFSET(CalculationsAndCharts!$AC$33,E39,0,'Transaction Summary'!$C$2-E39,1),0)+E39)),"") ->  | F40: =IFERROR(OFFSET(CalculationsAndCharts!$B$32,'Transaction Summary'!E40,0,1,1),"") ->  | G40: =IFERROR(OFFSET(CalculationsAndCharts!$AE$32,'Transaction Summary'!E40,0,1,1),"") -> 
B41: =IFERROR(MATCH(TRUE,OFFSET(CalculationsAndCharts!$Z$33,B40,0,'Transaction Summary'!$C$2-B40,1),0)+B40,"") ->  | C41: =IFERROR(OFFSET(CalculationsAndCharts!$B$32,'Transaction Summary'!B41,0,1,1),"") ->  | D41: =IFERROR(OFFSET(CalculationsAndCharts!$AD$32,'Transaction Summary'!B41,0,1,1),"") ->  | E41: =IFERROR(IF($E$12>$B$15,$E$12,(MATCH(TRUE,OFFSET(CalculationsAndCharts!$AC$33,E40,0,'Transaction Summary'!$C$2-E40,1),0)+E40)),"") ->  | F41: =IFERROR(OFFSET(CalculationsAndCharts!$B$32,'Transaction Summary'!E41,0,1,1),"") ->  | G41: =IFERROR(OFFSET(CalculationsAndCharts!$AE$32,'Transaction Summary'!E41,0,1,1),"") -> 
B42: =IFERROR(MATCH(TRUE,OFFSET(CalculationsAndCharts!$Z$33,B41,0,'Transaction Summary'!$C$2-B41,1),0)+B41,"") ->  | C42: =IFERROR(OFFSET(CalculationsAndCharts!$B$32,'Transaction Summary'!B42,0,1,1),"") ->  | D42: =IFERROR(OFFSET(CalculationsAndCharts!$AD$32,'Transaction Summary'!B42,0,1,1),"") ->  | E42: =IFERROR(IF($E$12>$B$15,$E$12,(MATCH(TRUE,OFFSET(CalculationsAndCharts!$AC$33,E41,0,'Transaction Summary'!$C$2-E41,1),0)+E41)),"") ->  | F42: =IFERROR(OFFSET(CalculationsAndCharts!$B$32,'Transaction Summary'!E42,0,1,1),"") ->  | G42: =IFERROR(OFFSET(CalculationsAndCharts!$AE$32,'Transaction Summary'!E42,0,1,1),"") -> 
B43: =IFERROR(MATCH(TRUE,OFFSET(CalculationsAndCharts!$Z$33,B42,0,'Transaction Summary'!$C$2-B42,1),0)+B42,"") ->  | C43: =IFERROR(OFFSET(CalculationsAndCharts!$B$32,'Transaction Summary'!B43,0,1,1),"") ->  | D43: =IFERROR(OFFSET(CalculationsAndCharts!$AD$32,'Transaction Summary'!B43,0,1,1),"") ->  | E43: =IFERROR(IF($E$12>$B$15,$E$12,(MATCH(TRUE,OFFSET(CalculationsAndCharts!$AC$33,E42,0,'Transaction Summary'!$C$2-E42,1),0)+E42)),"") ->  | F43: =IFERROR(OFFSET(CalculationsAndCharts!$B$32,'Transaction Summary'!E43,0,1,1),"") ->  | G43: =IFERROR(OFFSET(CalculationsAndCharts!$AE$32,'Transaction Summary'!E43,0,1,1),"") -> 
B44: =IFERROR(MATCH(TRUE,OFFSET(CalculationsAndCharts!$Z$33,B43,0,'Transaction Summary'!$C$2-B43,1),0)+B43,"") ->  | C44: =IFERROR(OFFSET(CalculationsAndCharts!$B$32,'Transaction Summary'!B44,0,1,1),"") ->  | D44: =IFERROR(OFFSET(CalculationsAndCharts!$AD$32,'Transaction Summary'!B44,0,1,1),"") ->  | E44: =IFERROR(IF($E$12>$B$15,$E$12,(MATCH(TRUE,OFFSET(CalculationsAndCharts!$AC$33,E43,0,'Transaction Summary'!$C$2-E43,1),0)+E43)),"") ->  | F44: =IFERROR(OFFSET(CalculationsAndCharts!$B$32,'Transaction Summary'!E44,0,1,1),"") ->  | G44: =IFERROR(OFFSET(CalculationsAndCharts!$AE$32,'Transaction Summary'!E44,0,1,1),"") -> 
B45: =IFERROR(MATCH(TRUE,OFFSET(CalculationsAndCharts!$Z$33,B44,0,'Transaction Summary'!$C$2-B44,1),0)+B44,"") ->  | C45: =IFERROR(OFFSET(CalculationsAndCharts!$B$32,'Transaction Summary'!B45,0,1,1),"") ->  | D45: =IFERROR(OFFSET(CalculationsAndCharts!$AD$32,'Transaction Summary'!B45,0,1,1),"") ->  | E45: =IFERROR(IF($E$12>$B$15,$E$12,(MATCH(TRUE,OFFSET(CalculationsAndCharts!$AC$33,E44,0,'Transaction Summary'!$C$2-E44,1),0)+E44)),"") ->  | F45: =IFERROR(OFFSET(CalculationsAndCharts!$B$32,'Transaction Summary'!E45,0,1,1),"") ->  | G45: =IFERROR(OFFSET(CalculationsAndCharts!$AE$32,'Transaction Summary'!E45,0,1,1),"") -> 
B46: =IFERROR(MATCH(TRUE,OFFSET(CalculationsAndCharts!$Z$33,B45,0,'Transaction Summary'!$C$2-B45,1),0)+B45,"") ->  | C46: =IFERROR(OFFSET(CalculationsAndCharts!$B$32,'Transaction Summary'!B46,0,1,1),"") ->  | D46: =IFERROR(OFFSET(CalculationsAndCharts!$AD$32,'Transaction Summary'!B46,0,1,1),"") ->  | E46: =IFERROR(IF($E$12>$B$15,$E$12,(MATCH(TRUE,OFFSET(CalculationsAndCharts!$AC$33,E45,0,'Transaction Summary'!$C$2-E45,1),0)+E45)),"") ->  | F46: =IFERROR(OFFSET(CalculationsAndCharts!$B$32,'Transaction Summary'!E46,0,1,1),"") ->  | G46: =IFERROR(OFFSET(CalculationsAndCharts!$AE$32,'Transaction Summary'!E46,0,1,1),"") -> 
B47: =IFERROR(MATCH(TRUE,OFFSET(CalculationsAndCharts!$Z$33,B46,0,'Transaction Summary'!$C$2-B46,1),0)+B46,"") ->  | C47: =IFERROR(OFFSET(CalculationsAndCharts!$B$32,'Transaction Summary'!B47,0,1,1),"") ->  | D47: =IFERROR(OFFSET(CalculationsAndCharts!$AD$32,'Transaction Summary'!B47,0,1,1),"") ->  | E47: =IFERROR(IF($E$12>$B$15,$E$12,(MATCH(TRUE,OFFSET(CalculationsAndCharts!$AC$33,E46,0,'Transaction Summary'!$C$2-E46,1),0)+E46)),"") ->  | F47: =IFERROR(OFFSET(CalculationsAndCharts!$B$32,'Transaction Summary'!E47,0,1,1),"") ->  | G47: =IFERROR(OFFSET(CalculationsAndCharts!$AE$32,'Transaction Summary'!E47,0,1,1),"") -> 
B48: =IFERROR(MATCH(TRUE,OFFSET(CalculationsAndCharts!$Z$33,B47,0,'Transaction Summary'!$C$2-B47,1),0)+B47,"") ->  | C48: =IFERROR(OFFSET(CalculationsAndCharts!$B$32,'Transaction Summary'!B48,0,1,1),"") ->  | D48: =IFERROR(OFFSET(CalculationsAndCharts!$AD$32,'Transaction Summary'!B48,0,1,1),"") ->  | E48: =IFERROR(IF($E$12>$B$15,$E$12,(MATCH(TRUE,OFFSET(CalculationsAndCharts!$AC$33,E47,0,'Transaction Summary'!$C$2-E47,1),0)+E47)),"") ->  | F48: =IFERROR(OFFSET(CalculationsAndCharts!$B$32,'Transaction Summary'!E48,0,1,1),"") ->  | G48: =IFERROR(OFFSET(CalculationsAndCharts!$AE$32,'Transaction Summary'!E48,0,1,1),"") -> 
B49: =IFERROR(MATCH(TRUE,OFFSET(CalculationsAndCharts!$Z$33,B48,0,'Transaction Summary'!$C$2-B48,1),0)+B48,"") ->  | C49: =IFERROR(OFFSET(CalculationsAndCharts!$B$32,'Transaction Summary'!B49,0,1,1),"") ->  | D49: =IFERROR(OFFSET(CalculationsAndCharts!$AD$32,'Transaction Summary'!B49,0,1,1),"") ->  | E49: =IFERROR(IF($E$12>$B$15,$E$12,(MATCH(TRUE,OFFSET(CalculationsAndCharts!$AC$33,E48,0,'Transaction Summary'!$C$2-E48,1),0)+E48)),"") ->  | F49: =IFERROR(OFFSET(CalculationsAndCharts!$B$32,'Transaction Summary'!E49,0,1,1),"") ->  | G49: =IFERROR(OFFSET(CalculationsAndCharts!$AE$32,'Transaction Summary'!E49,0,1,1),"") -> 
B50: =IFERROR(MATCH(TRUE,OFFSET(CalculationsAndCharts!$Z$33,B49,0,'Transaction Summary'!$C$2-B49,1),0)+B49,"") ->  | C50: =IFERROR(OFFSET(CalculationsAndCharts!$B$32,'Transaction Summary'!B50,0,1,1),"") ->  | D50: =IFERROR(OFFSET(CalculationsAndCharts!$AD$32,'Transaction Summary'!B50,0,1,1),"") ->  | E50: =IFERROR(IF($E$12>$B$15,$E$12,(MATCH(TRUE,OFFSET(CalculationsAndCharts!$AC$33,E49,0,'Transaction Summary'!$C$2-E49,1),0)+E49)),"") ->  | F50: =IFERROR(OFFSET(CalculationsAndCharts!$B$32,'Transaction Summary'!E50,0,1,1),"") ->  | G50: =IFERROR(OFFSET(CalculationsAndCharts!$AE$32,'Transaction Summary'!E50,0,1,1),"") -> 
B51: =IFERROR(MATCH(TRUE,OFFSET(CalculationsAndCharts!$Z$33,B50,0,'Transaction Summary'!$C$2-B50,1),0)+B50,"") ->  | C51: =IFERROR(OFFSET(CalculationsAndCharts!$B$32,'Transaction Summary'!B51,0,1,1),"") ->  | D51: =IFERROR(OFFSET(CalculationsAndCharts!$AD$32,'Transaction Summary'!B51,0,1,1),"") ->  | E51: =IFERROR(IF($E$12>$B$15,$E$12,(MATCH(TRUE,OFFSET(CalculationsAndCharts!$AC$33,E50,0,'Transaction Summary'!$C$2-E50,1),0)+E50)),"") ->  | F51: =IFERROR(OFFSET(CalculationsAndCharts!$B$32,'Transaction Summary'!E51,0,1,1),"") ->  | G51: =IFERROR(OFFSET(CalculationsAndCharts!$AE$32,'Transaction Summary'!E51,0,1,1),"") -> 
B52: =IFERROR(MATCH(TRUE,OFFSET(CalculationsAndCharts!$Z$33,B51,0,'Transaction Summary'!$C$2-B51,1),0)+B51,"") ->  | C52: =IFERROR(OFFSET(CalculationsAndCharts!$B$32,'Transaction Summary'!B52,0,1,1),"") ->  | D52: =IFERROR(OFFSET(CalculationsAndCharts!$AD$32,'Transaction Summary'!B52,0,1,1),"") ->  | E52: =IFERROR(IF($E$12>$B$15,$E$12,(MATCH(TRUE,OFFSET(CalculationsAndCharts!$AC$33,E51,0,'Transaction Summary'!$C$2-E51,1),0)+E51)),"") ->  | F52: =IFERROR(OFFSET(CalculationsAndCharts!$B$32,'Transaction Summary'!E52,0,1,1),"") ->  | G52: =IFERROR(OFFSET(CalculationsAndCharts!$AE$32,'Transaction Summary'!E52,0,1,1),"") -> 
B53: =IFERROR(MATCH(TRUE,OFFSET(CalculationsAndCharts!$Z$33,B52,0,'Transaction Summary'!$C$2-B52,1),0)+B52,"") ->  | C53: =IFERROR(OFFSET(CalculationsAndCharts!$B$32,'Transaction Summary'!B53,0,1,1),"") ->  | D53: =IFERROR(OFFSET(CalculationsAndCharts!$AD$32,'Transaction Summary'!B53,0,1,1),"") ->  | E53: =IFERROR(IF($E$12>$B$15,$E$12,(MATCH(TRUE,OFFSET(CalculationsAndCharts!$AC$33,E52,0,'Transaction Summary'!$C$2-E52,1),0)+E52)),"") ->  | F53: =IFERROR(OFFSET(CalculationsAndCharts!$B$32,'Transaction Summary'!E53,0,1,1),"") ->  | G53: =IFERROR(OFFSET(CalculationsAndCharts!$AE$32,'Transaction Summary'!E53,0,1,1),"") -> 
B54: =IFERROR(MATCH(TRUE,OFFSET(CalculationsAndCharts!$Z$33,B53,0,'Transaction Summary'!$C$2-B53,1),0)+B53,"") ->  | C54: =IFERROR(OFFSET(CalculationsAndCharts!$B$32,'Transaction Summary'!B54,0,1,1),"") ->  | D54: =IFERROR(OFFSET(CalculationsAndCharts!$AD$32,'Transaction Summary'!B54,0,1,1),"") ->  | E54: =IFERROR(IF($E$12>$B$15,$E$12,(MATCH(TRUE,OFFSET(CalculationsAndCharts!$AC$33,E53,0,'Transaction Summary'!$C$2-E53,1),0)+E53)),"") ->  | F54: =IFERROR(OFFSET(CalculationsAndCharts!$B$32,'Transaction Summary'!E54,0,1,1),"") ->  | G54: =IFERROR(OFFSET(CalculationsAndCharts!$AE$32,'Transaction Summary'!E54,0,1,1),"") -> 
B55: =IFERROR(MATCH(TRUE,OFFSET(CalculationsAndCharts!$Z$33,B54,0,'Transaction Summary'!$C$2-B54,1),0)+B54,"") ->  | C55: =IFERROR(OFFSET(CalculationsAndCharts!$B$32,'Transaction Summary'!B55,0,1,1),"") ->  | D55: =IFERROR(OFFSET(CalculationsAndCharts!$AD$32,'Transaction Summary'!B55,0,1,1),"") ->  | E55: =IFERROR(IF($E$12>$B$15,$E$12,(MATCH(TRUE,OFFSET(CalculationsAndCharts!$AC$33,E54,0,'Transaction Summary'!$C$2-E54,1),0)+E54)),"") ->  | F55: =IFERROR(OFFSET(CalculationsAndCharts!$B$32,'Transaction Summary'!E55,0,1,1),"") ->  | G55: =IFERROR(OFFSET(CalculationsAndCharts!$AE$32,'Transaction Summary'!E55,0,1,1),"") -> 
B56: =IFERROR(MATCH(TRUE,OFFSET(CalculationsAndCharts!$Z$33,B55,0,'Transaction Summary'!$C$2-B55,1),0)+B55,"") ->  | C56: =IFERROR(OFFSET(CalculationsAndCharts!$B$32,'Transaction Summary'!B56,0,1,1),"") ->  | D56: =IFERROR(OFFSET(CalculationsAndCharts!$AD$32,'Transaction Summary'!B56,0,1,1),"") ->  | E56: =IFERROR(IF($E$12>$B$15,$E$12,(MATCH(TRUE,OFFSET(CalculationsAndCharts!$AC$33,E55,0,'Transaction Summary'!$C$2-E55,1),0)+E55)),"") ->  | F56: =IFERROR(OFFSET(CalculationsAndCharts!$B$32,'Transaction Summary'!E56,0,1,1),"") ->  | G56: =IFERROR(OFFSET(CalculationsAndCharts!$AE$32,'Transaction Summary'!E56,0,1,1),"") -> 
B57: =IFERROR(MATCH(TRUE,OFFSET(CalculationsAndCharts!$Z$33,B56,0,'Transaction Summary'!$C$2-B56,1),0)+B56,"") ->  | C57: =IFERROR(OFFSET(CalculationsAndCharts!$B$32,'Transaction Summary'!B57,0,1,1),"") ->  | D57: =IFERROR(OFFSET(CalculationsAndCharts!$AD$32,'Transaction Summary'!B57,0,1,1),"") ->  | E57: =IFERROR(IF($E$12>$B$15,$E$12,(MATCH(TRUE,OFFSET(CalculationsAndCharts!$AC$33,E56,0,'Transaction Summary'!$C$2-E56,1),0)+E56)),"") ->  | F57: =IFERROR(OFFSET(CalculationsAndCharts!$B$32,'Transaction Summary'!E57,0,1,1),"") ->  | G57: =IFERROR(OFFSET(CalculationsAndCharts!$AE$32,'Transaction Summary'!E57,0,1,1),"") -> 
B58: =IFERROR(MATCH(TRUE,OFFSET(CalculationsAndCharts!$Z$33,B57,0,'Transaction Summary'!$C$2-B57,1),0)+B57,"") ->  | C58: =IFERROR(OFFSET(CalculationsAndCharts!$B$32,'Transaction Summary'!B58,0,1,1),"") ->  | D58: =IFERROR(OFFSET(CalculationsAndCharts!$AD$32,'Transaction Summary'!B58,0,1,1),"") ->  | E58: =IFERROR(IF($E$12>$B$15,$E$12,(MATCH(TRUE,OFFSET(CalculationsAndCharts!$AC$33,E57,0,'Transaction Summary'!$C$2-E57,1),0)+E57)),"") ->  | F58: =IFERROR(OFFSET(CalculationsAndCharts!$B$32,'Transaction Summary'!E58,0,1,1),"") ->  | G58: =IFERROR(OFFSET(CalculationsAndCharts!$AE$32,'Transaction Summary'!E58,0,1,1),"") -> 
B59: =IFERROR(MATCH(TRUE,OFFSET(CalculationsAndCharts!$Z$33,B58,0,'Transaction Summary'!$C$2-B58,1),0)+B58,"") ->  | C59: =IFERROR(OFFSET(CalculationsAndCharts!$B$32,'Transaction Summary'!B59,0,1,1),"") ->  | D59: =IFERROR(OFFSET(CalculationsAndCharts!$AD$32,'Transaction Summary'!B59,0,1,1),"") ->  | E59: =IFERROR(IF($E$12>$B$15,$E$12,(MATCH(TRUE,OFFSET(CalculationsAndCharts!$AC$33,E58,0,'Transaction Summary'!$C$2-E58,1),0)+E58)),"") ->  | F59: =IFERROR(OFFSET(CalculationsAndCharts!$B$32,'Transaction Summary'!E59,0,1,1),"") ->  | G59: =IFERROR(OFFSET(CalculationsAndCharts!$AE$32,'Transaction Summary'!E59,0,1,1),"") -> 
B60: =IFERROR(MATCH(TRUE,OFFSET(CalculationsAndCharts!$Z$33,B59,0,'Transaction Summary'!$C$2-B59,1),0)+B59,"") ->  | C60: =IFERROR(OFFSET(CalculationsAndCharts!$B$32,'Transaction Summary'!B60,0,1,1),"") ->  | D60: =IFERROR(OFFSET(CalculationsAndCharts!$AD$32,'Transaction Summary'!B60,0,1,1),"") ->  | E60: =IFERROR(IF($E$12>$B$15,$E$12,(MATCH(TRUE,OFFSET(CalculationsAndCharts!$AC$33,E59,0,'Transaction Summary'!$C$2-E59,1),0)+E59)),"") ->  | F60: =IFERROR(OFFSET(CalculationsAndCharts!$B$32,'Transaction Summary'!E60,0,1,1),"") ->  | G60: =IFERROR(OFFSET(CalculationsAndCharts!$AE$32,'Transaction Summary'!E60,0,1,1),"") -> 
B61: =IFERROR(MATCH(TRUE,OFFSET(CalculationsAndCharts!$Z$33,B60,0,'Transaction Summary'!$C$2-B60,1),0)+B60,"") ->  | C61: =IFERROR(OFFSET(CalculationsAndCharts!$B$32,'Transaction Summary'!B61,0,1,1),"") ->  | D61: =IFERROR(OFFSET(CalculationsAndCharts!$AD$32,'Transaction Summary'!B61,0,1,1),"") ->  | E61: =IFERROR(IF($E$12>$B$15,$E$12,(MATCH(TRUE,OFFSET(CalculationsAndCharts!$AC$33,E60,0,'Transaction Summary'!$C$2-E60,1),0)+E60)),"") ->  | F61: =IFERROR(OFFSET(CalculationsAndCharts!$B$32,'Transaction Summary'!E61,0,1,1),"") ->  | G61: =IFERROR(OFFSET(CalculationsAndCharts!$AE$32,'Transaction Summary'!E61,0,1,1),"") -> 
B62: =IFERROR(MATCH(TRUE,OFFSET(CalculationsAndCharts!$Z$33,B61,0,'Transaction Summary'!$C$2-B61,1),0)+B61,"") ->  | C62: =IFERROR(OFFSET(CalculationsAndCharts!$B$32,'Transaction Summary'!B62,0,1,1),"") ->  | D62: =IFERROR(OFFSET(CalculationsAndCharts!$AD$32,'Transaction Summary'!B62,0,1,1),"") ->  | E62: =IFERROR(IF($E$12>$B$15,$E$12,(MATCH(TRUE,OFFSET(CalculationsAndCharts!$AC$33,E61,0,'Transaction Summary'!$C$2-E61,1),0)+E61)),"") ->  | F62: =IFERROR(OFFSET(CalculationsAndCharts!$B$32,'Transaction Summary'!E62,0,1,1),"") ->  | G62: =IFERROR(OFFSET(CalculationsAndCharts!$AE$32,'Transaction Summary'!E62,0,1,1),"") -> 
B63: =IFERROR(MATCH(TRUE,OFFSET(CalculationsAndCharts!$Z$33,B62,0,'Transaction Summary'!$C$2-B62,1),0)+B62,"") ->  | C63: =IFERROR(OFFSET(CalculationsAndCharts!$B$32,'Transaction Summary'!B63,0,1,1),"") ->  | D63: =IFERROR(OFFSET(CalculationsAndCharts!$AD$32,'Transaction Summary'!B63,0,1,1),"") ->  | E63: =IFERROR(IF($E$12>$B$15,$E$12,(MATCH(TRUE,OFFSET(CalculationsAndCharts!$AC$33,E62,0,'Transaction Summary'!$C$2-E62,1),0)+E62)),"") ->  | F63: =IFERROR(OFFSET(CalculationsAndCharts!$B$32,'Transaction Summary'!E63,0,1,1),"") ->  | G63: =IFERROR(OFFSET(CalculationsAndCharts!$AE$32,'Transaction Summary'!E63,0,1,1),"") -> 
B64: =IFERROR(MATCH(TRUE,OFFSET(CalculationsAndCharts!$Z$33,B63,0,'Transaction Summary'!$C$2-B63,1),0)+B63,"") ->  | C64: =IFERROR(OFFSET(CalculationsAndCharts!$B$32,'Transaction Summary'!B64,0,1,1),"") ->  | D64: =IFERROR(OFFSET(CalculationsAndCharts!$AD$32,'Transaction Summary'!B64,0,1,1),"") ->  | E64: =IFERROR(IF($E$12>$B$15,$E$12,(MATCH(TRUE,OFFSET(CalculationsAndCharts!$AC$33,E63,0,'Transaction Summary'!$C$2-E63,1),0)+E63)),"") ->  | F64: =IFERROR(OFFSET(CalculationsAndCharts!$B$32,'Transaction Summary'!E64,0,1,1),"") ->  | G64: =IFERROR(OFFSET(CalculationsAndCharts!$AE$32,'Transaction Summary'!E64,0,1,1),"") -> 
B65: =IFERROR(MATCH(TRUE,OFFSET(CalculationsAndCharts!$Z$33,B64,0,'Transaction Summary'!$C$2-B64,1),0)+B64,"") ->  | C65: =IFERROR(OFFSET(CalculationsAndCharts!$B$32,'Transaction Summary'!B65,0,1,1),"") ->  | D65: =IFERROR(OFFSET(CalculationsAndCharts!$AD$32,'Transaction Summary'!B65,0,1,1),"") ->  | E65: =IFERROR(IF($E$12>$B$15,$E$12,(MATCH(TRUE,OFFSET(CalculationsAndCharts!$AC$33,E64,0,'Transaction Summary'!$C$2-E64,1),0)+E64)),"") ->  | F65: =IFERROR(OFFSET(CalculationsAndCharts!$B$32,'Transaction Summary'!E65,0,1,1),"") ->  | G65: =IFERROR(OFFSET(CalculationsAndCharts!$AE$32,'Transaction Summary'!E65,0,1,1),"") -> 
B66: =IFERROR(MATCH(TRUE,OFFSET(CalculationsAndCharts!$Z$33,B65,0,'Transaction Summary'!$C$2-B65,1),0)+B65,"") ->  | C66: =IFERROR(OFFSET(CalculationsAndCharts!$B$32,'Transaction Summary'!B66,0,1,1),"") ->  | D66: =IFERROR(OFFSET(CalculationsAndCharts!$AD$32,'Transaction Summary'!B66,0,1,1),"") ->  | E66: =IFERROR(IF($E$12>$B$15,$E$12,(MATCH(TRUE,OFFSET(CalculationsAndCharts!$AC$33,E65,0,'Transaction Summary'!$C$2-E65,1),0)+E65)),"") ->  | F66: =IFERROR(OFFSET(CalculationsAndCharts!$B$32,'Transaction Summary'!E66,0,1,1),"") ->  | G66: =IFERROR(OFFSET(CalculationsAndCharts!$AE$32,'Transaction Summary'!E66,0,1,1),"") -> 
B67: =IFERROR(MATCH(TRUE,OFFSET(CalculationsAndCharts!$Z$33,B66,0,'Transaction Summary'!$C$2-B66,1),0)+B66,"") ->  | C67: =IFERROR(OFFSET(CalculationsAndCharts!$B$32,'Transaction Summary'!B67,0,1,1),"") ->  | D67: =IFERROR(OFFSET(CalculationsAndCharts!$AD$32,'Transaction Summary'!B67,0,1,1),"") ->  | E67: =IFERROR(IF($E$12>$B$15,$E$12,(MATCH(TRUE,OFFSET(CalculationsAndCharts!$AC$33,E66,0,'Transaction Summary'!$C$2-E66,1),0)+E66)),"") ->  | F67: =IFERROR(OFFSET(CalculationsAndCharts!$B$32,'Transaction Summary'!E67,0,1,1),"") ->  | G67: =IFERROR(OFFSET(CalculationsAndCharts!$AE$32,'Transaction Summary'!E67,0,1,1),"") -> 
B68: =IFERROR(MATCH(TRUE,OFFSET(CalculationsAndCharts!$Z$33,B67,0,'Transaction Summary'!$C$2-B67,1),0)+B67,"") ->  | C68: =IFERROR(OFFSET(CalculationsAndCharts!$B$32,'Transaction Summary'!B68,0,1,1),"") ->  | D68: =IFERROR(OFFSET(CalculationsAndCharts!$AD$32,'Transaction Summary'!B68,0,1,1),"") ->  | E68: =IFERROR(IF($E$12>$B$15,$E$12,(MATCH(TRUE,OFFSET(CalculationsAndCharts!$AC$33,E67,0,'Transaction Summary'!$C$2-E67,1),0)+E67)),"") ->  | F68: =IFERROR(OFFSET(CalculationsAndCharts!$B$32,'Transaction Summary'!E68,0,1,1),"") ->  | G68: =IFERROR(OFFSET(CalculationsAndCharts!$AE$32,'Transaction Summary'!E68,0,1,1),"") -> 
B69: =IFERROR(MATCH(TRUE,OFFSET(CalculationsAndCharts!$Z$33,B68,0,'Transaction Summary'!$C$2-B68,1),0)+B68,"") ->  | C69: =IFERROR(OFFSET(CalculationsAndCharts!$B$32,'Transaction Summary'!B69,0,1,1),"") ->  | D69: =IFERROR(OFFSET(CalculationsAndCharts!$AD$32,'Transaction Summary'!B69,0,1,1),"") ->  | E69: =IFERROR(IF($E$12>$B$15,$E$12,(MATCH(TRUE,OFFSET(CalculationsAndCharts!$AC$33,E68,0,'Transaction Summary'!$C$2-E68,1),0)+E68)),"") ->  | F69: =IFERROR(OFFSET(CalculationsAndCharts!$B$32,'Transaction Summary'!E69,0,1,1),"") ->  | G69: =IFERROR(OFFSET(CalculationsAndCharts!$AE$32,'Transaction Summary'!E69,0,1,1),"") -> 
B70: =IFERROR(MATCH(TRUE,OFFSET(CalculationsAndCharts!$Z$33,B69,0,'Transaction Summary'!$C$2-B69,1),0)+B69,"") ->  | C70: =IFERROR(OFFSET(CalculationsAndCharts!$B$32,'Transaction Summary'!B70,0,1,1),"") ->  | D70: =IFERROR(OFFSET(CalculationsAndCharts!$AD$32,'Transaction Summary'!B70,0,1,1),"") ->  | E70: =IFERROR(IF($E$12>$B$15,$E$12,(MATCH(TRUE,OFFSET(CalculationsAndCharts!$AC$33,E69,0,'Transaction Summary'!$C$2-E69,1),0)+E69)),"") ->  | F70: =IFERROR(OFFSET(CalculationsAndCharts!$B$32,'Transaction Summary'!E70,0,1,1),"") ->  | G70: =IFERROR(OFFSET(CalculationsAndCharts!$AE$32,'Transaction Summary'!E70,0,1,1),"") -> 
B71: =IFERROR(MATCH(TRUE,OFFSET(CalculationsAndCharts!$Z$33,B70,0,'Transaction Summary'!$C$2-B70,1),0)+B70,"") ->  | C71: =IFERROR(OFFSET(CalculationsAndCharts!$B$32,'Transaction Summary'!B71,0,1,1),"") ->  | D71: =IFERROR(OFFSET(CalculationsAndCharts!$AD$32,'Transaction Summary'!B71,0,1,1),"") ->  | E71: =IFERROR(IF($E$12>$B$15,$E$12,(MATCH(TRUE,OFFSET(CalculationsAndCharts!$AC$33,E70,0,'Transaction Summary'!$C$2-E70,1),0)+E70)),"") ->  | F71: =IFERROR(OFFSET(CalculationsAndCharts!$B$32,'Transaction Summary'!E71,0,1,1),"") ->  | G71: =IFERROR(OFFSET(CalculationsAndCharts!$AE$32,'Transaction Summary'!E71,0,1,1),"") -> 
B72: =IFERROR(MATCH(TRUE,OFFSET(CalculationsAndCharts!$Z$33,B71,0,'Transaction Summary'!$C$2-B71,1),0)+B71,"") ->  | C72: =IFERROR(OFFSET(CalculationsAndCharts!$B$32,'Transaction Summary'!B72,0,1,1),"") ->  | D72: =IFERROR(OFFSET(CalculationsAndCharts!$AD$32,'Transaction Summary'!B72,0,1,1),"") ->  | E72: =IFERROR(IF($E$12>$B$15,$E$12,(MATCH(TRUE,OFFSET(CalculationsAndCharts!$AC$33,E71,0,'Transaction Summary'!$C$2-E71,1),0)+E71)),"") ->  | F72: =IFERROR(OFFSET(CalculationsAndCharts!$B$32,'Transaction Summary'!E72,0,1,1),"") ->  | G72: =IFERROR(OFFSET(CalculationsAndCharts!$AE$32,'Transaction Summary'!E72,0,1,1),"") -> 
B73: =IFERROR(MATCH(TRUE,OFFSET(CalculationsAndCharts!$Z$33,B72,0,'Transaction Summary'!$C$2-B72,1),0)+B72,"") ->  | C73: =IFERROR(OFFSET(CalculationsAndCharts!$B$32,'Transaction Summary'!B73,0,1,1),"") ->  | D73: =IFERROR(OFFSET(CalculationsAndCharts!$AD$32,'Transaction Summary'!B73,0,1,1),"") ->  | E73: =IFERROR(IF($E$12>$B$15,$E$12,(MATCH(TRUE,OFFSET(CalculationsAndCharts!$AC$33,E72,0,'Transaction Summary'!$C$2-E72,1),0)+E72)),"") ->  | F73: =IFERROR(OFFSET(CalculationsAndCharts!$B$32,'Transaction Summary'!E73,0,1,1),"") ->  | G73: =IFERROR(OFFSET(CalculationsAndCharts!$AE$32,'Transaction Summary'!E73,0,1,1),"") -> 
B74: =IFERROR(MATCH(TRUE,OFFSET(CalculationsAndCharts!$Z$33,B73,0,'Transaction Summary'!$C$2-B73,1),0)+B73,"") ->  | C74: =IFERROR(OFFSET(CalculationsAndCharts!$B$32,'Transaction Summary'!B74,0,1,1),"") ->  | D74: =IFERROR(OFFSET(CalculationsAndCharts!$AD$32,'Transaction Summary'!B74,0,1,1),"") ->  | E74: =IFERROR(IF($E$12>$B$15,$E$12,(MATCH(TRUE,OFFSET(CalculationsAndCharts!$AC$33,E73,0,'Transaction Summary'!$C$2-E73,1),0)+E73)),"") ->  | F74: =IFERROR(OFFSET(CalculationsAndCharts!$B$32,'Transaction Summary'!E74,0,1,1),"") ->  | G74: =IFERROR(OFFSET(CalculationsAndCharts!$AE$32,'Transaction Summary'!E74,0,1,1),"") -> 
B75: =IFERROR(MATCH(TRUE,OFFSET(CalculationsAndCharts!$Z$33,B74,0,'Transaction Summary'!$C$2-B74,1),0)+B74,"") ->  | C75: =IFERROR(OFFSET(CalculationsAndCharts!$B$32,'Transaction Summary'!B75,0,1,1),"") ->  | D75: =IFERROR(OFFSET(CalculationsAndCharts!$AD$32,'Transaction Summary'!B75,0,1,1),"") ->  | E75: =IFERROR(IF($E$12>$B$15,$E$12,(MATCH(TRUE,OFFSET(CalculationsAndCharts!$AC$33,E74,0,'Transaction Summary'!$C$2-E74,1),0)+E74)),"") ->  | F75: =IFERROR(OFFSET(CalculationsAndCharts!$B$32,'Transaction Summary'!E75,0,1,1),"") ->  | G75: =IFERROR(OFFSET(CalculationsAndCharts!$AE$32,'Transaction Summary'!E75,0,1,1),"") -> 
B76: =IFERROR(MATCH(TRUE,OFFSET(CalculationsAndCharts!$Z$33,B75,0,'Transaction Summary'!$C$2-B75,1),0)+B75,"") ->  | C76: =IFERROR(OFFSET(CalculationsAndCharts!$B$32,'Transaction Summary'!B76,0,1,1),"") ->  | D76: =IFERROR(OFFSET(CalculationsAndCharts!$AD$32,'Transaction Summary'!B76,0,1,1),"") ->  | E76: =IFERROR(IF($E$12>$B$15,$E$12,(MATCH(TRUE,OFFSET(CalculationsAndCharts!$AC$33,E75,0,'Transaction Summary'!$C$2-E75,1),0)+E75)),"") ->  | F76: =IFERROR(OFFSET(CalculationsAndCharts!$B$32,'Transaction Summary'!E76,0,1,1),"") ->  | G76: =IFERROR(OFFSET(CalculationsAndCharts!$AE$32,'Transaction Summary'!E76,0,1,1),"") -> 
B77: =IFERROR(MATCH(TRUE,OFFSET(CalculationsAndCharts!$Z$33,B76,0,'Transaction Summary'!$C$2-B76,1),0)+B76,"") ->  | C77: =IFERROR(OFFSET(CalculationsAndCharts!$B$32,'Transaction Summary'!B77,0,1,1),"") ->  | D77: =IFERROR(OFFSET(CalculationsAndCharts!$AD$32,'Transaction Summary'!B77,0,1,1),"") ->  | E77: =IFERROR(IF($E$12>$B$15,$E$12,(MATCH(TRUE,OFFSET(CalculationsAndCharts!$AC$33,E76,0,'Transaction Summary'!$C$2-E76,1),0)+E76)),"") ->  | F77: =IFERROR(OFFSET(CalculationsAndCharts!$B$32,'Transaction Summary'!E77,0,1,1),"") ->  | G77: =IFERROR(OFFSET(CalculationsAndCharts!$AE$32,'Transaction Summary'!E77,0,1,1),"") -> 
B78: =IFERROR(MATCH(TRUE,OFFSET(CalculationsAndCharts!$Z$33,B77,0,'Transaction Summary'!$C$2-B77,1),0)+B77,"") ->  | C78: =IFERROR(OFFSET(CalculationsAndCharts!$B$32,'Transaction Summary'!B78,0,1,1),"") ->  | D78: =IFERROR(OFFSET(CalculationsAndCharts!$AD$32,'Transaction Summary'!B78,0,1,1),"") ->  | E78: =IFERROR(IF($E$12>$B$15,$E$12,(MATCH(TRUE,OFFSET(CalculationsAndCharts!$AC$33,E77,0,'Transaction Summary'!$C$2-E77,1),0)+E77)),"") ->  | F78: =IFERROR(OFFSET(CalculationsAndCharts!$B$32,'Transaction Summary'!E78,0,1,1),"") ->  | G78: =IFERROR(OFFSET(CalculationsAndCharts!$AE$32,'Transaction Summary'!E78,0,1,1),"") -> 
B79: =IFERROR(MATCH(TRUE,OFFSET(CalculationsAndCharts!$Z$33,B78,0,'Transaction Summary'!$C$2-B78,1),0)+B78,"") ->  | C79: =IFERROR(OFFSET(CalculationsAndCharts!$B$32,'Transaction Summary'!B79,0,1,1),"") ->  | D79: =IFERROR(OFFSET(CalculationsAndCharts!$AD$32,'Transaction Summary'!B79,0,1,1),"") ->  | E79: =IFERROR(IF($E$12>$B$15,$E$12,(MATCH(TRUE,OFFSET(CalculationsAndCharts!$AC$33,E78,0,'Transaction Summary'!$C$2-E78,1),0)+E78)),"") ->  | F79: =IFERROR(OFFSET(CalculationsAndCharts!$B$32,'Transaction Summary'!E79,0,1,1),"") ->  | G79: =IFERROR(OFFSET(CalculationsAndCharts!$AE$32,'Transaction Summary'!E79,0,1,1),"") -> 
B80: =IFERROR(MATCH(TRUE,OFFSET(CalculationsAndCharts!$Z$33,B79,0,'Transaction Summary'!$C$2-B79,1),0)+B79,"") ->  | C80: =IFERROR(OFFSET(CalculationsAndCharts!$B$32,'Transaction Summary'!B80,0,1,1),"") ->  | D80: =IFERROR(OFFSET(CalculationsAndCharts!$AD$32,'Transaction Summary'!B80,0,1,1),"") ->  | E80: =IFERROR(IF($E$12>$B$15,$E$12,(MATCH(TRUE,OFFSET(CalculationsAndCharts!$AC$33,E79,0,'Transaction Summary'!$C$2-E79,1),0)+E79)),"") ->  | F80: =IFERROR(OFFSET(CalculationsAndCharts!$B$32,'Transaction Summary'!E80,0,1,1),"") ->  | G80: =IFERROR(OFFSET(CalculationsAndCharts!$AE$32,'Transaction Summary'!E80,0,1,1),"") -> 
B81: =IFERROR(MATCH(TRUE,OFFSET(CalculationsAndCharts!$Z$33,B80,0,'Transaction Summary'!$C$2-B80,1),0)+B80,"") ->  | C81: =IFERROR(OFFSET(CalculationsAndCharts!$B$32,'Transaction Summary'!B81,0,1,1),"") ->  | D81: =IFERROR(OFFSET(CalculationsAndCharts!$AD$32,'Transaction Summary'!B81,0,1,1),"") ->  | E81: =IFERROR(IF($E$12>$B$15,$E$12,(MATCH(TRUE,OFFSET(CalculationsAndCharts!$AC$33,E80,0,'Transaction Summary'!$C$2-E80,1),0)+E80)),"") ->  | F81: =IFERROR(OFFSET(CalculationsAndCharts!$B$32,'Transaction Summary'!E81,0,1,1),"") ->  | G81: =IFERROR(OFFSET(CalculationsAndCharts!$AE$32,'Transaction Summary'!E81,0,1,1),"") -> 
B82: =IFERROR(MATCH(TRUE,OFFSET(CalculationsAndCharts!$Z$33,B81,0,'Transaction Summary'!$C$2-B81,1),0)+B81,"") ->  | C82: =IFERROR(OFFSET(CalculationsAndCharts!$B$32,'Transaction Summary'!B82,0,1,1),"") ->  | D82: =IFERROR(OFFSET(CalculationsAndCharts!$AD$32,'Transaction Summary'!B82,0,1,1),"") ->  | E82: =IFERROR(IF($E$12>$B$15,$E$12,(MATCH(TRUE,OFFSET(CalculationsAndCharts!$AC$33,E81,0,'Transaction Summary'!$C$2-E81,1),0)+E81)),"") ->  | F82: =IFERROR(OFFSET(CalculationsAndCharts!$B$32,'Transaction Summary'!E82,0,1,1),"") ->  | G82: =IFERROR(OFFSET(CalculationsAndCharts!$AE$32,'Transaction Summary'!E82,0,1,1),"") ->  | H82: =IFERROR(G82-D82,"") ->  | I82: =IFERROR(H82+IF(""=I83,0,I83),"") -> 
B83: =IFERROR(MATCH(TRUE,OFFSET(CalculationsAndCharts!$Z$33,B82,0,'Transaction Summary'!$C$2-B82,1),0)+B82,"") ->  | C83: =IFERROR(OFFSET(CalculationsAndCharts!$B$32,'Transaction Summary'!B83,0,1,1),"") ->  | D83: =IFERROR(OFFSET(CalculationsAndCharts!$AD$32,'Transaction Summary'!B83,0,1,1),"") ->  | E83: =IFERROR(IF($E$12>$B$15,$E$12,(MATCH(TRUE,OFFSET(CalculationsAndCharts!$AC$33,E82,0,'Transaction Summary'!$C$2-E82,1),0)+E82)),"") ->  | F83: =IFERROR(OFFSET(CalculationsAndCharts!$B$32,'Transaction Summary'!E83,0,1,1),"") ->  | G83: =IFERROR(OFFSET(CalculationsAndCharts!$AE$32,'Transaction Summary'!E83,0,1,1),"") -> 
B84: =IFERROR(MATCH(TRUE,OFFSET(CalculationsAndCharts!$Z$33,B83,0,'Transaction Summary'!$C$2-B83,1),0)+B83,"") ->  | C84: =IFERROR(OFFSET(CalculationsAndCharts!$B$32,'Transaction Summary'!B84,0,1,1),"") ->  | D84: =IFERROR(OFFSET(CalculationsAndCharts!$AD$32,'Transaction Summary'!B84,0,1,1),"") ->  | E84: =IFERROR(IF($E$12>$B$15,$E$12,(MATCH(TRUE,OFFSET(CalculationsAndCharts!$AC$33,E83,0,'Transaction Summary'!$C$2-E83,1),0)+E83)),"") ->  | F84: =IFERROR(OFFSET(CalculationsAndCharts!$B$32,'Transaction Summary'!E84,0,1,1),"") ->  | G84: =IFERROR(OFFSET(CalculationsAndCharts!$AE$32,'Transaction Summary'!E84,0,1,1),"") -> 
B85: =IFERROR(MATCH(TRUE,OFFSET(CalculationsAndCharts!$Z$33,B84,0,'Transaction Summary'!$C$2-B84,1),0)+B84,"") ->  | C85: =IFERROR(OFFSET(CalculationsAndCharts!$B$32,'Transaction Summary'!B85,0,1,1),"") ->  | D85: =IFERROR(OFFSET(CalculationsAndCharts!$AD$32,'Transaction Summary'!B85,0,1,1),"") ->  | E85: =IFERROR(IF($E$12>$B$15,$E$12,(MATCH(TRUE,OFFSET(CalculationsAndCharts!$AC$33,E84,0,'Transaction Summary'!$C$2-E84,1),0)+E84)),"") ->  | F85: =IFERROR(OFFSET(CalculationsAndCharts!$B$32,'Transaction Summary'!E85,0,1,1),"") ->  | G85: =IFERROR(OFFSET(CalculationsAndCharts!$AE$32,'Transaction Summary'!E85,0,1,1),"") -> 
B86: =IFERROR(MATCH(TRUE,OFFSET(CalculationsAndCharts!$Z$33,B85,0,'Transaction Summary'!$C$2-B85,1),0)+B85,"") ->  | C86: =IFERROR(OFFSET(CalculationsAndCharts!$B$32,'Transaction Summary'!B86,0,1,1),"") ->  | D86: =IFERROR(OFFSET(CalculationsAndCharts!$AD$32,'Transaction Summary'!B86,0,1,1),"") ->  | E86: =IFERROR(IF($E$12>$B$15,$E$12,(MATCH(TRUE,OFFSET(CalculationsAndCharts!$AC$33,E85,0,'Transaction Summary'!$C$2-E85,1),0)+E85)),"") ->  | F86: =IFERROR(OFFSET(CalculationsAndCharts!$B$32,'Transaction Summary'!E86,0,1,1),"") ->  | G86: =IFERROR(OFFSET(CalculationsAndCharts!$AE$32,'Transaction Summary'!E86,0,1,1),"") -> 
B87: =IFERROR(MATCH(TRUE,OFFSET(CalculationsAndCharts!$Z$33,B86,0,'Transaction Summary'!$C$2-B86,1),0)+B86,"") ->  | C87: =IFERROR(OFFSET(CalculationsAndCharts!$B$32,'Transaction Summary'!B87,0,1,1),"") ->  | D87: =IFERROR(OFFSET(CalculationsAndCharts!$AD$32,'Transaction Summary'!B87,0,1,1),"") ->  | E87: =IFERROR(IF($E$12>$B$15,$E$12,(MATCH(TRUE,OFFSET(CalculationsAndCharts!$AC$33,E86,0,'Transaction Summary'!$C$2-E86,1),0)+E86)),"") ->  | F87: =IFERROR(OFFSET(CalculationsAndCharts!$B$32,'Transaction Summary'!E87,0,1,1),"") ->  | G87: =IFERROR(OFFSET(CalculationsAndCharts!$AE$32,'Transaction Summary'!E87,0,1,1),"") -> 
B88: =IFERROR(MATCH(TRUE,OFFSET(CalculationsAndCharts!$Z$33,B87,0,'Transaction Summary'!$C$2-B87,1),0)+B87,"") ->  | C88: =IFERROR(OFFSET(CalculationsAndCharts!$B$32,'Transaction Summary'!B88,0,1,1),"") ->  | D88: =IFERROR(OFFSET(CalculationsAndCharts!$AD$32,'Transaction Summary'!B88,0,1,1),"") ->  | E88: =IFERROR(IF($E$12>$B$15,$E$12,(MATCH(TRUE,OFFSET(CalculationsAndCharts!$AC$33,E87,0,'Transaction Summary'!$C$2-E87,1),0)+E87)),"") ->  | F88: =IFERROR(OFFSET(CalculationsAndCharts!$B$32,'Transaction Summary'!E88,0,1,1),"") ->  | G88: =IFERROR(OFFSET(CalculationsAndCharts!$AE$32,'Transaction Summary'!E88,0,1,1),"") -> 
B89: =IFERROR(MATCH(TRUE,OFFSET(CalculationsAndCharts!$Z$33,B88,0,'Transaction Summary'!$C$2-B88,1),0)+B88,"") ->  | C89: =IFERROR(OFFSET(CalculationsAndCharts!$B$32,'Transaction Summary'!B89,0,1,1),"") ->  | D89: =IFERROR(OFFSET(CalculationsAndCharts!$AD$32,'Transaction Summary'!B89,0,1,1),"") ->  | E89: =IFERROR(IF($E$12>$B$15,$E$12,(MATCH(TRUE,OFFSET(CalculationsAndCharts!$AC$33,E88,0,'Transaction Summary'!$C$2-E88,1),0)+E88)),"") ->  | F89: =IFERROR(OFFSET(CalculationsAndCharts!$B$32,'Transaction Summary'!E89,0,1,1),"") ->  | G89: =IFERROR(OFFSET(CalculationsAndCharts!$AE$32,'Transaction Summary'!E89,0,1,1),"") -> 
B90: =IFERROR(MATCH(TRUE,OFFSET(CalculationsAndCharts!$Z$33,B89,0,'Transaction Summary'!$C$2-B89,1),0)+B89,"") ->  | C90: =IFERROR(OFFSET(CalculationsAndCharts!$B$32,'Transaction Summary'!B90,0,1,1),"") ->  | D90: =IFERROR(OFFSET(CalculationsAndCharts!$AD$32,'Transaction Summary'!B90,0,1,1),"") ->  | E90: =IFERROR(IF($E$12>$B$15,$E$12,(MATCH(TRUE,OFFSET(CalculationsAndCharts!$AC$33,E89,0,'Transaction Summary'!$C$2-E89,1),0)+E89)),"") ->  | F90: =IFERROR(OFFSET(CalculationsAndCharts!$B$32,'Transaction Summary'!E90,0,1,1),"") ->  | G90: =IFERROR(OFFSET(CalculationsAndCharts!$AE$32,'Transaction Summary'!E90,0,1,1),"") -> 
B91: =IFERROR(MATCH(TRUE,OFFSET(CalculationsAndCharts!$Z$33,B90,0,'Transaction Summary'!$C$2-B90,1),0)+B90,"") ->  | C91: =IFERROR(OFFSET(CalculationsAndCharts!$B$32,'Transaction Summary'!B91,0,1,1),"") ->  | D91: =IFERROR(OFFSET(CalculationsAndCharts!$AD$32,'Transaction Summary'!B91,0,1,1),"") ->  | E91: =IFERROR(IF($E$12>$B$15,$E$12,(MATCH(TRUE,OFFSET(CalculationsAndCharts!$AC$33,E90,0,'Transaction Summary'!$C$2-E90,1),0)+E90)),"") ->  | F91: =IFERROR(OFFSET(CalculationsAndCharts!$B$32,'Transaction Summary'!E91,0,1,1),"") ->  | G91: =IFERROR(OFFSET(CalculationsAndCharts!$AE$32,'Transaction Summary'!E91,0,1,1),"") -> 
B92: =IFERROR(MATCH(TRUE,OFFSET(CalculationsAndCharts!$Z$33,B91,0,'Transaction Summary'!$C$2-B91,1),0)+B91,"") ->  | C92: =IFERROR(OFFSET(CalculationsAndCharts!$B$32,'Transaction Summary'!B92,0,1,1),"") ->  | D92: =IFERROR(OFFSET(CalculationsAndCharts!$AD$32,'Transaction Summary'!B92,0,1,1),"") ->  | E92: =IFERROR(IF($E$12>$B$15,$E$12,(MATCH(TRUE,OFFSET(CalculationsAndCharts!$AC$33,E91,0,'Transaction Summary'!$C$2-E91,1),0)+E91)),"") ->  | F92: =IFERROR(OFFSET(CalculationsAndCharts!$B$32,'Transaction Summary'!E92,0,1,1),"") ->  | G92: =IFERROR(OFFSET(CalculationsAndCharts!$AE$32,'Transaction Summary'!E92,0,1,1),"") -> 
B93: =IFERROR(MATCH(TRUE,OFFSET(CalculationsAndCharts!$Z$33,B92,0,'Transaction Summary'!$C$2-B92,1),0)+B92,"") ->  | C93: =IFERROR(OFFSET(CalculationsAndCharts!$B$32,'Transaction Summary'!B93,0,1,1),"") ->  | D93: =IFERROR(OFFSET(CalculationsAndCharts!$AD$32,'Transaction Summary'!B93,0,1,1),"") ->  | E93: =IFERROR(IF($E$12>$B$15,$E$12,(MATCH(TRUE,OFFSET(CalculationsAndCharts!$AC$33,E92,0,'Transaction Summary'!$C$2-E92,1),0)+E92)),"") ->  | F93: =IFERROR(OFFSET(CalculationsAndCharts!$B$32,'Transaction Summary'!E93,0,1,1),"") ->  | G93: =IFERROR(OFFSET(CalculationsAndCharts!$AE$32,'Transaction Summary'!E93,0,1,1),"") -> 
B94: =IFERROR(MATCH(TRUE,OFFSET(CalculationsAndCharts!$Z$33,B93,0,'Transaction Summary'!$C$2-B93,1),0)+B93,"") ->  | C94: =IFERROR(OFFSET(CalculationsAndCharts!$B$32,'Transaction Summary'!B94,0,1,1),"") ->  | D94: =IFERROR(OFFSET(CalculationsAndCharts!$AD$32,'Transaction Summary'!B94,0,1,1),"") ->  | E94: =IFERROR(IF($E$12>$B$15,$E$12,(MATCH(TRUE,OFFSET(CalculationsAndCharts!$AC$33,E93,0,'Transaction Summary'!$C$2-E93,1),0)+E93)),"") ->  | F94: =IFERROR(OFFSET(CalculationsAndCharts!$B$32,'Transaction Summary'!E94,0,1,1),"") ->  | G94: =IFERROR(OFFSET(CalculationsAndCharts!$AE$32,'Transaction Summary'!E94,0,1,1),"") -> 
B95: =IFERROR(MATCH(TRUE,OFFSET(CalculationsAndCharts!$Z$33,B94,0,'Transaction Summary'!$C$2-B94,1),0)+B94,"") ->  | C95: =IFERROR(OFFSET(CalculationsAndCharts!$B$32,'Transaction Summary'!B95,0,1,1),"") ->  | D95: =IFERROR(OFFSET(CalculationsAndCharts!$AD$32,'Transaction Summary'!B95,0,1,1),"") ->  | E95: =IFERROR(IF($E$12>$B$15,$E$12,(MATCH(TRUE,OFFSET(CalculationsAndCharts!$AC$33,E94,0,'Transaction Summary'!$C$2-E94,1),0)+E94)),"") ->  | F95: =IFERROR(OFFSET(CalculationsAndCharts!$B$32,'Transaction Summary'!E95,0,1,1),"") ->  | G95: =IFERROR(OFFSET(CalculationsAndCharts!$AE$32,'Transaction Summary'!E95,0,1,1),"") -> 
B96: =IFERROR(MATCH(TRUE,OFFSET(CalculationsAndCharts!$Z$33,B95,0,'Transaction Summary'!$C$2-B95,1),0)+B95,"") ->  | C96: =IFERROR(OFFSET(CalculationsAndCharts!$B$32,'Transaction Summary'!B96,0,1,1),"") ->  | D96: =IFERROR(OFFSET(CalculationsAndCharts!$AD$32,'Transaction Summary'!B96,0,1,1),"") ->  | E96: =IFERROR(IF($E$12>$B$15,$E$12,(MATCH(TRUE,OFFSET(CalculationsAndCharts!$AC$33,E95,0,'Transaction Summary'!$C$2-E95,1),0)+E95)),"") ->  | F96: =IFERROR(OFFSET(CalculationsAndCharts!$B$32,'Transaction Summary'!E96,0,1,1),"") ->  | G96: =IFERROR(OFFSET(CalculationsAndCharts!$AE$32,'Transaction Summary'!E96,0,1,1),"") -> 
B97: =IFERROR(MATCH(TRUE,OFFSET(CalculationsAndCharts!$Z$33,B96,0,'Transaction Summary'!$C$2-B96,1),0)+B96,"") ->  | C97: =IFERROR(OFFSET(CalculationsAndCharts!$B$32,'Transaction Summary'!B97,0,1,1),"") ->  | D97: =IFERROR(OFFSET(CalculationsAndCharts!$AD$32,'Transaction Summary'!B97,0,1,1),"") ->  | E97: =IFERROR(IF($E$12>$B$15,$E$12,(MATCH(TRUE,OFFSET(CalculationsAndCharts!$AC$33,E96,0,'Transaction Summary'!$C$2-E96,1),0)+E96)),"") ->  | F97: =IFERROR(OFFSET(CalculationsAndCharts!$B$32,'Transaction Summary'!E97,0,1,1),"") ->  | G97: =IFERROR(OFFSET(CalculationsAndCharts!$AE$32,'Transaction Summary'!E97,0,1,1),"") -> 
B98: =IFERROR(MATCH(TRUE,OFFSET(CalculationsAndCharts!$Z$33,B97,0,'Transaction Summary'!$C$2-B97,1),0)+B97,"") ->  | C98: =IFERROR(OFFSET(CalculationsAndCharts!$B$32,'Transaction Summary'!B98,0,1,1),"") ->  | D98: =IFERROR(OFFSET(CalculationsAndCharts!$AD$32,'Transaction Summary'!B98,0,1,1),"") ->  | E98: =IFERROR(IF($E$12>$B$15,$E$12,(MATCH(TRUE,OFFSET(CalculationsAndCharts!$AC$33,E97,0,'Transaction Summary'!$C$2-E97,1),0)+E97)),"") ->  | F98: =IFERROR(OFFSET(CalculationsAndCharts!$B$32,'Transaction Summary'!E98,0,1,1),"") ->  | G98: =IFERROR(OFFSET(CalculationsAndCharts!$AE$32,'Transaction Summary'!E98,0,1,1),"") -> 
B99: =IFERROR(MATCH(TRUE,OFFSET(CalculationsAndCharts!$Z$33,B98,0,'Transaction Summary'!$C$2-B98,1),0)+B98,"") ->  | C99: =IFERROR(OFFSET(CalculationsAndCharts!$B$32,'Transaction Summary'!B99,0,1,1),"") ->  | D99: =IFERROR(OFFSET(CalculationsAndCharts!$AD$32,'Transaction Summary'!B99,0,1,1),"") ->  | E99: =IFERROR(IF($E$12>$B$15,$E$12,(MATCH(TRUE,OFFSET(CalculationsAndCharts!$AC$33,E98,0,'Transaction Summary'!$C$2-E98,1),0)+E98)),"") ->  | F99: =IFERROR(OFFSET(CalculationsAndCharts!$B$32,'Transaction Summary'!E99,0,1,1),"") ->  | G99: =IFERROR(OFFSET(CalculationsAndCharts!$AE$32,'Transaction Summary'!E99,0,1,1),"") -> 
B100: =IFERROR(MATCH(TRUE,OFFSET(CalculationsAndCharts!$Z$33,B99,0,'Transaction Summary'!$C$2-B99,1),0)+B99,"") ->  | C100: =IFERROR(OFFSET(CalculationsAndCharts!$B$32,'Transaction Summary'!B100,0,1,1),"") ->  | D100: =IFERROR(OFFSET(CalculationsAndCharts!$AD$32,'Transaction Summary'!B100,0,1,1),"") ->  | E100: =IFERROR(IF($E$12>$B$15,$E$12,(MATCH(TRUE,OFFSET(CalculationsAndCharts!$AC$33,E99,0,'Transaction Summary'!$C$2-E99,1),0)+E99)),"") ->  | F100: =IFERROR(OFFSET(CalculationsAndCharts!$B$32,'Transaction Summary'!E100,0,1,1),"") ->  | G100: =IFERROR(OFFSET(CalculationsAndCharts!$AE$32,'Transaction Summary'!E100,0,1,1),"") -> 
B101: =IFERROR(MATCH(TRUE,OFFSET(CalculationsAndCharts!$Z$33,B100,0,'Transaction Summary'!$C$2-B100,1),0)+B100,"") ->  | C101: =IFERROR(OFFSET(CalculationsAndCharts!$B$32,'Transaction Summary'!B101,0,1,1),"") ->  | D101: =IFERROR(OFFSET(CalculationsAndCharts!$AD$32,'Transaction Summary'!B101,0,1,1),"") ->  | E101: =IFERROR(IF($E$12>$B$15,$E$12,(MATCH(TRUE,OFFSET(CalculationsAndCharts!$AC$33,E100,0,'Transaction Summary'!$C$2-E100,1),0)+E100)),"") ->  | F101: =IFERROR(OFFSET(CalculationsAndCharts!$B$32,'Transaction Summary'!E101,0,1,1),"") ->  | G101: =IFERROR(OFFSET(CalculationsAndCharts!$AE$32,'Transaction Summary'!E101,0,1,1),"") -> 
B102: =IFERROR(MATCH(TRUE,OFFSET(CalculationsAndCharts!$Z$33,B101,0,'Transaction Summary'!$C$2-B101,1),0)+B101,"") ->  | C102: =IFERROR(OFFSET(CalculationsAndCharts!$B$32,'Transaction Summary'!B102,0,1,1),"") ->  | D102: =IFERROR(OFFSET(CalculationsAndCharts!$AD$32,'Transaction Summary'!B102,0,1,1),"") ->  | E102: =IFERROR(IF($E$12>$B$15,$E$12,(MATCH(TRUE,OFFSET(CalculationsAndCharts!$AC$33,E101,0,'Transaction Summary'!$C$2-E101,1),0)+E101)),"") ->  | F102: =IFERROR(OFFSET(CalculationsAndCharts!$B$32,'Transaction Summary'!E102,0,1,1),"") ->  | G102: =IFERROR(OFFSET(CalculationsAndCharts!$AE$32,'Transaction Summary'!E102,0,1,1),"") -> 
B103: =IFERROR(MATCH(TRUE,OFFSET(CalculationsAndCharts!$Z$33,B102,0,'Transaction Summary'!$C$2-B102,1),0)+B102,"") ->  | C103: =IFERROR(OFFSET(CalculationsAndCharts!$B$32,'Transaction Summary'!B103,0,1,1),"") ->  | D103: =IFERROR(OFFSET(CalculationsAndCharts!$AD$32,'Transaction Summary'!B103,0,1,1),"") ->  | E103: =IFERROR(IF($E$12>$B$15,$E$12,(MATCH(TRUE,OFFSET(CalculationsAndCharts!$AC$33,E102,0,'Transaction Summary'!$C$2-E102,1),0)+E102)),"") ->  | F103: =IFERROR(OFFSET(CalculationsAndCharts!$B$32,'Transaction Summary'!E103,0,1,1),"") ->  | G103: =IFERROR(OFFSET(CalculationsAndCharts!$AE$32,'Transaction Summary'!E103,0,1,1),"") -> 
B104: =IFERROR(MATCH(TRUE,OFFSET(CalculationsAndCharts!$Z$33,B103,0,'Transaction Summary'!$C$2-B103,1),0)+B103,"") ->  | C104: =IFERROR(OFFSET(CalculationsAndCharts!$B$32,'Transaction Summary'!B104,0,1,1),"") ->  | D104: =IFERROR(OFFSET(CalculationsAndCharts!$AD$32,'Transaction Summary'!B104,0,1,1),"") ->  | E104: =IFERROR(IF($E$12>$B$15,$E$12,(MATCH(TRUE,OFFSET(CalculationsAndCharts!$AC$33,E103,0,'Transaction Summary'!$C$2-E103,1),0)+E103)),"") ->  | F104: =IFERROR(OFFSET(CalculationsAndCharts!$B$32,'Transaction Summary'!E104,0,1,1),"") ->  | G104: =IFERROR(OFFSET(CalculationsAndCharts!$AE$32,'Transaction Summary'!E104,0,1,1),"") -> 
B105: =IFERROR(MATCH(TRUE,OFFSET(CalculationsAndCharts!$Z$33,B104,0,'Transaction Summary'!$C$2-B104,1),0)+B104,"") ->  | C105: =IFERROR(OFFSET(CalculationsAndCharts!$B$32,'Transaction Summary'!B105,0,1,1),"") ->  | D105: =IFERROR(OFFSET(CalculationsAndCharts!$AD$32,'Transaction Summary'!B105,0,1,1),"") ->  | E105: =IFERROR(IF($E$12>$B$15,$E$12,(MATCH(TRUE,OFFSET(CalculationsAndCharts!$AC$33,E104,0,'Transaction Summary'!$C$2-E104,1),0)+E104)),"") ->  | F105: =IFERROR(OFFSET(CalculationsAndCharts!$B$32,'Transaction Summary'!E105,0,1,1),"") ->  | G105: =IFERROR(OFFSET(CalculationsAndCharts!$AE$32,'Transaction Summary'!E105,0,1,1),"") -> 
B106: =IFERROR(MATCH(TRUE,OFFSET(CalculationsAndCharts!$Z$33,B105,0,'Transaction Summary'!$C$2-B105,1),0)+B105,"") ->  | C106: =IFERROR(OFFSET(CalculationsAndCharts!$B$32,'Transaction Summary'!B106,0,1,1),"") ->  | D106: =IFERROR(OFFSET(CalculationsAndCharts!$AD$32,'Transaction Summary'!B106,0,1,1),"") ->  | E106: =IFERROR(IF($E$12>$B$15,$E$12,(MATCH(TRUE,OFFSET(CalculationsAndCharts!$AC$33,E105,0,'Transaction Summary'!$C$2-E105,1),0)+E105)),"") ->  | F106: =IFERROR(OFFSET(CalculationsAndCharts!$B$32,'Transaction Summary'!E106,0,1,1),"") ->  | G106: =IFERROR(OFFSET(CalculationsAndCharts!$AE$32,'Transaction Summary'!E106,0,1,1),"") -> 
B107: =IFERROR(MATCH(TRUE,OFFSET(CalculationsAndCharts!$Z$33,B106,0,'Transaction Summary'!$C$2-B106,1),0)+B106,"") ->  | C107: =IFERROR(OFFSET(CalculationsAndCharts!$B$32,'Transaction Summary'!B107,0,1,1),"") ->  | D107: =IFERROR(OFFSET(CalculationsAndCharts!$AD$32,'Transaction Summary'!B107,0,1,1),"") ->  | E107: =IFERROR(IF($E$12>$B$15,$E$12,(MATCH(TRUE,OFFSET(CalculationsAndCharts!$AC$33,E106,0,'Transaction Summary'!$C$2-E106,1),0)+E106)),"") ->  | F107: =IFERROR(OFFSET(CalculationsAndCharts!$B$32,'Transaction Summary'!E107,0,1,1),"") ->  | G107: =IFERROR(OFFSET(CalculationsAndCharts!$AE$32,'Transaction Summary'!E107,0,1,1),"") -> 
B108: =IFERROR(MATCH(TRUE,OFFSET(CalculationsAndCharts!$Z$33,B107,0,'Transaction Summary'!$C$2-B107,1),0)+B107,"") ->  | C108: =IFERROR(OFFSET(CalculationsAndCharts!$B$32,'Transaction Summary'!B108,0,1,1),"") ->  | D108: =IFERROR(OFFSET(CalculationsAndCharts!$AD$32,'Transaction Summary'!B108,0,1,1),"") ->  | E108: =IFERROR(IF($E$12>$B$15,$E$12,(MATCH(TRUE,OFFSET(CalculationsAndCharts!$AC$33,E107,0,'Transaction Summary'!$C$2-E107,1),0)+E107)),"") ->  | F108: =IFERROR(OFFSET(CalculationsAndCharts!$B$32,'Transaction Summary'!E108,0,1,1),"") ->  | G108: =IFERROR(OFFSET(CalculationsAndCharts!$AE$32,'Transaction Summary'!E108,0,1,1),"") -> 
B109: =IFERROR(MATCH(TRUE,OFFSET(CalculationsAndCharts!$Z$33,B108,0,'Transaction Summary'!$C$2-B108,1),0)+B108,"") ->  | C109: =IFERROR(OFFSET(CalculationsAndCharts!$B$32,'Transaction Summary'!B109,0,1,1),"") ->  | D109: =IFERROR(OFFSET(CalculationsAndCharts!$AD$32,'Transaction Summary'!B109,0,1,1),"") ->  | E109: =IFERROR(IF($E$12>$B$15,$E$12,(MATCH(TRUE,OFFSET(CalculationsAndCharts!$AC$33,E108,0,'Transaction Summary'!$C$2-E108,1),0)+E108)),"") ->  | F109: =IFERROR(OFFSET(CalculationsAndCharts!$B$32,'Transaction Summary'!E109,0,1,1),"") ->  | G109: =IFERROR(OFFSET(CalculationsAndCharts!$AE$32,'Transaction Summary'!E109,0,1,1),"") -> 
B110: =IFERROR(MATCH(TRUE,OFFSET(CalculationsAndCharts!$Z$33,B109,0,'Transaction Summary'!$C$2-B109,1),0)+B109,"") ->  | C110: =IFERROR(OFFSET(CalculationsAndCharts!$B$32,'Transaction Summary'!B110,0,1,1),"") ->  | D110: =IFERROR(OFFSET(CalculationsAndCharts!$AD$32,'Transaction Summary'!B110,0,1,1),"") ->  | E110: =IFERROR(IF($E$12>$B$15,$E$12,(MATCH(TRUE,OFFSET(CalculationsAndCharts!$AC$33,E109,0,'Transaction Summary'!$C$2-E109,1),0)+E109)),"") ->  | F110: =IFERROR(OFFSET(CalculationsAndCharts!$B$32,'Transaction Summary'!E110,0,1,1),"") ->  | G110: =IFERROR(OFFSET(CalculationsAndCharts!$AE$32,'Transaction Summary'!E110,0,1,1),"") -> 
B111: =IFERROR(MATCH(TRUE,OFFSET(CalculationsAndCharts!$Z$33,B110,0,'Transaction Summary'!$C$2-B110,1),0)+B110,"") ->  | C111: =IFERROR(OFFSET(CalculationsAndCharts!$B$32,'Transaction Summary'!B111,0,1,1),"") ->  | D111: =IFERROR(OFFSET(CalculationsAndCharts!$AD$32,'Transaction Summary'!B111,0,1,1),"") ->  | E111: =IFERROR(IF($E$12>$B$15,$E$12,(MATCH(TRUE,OFFSET(CalculationsAndCharts!$AC$33,E110,0,'Transaction Summary'!$C$2-E110,1),0)+E110)),"") ->  | F111: =IFERROR(OFFSET(CalculationsAndCharts!$B$32,'Transaction Summary'!E111,0,1,1),"") ->  | G111: =IFERROR(OFFSET(CalculationsAndCharts!$AE$32,'Transaction Summary'!E111,0,1,1),"") -> 
B112: =IFERROR(MATCH(TRUE,OFFSET(CalculationsAndCharts!$Z$33,B111,0,'Transaction Summary'!$C$2-B111,1),0)+B111,"") ->  | C112: =IFERROR(OFFSET(CalculationsAndCharts!$B$32,'Transaction Summary'!B112,0,1,1),"") ->  | D112: =IFERROR(OFFSET(CalculationsAndCharts!$AD$32,'Transaction Summary'!B112,0,1,1),"") ->  | E112: =IFERROR(IF($E$12>$B$15,$E$12,(MATCH(TRUE,OFFSET(CalculationsAndCharts!$AC$33,E111,0,'Transaction Summary'!$C$2-E111,1),0)+E111)),"") ->  | F112: =IFERROR(OFFSET(CalculationsAndCharts!$B$32,'Transaction Summary'!E112,0,1,1),"") ->  | G112: =IFERROR(OFFSET(CalculationsAndCharts!$AE$32,'Transaction Summary'!E112,0,1,1),"") -> 
B113: =IFERROR(MATCH(TRUE,OFFSET(CalculationsAndCharts!$Z$33,B112,0,'Transaction Summary'!$C$2-B112,1),0)+B112,"") ->  | C113: =IFERROR(OFFSET(CalculationsAndCharts!$B$32,'Transaction Summary'!B113,0,1,1),"") ->  | D113: =IFERROR(OFFSET(CalculationsAndCharts!$AD$32,'Transaction Summary'!B113,0,1,1),"") ->  | E113: =IFERROR(IF($E$12>$B$15,$E$12,(MATCH(TRUE,OFFSET(CalculationsAndCharts!$AC$33,E112,0,'Transaction Summary'!$C$2-E112,1),0)+E112)),"") ->  | F113: =IFERROR(OFFSET(CalculationsAndCharts!$B$32,'Transaction Summary'!E113,0,1,1),"") ->  | G113: =IFERROR(OFFSET(CalculationsAndCharts!$AE$32,'Transaction Summary'!E113,0,1,1),"") -> 
B114: =IFERROR(MATCH(TRUE,OFFSET(CalculationsAndCharts!$Z$33,B113,0,'Transaction Summary'!$C$2-B113,1),0)+B113,"") ->  | C114: =IFERROR(OFFSET(CalculationsAndCharts!$B$32,'Transaction Summary'!B114,0,1,1),"") ->  | D114: =IFERROR(OFFSET(CalculationsAndCharts!$AD$32,'Transaction Summary'!B114,0,1,1),"") ->  | E114: =IFERROR(IF($E$12>$B$15,$E$12,(MATCH(TRUE,OFFSET(CalculationsAndCharts!$AC$33,E113,0,'Transaction Summary'!$C$2-E113,1),0)+E113)),"") ->  | F114: =IFERROR(OFFSET(CalculationsAndCharts!$B$32,'Transaction Summary'!E114,0,1,1),"") ->  | G114: =IFERROR(OFFSET(CalculationsAndCharts!$AE$32,'Transaction Summary'!E114,0,1,1),"") -> 
B115: =IFERROR(MATCH(TRUE,OFFSET(CalculationsAndCharts!$Z$33,B114,0,'Transaction Summary'!$C$2-B114,1),0)+B114,"") ->  | C115: =IFERROR(OFFSET(CalculationsAndCharts!$B$32,'Transaction Summary'!B115,0,1,1),"") ->  | D115: =IFERROR(OFFSET(CalculationsAndCharts!$AD$32,'Transaction Summary'!B115,0,1,1),"") ->  | E115: =IFERROR(IF($E$12>$B$15,$E$12,(MATCH(TRUE,OFFSET(CalculationsAndCharts!$AC$33,E114,0,'Transaction Summary'!$C$2-E114,1),0)+E114)),"") ->  | F115: =IFERROR(OFFSET(CalculationsAndCharts!$B$32,'Transaction Summary'!E115,0,1,1),"") ->  | G115: =IFERROR(OFFSET(CalculationsAndCharts!$AE$32,'Transaction Summary'!E115,0,1,1),"") -> 
B116: =IFERROR(MATCH(TRUE,OFFSET(CalculationsAndCharts!$Z$33,B115,0,'Transaction Summary'!$C$2-B115,1),0)+B115,"") ->  | C116: =IFERROR(OFFSET(CalculationsAndCharts!$B$32,'Transaction Summary'!B116,0,1,1),"") ->  | D116: =IFERROR(OFFSET(CalculationsAndCharts!$AD$32,'Transaction Summary'!B116,0,1,1),"") ->  | E116: =IFERROR(IF($E$12>$B$15,$E$12,(MATCH(TRUE,OFFSET(CalculationsAndCharts!$AC$33,E115,0,'Transaction Summary'!$C$2-E115,1),0)+E115)),"") ->  | F116: =IFERROR(OFFSET(CalculationsAndCharts!$B$32,'Transaction Summary'!E116,0,1,1),"") ->  | G116: =IFERROR(OFFSET(CalculationsAndCharts!$AE$32,'Transaction Summary'!E116,0,1,1),"") -> 
B117: =IFERROR(MATCH(TRUE,OFFSET(CalculationsAndCharts!$Z$33,B116,0,'Transaction Summary'!$C$2-B116,1),0)+B116,"") ->  | C117: =IFERROR(OFFSET(CalculationsAndCharts!$B$32,'Transaction Summary'!B117,0,1,1),"") ->  | D117: =IFERROR(OFFSET(CalculationsAndCharts!$AD$32,'Transaction Summary'!B117,0,1,1),"") ->  | E117: =IFERROR(IF($E$12>$B$15,$E$12,(MATCH(TRUE,OFFSET(CalculationsAndCharts!$AC$33,E116,0,'Transaction Summary'!$C$2-E116,1),0)+E116)),"") ->  | F117: =IFERROR(OFFSET(CalculationsAndCharts!$B$32,'Transaction Summary'!E117,0,1,1),"") ->  | G117: =IFERROR(OFFSET(CalculationsAndCharts!$AE$32,'Transaction Summary'!E117,0,1,1),"") -> 
B118: =IFERROR(MATCH(TRUE,OFFSET(CalculationsAndCharts!$Z$33,B117,0,'Transaction Summary'!$C$2-B117,1),0)+B117,"") ->  | C118: =IFERROR(OFFSET(CalculationsAndCharts!$B$32,'Transaction Summary'!B118,0,1,1),"") ->  | D118: =IFERROR(OFFSET(CalculationsAndCharts!$AD$32,'Transaction Summary'!B118,0,1,1),"") ->  | E118: =IFERROR(IF($E$12>$B$15,$E$12,(MATCH(TRUE,OFFSET(CalculationsAndCharts!$AC$33,E117,0,'Transaction Summary'!$C$2-E117,1),0)+E117)),"") ->  | F118: =IFERROR(OFFSET(CalculationsAndCharts!$B$32,'Transaction Summary'!E118,0,1,1),"") ->  | G118: =IFERROR(OFFSET(CalculationsAndCharts!$AE$32,'Transaction Summary'!E118,0,1,1),"") -> 
B119: =IFERROR(MATCH(TRUE,OFFSET(CalculationsAndCharts!$Z$33,B118,0,'Transaction Summary'!$C$2-B118,1),0)+B118,"") ->  | C119: =IFERROR(OFFSET(CalculationsAndCharts!$B$32,'Transaction Summary'!B119,0,1,1),"") ->  | D119: =IFERROR(OFFSET(CalculationsAndCharts!$AD$32,'Transaction Summary'!B119,0,1,1),"") ->  | E119: =IFERROR(IF($E$12>$B$15,$E$12,(MATCH(TRUE,OFFSET(CalculationsAndCharts!$AC$33,E118,0,'Transaction Summary'!$C$2-E118,1),0)+E118)),"") ->  | F119: =IFERROR(OFFSET(CalculationsAndCharts!$B$32,'Transaction Summary'!E119,0,1,1),"") ->  | G119: =IFERROR(OFFSET(CalculationsAndCharts!$AE$32,'Transaction Summary'!E119,0,1,1),"") -> 
B120: =IFERROR(MATCH(TRUE,OFFSET(CalculationsAndCharts!$Z$33,B119,0,'Transaction Summary'!$C$2-B119,1),0)+B119,"") ->  | C120: =IFERROR(OFFSET(CalculationsAndCharts!$B$32,'Transaction Summary'!B120,0,1,1),"") ->  | D120: =IFERROR(OFFSET(CalculationsAndCharts!$AD$32,'Transaction Summary'!B120,0,1,1),"") ->  | E120: =IFERROR(IF($E$12>$B$15,$E$12,(MATCH(TRUE,OFFSET(CalculationsAndCharts!$AC$33,E119,0,'Transaction Summary'!$C$2-E119,1),0)+E119)),"") ->  | F120: =IFERROR(OFFSET(CalculationsAndCharts!$B$32,'Transaction Summary'!E120,0,1,1),"") ->  | G120: =IFERROR(OFFSET(CalculationsAndCharts!$AE$32,'Transaction Summary'!E120,0,1,1),"") -> 
B121: =IFERROR(MATCH(TRUE,OFFSET(CalculationsAndCharts!$Z$33,B120,0,'Transaction Summary'!$C$2-B120,1),0)+B120,"") ->  | C121: =IFERROR(OFFSET(CalculationsAndCharts!$B$32,'Transaction Summary'!B121,0,1,1),"") ->  | D121: =IFERROR(OFFSET(CalculationsAndCharts!$AD$32,'Transaction Summary'!B121,0,1,1),"") ->  | E121: =IFERROR(IF($E$12>$B$15,$E$12,(MATCH(TRUE,OFFSET(CalculationsAndCharts!$AC$33,E120,0,'Transaction Summary'!$C$2-E120,1),0)+E120)),"") ->  | F121: =IFERROR(OFFSET(CalculationsAndCharts!$B$32,'Transaction Summary'!E121,0,1,1),"") ->  | G121: =IFERROR(OFFSET(CalculationsAndCharts!$AE$32,'Transaction Summary'!E121,0,1,1),"") -> 
B122: =IFERROR(MATCH(TRUE,OFFSET(CalculationsAndCharts!$Z$33,B121,0,'Transaction Summary'!$C$2-B121,1),0)+B121,"") ->  | C122: =IFERROR(OFFSET(CalculationsAndCharts!$B$32,'Transaction Summary'!B122,0,1,1),"") ->  | D122: =IFERROR(OFFSET(CalculationsAndCharts!$AD$32,'Transaction Summary'!B122,0,1,1),"") ->  | E122: =IFERROR(IF($E$12>$B$15,$E$12,(MATCH(TRUE,OFFSET(CalculationsAndCharts!$AC$33,E121,0,'Transaction Summary'!$C$2-E121,1),0)+E121)),"") ->  | F122: =IFERROR(OFFSET(CalculationsAndCharts!$B$32,'Transaction Summary'!E122,0,1,1),"") ->  | G122: =IFERROR(OFFSET(CalculationsAndCharts!$AE$32,'Transaction Summary'!E122,0,1,1),"") -> 
B123: =IFERROR(MATCH(TRUE,OFFSET(CalculationsAndCharts!$Z$33,B122,0,'Transaction Summary'!$C$2-B122,1),0)+B122,"") ->  | C123: =IFERROR(OFFSET(CalculationsAndCharts!$B$32,'Transaction Summary'!B123,0,1,1),"") ->  | D123: =IFERROR(OFFSET(CalculationsAndCharts!$AD$32,'Transaction Summary'!B123,0,1,1),"") ->  | E123: =IFERROR(IF($E$12>$B$15,$E$12,(MATCH(TRUE,OFFSET(CalculationsAndCharts!$AC$33,E122,0,'Transaction Summary'!$C$2-E122,1),0)+E122)),"") ->  | F123: =IFERROR(OFFSET(CalculationsAndCharts!$B$32,'Transaction Summary'!E123,0,1,1),"") ->  | G123: =IFERROR(OFFSET(CalculationsAndCharts!$AE$32,'Transaction Summary'!E123,0,1,1),"") -> 
B124: =IFERROR(MATCH(TRUE,OFFSET(CalculationsAndCharts!$Z$33,B123,0,'Transaction Summary'!$C$2-B123,1),0)+B123,"") ->  | C124: =IFERROR(OFFSET(CalculationsAndCharts!$B$32,'Transaction Summary'!B124,0,1,1),"") ->  | D124: =IFERROR(OFFSET(CalculationsAndCharts!$AD$32,'Transaction Summary'!B124,0,1,1),"") ->  | E124: =IFERROR(IF($E$12>$B$15,$E$12,(MATCH(TRUE,OFFSET(CalculationsAndCharts!$AC$33,E123,0,'Transaction Summary'!$C$2-E123,1),0)+E123)),"") ->  | F124: =IFERROR(OFFSET(CalculationsAndCharts!$B$32,'Transaction Summary'!E124,0,1,1),"") ->  | G124: =IFERROR(OFFSET(CalculationsAndCharts!$AE$32,'Transaction Summary'!E124,0,1,1),"") -> 
B125: =IFERROR(MATCH(TRUE,OFFSET(CalculationsAndCharts!$Z$33,B124,0,'Transaction Summary'!$C$2-B124,1),0)+B124,"") ->  | C125: =IFERROR(OFFSET(CalculationsAndCharts!$B$32,'Transaction Summary'!B125,0,1,1),"") ->  | D125: =IFERROR(OFFSET(CalculationsAndCharts!$AD$32,'Transaction Summary'!B125,0,1,1),"") ->  | E125: =IFERROR(IF($E$12>$B$15,$E$12,(MATCH(TRUE,OFFSET(CalculationsAndCharts!$AC$33,E124,0,'Transaction Summary'!$C$2-E124,1),0)+E124)),"") ->  | F125: =IFERROR(OFFSET(CalculationsAndCharts!$B$32,'Transaction Summary'!E125,0,1,1),"") ->  | G125: =IFERROR(OFFSET(CalculationsAndCharts!$AE$32,'Transaction Summary'!E125,0,1,1),"") -> 
B126: =IFERROR(MATCH(TRUE,OFFSET(CalculationsAndCharts!$Z$33,B125,0,'Transaction Summary'!$C$2-B125,1),0)+B125,"") ->  | C126: =IFERROR(OFFSET(CalculationsAndCharts!$B$32,'Transaction Summary'!B126,0,1,1),"") ->  | D126: =IFERROR(OFFSET(CalculationsAndCharts!$AD$32,'Transaction Summary'!B126,0,1,1),"") ->  | E126: =IFERROR(IF($E$12>$B$15,$E$12,(MATCH(TRUE,OFFSET(CalculationsAndCharts!$AC$33,E125,0,'Transaction Summary'!$C$2-E125,1),0)+E125)),"") ->  | F126: =IFERROR(OFFSET(CalculationsAndCharts!$B$32,'Transaction Summary'!E126,0,1,1),"") ->  | G126: =IFERROR(OFFSET(CalculationsAndCharts!$AE$32,'Transaction Summary'!E126,0,1,1),"") -> 
B127: =IFERROR(MATCH(TRUE,OFFSET(CalculationsAndCharts!$Z$33,B126,0,'Transaction Summary'!$C$2-B126,1),0)+B126,"") ->  | C127: =IFERROR(OFFSET(CalculationsAndCharts!$B$32,'Transaction Summary'!B127,0,1,1),"") ->  | D127: =IFERROR(OFFSET(CalculationsAndCharts!$AD$32,'Transaction Summary'!B127,0,1,1),"") ->  | E127: =IFERROR(IF($E$12>$B$15,$E$12,(MATCH(TRUE,OFFSET(CalculationsAndCharts!$AC$33,E126,0,'Transaction Summary'!$C$2-E126,1),0)+E126)),"") ->  | F127: =IFERROR(OFFSET(CalculationsAndCharts!$B$32,'Transaction Summary'!E127,0,1,1),"") ->  | G127: =IFERROR(OFFSET(CalculationsAndCharts!$AE$32,'Transaction Summary'!E127,0,1,1),"") -> 
B128: =IFERROR(MATCH(TRUE,OFFSET(CalculationsAndCharts!$Z$33,B127,0,'Transaction Summary'!$C$2-B127,1),0)+B127,"") ->  | C128: =IFERROR(OFFSET(CalculationsAndCharts!$B$32,'Transaction Summary'!B128,0,1,1),"") ->  | D128: =IFERROR(OFFSET(CalculationsAndCharts!$AD$32,'Transaction Summary'!B128,0,1,1),"") ->  | E128: =IFERROR(IF($E$12>$B$15,$E$12,(MATCH(TRUE,OFFSET(CalculationsAndCharts!$AC$33,E127,0,'Transaction Summary'!$C$2-E127,1),0)+E127)),"") ->  | F128: =IFERROR(OFFSET(CalculationsAndCharts!$B$32,'Transaction Summary'!E128,0,1,1),"") ->  | G128: =IFERROR(OFFSET(CalculationsAndCharts!$AE$32,'Transaction Summary'!E128,0,1,1),"") -> 
B129: =IFERROR(MATCH(TRUE,OFFSET(CalculationsAndCharts!$Z$33,B128,0,'Transaction Summary'!$C$2-B128,1),0)+B128,"") ->  | C129: =IFERROR(OFFSET(CalculationsAndCharts!$B$32,'Transaction Summary'!B129,0,1,1),"") ->  | D129: =IFERROR(OFFSET(CalculationsAndCharts!$AD$32,'Transaction Summary'!B129,0,1,1),"") ->  | E129: =IFERROR(IF($E$12>$B$15,$E$12,(MATCH(TRUE,OFFSET(CalculationsAndCharts!$AC$33,E128,0,'Transaction Summary'!$C$2-E128,1),0)+E128)),"") ->  | F129: =IFERROR(OFFSET(CalculationsAndCharts!$B$32,'Transaction Summary'!E129,0,1,1),"") ->  | G129: =IFERROR(OFFSET(CalculationsAndCharts!$AE$32,'Transaction Summary'!E129,0,1,1),"") -> 
B130: =IFERROR(MATCH(TRUE,OFFSET(CalculationsAndCharts!$Z$33,B129,0,'Transaction Summary'!$C$2-B129,1),0)+B129,"") ->  | C130: =IFERROR(OFFSET(CalculationsAndCharts!$B$32,'Transaction Summary'!B130,0,1,1),"") ->  | D130: =IFERROR(OFFSET(CalculationsAndCharts!$AD$32,'Transaction Summary'!B130,0,1,1),"") ->  | E130: =IFERROR(IF($E$12>$B$15,$E$12,(MATCH(TRUE,OFFSET(CalculationsAndCharts!$AC$33,E129,0,'Transaction Summary'!$C$2-E129,1),0)+E129)),"") ->  | F130: =IFERROR(OFFSET(CalculationsAndCharts!$B$32,'Transaction Summary'!E130,0,1,1),"") ->  | G130: =IFERROR(OFFSET(CalculationsAndCharts!$AE$32,'Transaction Summary'!E130,0,1,1),"") -> 
B131: =IFERROR(MATCH(TRUE,OFFSET(CalculationsAndCharts!$Z$33,B130,0,'Transaction Summary'!$C$2-B130,1),0)+B130,"") ->  | C131: =IFERROR(OFFSET(CalculationsAndCharts!$B$32,'Transaction Summary'!B131,0,1,1),"") ->  | D131: =IFERROR(OFFSET(CalculationsAndCharts!$AD$32,'Transaction Summary'!B131,0,1,1),"") ->  | E131: =IFERROR(IF($E$12>$B$15,$E$12,(MATCH(TRUE,OFFSET(CalculationsAndCharts!$AC$33,E130,0,'Transaction Summary'!$C$2-E130,1),0)+E130)),"") ->  | F131: =IFERROR(OFFSET(CalculationsAndCharts!$B$32,'Transaction Summary'!E131,0,1,1),"") ->  | G131: =IFERROR(OFFSET(CalculationsAndCharts!$AE$32,'Transaction Summary'!E131,0,1,1),"") -> 
B132: =IFERROR(MATCH(TRUE,OFFSET(CalculationsAndCharts!$Z$33,B131,0,'Transaction Summary'!$C$2-B131,1),0)+B131,"") ->  | C132: =IFERROR(OFFSET(CalculationsAndCharts!$B$32,'Transaction Summary'!B132,0,1,1),"") ->  | D132: =IFERROR(OFFSET(CalculationsAndCharts!$AD$32,'Transaction Summary'!B132,0,1,1),"") ->  | E132: =IFERROR(IF($E$12>$B$15,$E$12,(MATCH(TRUE,OFFSET(CalculationsAndCharts!$AC$33,E131,0,'Transaction Summary'!$C$2-E131,1),0)+E131)),"") ->  | F132: =IFERROR(OFFSET(CalculationsAndCharts!$B$32,'Transaction Summary'!E132,0,1,1),"") ->  | G132: =IFERROR(OFFSET(CalculationsAndCharts!$AE$32,'Transaction Summary'!E132,0,1,1),"") -> 
B133: =IFERROR(MATCH(TRUE,OFFSET(CalculationsAndCharts!$Z$33,B132,0,'Transaction Summary'!$C$2-B132,1),0)+B132,"") ->  | C133: =IFERROR(OFFSET(CalculationsAndCharts!$B$32,'Transaction Summary'!B133,0,1,1),"") ->  | D133: =IFERROR(OFFSET(CalculationsAndCharts!$AD$32,'Transaction Summary'!B133,0,1,1),"") ->  | E133: =IFERROR(IF($E$12>$B$15,$E$12,(MATCH(TRUE,OFFSET(CalculationsAndCharts!$AC$33,E132,0,'Transaction Summary'!$C$2-E132,1),0)+E132)),"") ->  | F133: =IFERROR(OFFSET(CalculationsAndCharts!$B$32,'Transaction Summary'!E133,0,1,1),"") ->  | G133: =IFERROR(OFFSET(CalculationsAndCharts!$AE$32,'Transaction Summary'!E133,0,1,1),"") -> 
B134: =IFERROR(MATCH(TRUE,OFFSET(CalculationsAndCharts!$Z$33,B133,0,'Transaction Summary'!$C$2-B133,1),0)+B133,"") ->  | C134: =IFERROR(OFFSET(CalculationsAndCharts!$B$32,'Transaction Summary'!B134,0,1,1),"") ->  | D134: =IFERROR(OFFSET(CalculationsAndCharts!$AD$32,'Transaction Summary'!B134,0,1,1),"") ->  | E134: =IFERROR(IF($E$12>$B$15,$E$12,(MATCH(TRUE,OFFSET(CalculationsAndCharts!$AC$33,E133,0,'Transaction Summary'!$C$2-E133,1),0)+E133)),"") ->  | F134: =IFERROR(OFFSET(CalculationsAndCharts!$B$32,'Transaction Summary'!E134,0,1,1),"") ->  | G134: =IFERROR(OFFSET(CalculationsAndCharts!$AE$32,'Transaction Summary'!E134,0,1,1),"") -> 
B135: =IFERROR(MATCH(TRUE,OFFSET(CalculationsAndCharts!$Z$33,B134,0,'Transaction Summary'!$C$2-B134,1),0)+B134,"") ->  | C135: =IFERROR(OFFSET(CalculationsAndCharts!$B$32,'Transaction Summary'!B135,0,1,1),"") ->  | D135: =IFERROR(OFFSET(CalculationsAndCharts!$AD$32,'Transaction Summary'!B135,0,1,1),"") ->  | E135: =IFERROR(IF($E$12>$B$15,$E$12,(MATCH(TRUE,OFFSET(CalculationsAndCharts!$AC$33,E134,0,'Transaction Summary'!$C$2-E134,1),0)+E134)),"") ->  | F135: =IFERROR(OFFSET(CalculationsAndCharts!$B$32,'Transaction Summary'!E135,0,1,1),"") ->  | G135: =IFERROR(OFFSET(CalculationsAndCharts!$AE$32,'Transaction Summary'!E135,0,1,1),"") -> 
B136: =IFERROR(MATCH(TRUE,OFFSET(CalculationsAndCharts!$Z$33,B135,0,'Transaction Summary'!$C$2-B135,1),0)+B135,"") ->  | C136: =IFERROR(OFFSET(CalculationsAndCharts!$B$32,'Transaction Summary'!B136,0,1,1),"") ->  | D136: =IFERROR(OFFSET(CalculationsAndCharts!$AD$32,'Transaction Summary'!B136,0,1,1),"") ->  | E136: =IFERROR(IF($E$12>$B$15,$E$12,(MATCH(TRUE,OFFSET(CalculationsAndCharts!$AC$33,E135,0,'Transaction Summary'!$C$2-E135,1),0)+E135)),"") ->  | F136: =IFERROR(OFFSET(CalculationsAndCharts!$B$32,'Transaction Summary'!E136,0,1,1),"") ->  | G136: =IFERROR(OFFSET(CalculationsAndCharts!$AE$32,'Transaction Summary'!E136,0,1,1),"") -> 
B137: =IFERROR(MATCH(TRUE,OFFSET(CalculationsAndCharts!$Z$33,B136,0,'Transaction Summary'!$C$2-B136,1),0)+B136,"") ->  | C137: =IFERROR(OFFSET(CalculationsAndCharts!$B$32,'Transaction Summary'!B137,0,1,1),"") ->  | D137: =IFERROR(OFFSET(CalculationsAndCharts!$AD$32,'Transaction Summary'!B137,0,1,1),"") ->  | E137: =IFERROR(IF($E$12>$B$15,$E$12,(MATCH(TRUE,OFFSET(CalculationsAndCharts!$AC$33,E136,0,'Transaction Summary'!$C$2-E136,1),0)+E136)),"") ->  | F137: =IFERROR(OFFSET(CalculationsAndCharts!$B$32,'Transaction Summary'!E137,0,1,1),"") ->  | G137: =IFERROR(OFFSET(CalculationsAndCharts!$AE$32,'Transaction Summary'!E137,0,1,1),"") -> 
B138: =IFERROR(MATCH(TRUE,OFFSET(CalculationsAndCharts!$Z$33,B137,0,'Transaction Summary'!$C$2-B137,1),0)+B137,"") ->  | C138: =IFERROR(OFFSET(CalculationsAndCharts!$B$32,'Transaction Summary'!B138,0,1,1),"") ->  | D138: =IFERROR(OFFSET(CalculationsAndCharts!$AD$32,'Transaction Summary'!B138,0,1,1),"") ->  | E138: =IFERROR(IF($E$12>$B$15,$E$12,(MATCH(TRUE,OFFSET(CalculationsAndCharts!$AC$33,E137,0,'Transaction Summary'!$C$2-E137,1),0)+E137)),"") ->  | F138: =IFERROR(OFFSET(CalculationsAndCharts!$B$32,'Transaction Summary'!E138,0,1,1),"") ->  | G138: =IFERROR(OFFSET(CalculationsAndCharts!$AE$32,'Transaction Summary'!E138,0,1,1),"") -> 
B139: =IFERROR(MATCH(TRUE,OFFSET(CalculationsAndCharts!$Z$33,B138,0,'Transaction Summary'!$C$2-B138,1),0)+B138,"") ->  | C139: =IFERROR(OFFSET(CalculationsAndCharts!$B$32,'Transaction Summary'!B139,0,1,1),"") ->  | D139: =IFERROR(OFFSET(CalculationsAndCharts!$AD$32,'Transaction Summary'!B139,0,1,1),"") ->  | E139: =IFERROR(IF($E$12>$B$15,$E$12,(MATCH(TRUE,OFFSET(CalculationsAndCharts!$AC$33,E138,0,'Transaction Summary'!$C$2-E138,1),0)+E138)),"") ->  | F139: =IFERROR(OFFSET(CalculationsAndCharts!$B$32,'Transaction Summary'!E139,0,1,1),"") ->  | G139: =IFERROR(OFFSET(CalculationsAndCharts!$AE$32,'Transaction Summary'!E139,0,1,1),"") -> 
B140: =IFERROR(MATCH(TRUE,OFFSET(CalculationsAndCharts!$Z$33,B139,0,'Transaction Summary'!$C$2-B139,1),0)+B139,"") ->  | C140: =IFERROR(OFFSET(CalculationsAndCharts!$B$32,'Transaction Summary'!B140,0,1,1),"") ->  | D140: =IFERROR(OFFSET(CalculationsAndCharts!$AD$32,'Transaction Summary'!B140,0,1,1),"") ->  | E140: =IFERROR(IF($E$12>$B$15,$E$12,(MATCH(TRUE,OFFSET(CalculationsAndCharts!$AC$33,E139,0,'Transaction Summary'!$C$2-E139,1),0)+E139)),"") ->  | F140: =IFERROR(OFFSET(CalculationsAndCharts!$B$32,'Transaction Summary'!E140,0,1,1),"") ->  | G140: =IFERROR(OFFSET(CalculationsAndCharts!$AE$32,'Transaction Summary'!E140,0,1,1),"") -> 
B141: =IFERROR(MATCH(TRUE,OFFSET(CalculationsAndCharts!$Z$33,B140,0,'Transaction Summary'!$C$2-B140,1),0)+B140,"") ->  | C141: =IFERROR(OFFSET(CalculationsAndCharts!$B$32,'Transaction Summary'!B141,0,1,1),"") ->  | D141: =IFERROR(OFFSET(CalculationsAndCharts!$AD$32,'Transaction Summary'!B141,0,1,1),"") ->  | E141: =IFERROR(IF($E$12>$B$15,$E$12,(MATCH(TRUE,OFFSET(CalculationsAndCharts!$AC$33,E140,0,'Transaction Summary'!$C$2-E140,1),0)+E140)),"") ->  | F141: =IFERROR(OFFSET(CalculationsAndCharts!$B$32,'Transaction Summary'!E141,0,1,1),"") ->  | G141: =IFERROR(OFFSET(CalculationsAndCharts!$AE$32,'Transaction Summary'!E141,0,1,1),"") -> 
B142: =IFERROR(MATCH(TRUE,OFFSET(CalculationsAndCharts!$Z$33,B141,0,'Transaction Summary'!$C$2-B141,1),0)+B141,"") ->  | C142: =IFERROR(OFFSET(CalculationsAndCharts!$B$32,'Transaction Summary'!B142,0,1,1),"") ->  | D142: =IFERROR(OFFSET(CalculationsAndCharts!$AD$32,'Transaction Summary'!B142,0,1,1),"") ->  | E142: =IFERROR(IF($E$12>$B$15,$E$12,(MATCH(TRUE,OFFSET(CalculationsAndCharts!$AC$33,E141,0,'Transaction Summary'!$C$2-E141,1),0)+E141)),"") ->  | F142: =IFERROR(OFFSET(CalculationsAndCharts!$B$32,'Transaction Summary'!E142,0,1,1),"") ->  | G142: =IFERROR(OFFSET(CalculationsAndCharts!$AE$32,'Transaction Summary'!E142,0,1,1),"") -> 
B143: =IFERROR(MATCH(TRUE,OFFSET(CalculationsAndCharts!$Z$33,B142,0,'Transaction Summary'!$C$2-B142,1),0)+B142,"") ->  | C143: =IFERROR(OFFSET(CalculationsAndCharts!$B$32,'Transaction Summary'!B143,0,1,1),"") ->  | D143: =IFERROR(OFFSET(CalculationsAndCharts!$AD$32,'Transaction Summary'!B143,0,1,1),"") ->  | E143: =IFERROR(IF($E$12>$B$15,$E$12,(MATCH(TRUE,OFFSET(CalculationsAndCharts!$AC$33,E142,0,'Transaction Summary'!$C$2-E142,1),0)+E142)),"") ->  | F143: =IFERROR(OFFSET(CalculationsAndCharts!$B$32,'Transaction Summary'!E143,0,1,1),"") ->  | G143: =IFERROR(OFFSET(CalculationsAndCharts!$AE$32,'Transaction Summary'!E143,0,1,1),"") -> 
B144: =IFERROR(MATCH(TRUE,OFFSET(CalculationsAndCharts!$Z$33,B143,0,'Transaction Summary'!$C$2-B143,1),0)+B143,"") ->  | C144: =IFERROR(OFFSET(CalculationsAndCharts!$B$32,'Transaction Summary'!B144,0,1,1),"") ->  | D144: =IFERROR(OFFSET(CalculationsAndCharts!$AD$32,'Transaction Summary'!B144,0,1,1),"") ->  | E144: =IFERROR(IF($E$12>$B$15,$E$12,(MATCH(TRUE,OFFSET(CalculationsAndCharts!$AC$33,E143,0,'Transaction Summary'!$C$2-E143,1),0)+E143)),"") ->  | F144: =IFERROR(OFFSET(CalculationsAndCharts!$B$32,'Transaction Summary'!E144,0,1,1),"") ->  | G144: =IFERROR(OFFSET(CalculationsAndCharts!$AE$32,'Transaction Summary'!E144,0,1,1),"") -> 
B145: =IFERROR(MATCH(TRUE,OFFSET(CalculationsAndCharts!$Z$33,B144,0,'Transaction Summary'!$C$2-B144,1),0)+B144,"") ->  | C145: =IFERROR(OFFSET(CalculationsAndCharts!$B$32,'Transaction Summary'!B145,0,1,1),"") ->  | D145: =IFERROR(OFFSET(CalculationsAndCharts!$AD$32,'Transaction Summary'!B145,0,1,1),"") ->  | E145: =IFERROR(IF($E$12>$B$15,$E$12,(MATCH(TRUE,OFFSET(CalculationsAndCharts!$AC$33,E144,0,'Transaction Summary'!$C$2-E144,1),0)+E144)),"") ->  | F145: =IFERROR(OFFSET(CalculationsAndCharts!$B$32,'Transaction Summary'!E145,0,1,1),"") ->  | G145: =IFERROR(OFFSET(CalculationsAndCharts!$AE$32,'Transaction Summary'!E145,0,1,1),"") -> 
B146: =IFERROR(MATCH(TRUE,OFFSET(CalculationsAndCharts!$Z$33,B145,0,'Transaction Summary'!$C$2-B145,1),0)+B145,"") ->  | C146: =IFERROR(OFFSET(CalculationsAndCharts!$B$32,'Transaction Summary'!B146,0,1,1),"") ->  | D146: =IFERROR(OFFSET(CalculationsAndCharts!$AD$32,'Transaction Summary'!B146,0,1,1),"") ->  | E146: =IFERROR(IF($E$12>$B$15,$E$12,(MATCH(TRUE,OFFSET(CalculationsAndCharts!$AC$33,E145,0,'Transaction Summary'!$C$2-E145,1),0)+E145)),"") ->  | F146: =IFERROR(OFFSET(CalculationsAndCharts!$B$32,'Transaction Summary'!E146,0,1,1),"") ->  | G146: =IFERROR(OFFSET(CalculationsAndCharts!$AE$32,'Transaction Summary'!E146,0,1,1),"") ->  | H146: =IFERROR(G146-D146,"") ->  | I146: =IFERROR(H146+IF(""=I147,0,I147),"") -> 
B147: =IFERROR(MATCH(TRUE,OFFSET(CalculationsAndCharts!$Z$33,B146,0,'Transaction Summary'!$C$2-B146,1),0)+B146,"") ->  | C147: =IFERROR(OFFSET(CalculationsAndCharts!$B$32,'Transaction Summary'!B147,0,1,1),"") ->  | D147: =IFERROR(OFFSET(CalculationsAndCharts!$AD$32,'Transaction Summary'!B147,0,1,1),"") ->  | E147: =IFERROR(IF($E$12>$B$15,$E$12,(MATCH(TRUE,OFFSET(CalculationsAndCharts!$AC$33,E146,0,'Transaction Summary'!$C$2-E146,1),0)+E146)),"") ->  | F147: =IFERROR(OFFSET(CalculationsAndCharts!$B$32,'Transaction Summary'!E147,0,1,1),"") ->  | G147: =IFERROR(OFFSET(CalculationsAndCharts!$AE$32,'Transaction Summary'!E147,0,1,1),"") -> 
